Workbook

Sheet Cover page
B27: 2023-01-31
B30: Attachment 9.1.b: Public lighting model FY24-29
B34: Ausgrid’s 2024-29 Regulatory Proposal

Sheet Questions_comments_change log
B1: Questions and comments
B5: Owner | C5: Question/comment | D5: Response
B18: Change Log
B20: General changes:
B21: a) Worksheets with a tab colour highlighted red have not been used, as well as cells highlighted with a grey cross-hatch.
B22: b) Worksheets highlighted with a tab colour of blue are for reporting and have been added
B24: In addition the following specific changes were made to original model:
B25: Change | C25: Change Type | D25: Worksheet | E25: Cell Reference
A26: =N(A25)+1 -> 1 | B26: Added this change log | C26: Version control | D26: Questions + comments | E26: Row 18 onwards
A27: =N(A26)+1 -> 2 | B27: Updated notes to be Ausgrid specific | C27: Labelling | D27: Read This Sheet | E27: C11:C20
A28: 3 | B28: Removed unused mapping and formatted cell to show cells are not used | C28: Formatting | D28: O_New Component SLUOS | E28: Columns F to M
A29: 4 | B29: Replaced Formulas with Ausgrid Support list using 15 of 19 available rows | C29: Labelling | D29: O_New Component SLUOS | E29: B5:B23
A30: 5 | B30: Removed formulas given night patrol is included in bulk contract costs | C30: Formulas | D30: O_New Component SLUOS | E30: C26:D26
A31: 6 | B31: Increased traditional luminaire categories from 57 to 70 aligning to FY23 pricing proposal | C31: Formulas | D31: O_New Component SLUOS | E31: B33:B89
A32: 7 | B32: Created unused categories because only 59 of 92 LED luminaire cateories were required | C32: Formulas | D32: O_New Component SLUOS | E32: B92:B183
A33: 8 | B33: This sheet was hidden as it is not required by Ausgrid | C33: Simplification | D33: Sheet 1 | E33: All
A34: 9 | B34: This sheet was hidden as it is not required by Ausgrid | C34: Simplification | D34: SRC_STLAssetList | E34: All
A35: 10 | B35: This sheet is not required by Ausgrid, grey format applied to show it is not been applied. | C35: Simplification | D35: I_CAPEX - Hybid Calcs | E35: All
A36: 11 | B36: Removed work in progress yellow cell fill colour | C36: Formatting | D36: I_CAPEX | E36: T166:T478
A37: 12 | B37: Removed redundant working notes | C37: Labelling | D37: I_CAPEX | E37: V481:V484
A38: 13 | B38: Removed note not applicable to Ausgrid | C38: Labelling | D38: I_CAPEX | E38: AD398
A39: 14 | B39: Updated and simplified the list of materials required, including minor formatting changes | C39: Simplification | D39: I_CAPEX - Stock Costs | E39: All
A40: 15 | B40: Updated sub assembly mapping to categories which align to Ausgrid's business model | C40: Update | D40: I_CAPEX | E40: AE49:AK121
A41: 16 | B41: Updated bracket mapping to categories which align to Ausgrid's business model | C41: Update | D41: I_CAPEX | E41: K49:Q55
A42: 17 | B42: Updated support mapping to categories which align to Ausgrid's business model | C42: Update | D42: I_CAPEX | E42: A49:G87
A43: 18 | B43: Updated luminaire mapping to categories which align to Ausgrid's business model | C43: Update | D43: I_CAPEX | E43: U49:AA477
A44: 19 | B44: Inserted [40] rows, standardised formatting, greyed out unused columns, removed conditional formatting | C44: Formatting | D44: C_CAPEX Build Up | E44: All
A45: 20 | B45: Replaced logic for Design with Ausgrid Warranty logic including updating column M (Overheads) to exclude the new values in column K | C45: Logic | D45: C_CAPEX Build Up | E45: K14:K185
A46: 21 | B46: Copied formulas from top row all the way down each column from J to N to ensure formula consistency and no hard codes | C46: Logic | D46: C_CAPEX Build Up | E46: J14:AF14
A47: 22 | B47: Removed or greyed out unused mapping and charges | C47: Simplification | D47: O_New Component SLUOS | E47: All
A48: 23 | B48: Updated formulas to include the full reference range | C48: Formulas | D48: O_New Component SLUOS | E48: I5:I19
A49: 24 | B49: Changed heading and worksheet colours to Ausgrid colours | C49: Formatting | D49: All | E49: All
A50: 25
A51: 26
A52: 27
A53: 28
A54: 29
A55: 30

Sheet Read This Sheet
B1: SLUOS Construction Cost Calculation Workbook
B3: Description
B4: This Excel workbook contains a costing model for the calculation of SLUOS Capital charges.
B5: This workbook is designed to take financial, technical and material inputs to calculate both CAPEX and OPEX charges applicable to assemblies relating to Streetlights. For OPEX this is achieved through a ground up approach by calcualting the forecasted level of maintenance per failure rates and calculating the cost of repairs utilising labour, plant and material rates. For CAPEX this is achieved by calculating the cost of labour, plant and materials and applying a return on investment of a period of time for the economic life of the asset. This model takes into consideration appropriate overheads, oncosts and CPI to establish the final fully loaded SLUOS charges. These charges are based on an anuual charge.
B7: A description of each of the sheets is contained below:
C8: Items highlighted in red are not applicable for Ausgrid
B9: Worksheet | C9: Function
B10: Global Inputs | C10: Contains all inputs from other major workbooks - including overheads, oncosts, pay rates.
B11: CAPEX Inputs | C11: • Contains a list of all stock and their associated costs. This data is extracted from WASP. • Models the design costs associated with streetlights. • Contains components (from stock list) used to construct larger assemblies, giving prices for each. • Models the traffic control costs associated with a streetlight construction.
B12: CAPEX - Stock Costs | C12: Contains all stock costs as per 21/22 dollars as tracked through procurement purchase prices
B13: CAPEX - Hybrid Calcs | C13: Calculates assembly costs where assembly cannot be directly calculated (i.e. insufficient data to distinguish assets)
B14: CAPEX Build Up | C14: • For the assemblies listed in the CAPEX Input (luminaire, bracket, pole) the CAPEX cost for the component is calculated. • This is then calculated as an annual cost based of a given asset lifespan.
B15: OPEX Input | C15: • For a given lamp type, this sheet contains the associated lamp, ballast/igniter and starter/PE cell cost. It also contains the failure rates for these components. • Pole maintenance costs are modelled • Small component usage (fuses, etc) are measured to be able to provide a cost per pole to account for these otherwise unrecovered costs • Bulk Works Additional Material usage is measured to pass on these costs on an average per pole basis • Streetlight Improvement Programs are listed to be able to have these costs passed on, in a per pole cost
B16: Warrenty NPV | C16: • Given that LEDs have parts and labour warranty for the first three years, the average NPV cost of maintenance is calculated across the span of the luminaire’s lifetime
B17: OPEX Calc | C17: • All luminaires and poles now have their associated costs calculated
B18: OPEX Tariff and Revenue Summary | C18: • Contains nominal Opex charges for each component and an estimate of the nominal maintenance revenue through to FY29
B19: Mapping & Lookups | C19: • This sheet provides construction information for a given construction code (type of pole, number of luminaires etc) • Because of different naming conventions for a number of the bulbs and luminaire types, this sheet provides a given CAPEX and OPEX code for a given lamp code from the traditional tariff code. This then allows the costs to be found in the CAPEX Calc and OPEX Calc sheets
B20: New Component SLUOS (For New Assets) | C20: • To be able to map to the old lamp tariff codes, the new componentised structure is now collapsed again, such that it can map according allowing direct comparison of the old and new costs for a given assembly type.

Sheet Instructions
B2: Steps to create new asset in pricing model
B3: When creating a new code, always work from a copy of the model rather than the model itself
B4: When creating new entries for the steps below, formulas from the previous entry should just be copied down
B6: CAPEX CHARGE
B7: Step | C7: Sheet affected | D7: Columns | E7: Instruction | F7: Notes
B8: 1 | C8: CAPEX - Stock Costs | D8: B:H | E8: Create new entry in "CAPEX - Stock Costs" tab for the purchase price of the luminaire and its stock item code | F8: This should be added after the last entry
B9: 2 | C9: CAPEX - Input | D9: U:AC | E9: Create new sub assembly in "CAPEX - Input" tab | F9: This can be done by copying and pasting the last one in the list (columns U to AC) and changing the materials item code (column Y) to the stock item code created in step 1
B10: 3 | C10: Mapping & Lookups | D10: X:AD | E10: Create new entry in "Mapping & Lookups" tab | F10: Data needs to be entered into columns X, Y, Z and AD
B11: 4 | C11: CAPEX Build Up | D11: B:Z | E11: Create new entry at bottom of table in "CAPEX Build Up" and change the "Mapped to Assembly/Item" (column F) to the new LED code created in step 2
B12: OPEX CHARGE
B13: 5 | C13: OPEX Input | D13: B:N | E13: Create a new entry in the "Additions through the regulatory period" in tab "OPEX Input". | F13: This should be added after the last entry which is currently in row 182. All entries in this table are usually common except for the luminaire failure column (column K) and smart controller cost (column H).
B14: =B13+1 -> 6 | C14: OPEX Calc | D14: B:AG | E14: Create a new entry in the "OPEX Calc" tab and change the Mapping code (column F)
B15: =B14+1 -> 7 | C15: Warranty NPV | D15: B:N | E15: Create a new entry in the "Warranty NPV" tab and change the Lamp Type (Column B) to the new LED code
B16: 8 | C16: OPEX Tariff and Revenue Summary | D16: B:V | E16: Create a new entry in the "OPEX Tariff and Revenue Summary" tab and change the Lamp Type (Column J) to the new LED code
B17: PRICING SUMMARY
B18: =B16+1 -> 9 | C18: New Component SLUOS | D18: B:J | E18: Create a new entry in the "New Component SLUOS" tab and change the CAPEX and OPEX lookups (column G&H) to the LED code created

Sheet Detailed price list
B1: Public lighting price list - post July 2009 capital annuity and annual maintenance charges
B2: This sheet summarises the post July 2009 capital annuity and annual maintenance charges calculated in this model. | M2: Volume (FY25-FY29)
D3: Nominal $ | M3: =MATCH($M$2,$O$4:$Q$4,0) -> 1
B4: Charge Reference | C4: Charge Group | D4: ='C_CAPEX Build Up'!S14 -> FY25 | E4: ='C_CAPEX Build Up'!T14 -> FY26 | F4: ='C_CAPEX Build Up'!U14 -> FY27 | G4: ='C_CAPEX Build Up'!V14 -> FY28 | H4: ='C_CAPEX Build Up'!W14 -> FY29 | J4: Charge Type | K4: Road Type | L4: Applied Scenario Price Grouping | M4: Volume (FY25-FY29) | O4: Volume (FY25-FY29) | P4: Volume (FY22 Billing) | Q4: Estimated Average Revenue
B5: O/U | C5: Opex - Connections | D5: =INDEX('O_OPEX Tariff Summary'!AB$5:AB$138,MATCH($B5,'O_OPEX Tariff Summary'!$B$5:$B$138,0)) -> 101.0791094 | E5: =INDEX('O_OPEX Tariff Summary'!AC$5:AC$138,MATCH($B5,'O_OPEX Tariff Summary'!$B$5:$B$138,0)) -> 103.9847883 | F5: =INDEX('O_OPEX Tariff Summary'!AD$5:AD$138,MATCH($B5,'O_OPEX Tariff Summary'!$B$5:$B$138,0)) -> 106.9739956 | G5: =INDEX('O_OPEX Tariff Summary'!AE$5:AE$138,MATCH($B5,'O_OPEX Tariff Summary'!$B$5:$B$138,0)) -> 110.0491325 | H5: =INDEX('O_OPEX Tariff Summary'!AF$5:AF$138,MATCH($B5,'O_OPEX Tariff Summary'!$B$5:$B$138,0)) -> 113.2126689 | J5: N/A | K5: N/A | L5: Connection - O/U | M5: =INDEX(O5:Q5,,$M$3) -> 2880 | O5: =SUM('I_Asset number input'!K5:O5) -> 2880 | P5: 4552 | Q5: =+O5/5*AVERAGE(D5,E5,F5,G5,H5) -> 61666.52483
B6: UGR1 | C6: =C5 -> Opex - Connections | D6: =INDEX('O_OPEX Tariff Summary'!AB$5:AB$138,MATCH($B6,'O_OPEX Tariff Summary'!$B$5:$B$138,0)) -> 92.65350793 | E6: =INDEX('O_OPEX Tariff Summary'!AC$5:AC$138,MATCH($B6,'O_OPEX Tariff Summary'!$B$5:$B$138,0)) -> 95.31697965 | F6: =INDEX('O_OPEX Tariff Summary'!AD$5:AD$138,MATCH($B6,'O_OPEX Tariff Summary'!$B$5:$B$138,0)) -> 98.05701708 | G6: =INDEX('O_OPEX Tariff Summary'!AE$5:AE$138,MATCH($B6,'O_OPEX Tariff Summary'!$B$5:$B$138,0)) -> 100.8758212 | H6: =INDEX('O_OPEX Tariff Summary'!AF$5:AF$138,MATCH($B6,'O_OPEX Tariff Summary'!$B$5:$B$138,0)) -> 103.7756563 | J6: N/A | K6: N/A | L6: Connection - UGR1 | M6: =INDEX(O6:Q6,,$M$3) -> 162507.5 | O6: =SUM('I_Asset number input'!K6:O6) -> 162507.5 | P6: 254888 | Q6: =+O6/5*AVERAGE(D6,E6,F6,G6,H6) -> 3189560.588
B7: UGR2 | C7: =C6 -> Opex - Connections | D7: =INDEX('O_OPEX Tariff Summary'!AB$5:AB$138,MATCH($B7,'O_OPEX Tariff Summary'!$B$5:$B$138,0)) -> 33.68802363 | E7: =INDEX('O_OPEX Tariff Summary'!AC$5:AC$138,MATCH($B7,'O_OPEX Tariff Summary'!$B$5:$B$138,0)) -> 34.65643919 | F7: =INDEX('O_OPEX Tariff Summary'!AD$5:AD$138,MATCH($B7,'O_OPEX Tariff Summary'!$B$5:$B$138,0)) -> 35.65269338 | G7: =INDEX('O_OPEX Tariff Summary'!AE$5:AE$138,MATCH($B7,'O_OPEX Tariff Summary'!$B$5:$B$138,0)) -> 36.67758647 | H7: =INDEX('O_OPEX Tariff Summary'!AF$5:AF$138,MATCH($B7,'O_OPEX Tariff Summary'!$B$5:$B$138,0)) -> 37.73194174 | J7: N/A | K7: N/A | L7: Connection - UGR2 | M7: =INDEX(O7:Q7,,$M$3) -> 124642.5 | O7: =SUM('I_Asset number input'!K7:O7) -> 124642.5 | P7: 195760 | Q7: 889482.2065
B8: MBF1x1000 | C8: Opex - Maintenance- Traditional Luminaire | D8: =INDEX('O_OPEX Tariff Summary'!AB$5:AB$138,MATCH($B8,'O_OPEX Tariff Summary'!$B$5:$B$138,0)) -> 62.22696588 | E8: =INDEX('O_OPEX Tariff Summary'!AC$5:AC$138,MATCH($B8,'O_OPEX Tariff Summary'!$B$5:$B$138,0)) -> 64.0157785 | F8: =INDEX('O_OPEX Tariff Summary'!AD$5:AD$138,MATCH($B8,'O_OPEX Tariff Summary'!$B$5:$B$138,0)) -> 65.85601336 | G8: =INDEX('O_OPEX Tariff Summary'!AE$5:AE$138,MATCH($B8,'O_OPEX Tariff Summary'!$B$5:$B$138,0)) -> 67.74914869 | H8: =INDEX('O_OPEX Tariff Summary'!AF$5:AF$138,MATCH($B8,'O_OPEX Tariff Summary'!$B$5:$B$138,0)) -> 69.69670519 | J8: Traditional | K8: Major (Cat V) | L8: Legacy Luminaire - Major (Cat V) road | M8: =INDEX(O8:Q8,,$M$3) -> 5 | O8: =SUM('I_Asset number input'!K8:O8) -> 5 | P8: 16 | Q8: 65.90892232
B9: MBF1x125 | C9: =C8 -> Opex - Maintenance- Traditional Luminaire | D9: =INDEX('O_OPEX Tariff Summary'!AB$5:AB$138,MATCH($B9,'O_OPEX Tariff Summary'!$B$5:$B$138,0)) -> 36.19329771 | E9: =INDEX('O_OPEX Tariff Summary'!AC$5:AC$138,MATCH($B9,'O_OPEX Tariff Summary'!$B$5:$B$138,0)) -> 37.23373133 | F9: =INDEX('O_OPEX Tariff Summary'!AD$5:AD$138,MATCH($B9,'O_OPEX Tariff Summary'!$B$5:$B$138,0)) -> 38.30407387 | G9: =INDEX('O_OPEX Tariff Summary'!AE$5:AE$138,MATCH($B9,'O_OPEX Tariff Summary'!$B$5:$B$138,0)) -> 39.40518509 | H9: =INDEX('O_OPEX Tariff Summary'!AF$5:AF$138,MATCH($B9,'O_OPEX Tariff Summary'!$B$5:$B$138,0)) -> 40.5379495 | J9: Traditional | K9: Minor (Cat P) | L9: Legacy Luminaire - Minor (Cat P) road | M9: =INDEX(O9:Q9,,$M$3) -> 977 | O9: =SUM('I_Asset number input'!K9:O9) -> 977 | P9: 10520 | Q9: 7490.629201
B10: MBF1x250 | C10: =C9 -> Opex - Maintenance- Traditional Luminaire | D10: =INDEX('O_OPEX Tariff Summary'!AB$5:AB$138,MATCH($B10,'O_OPEX Tariff Summary'!$B$5:$B$138,0)) -> 49.25750635 | E10: =INDEX('O_OPEX Tariff Summary'!AC$5:AC$138,MATCH($B10,'O_OPEX Tariff Summary'!$B$5:$B$138,0)) -> 50.67349132 | F10: =INDEX('O_OPEX Tariff Summary'!AD$5:AD$138,MATCH($B10,'O_OPEX Tariff Summary'!$B$5:$B$138,0)) -> 52.13018103 | G10: =INDEX('O_OPEX Tariff Summary'!AE$5:AE$138,MATCH($B10,'O_OPEX Tariff Summary'!$B$5:$B$138,0)) -> 53.62874558 | H10: =INDEX('O_OPEX Tariff Summary'!AF$5:AF$138,MATCH($B10,'O_OPEX Tariff Summary'!$B$5:$B$138,0)) -> 55.17038875 | J10: Traditional | K10: Major (Cat V) | L10: Legacy Luminaire - Major (Cat V) road | M10: =INDEX(O10:Q10,,$M$3) -> 8847.5 | O10: =SUM('I_Asset number input'!K10:O10) -> 8847.5 | P10: 92720 | Q10: 92318.46478
B11: MBF1x400 | C11: Opex - Maintenance- Traditional Luminaire | D11: =INDEX('O_OPEX Tariff Summary'!AB$5:AB$138,MATCH($B11,'O_OPEX Tariff Summary'!$B$5:$B$138,0)) -> 49.25750635 | E11: =INDEX('O_OPEX Tariff Summary'!AC$5:AC$138,MATCH($B11,'O_OPEX Tariff Summary'!$B$5:$B$138,0)) -> 50.67349132 | F11: =INDEX('O_OPEX Tariff Summary'!AD$5:AD$138,MATCH($B11,'O_OPEX Tariff Summary'!$B$5:$B$138,0)) -> 52.13018103 | G11: =INDEX('O_OPEX Tariff Summary'!AE$5:AE$138,MATCH($B11,'O_OPEX Tariff Summary'!$B$5:$B$138,0)) -> 53.62874558 | H11: =INDEX('O_OPEX Tariff Summary'!AF$5:AF$138,MATCH($B11,'O_OPEX Tariff Summary'!$B$5:$B$138,0)) -> 55.17038875 | J11: Traditional | K11: Major (Cat V) | L11: Legacy Luminaire - Major (Cat V) road | M11: =INDEX(O11:Q11,,$M$3) -> 2920 | O11: =SUM('I_Asset number input'!K11:O11) -> 2920 | P11: 31824 | Q11: 30468.48456
B12: MBF1x42 | C12: Opex - Maintenance- Traditional Luminaire | D12: =INDEX('O_OPEX Tariff Summary'!AB$5:AB$138,MATCH($B12,'O_OPEX Tariff Summary'!$B$5:$B$138,0)) -> 32.27222771 | E12: =INDEX('O_OPEX Tariff Summary'!AC$5:AC$138,MATCH($B12,'O_OPEX Tariff Summary'!$B$5:$B$138,0)) -> 33.19994397 | F12: =INDEX('O_OPEX Tariff Summary'!AD$5:AD$138,MATCH($B12,'O_OPEX Tariff Summary'!$B$5:$B$138,0)) -> 34.1543289 | G12: =INDEX('O_OPEX Tariff Summary'!AE$5:AE$138,MATCH($B12,'O_OPEX Tariff Summary'!$B$5:$B$138,0)) -> 35.13614914 | H12: =INDEX('O_OPEX Tariff Summary'!AF$5:AF$138,MATCH($B12,'O_OPEX Tariff Summary'!$B$5:$B$138,0)) -> 36.14619335 | J12: Traditional | K12: Minor (Cat P) | L12: Legacy Luminaire - Minor (Cat P) road | M12: =INDEX(O12:Q12,,$M$3) -> 23720 | O12: =SUM('I_Asset number input'!K12:O12) -> 23720 | P12: 247472 | Q12: 162158.3103
B13: MBF1x50 | C13: Opex - Maintenance- Traditional Luminaire | D13: =INDEX('O_OPEX Tariff Summary'!AB$5:AB$138,MATCH($B13,'O_OPEX Tariff Summary'!$B$5:$B$138,0)) -> 36.21774381 | E13: =INDEX('O_OPEX Tariff Summary'!AC$5:AC$138,MATCH($B13,'O_OPEX Tariff Summary'!$B$5:$B$138,0)) -> 37.25888017 | F13: =INDEX('O_OPEX Tariff Summary'!AD$5:AD$138,MATCH($B13,'O_OPEX Tariff Summary'!$B$5:$B$138,0)) -> 38.32994565 | G13: =INDEX('O_OPEX Tariff Summary'!AE$5:AE$138,MATCH($B13,'O_OPEX Tariff Summary'!$B$5:$B$138,0)) -> 39.4318006 | H13: =INDEX('O_OPEX Tariff Summary'!AF$5:AF$138,MATCH($B13,'O_OPEX Tariff Summary'!$B$5:$B$138,0)) -> 40.56533011 | J13: Traditional | K13: Minor (Cat P) | L13: Legacy Luminaire - Minor (Cat P) road | M13: =INDEX(O13:Q13,,$M$3) -> 2154 | O13: =SUM('I_Asset number input'!K13:O13) -> 2154 | P13: 23400 | Q13: 16525.80682
B14: MBF1x80 | C14: Opex - Maintenance- Traditional Luminaire | D14: =INDEX('O_OPEX Tariff Summary'!AB$5:AB$138,MATCH($B14,'O_OPEX Tariff Summary'!$B$5:$B$138,0)) -> 34.70507258 | E14: =INDEX('O_OPEX Tariff Summary'!AC$5:AC$138,MATCH($B14,'O_OPEX Tariff Summary'!$B$5:$B$138,0)) -> 35.70272482 | F14: =INDEX('O_OPEX Tariff Summary'!AD$5:AD$138,MATCH($B14,'O_OPEX Tariff Summary'!$B$5:$B$138,0)) -> 36.72905615 | G14: =INDEX('O_OPEX Tariff Summary'!AE$5:AE$138,MATCH($B14,'O_OPEX Tariff Summary'!$B$5:$B$138,0)) -> 37.78489099 | H14: =INDEX('O_OPEX Tariff Summary'!AF$5:AF$138,MATCH($B14,'O_OPEX Tariff Summary'!$B$5:$B$138,0)) -> 38.87107748 | J14: Traditional | K14: Minor (Cat P) | L14: Legacy Luminaire - Minor (Cat P) road | M14: =INDEX(O14:Q14,,$M$3) -> 7315.5 | O14: =SUM('I_Asset number input'!K14:O14) -> 7315.5 | P14: 88712 | Q14: 53781.45558
B15: MBF2x80 | C15: Opex - Maintenance- Traditional Luminaire | D15: =INDEX('O_OPEX Tariff Summary'!AB$5:AB$138,MATCH($B15,'O_OPEX Tariff Summary'!$B$5:$B$138,0)) -> 43.74877655 | E15: =INDEX('O_OPEX Tariff Summary'!AC$5:AC$138,MATCH($B15,'O_OPEX Tariff Summary'!$B$5:$B$138,0)) -> 45.00640437 | F15: =INDEX('O_OPEX Tariff Summary'!AD$5:AD$138,MATCH($B15,'O_OPEX Tariff Summary'!$B$5:$B$138,0)) -> 46.30018469 | G15: =INDEX('O_OPEX Tariff Summary'!AE$5:AE$138,MATCH($B15,'O_OPEX Tariff Summary'!$B$5:$B$138,0)) -> 47.63115678 | H15: =INDEX('O_OPEX Tariff Summary'!AF$5:AF$138,MATCH($B15,'O_OPEX Tariff Summary'!$B$5:$B$138,0)) -> 49.00038976 | J15: Traditional | K15: Minor (Cat P) | L15: Legacy Luminaire - Minor (Cat P) road | M15: =INDEX(O15:Q15,,$M$3) -> 11 | O15: =SUM('I_Asset number input'!K15:O15) -> 11 | P15: 120 | Q15: 101.9422413
B16: MBI1x100 | C16: Opex - Maintenance- Traditional Luminaire | D16: =INDEX('O_OPEX Tariff Summary'!AB$5:AB$138,MATCH($B16,'O_OPEX Tariff Summary'!$B$5:$B$138,0)) -> 46.21184844 | E16: =INDEX('O_OPEX Tariff Summary'!AC$5:AC$138,MATCH($B16,'O_OPEX Tariff Summary'!$B$5:$B$138,0)) -> 47.54028116 | F16: =INDEX('O_OPEX Tariff Summary'!AD$5:AD$138,MATCH($B16,'O_OPEX Tariff Summary'!$B$5:$B$138,0)) -> 48.90690178 | G16: =INDEX('O_OPEX Tariff Summary'!AE$5:AE$138,MATCH($B16,'O_OPEX Tariff Summary'!$B$5:$B$138,0)) -> 50.31280807 | H16: =INDEX('O_OPEX Tariff Summary'!AF$5:AF$138,MATCH($B16,'O_OPEX Tariff Summary'!$B$5:$B$138,0)) -> 51.75912936 | J16: Traditional | K16: Major (Cat V) | L16: Legacy Luminaire - Major (Cat V) road | M16: =INDEX(O16:Q16,,$M$3) -> 17.5 | O16: =SUM('I_Asset number input'!K16:O16) -> 17.5 | P16: 168 | Q16: 171.3116782
B17: MBI1x1000 | C17: Opex - Maintenance- Traditional Luminaire | D17: =INDEX('O_OPEX Tariff Summary'!AB$5:AB$138,MATCH($B17,'O_OPEX Tariff Summary'!$B$5:$B$138,0)) -> 48.11455935 | E17: =INDEX('O_OPEX Tariff Summary'!AC$5:AC$138,MATCH($B17,'O_OPEX Tariff Summary'!$B$5:$B$138,0)) -> 49.49768851 | F17: =INDEX('O_OPEX Tariff Summary'!AD$5:AD$138,MATCH($B17,'O_OPEX Tariff Summary'!$B$5:$B$138,0)) -> 50.9205779 | G17: =INDEX('O_OPEX Tariff Summary'!AE$5:AE$138,MATCH($B17,'O_OPEX Tariff Summary'!$B$5:$B$138,0)) -> 52.3843705 | H17: =INDEX('O_OPEX Tariff Summary'!AF$5:AF$138,MATCH($B17,'O_OPEX Tariff Summary'!$B$5:$B$138,0)) -> 53.89024213 | J17: Traditional | K17: Major (Cat V) | L17: Legacy Luminaire - Major (Cat V) road | M17: =INDEX(O17:Q17,,$M$3) -> 8.5 | O17: =SUM('I_Asset number input'!K17:O17) -> 8.5 | P17: 64 | Q17: 86.63452905
B18: MBI1x150 | C18: Opex - Maintenance- Traditional Luminaire | D18: =INDEX('O_OPEX Tariff Summary'!AB$5:AB$138,MATCH($B18,'O_OPEX Tariff Summary'!$B$5:$B$138,0)) -> 46.21184844 | E18: =INDEX('O_OPEX Tariff Summary'!AC$5:AC$138,MATCH($B18,'O_OPEX Tariff Summary'!$B$5:$B$138,0)) -> 47.54028116 | F18: =INDEX('O_OPEX Tariff Summary'!AD$5:AD$138,MATCH($B18,'O_OPEX Tariff Summary'!$B$5:$B$138,0)) -> 48.90690178 | G18: =INDEX('O_OPEX Tariff Summary'!AE$5:AE$138,MATCH($B18,'O_OPEX Tariff Summary'!$B$5:$B$138,0)) -> 50.31280807 | H18: =INDEX('O_OPEX Tariff Summary'!AF$5:AF$138,MATCH($B18,'O_OPEX Tariff Summary'!$B$5:$B$138,0)) -> 51.75912936 | J18: Traditional | K18: Major (Cat V) | L18: Legacy Luminaire - Major (Cat V) road | M18: =INDEX(O18:Q18,,$M$3) -> 2 | O18: =SUM('I_Asset number input'!K18:O18) -> 2 | P18: 32 | Q18: 19.5784775
B19: MBI1x250 | C19: Opex - Maintenance- Traditional Luminaire | D19: =INDEX('O_OPEX Tariff Summary'!AB$5:AB$138,MATCH($B19,'O_OPEX Tariff Summary'!$B$5:$B$138,0)) -> 45.86721909 | E19: =INDEX('O_OPEX Tariff Summary'!AC$5:AC$138,MATCH($B19,'O_OPEX Tariff Summary'!$B$5:$B$138,0)) -> 47.18574489 | F19: =INDEX('O_OPEX Tariff Summary'!AD$5:AD$138,MATCH($B19,'O_OPEX Tariff Summary'!$B$5:$B$138,0)) -> 48.54217381 | G19: =INDEX('O_OPEX Tariff Summary'!AE$5:AE$138,MATCH($B19,'O_OPEX Tariff Summary'!$B$5:$B$138,0)) -> 49.93759541 | H19: =INDEX('O_OPEX Tariff Summary'!AF$5:AF$138,MATCH($B19,'O_OPEX Tariff Summary'!$B$5:$B$138,0)) -> 51.37313063 | J19: Traditional | K19: Major (Cat V) | L19: Legacy Luminaire - Major (Cat V) road | M19: =INDEX(O19:Q19,,$M$3) -> 38 | O19: =SUM('I_Asset number input'!K19:O19) -> 38 | P19: 440 | Q19: 369.216913
B20: MBI1x400 | C20: Opex - Maintenance- Traditional Luminaire | D20: =INDEX('O_OPEX Tariff Summary'!AB$5:AB$138,MATCH($B20,'O_OPEX Tariff Summary'!$B$5:$B$138,0)) -> 45.85606604 | E20: =INDEX('O_OPEX Tariff Summary'!AC$5:AC$138,MATCH($B20,'O_OPEX Tariff Summary'!$B$5:$B$138,0)) -> 47.17427123 | F20: =INDEX('O_OPEX Tariff Summary'!AD$5:AD$138,MATCH($B20,'O_OPEX Tariff Summary'!$B$5:$B$138,0)) -> 48.53037031 | G20: =INDEX('O_OPEX Tariff Summary'!AE$5:AE$138,MATCH($B20,'O_OPEX Tariff Summary'!$B$5:$B$138,0)) -> 49.92545261 | H20: =INDEX('O_OPEX Tariff Summary'!AF$5:AF$138,MATCH($B20,'O_OPEX Tariff Summary'!$B$5:$B$138,0)) -> 51.36063876 | J20: Traditional | K20: Major (Cat V) | L20: Legacy Luminaire - Major (Cat V) road | M20: =INDEX(O20:Q20,,$M$3) -> 87 | O20: =SUM('I_Asset number input'!K20:O20) -> 87 | P20: 968 | Q20: 845.1068603
B21: MBI1x70 | C21: Opex - Maintenance- Traditional Luminaire | D21: =INDEX('O_OPEX Tariff Summary'!AB$5:AB$138,MATCH($B21,'O_OPEX Tariff Summary'!$B$5:$B$138,0)) -> 34.10879477 | E21: =INDEX('O_OPEX Tariff Summary'!AC$5:AC$138,MATCH($B21,'O_OPEX Tariff Summary'!$B$5:$B$138,0)) -> 35.08930605 | F21: =INDEX('O_OPEX Tariff Summary'!AD$5:AD$138,MATCH($B21,'O_OPEX Tariff Summary'!$B$5:$B$138,0)) -> 36.09800369 | G21: =INDEX('O_OPEX Tariff Summary'!AE$5:AE$138,MATCH($B21,'O_OPEX Tariff Summary'!$B$5:$B$138,0)) -> 37.13569793 | H21: =INDEX('O_OPEX Tariff Summary'!AF$5:AF$138,MATCH($B21,'O_OPEX Tariff Summary'!$B$5:$B$138,0)) -> 38.20322234 | J21: Traditional | K21: Minor (Cat P) | L21: Legacy Luminaire - Minor (Cat P) road | M21: =INDEX(O21:Q21,,$M$3) -> 102 | O21: =SUM('I_Asset number input'!K21:O21) -> 102 | P21: 1400 | Q21: 736.9909011
B22: MBI1x70 II | C22: Opex - Maintenance- Traditional Luminaire | D22: =INDEX('O_OPEX Tariff Summary'!AB$5:AB$138,MATCH($B22,'O_OPEX Tariff Summary'!$B$5:$B$138,0)) -> 36.53458389 | E22: =INDEX('O_OPEX Tariff Summary'!AC$5:AC$138,MATCH($B22,'O_OPEX Tariff Summary'!$B$5:$B$138,0)) -> 37.58482832 | F22: =INDEX('O_OPEX Tariff Summary'!AD$5:AD$138,MATCH($B22,'O_OPEX Tariff Summary'!$B$5:$B$138,0)) -> 38.66526369 | G22: =INDEX('O_OPEX Tariff Summary'!AE$5:AE$138,MATCH($B22,'O_OPEX Tariff Summary'!$B$5:$B$138,0)) -> 39.77675789 | H22: =INDEX('O_OPEX Tariff Summary'!AF$5:AF$138,MATCH($B22,'O_OPEX Tariff Summary'!$B$5:$B$138,0)) -> 40.92020375 | J22: Traditional | K22: Minor (Cat P) | L22: Legacy Luminaire - Minor (Cat P) road | M22: =INDEX(O22:Q22,,$M$3) -> 13 | O22: =SUM('I_Asset number input'!K22:O22) -> 13 | P22: 584 | Q22: 100.6104515
B23: SON1x100 | C23: Opex - Maintenance- Traditional Luminaire | D23: =INDEX('O_OPEX Tariff Summary'!AB$5:AB$138,MATCH($B23,'O_OPEX Tariff Summary'!$B$5:$B$138,0)) -> 55.24890858 | E23: =INDEX('O_OPEX Tariff Summary'!AC$5:AC$138,MATCH($B23,'O_OPEX Tariff Summary'!$B$5:$B$138,0)) -> 56.8371259 | F23: =INDEX('O_OPEX Tariff Summary'!AD$5:AD$138,MATCH($B23,'O_OPEX Tariff Summary'!$B$5:$B$138,0)) -> 58.47099903 | G23: =INDEX('O_OPEX Tariff Summary'!AE$5:AE$138,MATCH($B23,'O_OPEX Tariff Summary'!$B$5:$B$138,0)) -> 60.15184044 | H23: =INDEX('O_OPEX Tariff Summary'!AF$5:AF$138,MATCH($B23,'O_OPEX Tariff Summary'!$B$5:$B$138,0)) -> 61.88100029 | J23: Traditional | K23: Major (Cat V) | L23: Legacy Luminaire - Major (Cat V) road | M23: =INDEX(O23:Q23,,$M$3) -> 876.5 | O23: =SUM('I_Asset number input'!K23:O23) -> 876.5 | P23: 10112 | Q23: 10258.20099
B24: SON1x1000 | C24: Opex - Maintenance- Traditional Luminaire | D24: =INDEX('O_OPEX Tariff Summary'!AB$5:AB$138,MATCH($B24,'O_OPEX Tariff Summary'!$B$5:$B$138,0)) -> 56.57300323 | E24: =INDEX('O_OPEX Tariff Summary'!AC$5:AC$138,MATCH($B24,'O_OPEX Tariff Summary'!$B$5:$B$138,0)) -> 58.19928374 | F24: =INDEX('O_OPEX Tariff Summary'!AD$5:AD$138,MATCH($B24,'O_OPEX Tariff Summary'!$B$5:$B$138,0)) -> 59.87231425 | G24: =INDEX('O_OPEX Tariff Summary'!AE$5:AE$138,MATCH($B24,'O_OPEX Tariff Summary'!$B$5:$B$138,0)) -> 61.59343868 | H24: =INDEX('O_OPEX Tariff Summary'!AF$5:AF$138,MATCH($B24,'O_OPEX Tariff Summary'!$B$5:$B$138,0)) -> 63.36403956 | J24: Traditional | K24: Major (Cat V) | L24: Legacy Luminaire - Major (Cat V) road | M24: =INDEX(O24:Q24,,$M$3) -> 28.5 | O24: =SUM('I_Asset number input'!K24:O24) -> 28.5 | P24: 264 | Q24: 341.5463706
B25: SON1x150 | C25: Opex - Maintenance- Traditional Luminaire | D25: =INDEX('O_OPEX Tariff Summary'!AB$5:AB$138,MATCH($B25,'O_OPEX Tariff Summary'!$B$5:$B$138,0)) -> 54.59185956 | E25: =INDEX('O_OPEX Tariff Summary'!AC$5:AC$138,MATCH($B25,'O_OPEX Tariff Summary'!$B$5:$B$138,0)) -> 56.16118896 | F25: =INDEX('O_OPEX Tariff Summary'!AD$5:AD$138,MATCH($B25,'O_OPEX Tariff Summary'!$B$5:$B$138,0)) -> 57.77563122 | G25: =INDEX('O_OPEX Tariff Summary'!AE$5:AE$138,MATCH($B25,'O_OPEX Tariff Summary'!$B$5:$B$138,0)) -> 59.43648317 | H25: =INDEX('O_OPEX Tariff Summary'!AF$5:AF$138,MATCH($B25,'O_OPEX Tariff Summary'!$B$5:$B$138,0)) -> 61.14507895 | J25: Traditional | K25: Major (Cat V) | L25: Legacy Luminaire - Major (Cat V) road | M25: =INDEX(O25:Q25,,$M$3) -> 12998.5 | O25: =SUM('I_Asset number input'!K25:O25) -> 12998.5 | P25: 137320 | Q25: 150319.9792
B26: SON1x150 AR | C26: Opex - Maintenance- Traditional Luminaire | D26: =INDEX('O_OPEX Tariff Summary'!AB$5:AB$138,MATCH($B26,'O_OPEX Tariff Summary'!$B$5:$B$138,0)) -> 54.59185956 | E26: =INDEX('O_OPEX Tariff Summary'!AC$5:AC$138,MATCH($B26,'O_OPEX Tariff Summary'!$B$5:$B$138,0)) -> 56.16118896 | F26: =INDEX('O_OPEX Tariff Summary'!AD$5:AD$138,MATCH($B26,'O_OPEX Tariff Summary'!$B$5:$B$138,0)) -> 57.77563122 | G26: =INDEX('O_OPEX Tariff Summary'!AE$5:AE$138,MATCH($B26,'O_OPEX Tariff Summary'!$B$5:$B$138,0)) -> 59.43648317 | H26: =INDEX('O_OPEX Tariff Summary'!AF$5:AF$138,MATCH($B26,'O_OPEX Tariff Summary'!$B$5:$B$138,0)) -> 61.14507895 | J26: Traditional | K26: Major (Cat V) | L26: Legacy Luminaire - Major (Cat V) road | M26: =INDEX(O26:Q26,,$M$3) -> 2321.5 | O26: =SUM('I_Asset number input'!K26:O26) -> 2321.5 | P26: 25040 | Q26: 26846.77706
B27: SON1x250 | C27: Opex - Maintenance- Traditional Luminaire | D27: =INDEX('O_OPEX Tariff Summary'!AB$5:AB$138,MATCH($B27,'O_OPEX Tariff Summary'!$B$5:$B$138,0)) -> 54.90084527 | E27: =INDEX('O_OPEX Tariff Summary'!AC$5:AC$138,MATCH($B27,'O_OPEX Tariff Summary'!$B$5:$B$138,0)) -> 56.47905695 | F27: =INDEX('O_OPEX Tariff Summary'!AD$5:AD$138,MATCH($B27,'O_OPEX Tariff Summary'!$B$5:$B$138,0)) -> 58.10263683 | G27: =INDEX('O_OPEX Tariff Summary'!AE$5:AE$138,MATCH($B27,'O_OPEX Tariff Summary'!$B$5:$B$138,0)) -> 59.77288908 | H27: =INDEX('O_OPEX Tariff Summary'!AF$5:AF$138,MATCH($B27,'O_OPEX Tariff Summary'!$B$5:$B$138,0)) -> 61.49115537 | J27: Traditional | K27: Major (Cat V) | L27: Legacy Luminaire - Major (Cat V) road | M27: =INDEX(O27:Q27,,$M$3) -> 15865.5 | O27: =SUM('I_Asset number input'!K27:O27) -> 15865.5 | P27: 167184 | Q27: 184513.5968
B28: SON1x250 AR | C28: Opex - Maintenance- Traditional Luminaire | D28: =INDEX('O_OPEX Tariff Summary'!AB$5:AB$138,MATCH($B28,'O_OPEX Tariff Summary'!$B$5:$B$138,0)) -> 54.90084527 | E28: =INDEX('O_OPEX Tariff Summary'!AC$5:AC$138,MATCH($B28,'O_OPEX Tariff Summary'!$B$5:$B$138,0)) -> 56.47905695 | F28: =INDEX('O_OPEX Tariff Summary'!AD$5:AD$138,MATCH($B28,'O_OPEX Tariff Summary'!$B$5:$B$138,0)) -> 58.10263683 | G28: =INDEX('O_OPEX Tariff Summary'!AE$5:AE$138,MATCH($B28,'O_OPEX Tariff Summary'!$B$5:$B$138,0)) -> 59.77288908 | H28: =INDEX('O_OPEX Tariff Summary'!AF$5:AF$138,MATCH($B28,'O_OPEX Tariff Summary'!$B$5:$B$138,0)) -> 61.49115537 | J28: Traditional | K28: Major (Cat V) | L28: Legacy Luminaire - Major (Cat V) road | M28: =INDEX(O28:Q28,,$M$3) -> 3019.5 | O28: =SUM('I_Asset number input'!K28:O28) -> 3019.5 | P28: 32080 | Q28: 35116.37236
B29: SON1x400 | C29: Opex - Maintenance- Traditional Luminaire | D29: =INDEX('O_OPEX Tariff Summary'!AB$5:AB$138,MATCH($B29,'O_OPEX Tariff Summary'!$B$5:$B$138,0)) -> 55.03716249 | E29: =INDEX('O_OPEX Tariff Summary'!AC$5:AC$138,MATCH($B29,'O_OPEX Tariff Summary'!$B$5:$B$138,0)) -> 56.61929283 | F29: =INDEX('O_OPEX Tariff Summary'!AD$5:AD$138,MATCH($B29,'O_OPEX Tariff Summary'!$B$5:$B$138,0)) -> 58.24690401 | G29: =INDEX('O_OPEX Tariff Summary'!AE$5:AE$138,MATCH($B29,'O_OPEX Tariff Summary'!$B$5:$B$138,0)) -> 59.92130345 | H29: =INDEX('O_OPEX Tariff Summary'!AF$5:AF$138,MATCH($B29,'O_OPEX Tariff Summary'!$B$5:$B$138,0)) -> 61.64383615 | J29: Traditional | K29: Major (Cat V) | L29: Legacy Luminaire - Major (Cat V) road | M29: =INDEX(O29:Q29,,$M$3) -> 1455.5 | O29: =SUM('I_Asset number input'!K29:O29) -> 1455.5 | P29: 15120 | Q29: 16969.29601
B30: SON1x400 AR | C30: Opex - Maintenance- Traditional Luminaire | D30: =INDEX('O_OPEX Tariff Summary'!AB$5:AB$138,MATCH($B30,'O_OPEX Tariff Summary'!$B$5:$B$138,0)) -> 55.03716249 | E30: =INDEX('O_OPEX Tariff Summary'!AC$5:AC$138,MATCH($B30,'O_OPEX Tariff Summary'!$B$5:$B$138,0)) -> 56.61929283 | F30: =INDEX('O_OPEX Tariff Summary'!AD$5:AD$138,MATCH($B30,'O_OPEX Tariff Summary'!$B$5:$B$138,0)) -> 58.24690401 | G30: =INDEX('O_OPEX Tariff Summary'!AE$5:AE$138,MATCH($B30,'O_OPEX Tariff Summary'!$B$5:$B$138,0)) -> 59.92130345 | H30: =INDEX('O_OPEX Tariff Summary'!AF$5:AF$138,MATCH($B30,'O_OPEX Tariff Summary'!$B$5:$B$138,0)) -> 61.64383615 | J30: Traditional | K30: Major (Cat V) | L30: Legacy Luminaire - Major (Cat V) road | M30: =INDEX(O30:Q30,,$M$3) -> 313 | O30: =SUM('I_Asset number input'!K30:O30) -> 313 | P30: 3280 | Q30: 3649.185607
B31: SON1x50 | C31: Opex - Maintenance- Traditional Luminaire | D31: =INDEX('O_OPEX Tariff Summary'!AB$5:AB$138,MATCH($B31,'O_OPEX Tariff Summary'!$B$5:$B$138,0)) -> 40.54061997 | E31: =INDEX('O_OPEX Tariff Summary'!AC$5:AC$138,MATCH($B31,'O_OPEX Tariff Summary'!$B$5:$B$138,0)) -> 41.70602425 | F31: =INDEX('O_OPEX Tariff Summary'!AD$5:AD$138,MATCH($B31,'O_OPEX Tariff Summary'!$B$5:$B$138,0)) -> 42.90492992 | G31: =INDEX('O_OPEX Tariff Summary'!AE$5:AE$138,MATCH($B31,'O_OPEX Tariff Summary'!$B$5:$B$138,0)) -> 44.13830003 | H31: =INDEX('O_OPEX Tariff Summary'!AF$5:AF$138,MATCH($B31,'O_OPEX Tariff Summary'!$B$5:$B$138,0)) -> 45.40712532 | J31: Traditional | K31: Minor (Cat P) | L31: Legacy Luminaire - Minor (Cat P) road | M31: =INDEX(O31:Q31,,$M$3) -> 8.5 | O31: =SUM('I_Asset number input'!K31:O31) -> 8.5 | P31: 88 | Q31: 72.99697983
B32: SON1x600 | C32: Opex - Maintenance- Traditional Luminaire | D32: =INDEX('O_OPEX Tariff Summary'!AB$5:AB$138,MATCH($B32,'O_OPEX Tariff Summary'!$B$5:$B$138,0)) -> 56.57300323 | E32: =INDEX('O_OPEX Tariff Summary'!AC$5:AC$138,MATCH($B32,'O_OPEX Tariff Summary'!$B$5:$B$138,0)) -> 58.19928374 | F32: =INDEX('O_OPEX Tariff Summary'!AD$5:AD$138,MATCH($B32,'O_OPEX Tariff Summary'!$B$5:$B$138,0)) -> 59.87231425 | G32: =INDEX('O_OPEX Tariff Summary'!AE$5:AE$138,MATCH($B32,'O_OPEX Tariff Summary'!$B$5:$B$138,0)) -> 61.59343868 | H32: =INDEX('O_OPEX Tariff Summary'!AF$5:AF$138,MATCH($B32,'O_OPEX Tariff Summary'!$B$5:$B$138,0)) -> 63.36403956 | J32: Traditional | K32: Major (Cat V) | L32: Legacy Luminaire - Major (Cat V) road | M32: =INDEX(O32:Q32,,$M$3) -> 0 | O32: =SUM('I_Asset number input'!K32:O32) -> 0 | P32: 0 | Q32: 0
B33: SON1x70 | C33: Opex - Maintenance- Traditional Luminaire | D33: =INDEX('O_OPEX Tariff Summary'!AB$5:AB$138,MATCH($B33,'O_OPEX Tariff Summary'!$B$5:$B$138,0)) -> 40.19891813 | E33: =INDEX('O_OPEX Tariff Summary'!AC$5:AC$138,MATCH($B33,'O_OPEX Tariff Summary'!$B$5:$B$138,0)) -> 41.35449965 | F33: =INDEX('O_OPEX Tariff Summary'!AD$5:AD$138,MATCH($B33,'O_OPEX Tariff Summary'!$B$5:$B$138,0)) -> 42.54330019 | G33: =INDEX('O_OPEX Tariff Summary'!AE$5:AE$138,MATCH($B33,'O_OPEX Tariff Summary'!$B$5:$B$138,0)) -> 43.76627468 | H33: =INDEX('O_OPEX Tariff Summary'!AF$5:AF$138,MATCH($B33,'O_OPEX Tariff Summary'!$B$5:$B$138,0)) -> 45.02440551 | J33: Traditional | K33: Minor (Cat P) | L33: Legacy Luminaire - Minor (Cat P) road | M33: =INDEX(O33:Q33,,$M$3) -> 360.5 | O33: =SUM('I_Asset number input'!K33:O33) -> 360.5 | P33: 5096 | Q33: 3069.836281
B34: SON2x250 | C34: Opex - Maintenance- Traditional Luminaire | D34: =INDEX('O_OPEX Tariff Summary'!AB$5:AB$138,MATCH($B34,'O_OPEX Tariff Summary'!$B$5:$B$138,0)) -> 76.59541916 | E34: =INDEX('O_OPEX Tariff Summary'!AC$5:AC$138,MATCH($B34,'O_OPEX Tariff Summary'!$B$5:$B$138,0)) -> 78.7972757 | F34: =INDEX('O_OPEX Tariff Summary'!AD$5:AD$138,MATCH($B34,'O_OPEX Tariff Summary'!$B$5:$B$138,0)) -> 81.0624281 | G34: =INDEX('O_OPEX Tariff Summary'!AE$5:AE$138,MATCH($B34,'O_OPEX Tariff Summary'!$B$5:$B$138,0)) -> 83.39269588 | H34: =INDEX('O_OPEX Tariff Summary'!AF$5:AF$138,MATCH($B34,'O_OPEX Tariff Summary'!$B$5:$B$138,0)) -> 85.7899509 | J34: Traditional | K34: Major (Cat V) | L34: Legacy Luminaire - Major (Cat V) road | M34: =INDEX(O34:Q34,,$M$3) -> 9 | O34: =SUM('I_Asset number input'!K34:O34) -> 9 | P34: 88 | Q34: 146.0295971
B35: SON2x400 | C35: Opex - Maintenance- Traditional Luminaire | D35: =INDEX('O_OPEX Tariff Summary'!AB$5:AB$138,MATCH($B35,'O_OPEX Tariff Summary'!$B$5:$B$138,0)) -> 76.8591676 | E35: =INDEX('O_OPEX Tariff Summary'!AC$5:AC$138,MATCH($B35,'O_OPEX Tariff Summary'!$B$5:$B$138,0)) -> 79.06860601 | F35: =INDEX('O_OPEX Tariff Summary'!AD$5:AD$138,MATCH($B35,'O_OPEX Tariff Summary'!$B$5:$B$138,0)) -> 81.34155823 | G35: =INDEX('O_OPEX Tariff Summary'!AE$5:AE$138,MATCH($B35,'O_OPEX Tariff Summary'!$B$5:$B$138,0)) -> 83.67985005 | H35: =INDEX('O_OPEX Tariff Summary'!AF$5:AF$138,MATCH($B35,'O_OPEX Tariff Summary'!$B$5:$B$138,0)) -> 86.08535977 | J35: Traditional | K35: Major (Cat V) | L35: Legacy Luminaire - Major (Cat V) road | M35: =INDEX(O35:Q35,,$M$3) -> 2 | O35: =SUM('I_Asset number input'!K35:O35) -> 2 | P35: 32 | Q35: 32.56276333
B36: SON4x250 | C36: Opex - Maintenance- Traditional Luminaire | D36: =INDEX('O_OPEX Tariff Summary'!AB$5:AB$138,MATCH($B36,'O_OPEX Tariff Summary'!$B$5:$B$138,0)) -> 115.8341917 | E36: =INDEX('O_OPEX Tariff Summary'!AC$5:AC$138,MATCH($B36,'O_OPEX Tariff Summary'!$B$5:$B$138,0)) -> 119.1640289 | F36: =INDEX('O_OPEX Tariff Summary'!AD$5:AD$138,MATCH($B36,'O_OPEX Tariff Summary'!$B$5:$B$138,0)) -> 122.5895875 | G36: =INDEX('O_OPEX Tariff Summary'!AE$5:AE$138,MATCH($B36,'O_OPEX Tariff Summary'!$B$5:$B$138,0)) -> 126.1136192 | H36: =INDEX('O_OPEX Tariff Summary'!AF$5:AF$138,MATCH($B36,'O_OPEX Tariff Summary'!$B$5:$B$138,0)) -> 129.7389548 | J36: Traditional | K36: Major (Cat V) | L36: Legacy Luminaire - Major (Cat V) road | M36: =INDEX(O36:Q36,,$M$3) -> 2 | O36: =SUM('I_Asset number input'!K36:O36) -> 2 | P36: 40 | Q36: 49.07523057
B37: SON4x600 | C37: Opex - Maintenance- Traditional Luminaire | D37: =INDEX('O_OPEX Tariff Summary'!AB$5:AB$138,MATCH($B37,'O_OPEX Tariff Summary'!$B$5:$B$138,0)) -> 121.8967722 | E37: =INDEX('O_OPEX Tariff Summary'!AC$5:AC$138,MATCH($B37,'O_OPEX Tariff Summary'!$B$5:$B$138,0)) -> 125.4008879 | F37: =INDEX('O_OPEX Tariff Summary'!AD$5:AD$138,MATCH($B37,'O_OPEX Tariff Summary'!$B$5:$B$138,0)) -> 129.0057349 | G37: =INDEX('O_OPEX Tariff Summary'!AE$5:AE$138,MATCH($B37,'O_OPEX Tariff Summary'!$B$5:$B$138,0)) -> 132.7142089 | H37: =INDEX('O_OPEX Tariff Summary'!AF$5:AF$138,MATCH($B37,'O_OPEX Tariff Summary'!$B$5:$B$138,0)) -> 136.5292888 | J37: Traditional | K37: Major (Cat V) | L37: Legacy Luminaire - Major (Cat V) road | M37: =INDEX(O37:Q37,,$M$3) -> -3 | O37: =SUM('I_Asset number input'!K37:O37) -> -3 | P37: 24 | Q37: -77.46562712
B38: TF1x20 | C38: Opex - Maintenance- Traditional Luminaire | D38: =INDEX('O_OPEX Tariff Summary'!AB$5:AB$138,MATCH($B38,'O_OPEX Tariff Summary'!$B$5:$B$138,0)) -> 38.43247478 | E38: =INDEX('O_OPEX Tariff Summary'!AC$5:AC$138,MATCH($B38,'O_OPEX Tariff Summary'!$B$5:$B$138,0)) -> 39.53727709 | F38: =INDEX('O_OPEX Tariff Summary'!AD$5:AD$138,MATCH($B38,'O_OPEX Tariff Summary'!$B$5:$B$138,0)) -> 40.6738387 | G38: =INDEX('O_OPEX Tariff Summary'!AE$5:AE$138,MATCH($B38,'O_OPEX Tariff Summary'!$B$5:$B$138,0)) -> 41.84307256 | H38: =INDEX('O_OPEX Tariff Summary'!AF$5:AF$138,MATCH($B38,'O_OPEX Tariff Summary'!$B$5:$B$138,0)) -> 43.0459179 | J38: Traditional | K38: Minor (Cat P) | L38: Legacy Luminaire - Minor (Cat P) road | M38: =INDEX(O38:Q38,,$M$3) -> 5 | O38: =SUM('I_Asset number input'!K38:O38) -> 5 | P38: 8 | Q38: 40.70651621
B39: TF1x40 | C39: Opex - Maintenance- Traditional Luminaire | D39: =INDEX('O_OPEX Tariff Summary'!AB$5:AB$138,MATCH($B39,'O_OPEX Tariff Summary'!$B$5:$B$138,0)) -> 63.26945889 | E39: =INDEX('O_OPEX Tariff Summary'!AC$5:AC$138,MATCH($B39,'O_OPEX Tariff Summary'!$B$5:$B$138,0)) -> 65.08823962 | F39: =INDEX('O_OPEX Tariff Summary'!AD$5:AD$138,MATCH($B39,'O_OPEX Tariff Summary'!$B$5:$B$138,0)) -> 66.95930408 | G39: =INDEX('O_OPEX Tariff Summary'!AE$5:AE$138,MATCH($B39,'O_OPEX Tariff Summary'!$B$5:$B$138,0)) -> 68.88415524 | H39: =INDEX('O_OPEX Tariff Summary'!AF$5:AF$138,MATCH($B39,'O_OPEX Tariff Summary'!$B$5:$B$138,0)) -> 70.8643393 | J39: Traditional | K39: Minor (Cat P) | L39: Legacy Luminaire - Minor (Cat P) road | M39: =INDEX(O39:Q39,,$M$3) -> 42.5 | O39: =SUM('I_Asset number input'!K39:O39) -> 42.5 | P39: 472 | Q39: 569.6113451
B40: TF1x80 | C40: Opex - Maintenance- Traditional Luminaire | D40: =INDEX('O_OPEX Tariff Summary'!AB$5:AB$138,MATCH($B40,'O_OPEX Tariff Summary'!$B$5:$B$138,0)) -> 38.44920436 | E40: =INDEX('O_OPEX Tariff Summary'!AC$5:AC$138,MATCH($B40,'O_OPEX Tariff Summary'!$B$5:$B$138,0)) -> 39.55448759 | F40: =INDEX('O_OPEX Tariff Summary'!AD$5:AD$138,MATCH($B40,'O_OPEX Tariff Summary'!$B$5:$B$138,0)) -> 40.69154394 | G40: =INDEX('O_OPEX Tariff Summary'!AE$5:AE$138,MATCH($B40,'O_OPEX Tariff Summary'!$B$5:$B$138,0)) -> 41.86128677 | H40: =INDEX('O_OPEX Tariff Summary'!AF$5:AF$138,MATCH($B40,'O_OPEX Tariff Summary'!$B$5:$B$138,0)) -> 43.06465571 | J40: Traditional | K40: Minor (Cat P) | L40: Legacy Luminaire - Minor (Cat P) road | M40: =INDEX(O40:Q40,,$M$3) -> 16 | O40: =SUM('I_Asset number input'!K40:O40) -> 16 | P40: 144 | Q40: 130.3175542
B41: TF2x14 T5 | C41: Opex - Maintenance- Traditional Luminaire | D41: =INDEX('O_OPEX Tariff Summary'!AB$5:AB$138,MATCH($B41,'O_OPEX Tariff Summary'!$B$5:$B$138,0)) -> 38.44920436 | E41: =INDEX('O_OPEX Tariff Summary'!AC$5:AC$138,MATCH($B41,'O_OPEX Tariff Summary'!$B$5:$B$138,0)) -> 39.55448759 | F41: =INDEX('O_OPEX Tariff Summary'!AD$5:AD$138,MATCH($B41,'O_OPEX Tariff Summary'!$B$5:$B$138,0)) -> 40.69154394 | G41: =INDEX('O_OPEX Tariff Summary'!AE$5:AE$138,MATCH($B41,'O_OPEX Tariff Summary'!$B$5:$B$138,0)) -> 41.86128677 | H41: =INDEX('O_OPEX Tariff Summary'!AF$5:AF$138,MATCH($B41,'O_OPEX Tariff Summary'!$B$5:$B$138,0)) -> 43.06465571 | J41: Traditional | K41: Minor (Cat P) | L41: Legacy Luminaire - Minor (Cat P) road | M41: =INDEX(O41:Q41,,$M$3) -> 2 | O41: =SUM('I_Asset number input'!K41:O41) -> 2 | P41: 56 | Q41: 16.28969427
B42: TF2x20 | C42: Opex - Maintenance- Traditional Luminaire | D42: =INDEX('O_OPEX Tariff Summary'!AB$5:AB$138,MATCH($B42,'O_OPEX Tariff Summary'!$B$5:$B$138,0)) -> 49.28570619 | E42: =INDEX('O_OPEX Tariff Summary'!AC$5:AC$138,MATCH($B42,'O_OPEX Tariff Summary'!$B$5:$B$138,0)) -> 50.70250181 | F42: =INDEX('O_OPEX Tariff Summary'!AD$5:AD$138,MATCH($B42,'O_OPEX Tariff Summary'!$B$5:$B$138,0)) -> 52.16002547 | G42: =INDEX('O_OPEX Tariff Summary'!AE$5:AE$138,MATCH($B42,'O_OPEX Tariff Summary'!$B$5:$B$138,0)) -> 53.65944795 | H42: =INDEX('O_OPEX Tariff Summary'!AF$5:AF$138,MATCH($B42,'O_OPEX Tariff Summary'!$B$5:$B$138,0)) -> 55.2019737 | J42: Traditional | K42: Minor (Cat P) | L42: Legacy Luminaire - Minor (Cat P) road | M42: =INDEX(O42:Q42,,$M$3) -> 226 | O42: =SUM('I_Asset number input'!K42:O42) -> 226 | P42: 2648 | Q42: 2359.527282
B43: TF2x26 | C43: Opex - Maintenance- Traditional Luminaire | D43: =INDEX('O_OPEX Tariff Summary'!AB$5:AB$138,MATCH($B43,'O_OPEX Tariff Summary'!$B$5:$B$138,0)) -> 38.44920436 | E43: =INDEX('O_OPEX Tariff Summary'!AC$5:AC$138,MATCH($B43,'O_OPEX Tariff Summary'!$B$5:$B$138,0)) -> 39.55448759 | F43: =INDEX('O_OPEX Tariff Summary'!AD$5:AD$138,MATCH($B43,'O_OPEX Tariff Summary'!$B$5:$B$138,0)) -> 40.69154394 | G43: =INDEX('O_OPEX Tariff Summary'!AE$5:AE$138,MATCH($B43,'O_OPEX Tariff Summary'!$B$5:$B$138,0)) -> 41.86128677 | H43: =INDEX('O_OPEX Tariff Summary'!AF$5:AF$138,MATCH($B43,'O_OPEX Tariff Summary'!$B$5:$B$138,0)) -> 43.06465571 | J43: Traditional | K43: Minor (Cat P) | L43: Legacy Luminaire - Minor (Cat P) road | M43: =INDEX(O43:Q43,,$M$3) -> 8.5 | O43: =SUM('I_Asset number input'!K43:O43) -> 8.5 | P43: 64 | Q43: 69.23120064
B44: TF2x40 | C44: Opex - Maintenance- Traditional Luminaire | D44: =INDEX('O_OPEX Tariff Summary'!AB$5:AB$138,MATCH($B44,'O_OPEX Tariff Summary'!$B$5:$B$138,0)) -> 38.44920436 | E44: =INDEX('O_OPEX Tariff Summary'!AC$5:AC$138,MATCH($B44,'O_OPEX Tariff Summary'!$B$5:$B$138,0)) -> 39.55448759 | F44: =INDEX('O_OPEX Tariff Summary'!AD$5:AD$138,MATCH($B44,'O_OPEX Tariff Summary'!$B$5:$B$138,0)) -> 40.69154394 | G44: =INDEX('O_OPEX Tariff Summary'!AE$5:AE$138,MATCH($B44,'O_OPEX Tariff Summary'!$B$5:$B$138,0)) -> 41.86128677 | H44: =INDEX('O_OPEX Tariff Summary'!AF$5:AF$138,MATCH($B44,'O_OPEX Tariff Summary'!$B$5:$B$138,0)) -> 43.06465571 | J44: Traditional | K44: Minor (Cat P) | L44: Legacy Luminaire - Minor (Cat P) road | M44: =INDEX(O44:Q44,,$M$3) -> 14 | O44: =SUM('I_Asset number input'!K44:O44) -> 14 | P44: 96 | Q44: 114.0278599
B45: TF4x20 | C45: Opex - Maintenance- Traditional Luminaire | D45: =INDEX('O_OPEX Tariff Summary'!AB$5:AB$138,MATCH($B45,'O_OPEX Tariff Summary'!$B$5:$B$138,0)) -> 38.43247478 | E45: =INDEX('O_OPEX Tariff Summary'!AC$5:AC$138,MATCH($B45,'O_OPEX Tariff Summary'!$B$5:$B$138,0)) -> 39.53727709 | F45: =INDEX('O_OPEX Tariff Summary'!AD$5:AD$138,MATCH($B45,'O_OPEX Tariff Summary'!$B$5:$B$138,0)) -> 40.6738387 | G45: =INDEX('O_OPEX Tariff Summary'!AE$5:AE$138,MATCH($B45,'O_OPEX Tariff Summary'!$B$5:$B$138,0)) -> 41.84307256 | H45: =INDEX('O_OPEX Tariff Summary'!AF$5:AF$138,MATCH($B45,'O_OPEX Tariff Summary'!$B$5:$B$138,0)) -> 43.0459179 | J45: Traditional | K45: Minor (Cat P) | L45: Legacy Luminaire - Minor (Cat P) road | M45: =INDEX(O45:Q45,,$M$3) -> 12 | O45: =SUM('I_Asset number input'!K45:O45) -> 12 | P45: 56 | Q45: 97.6956389
B46: TF4x40 | C46: Opex - Maintenance- Traditional Luminaire | D46: =INDEX('O_OPEX Tariff Summary'!AB$5:AB$138,MATCH($B46,'O_OPEX Tariff Summary'!$B$5:$B$138,0)) -> 38.44920436 | E46: =INDEX('O_OPEX Tariff Summary'!AC$5:AC$138,MATCH($B46,'O_OPEX Tariff Summary'!$B$5:$B$138,0)) -> 39.55448759 | F46: =INDEX('O_OPEX Tariff Summary'!AD$5:AD$138,MATCH($B46,'O_OPEX Tariff Summary'!$B$5:$B$138,0)) -> 40.69154394 | G46: =INDEX('O_OPEX Tariff Summary'!AE$5:AE$138,MATCH($B46,'O_OPEX Tariff Summary'!$B$5:$B$138,0)) -> 41.86128677 | H46: =INDEX('O_OPEX Tariff Summary'!AF$5:AF$138,MATCH($B46,'O_OPEX Tariff Summary'!$B$5:$B$138,0)) -> 43.06465571 | J46: Traditional | K46: Minor (Cat P) | L46: Legacy Luminaire - Minor (Cat P) road | M46: =INDEX(O46:Q46,,$M$3) -> 5 | O46: =SUM('I_Asset number input'!K46:O46) -> 5 | P46: 16 | Q46: 40.72423567
B47: LED TRIAL | C47: Opex - Maintenance- LED Luminaire | D47: =INDEX('O_OPEX Tariff Summary'!AB$5:AB$138,MATCH($B47,'O_OPEX Tariff Summary'!$B$5:$B$138,0)) -> 23.25313016 | E47: =INDEX('O_OPEX Tariff Summary'!AC$5:AC$138,MATCH($B47,'O_OPEX Tariff Summary'!$B$5:$B$138,0)) -> 23.92157819 | F47: =INDEX('O_OPEX Tariff Summary'!AD$5:AD$138,MATCH($B47,'O_OPEX Tariff Summary'!$B$5:$B$138,0)) -> 24.60924181 | G47: =INDEX('O_OPEX Tariff Summary'!AE$5:AE$138,MATCH($B47,'O_OPEX Tariff Summary'!$B$5:$B$138,0)) -> 25.31667341 | H47: =INDEX('O_OPEX Tariff Summary'!AF$5:AF$138,MATCH($B47,'O_OPEX Tariff Summary'!$B$5:$B$138,0)) -> 26.04444126 | J47: LED | K47: Minor (Cat P) | L47: Luminaire - Minor (Cat P) road | M47: =INDEX(O47:Q47,,$M$3) -> 440 | O47: =SUM('I_Asset number input'!K47:O47) -> 440 | P47: 712 | Q47: 2167.353141
B48: LED1x100 | C48: Opex - Maintenance- LED Luminaire | D48: =INDEX('O_OPEX Tariff Summary'!AB$5:AB$138,MATCH($B48,'O_OPEX Tariff Summary'!$B$5:$B$138,0)) -> 31.69347077 | E48: =INDEX('O_OPEX Tariff Summary'!AC$5:AC$138,MATCH($B48,'O_OPEX Tariff Summary'!$B$5:$B$138,0)) -> 32.60454974 | F48: =INDEX('O_OPEX Tariff Summary'!AD$5:AD$138,MATCH($B48,'O_OPEX Tariff Summary'!$B$5:$B$138,0)) -> 33.54181912 | G48: =INDEX('O_OPEX Tariff Summary'!AE$5:AE$138,MATCH($B48,'O_OPEX Tariff Summary'!$B$5:$B$138,0)) -> 34.5060318 | H48: =INDEX('O_OPEX Tariff Summary'!AF$5:AF$138,MATCH($B48,'O_OPEX Tariff Summary'!$B$5:$B$138,0)) -> 35.49796229 | J48: LED | K48: Major (Cat V) | L48: Luminaire - Major (Cat V) road | M48: =INDEX(O48:Q48,,$M$3) -> 40918.5 | O48: =SUM('I_Asset number input'!K48:O48) -> 40918.5 | P48: 71120 | Q48: 274716.7164
B49: LED1x17 | C49: Opex - Maintenance- LED Luminaire | D49: =INDEX('O_OPEX Tariff Summary'!AB$5:AB$138,MATCH($B49,'O_OPEX Tariff Summary'!$B$5:$B$138,0)) -> 23.25313016 | E49: =INDEX('O_OPEX Tariff Summary'!AC$5:AC$138,MATCH($B49,'O_OPEX Tariff Summary'!$B$5:$B$138,0)) -> 23.92157819 | F49: =INDEX('O_OPEX Tariff Summary'!AD$5:AD$138,MATCH($B49,'O_OPEX Tariff Summary'!$B$5:$B$138,0)) -> 24.60924181 | G49: =INDEX('O_OPEX Tariff Summary'!AE$5:AE$138,MATCH($B49,'O_OPEX Tariff Summary'!$B$5:$B$138,0)) -> 25.31667341 | H49: =INDEX('O_OPEX Tariff Summary'!AF$5:AF$138,MATCH($B49,'O_OPEX Tariff Summary'!$B$5:$B$138,0)) -> 26.04444126 | J49: LED | K49: Minor (Cat P) | L49: Luminaire - Minor (Cat P) road | M49: =INDEX(O49:Q49,,$M$3) -> 692170 | O49: =SUM('I_Asset number input'!K49:O49) -> 692170 | P49: 764648 | Q49: 3409492.781
B50: LED1x200 | C50: Opex - Maintenance- LED Luminaire | D50: =INDEX('O_OPEX Tariff Summary'!AB$5:AB$138,MATCH($B50,'O_OPEX Tariff Summary'!$B$5:$B$138,0)) -> 31.69347077 | E50: =INDEX('O_OPEX Tariff Summary'!AC$5:AC$138,MATCH($B50,'O_OPEX Tariff Summary'!$B$5:$B$138,0)) -> 32.60454974 | F50: =INDEX('O_OPEX Tariff Summary'!AD$5:AD$138,MATCH($B50,'O_OPEX Tariff Summary'!$B$5:$B$138,0)) -> 33.54181912 | G50: =INDEX('O_OPEX Tariff Summary'!AE$5:AE$138,MATCH($B50,'O_OPEX Tariff Summary'!$B$5:$B$138,0)) -> 34.5060318 | H50: =INDEX('O_OPEX Tariff Summary'!AF$5:AF$138,MATCH($B50,'O_OPEX Tariff Summary'!$B$5:$B$138,0)) -> 35.49796229 | J50: LED | K50: Major (Cat V) | L50: Luminaire - Major (Cat V) road | M50: =INDEX(O50:Q50,,$M$3) -> 13525 | O50: =SUM('I_Asset number input'!K50:O50) -> 13525 | P50: 21384 | Q50: 90803.51404
B51: LED1x22 | C51: Opex - Maintenance- LED Luminaire | D51: =INDEX('O_OPEX Tariff Summary'!AB$5:AB$138,MATCH($B51,'O_OPEX Tariff Summary'!$B$5:$B$138,0)) -> 23.25313016 | E51: =INDEX('O_OPEX Tariff Summary'!AC$5:AC$138,MATCH($B51,'O_OPEX Tariff Summary'!$B$5:$B$138,0)) -> 23.92157819 | F51: =INDEX('O_OPEX Tariff Summary'!AD$5:AD$138,MATCH($B51,'O_OPEX Tariff Summary'!$B$5:$B$138,0)) -> 24.60924181 | G51: =INDEX('O_OPEX Tariff Summary'!AE$5:AE$138,MATCH($B51,'O_OPEX Tariff Summary'!$B$5:$B$138,0)) -> 25.31667341 | H51: =INDEX('O_OPEX Tariff Summary'!AF$5:AF$138,MATCH($B51,'O_OPEX Tariff Summary'!$B$5:$B$138,0)) -> 26.04444126 | J51: LED | K51: Minor (Cat P) | L51: Luminaire - Minor (Cat P) road | M51: =INDEX(O51:Q51,,$M$3) -> 72155 | O51: =SUM('I_Asset number input'!K51:O51) -> 72155 | P51: 115744 | Q51: 355421.2861
B52: LED1x25 GE | C52: Opex - Maintenance- LED Luminaire | D52: =INDEX('O_OPEX Tariff Summary'!AB$5:AB$138,MATCH($B52,'O_OPEX Tariff Summary'!$B$5:$B$138,0)) -> 23.25313016 | E52: =INDEX('O_OPEX Tariff Summary'!AC$5:AC$138,MATCH($B52,'O_OPEX Tariff Summary'!$B$5:$B$138,0)) -> 23.92157819 | F52: =INDEX('O_OPEX Tariff Summary'!AD$5:AD$138,MATCH($B52,'O_OPEX Tariff Summary'!$B$5:$B$138,0)) -> 24.60924181 | G52: =INDEX('O_OPEX Tariff Summary'!AE$5:AE$138,MATCH($B52,'O_OPEX Tariff Summary'!$B$5:$B$138,0)) -> 25.31667341 | H52: =INDEX('O_OPEX Tariff Summary'!AF$5:AF$138,MATCH($B52,'O_OPEX Tariff Summary'!$B$5:$B$138,0)) -> 26.04444126 | J52: LED | K52: Minor (Cat P) | L52: Luminaire - Minor (Cat P) road | M52: =INDEX(O52:Q52,,$M$3) -> 22460 | O52: =SUM('I_Asset number input'!K52:O52) -> 22460 | P52: 35840 | Q52: 110633.5262
B53: LED1x28 | C53: Opex - Maintenance- LED Luminaire | D53: =INDEX('O_OPEX Tariff Summary'!AB$5:AB$138,MATCH($B53,'O_OPEX Tariff Summary'!$B$5:$B$138,0)) -> 23.25313016 | E53: =INDEX('O_OPEX Tariff Summary'!AC$5:AC$138,MATCH($B53,'O_OPEX Tariff Summary'!$B$5:$B$138,0)) -> 23.92157819 | F53: =INDEX('O_OPEX Tariff Summary'!AD$5:AD$138,MATCH($B53,'O_OPEX Tariff Summary'!$B$5:$B$138,0)) -> 24.60924181 | G53: =INDEX('O_OPEX Tariff Summary'!AE$5:AE$138,MATCH($B53,'O_OPEX Tariff Summary'!$B$5:$B$138,0)) -> 25.31667341 | H53: =INDEX('O_OPEX Tariff Summary'!AF$5:AF$138,MATCH($B53,'O_OPEX Tariff Summary'!$B$5:$B$138,0)) -> 26.04444126 | J53: LED | K53: Minor (Cat P) | L53: Luminaire - Minor (Cat P) road | M53: =INDEX(O53:Q53,,$M$3) -> 19825 | O53: =SUM('I_Asset number input'!K53:O53) -> 19825 | P53: 30088 | Q53: 97654.03641
B54: LED1x29 | C54: Opex - Maintenance- LED Luminaire | D54: =INDEX('O_OPEX Tariff Summary'!AB$5:AB$138,MATCH($B54,'O_OPEX Tariff Summary'!$B$5:$B$138,0)) -> 23.25313016 | E54: =INDEX('O_OPEX Tariff Summary'!AC$5:AC$138,MATCH($B54,'O_OPEX Tariff Summary'!$B$5:$B$138,0)) -> 23.92157819 | F54: =INDEX('O_OPEX Tariff Summary'!AD$5:AD$138,MATCH($B54,'O_OPEX Tariff Summary'!$B$5:$B$138,0)) -> 24.60924181 | G54: =INDEX('O_OPEX Tariff Summary'!AE$5:AE$138,MATCH($B54,'O_OPEX Tariff Summary'!$B$5:$B$138,0)) -> 25.31667341 | H54: =INDEX('O_OPEX Tariff Summary'!AF$5:AF$138,MATCH($B54,'O_OPEX Tariff Summary'!$B$5:$B$138,0)) -> 26.04444126 | J54: LED | K54: Minor (Cat P) | L54: Luminaire - Minor (Cat P) road | M54: =INDEX(O54:Q54,,$M$3) -> 72590 | O54: =SUM('I_Asset number input'!K54:O54) -> 72590 | P54: 116496 | Q54: 357564.0102
B55: LED1x298 | C55: Opex - Maintenance- LED Luminaire | D55: =INDEX('O_OPEX Tariff Summary'!AB$5:AB$138,MATCH($B55,'O_OPEX Tariff Summary'!$B$5:$B$138,0)) -> 31.69347077 | E55: =INDEX('O_OPEX Tariff Summary'!AC$5:AC$138,MATCH($B55,'O_OPEX Tariff Summary'!$B$5:$B$138,0)) -> 32.60454974 | F55: =INDEX('O_OPEX Tariff Summary'!AD$5:AD$138,MATCH($B55,'O_OPEX Tariff Summary'!$B$5:$B$138,0)) -> 33.54181912 | G55: =INDEX('O_OPEX Tariff Summary'!AE$5:AE$138,MATCH($B55,'O_OPEX Tariff Summary'!$B$5:$B$138,0)) -> 34.5060318 | H55: =INDEX('O_OPEX Tariff Summary'!AF$5:AF$138,MATCH($B55,'O_OPEX Tariff Summary'!$B$5:$B$138,0)) -> 35.49796229 | J55: LED | K55: Major (Cat V) | L55: Luminaire - Major (Cat V) road | M55: =INDEX(O55:Q55,,$M$3) -> 265 | O55: =SUM('I_Asset number input'!K55:O55) -> 265 | P55: 424 | Q55: 1779.144637
B56: LED1x33 | C56: Opex - Maintenance- LED Luminaire | D56: =INDEX('O_OPEX Tariff Summary'!AB$5:AB$138,MATCH($B56,'O_OPEX Tariff Summary'!$B$5:$B$138,0)) -> 23.25313016 | E56: =INDEX('O_OPEX Tariff Summary'!AC$5:AC$138,MATCH($B56,'O_OPEX Tariff Summary'!$B$5:$B$138,0)) -> 23.92157819 | F56: =INDEX('O_OPEX Tariff Summary'!AD$5:AD$138,MATCH($B56,'O_OPEX Tariff Summary'!$B$5:$B$138,0)) -> 24.60924181 | G56: =INDEX('O_OPEX Tariff Summary'!AE$5:AE$138,MATCH($B56,'O_OPEX Tariff Summary'!$B$5:$B$138,0)) -> 25.31667341 | H56: =INDEX('O_OPEX Tariff Summary'!AF$5:AF$138,MATCH($B56,'O_OPEX Tariff Summary'!$B$5:$B$138,0)) -> 26.04444126 | J56: LED | K56: Minor (Cat P) | L56: Luminaire - Minor (Cat P) road | M56: =INDEX(O56:Q56,,$M$3) -> 145 | O56: =SUM('I_Asset number input'!K56:O56) -> 145 | P56: 232 | Q56: 714.241376
B57: LED1x42 | C57: Opex - Maintenance- LED Luminaire | D57: =INDEX('O_OPEX Tariff Summary'!AB$5:AB$138,MATCH($B57,'O_OPEX Tariff Summary'!$B$5:$B$138,0)) -> 23.25313016 | E57: =INDEX('O_OPEX Tariff Summary'!AC$5:AC$138,MATCH($B57,'O_OPEX Tariff Summary'!$B$5:$B$138,0)) -> 23.92157819 | F57: =INDEX('O_OPEX Tariff Summary'!AD$5:AD$138,MATCH($B57,'O_OPEX Tariff Summary'!$B$5:$B$138,0)) -> 24.60924181 | G57: =INDEX('O_OPEX Tariff Summary'!AE$5:AE$138,MATCH($B57,'O_OPEX Tariff Summary'!$B$5:$B$138,0)) -> 25.31667341 | H57: =INDEX('O_OPEX Tariff Summary'!AF$5:AF$138,MATCH($B57,'O_OPEX Tariff Summary'!$B$5:$B$138,0)) -> 26.04444126 | J57: LED | K57: Minor (Cat P) | L57: Luminaire - Minor (Cat P) road | M57: =INDEX(O57:Q57,,$M$3) -> 200 | O57: =SUM('I_Asset number input'!K57:O57) -> 200 | P57: 328 | Q57: 985.1605187
B58: Smart Controller (Licence and maintenance fee) | C58: Opex - Maintenance- Smart controller | D58: =INDEX('O_OPEX Tariff Summary'!AB$5:AB$138,MATCH($B58,'O_OPEX Tariff Summary'!$B$5:$B$138,0)) -> 5.849940492 | E58: =INDEX('O_OPEX Tariff Summary'!AC$5:AC$138,MATCH($B58,'O_OPEX Tariff Summary'!$B$5:$B$138,0)) -> 6.018106289 | F58: =INDEX('O_OPEX Tariff Summary'!AD$5:AD$138,MATCH($B58,'O_OPEX Tariff Summary'!$B$5:$B$138,0)) -> 6.191106279 | G58: =INDEX('O_OPEX Tariff Summary'!AE$5:AE$138,MATCH($B58,'O_OPEX Tariff Summary'!$B$5:$B$138,0)) -> 6.369079427 | H58: =INDEX('O_OPEX Tariff Summary'!AF$5:AF$138,MATCH($B58,'O_OPEX Tariff Summary'!$B$5:$B$138,0)) -> 6.552168695 | J58: Smart Controller | K58: N/A | L58: Smart Controller - Licence and maintenance fee | M58: =INDEX(O58:Q58,,$M$3) -> 304000 | O58: =SUM('I_Asset number input'!K58:O58) -> 304000 | P58: 0 | Q58: 376721.6784
B59: Luminaire - Decorative | C59: Opex - Maintenance- LED Luminaire | D59: =INDEX('O_OPEX Tariff Summary'!AB$5:AB$138,MATCH($B59,'O_OPEX Tariff Summary'!$B$5:$B$138,0)) -> 24.93895776 | E59: =INDEX('O_OPEX Tariff Summary'!AC$5:AC$138,MATCH($B59,'O_OPEX Tariff Summary'!$B$5:$B$138,0)) -> 25.65586757 | F59: =INDEX('O_OPEX Tariff Summary'!AD$5:AD$138,MATCH($B59,'O_OPEX Tariff Summary'!$B$5:$B$138,0)) -> 26.39338609 | G59: =INDEX('O_OPEX Tariff Summary'!AE$5:AE$138,MATCH($B59,'O_OPEX Tariff Summary'!$B$5:$B$138,0)) -> 27.15210574 | H59: =INDEX('O_OPEX Tariff Summary'!AF$5:AF$138,MATCH($B59,'O_OPEX Tariff Summary'!$B$5:$B$138,0)) -> 27.93263599 | J59: LED | K59: Minor (Cat P) | L59: Luminaire - Decorative | M59: =INDEX(O59:Q59,,$M$3) -> 0 | O59: =SUM('I_Asset number input'!K59:O59) -> 0 | P59: 0 | Q59: 0
B60: Luminaire - Floodlight | C60: Opex - Maintenance- LED Luminaire | D60: =INDEX('O_OPEX Tariff Summary'!AB$5:AB$138,MATCH($B60,'O_OPEX Tariff Summary'!$B$5:$B$138,0)) -> 31.69347077 | E60: =INDEX('O_OPEX Tariff Summary'!AC$5:AC$138,MATCH($B60,'O_OPEX Tariff Summary'!$B$5:$B$138,0)) -> 32.60454974 | F60: =INDEX('O_OPEX Tariff Summary'!AD$5:AD$138,MATCH($B60,'O_OPEX Tariff Summary'!$B$5:$B$138,0)) -> 33.54181912 | G60: =INDEX('O_OPEX Tariff Summary'!AE$5:AE$138,MATCH($B60,'O_OPEX Tariff Summary'!$B$5:$B$138,0)) -> 34.5060318 | H60: =INDEX('O_OPEX Tariff Summary'!AF$5:AF$138,MATCH($B60,'O_OPEX Tariff Summary'!$B$5:$B$138,0)) -> 35.49796229 | J60: LED | K60: Major (Cat V) | L60: Luminaire - Floodlight | M60: =INDEX(O60:Q60,,$M$3) -> 0 | O60: =SUM('I_Asset number input'!K60:O60) -> 0 | P60: 0 | Q60: 0
B61: Luminaire - Major (Cat V) road - smart controller installed | C61: Opex - Maintenance- LED Luminaire | D61: =INDEX('O_OPEX Tariff Summary'!AB$5:AB$138,MATCH($B61,'O_OPEX Tariff Summary'!$B$5:$B$138,0)) -> 22.43196985 | E61: =INDEX('O_OPEX Tariff Summary'!AC$5:AC$138,MATCH($B61,'O_OPEX Tariff Summary'!$B$5:$B$138,0)) -> 23.07681233 | F61: =INDEX('O_OPEX Tariff Summary'!AD$5:AD$138,MATCH($B61,'O_OPEX Tariff Summary'!$B$5:$B$138,0)) -> 23.74019182 | G61: =INDEX('O_OPEX Tariff Summary'!AE$5:AE$138,MATCH($B61,'O_OPEX Tariff Summary'!$B$5:$B$138,0)) -> 24.42264121 | H61: =INDEX('O_OPEX Tariff Summary'!AF$5:AF$138,MATCH($B61,'O_OPEX Tariff Summary'!$B$5:$B$138,0)) -> 25.12470868 | J61: LED | K61: Major (Cat V) | L61: Luminaire - Major (Cat V) road - smart controller installed | M61: =INDEX(O61:Q61,,$M$3) -> 260865 | O61: =SUM('I_Asset number input'!K61:O61) -> 260865 | P61: 0 | Q61: 1239592.121
B62: Luminaire - Minor (Cat P) road - smart controller installed | C62: Opex - Maintenance- LED Luminaire | D62: =INDEX('O_OPEX Tariff Summary'!AB$5:AB$138,MATCH($B62,'O_OPEX Tariff Summary'!$B$5:$B$138,0)) -> 17.96979969 | E62: =INDEX('O_OPEX Tariff Summary'!AC$5:AC$138,MATCH($B62,'O_OPEX Tariff Summary'!$B$5:$B$138,0)) -> 18.48637002 | F62: =INDEX('O_OPEX Tariff Summary'!AD$5:AD$138,MATCH($B62,'O_OPEX Tariff Summary'!$B$5:$B$138,0)) -> 19.01778998 | G62: =INDEX('O_OPEX Tariff Summary'!AE$5:AE$138,MATCH($B62,'O_OPEX Tariff Summary'!$B$5:$B$138,0)) -> 19.56448645 | H62: =INDEX('O_OPEX Tariff Summary'!AF$5:AF$138,MATCH($B62,'O_OPEX Tariff Summary'!$B$5:$B$138,0)) -> 20.12689858 | J62: LED | K62: Minor (Cat P) | L62: Luminaire - Minor (Cat P) road - smart controller installed | M62: =INDEX(O62:Q62,,$M$3) -> 28985 | O62: =SUM('I_Asset number input'!K62:O62) -> 28985 | P62: 0 | Q62: 110334.7007
B63: Luminaire - Floodlight - smart controller installed | C63: Opex - Maintenance- LED Luminaire | D63: =INDEX('O_OPEX Tariff Summary'!AB$5:AB$138,MATCH($B63,'O_OPEX Tariff Summary'!$B$5:$B$138,0)) -> 22.43196985 | E63: =INDEX('O_OPEX Tariff Summary'!AC$5:AC$138,MATCH($B63,'O_OPEX Tariff Summary'!$B$5:$B$138,0)) -> 23.07681233 | F63: =INDEX('O_OPEX Tariff Summary'!AD$5:AD$138,MATCH($B63,'O_OPEX Tariff Summary'!$B$5:$B$138,0)) -> 23.74019182 | G63: =INDEX('O_OPEX Tariff Summary'!AE$5:AE$138,MATCH($B63,'O_OPEX Tariff Summary'!$B$5:$B$138,0)) -> 24.42264121 | H63: =INDEX('O_OPEX Tariff Summary'!AF$5:AF$138,MATCH($B63,'O_OPEX Tariff Summary'!$B$5:$B$138,0)) -> 25.12470868 | J63: LED | K63: Major (Cat V) | L63: Luminaire - Floodlight - smart controller installed | M63: =INDEX(O63:Q63,,$M$3) -> 0 | O63: =SUM('I_Asset number input'!K63:O63) -> 0 | P63: 0 | Q63: 0
B64: Luminaire - Decorative - smart controller installed | C64: Opex - Maintenance- LED Luminaire | D64: =INDEX('O_OPEX Tariff Summary'!AB$5:AB$138,MATCH($B64,'O_OPEX Tariff Summary'!$B$5:$B$138,0)) -> 19.65562729 | E64: =INDEX('O_OPEX Tariff Summary'!AC$5:AC$138,MATCH($B64,'O_OPEX Tariff Summary'!$B$5:$B$138,0)) -> 20.2206594 | F64: =INDEX('O_OPEX Tariff Summary'!AD$5:AD$138,MATCH($B64,'O_OPEX Tariff Summary'!$B$5:$B$138,0)) -> 20.80193426 | G64: =INDEX('O_OPEX Tariff Summary'!AE$5:AE$138,MATCH($B64,'O_OPEX Tariff Summary'!$B$5:$B$138,0)) -> 21.39991878 | H64: =INDEX('O_OPEX Tariff Summary'!AF$5:AF$138,MATCH($B64,'O_OPEX Tariff Summary'!$B$5:$B$138,0)) -> 22.01509331 | J64: LED | K64: Minor (Cat P) | L64: Luminaire - Decorative - smart controller installed | M64: =INDEX(O64:Q64,,$M$3) -> 0 | O64: =SUM('I_Asset number input'!K64:O64) -> 0 | P64: 0 | Q64: 0
B65: 0.5 | C65: Capital - Bracket | D65: =IFERROR(INDEX('C_CAPEX Build Up'!S$15:S$189,MATCH($B65,'C_CAPEX Build Up'!$B$15:$B$189,0)),0) -> 6.649944484 | E65: =IFERROR(INDEX('C_CAPEX Build Up'!T$15:T$189,MATCH($B65,'C_CAPEX Build Up'!$B$15:$B$189,0)),0) -> 6.841107663 | F65: =IFERROR(INDEX('C_CAPEX Build Up'!U$15:U$189,MATCH($B65,'C_CAPEX Build Up'!$B$15:$B$189,0)),0) -> 7.037766129 | G65: =IFERROR(INDEX('C_CAPEX Build Up'!V$15:V$189,MATCH($B65,'C_CAPEX Build Up'!$B$15:$B$189,0)),0) -> 7.240077855 | H65: =IFERROR(INDEX('C_CAPEX Build Up'!W$15:W$189,MATCH($B65,'C_CAPEX Build Up'!$B$15:$B$189,0)),0) -> 7.448205351 | J65: Bracket | K65: Minor (Cat P) | L65: Legacy Bracket - Minor (Cat P) road - Short | M65: =INDEX(O65:Q65,,$M$3) -> 32543.5 | O65: =SUM('I_Asset number input'!K65:O65) -> 32543.5 | P65: 49704 | Q65: 45843.50968
B66: 0.6 | C66: Capital - Bracket | D66: =IFERROR(INDEX('C_CAPEX Build Up'!S$15:S$189,MATCH($B66,'C_CAPEX Build Up'!$B$15:$B$189,0)),0) -> 6.649944484 | E66: =IFERROR(INDEX('C_CAPEX Build Up'!T$15:T$189,MATCH($B66,'C_CAPEX Build Up'!$B$15:$B$189,0)),0) -> 6.841107663 | F66: =IFERROR(INDEX('C_CAPEX Build Up'!U$15:U$189,MATCH($B66,'C_CAPEX Build Up'!$B$15:$B$189,0)),0) -> 7.037766129 | G66: =IFERROR(INDEX('C_CAPEX Build Up'!V$15:V$189,MATCH($B66,'C_CAPEX Build Up'!$B$15:$B$189,0)),0) -> 7.240077855 | H66: =IFERROR(INDEX('C_CAPEX Build Up'!W$15:W$189,MATCH($B66,'C_CAPEX Build Up'!$B$15:$B$189,0)),0) -> 7.448205351 | J66: Bracket | K66: Minor (Cat P) | L66: Legacy Bracket - Minor (Cat P) road - Short | M66: =INDEX(O66:Q66,,$M$3) -> 130 | O66: =SUM('I_Asset number input'!K66:O66) -> 130 | P66: 208 | Q66: 183.1289277
B67: 1.0 | C67: Capital - Bracket | D67: =IFERROR(INDEX('C_CAPEX Build Up'!S$15:S$189,MATCH($B67,'C_CAPEX Build Up'!$B$15:$B$189,0)),0) -> 8.16925627 | E67: =IFERROR(INDEX('C_CAPEX Build Up'!T$15:T$189,MATCH($B67,'C_CAPEX Build Up'!$B$15:$B$189,0)),0) -> 8.40409447 | F67: =IFERROR(INDEX('C_CAPEX Build Up'!U$15:U$189,MATCH($B67,'C_CAPEX Build Up'!$B$15:$B$189,0)),0) -> 8.645683466 | G67: =IFERROR(INDEX('C_CAPEX Build Up'!V$15:V$189,MATCH($B67,'C_CAPEX Build Up'!$B$15:$B$189,0)),0) -> 8.89421732 | H67: =IFERROR(INDEX('C_CAPEX Build Up'!W$15:W$189,MATCH($B67,'C_CAPEX Build Up'!$B$15:$B$189,0)),0) -> 9.149895673 | J67: Bracket | K67: Minor (Cat P) | L67: Legacy Bracket - Minor (Cat P) road - Short | M67: =INDEX(O67:Q67,,$M$3) -> 580 | O67: =SUM('I_Asset number input'!K67:O67) -> 580 | P67: 952 | Q67: 1003.705015
B68: 1.2 | C68: Capital - Bracket | D68: =IFERROR(INDEX('C_CAPEX Build Up'!S$15:S$189,MATCH($B68,'C_CAPEX Build Up'!$B$15:$B$189,0)),0) -> 8.16925627 | E68: =IFERROR(INDEX('C_CAPEX Build Up'!T$15:T$189,MATCH($B68,'C_CAPEX Build Up'!$B$15:$B$189,0)),0) -> 8.40409447 | F68: =IFERROR(INDEX('C_CAPEX Build Up'!U$15:U$189,MATCH($B68,'C_CAPEX Build Up'!$B$15:$B$189,0)),0) -> 8.645683466 | G68: =IFERROR(INDEX('C_CAPEX Build Up'!V$15:V$189,MATCH($B68,'C_CAPEX Build Up'!$B$15:$B$189,0)),0) -> 8.89421732 | H68: =IFERROR(INDEX('C_CAPEX Build Up'!W$15:W$189,MATCH($B68,'C_CAPEX Build Up'!$B$15:$B$189,0)),0) -> 9.149895673 | J68: Bracket | K68: Minor (Cat P) | L68: Legacy Bracket - Minor (Cat P) road - Short | M68: =INDEX(O68:Q68,,$M$3) -> 2285 | O68: =SUM('I_Asset number input'!K68:O68) -> 2285 | P68: 3648 | Q68: 3954.251654
B69: 1.5 | C69: Capital - Bracket | D69: =IFERROR(INDEX('C_CAPEX Build Up'!S$15:S$189,MATCH($B69,'C_CAPEX Build Up'!$B$15:$B$189,0)),0) -> 8.16925627 | E69: =IFERROR(INDEX('C_CAPEX Build Up'!T$15:T$189,MATCH($B69,'C_CAPEX Build Up'!$B$15:$B$189,0)),0) -> 8.40409447 | F69: =IFERROR(INDEX('C_CAPEX Build Up'!U$15:U$189,MATCH($B69,'C_CAPEX Build Up'!$B$15:$B$189,0)),0) -> 8.645683466 | G69: =IFERROR(INDEX('C_CAPEX Build Up'!V$15:V$189,MATCH($B69,'C_CAPEX Build Up'!$B$15:$B$189,0)),0) -> 8.89421732 | H69: =IFERROR(INDEX('C_CAPEX Build Up'!W$15:W$189,MATCH($B69,'C_CAPEX Build Up'!$B$15:$B$189,0)),0) -> 9.149895673 | J69: Bracket | K69: Minor (Cat P) | L69: Legacy Bracket - Minor (Cat P) road - Short | M69: =INDEX(O69:Q69,,$M$3) -> 1330 | O69: =SUM('I_Asset number input'!K69:O69) -> 1330 | P69: 2160 | Q69: 2301.599431
B70: 2.0 | C70: Capital - Bracket | D70: =IFERROR(INDEX('C_CAPEX Build Up'!S$15:S$189,MATCH($B70,'C_CAPEX Build Up'!$B$15:$B$189,0)),0) -> 8.16925627 | E70: =IFERROR(INDEX('C_CAPEX Build Up'!T$15:T$189,MATCH($B70,'C_CAPEX Build Up'!$B$15:$B$189,0)),0) -> 8.40409447 | F70: =IFERROR(INDEX('C_CAPEX Build Up'!U$15:U$189,MATCH($B70,'C_CAPEX Build Up'!$B$15:$B$189,0)),0) -> 8.645683466 | G70: =IFERROR(INDEX('C_CAPEX Build Up'!V$15:V$189,MATCH($B70,'C_CAPEX Build Up'!$B$15:$B$189,0)),0) -> 8.89421732 | H70: =IFERROR(INDEX('C_CAPEX Build Up'!W$15:W$189,MATCH($B70,'C_CAPEX Build Up'!$B$15:$B$189,0)),0) -> 9.149895673 | J70: Bracket | K70: Minor (Cat P) | L70: Legacy Bracket - Minor (Cat P) road - Short | M70: =INDEX(O70:Q70,,$M$3) -> 203421.5 | O70: =SUM('I_Asset number input'!K70:O70) -> 203421.5 | P70: 300376 | Q70: =+O70/5*AVERAGE(D70,E70,F70,G70,H70) -> 352026.1719
B71: 2.5 | C71: Capital - Bracket | D71: =IFERROR(INDEX('C_CAPEX Build Up'!S$15:S$189,MATCH($B71,'C_CAPEX Build Up'!$B$15:$B$189,0)),0) -> 8.16925627 | E71: =IFERROR(INDEX('C_CAPEX Build Up'!T$15:T$189,MATCH($B71,'C_CAPEX Build Up'!$B$15:$B$189,0)),0) -> 8.40409447 | F71: =IFERROR(INDEX('C_CAPEX Build Up'!U$15:U$189,MATCH($B71,'C_CAPEX Build Up'!$B$15:$B$189,0)),0) -> 8.645683466 | G71: =IFERROR(INDEX('C_CAPEX Build Up'!V$15:V$189,MATCH($B71,'C_CAPEX Build Up'!$B$15:$B$189,0)),0) -> 8.89421732 | H71: =IFERROR(INDEX('C_CAPEX Build Up'!W$15:W$189,MATCH($B71,'C_CAPEX Build Up'!$B$15:$B$189,0)),0) -> 9.149895673 | J71: Bracket | K71: Minor (Cat P) | L71: Legacy Bracket - Minor (Cat P) road - Short | M71: =INDEX(O71:Q71,,$M$3) -> 345 | O71: =SUM('I_Asset number input'!K71:O71) -> 345 | P71: 552 | Q71: 597.0314314
B72: 3.0 | C72: Capital - Bracket | D72: =IFERROR(INDEX('C_CAPEX Build Up'!S$15:S$189,MATCH($B72,'C_CAPEX Build Up'!$B$15:$B$189,0)),0) -> 8.16925627 | E72: =IFERROR(INDEX('C_CAPEX Build Up'!T$15:T$189,MATCH($B72,'C_CAPEX Build Up'!$B$15:$B$189,0)),0) -> 8.40409447 | F72: =IFERROR(INDEX('C_CAPEX Build Up'!U$15:U$189,MATCH($B72,'C_CAPEX Build Up'!$B$15:$B$189,0)),0) -> 8.645683466 | G72: =IFERROR(INDEX('C_CAPEX Build Up'!V$15:V$189,MATCH($B72,'C_CAPEX Build Up'!$B$15:$B$189,0)),0) -> 8.89421732 | H72: =IFERROR(INDEX('C_CAPEX Build Up'!W$15:W$189,MATCH($B72,'C_CAPEX Build Up'!$B$15:$B$189,0)),0) -> 9.149895673 | J72: Bracket | K72: Minor (Cat P) | L72: Legacy Bracket - Minor (Cat P) road - Short | M72: =INDEX(O72:Q72,,$M$3) -> 3245 | O72: =SUM('I_Asset number input'!K72:O72) -> 3245 | P72: 5008 | Q72: 5615.556507
B73: 3.5 | C73: Capital - Bracket | D73: =IFERROR(INDEX('C_CAPEX Build Up'!S$15:S$189,MATCH($B73,'C_CAPEX Build Up'!$B$15:$B$189,0)),0) -> 11.53231621 | E73: =IFERROR(INDEX('C_CAPEX Build Up'!T$15:T$189,MATCH($B73,'C_CAPEX Build Up'!$B$15:$B$189,0)),0) -> 11.86383089 | F73: =IFERROR(INDEX('C_CAPEX Build Up'!U$15:U$189,MATCH($B73,'C_CAPEX Build Up'!$B$15:$B$189,0)),0) -> 12.20487549 | G73: =IFERROR(INDEX('C_CAPEX Build Up'!V$15:V$189,MATCH($B73,'C_CAPEX Build Up'!$B$15:$B$189,0)),0) -> 12.55572395 | H73: =IFERROR(INDEX('C_CAPEX Build Up'!W$15:W$189,MATCH($B73,'C_CAPEX Build Up'!$B$15:$B$189,0)),0) -> 12.91665811 | J73: Bracket | K73: Minor (Cat P) | L73: Legacy Bracket - Minor (Cat P) road - Medium | M73: =INDEX(O73:Q73,,$M$3) -> 5285 | O73: =SUM('I_Asset number input'!K73:O73) -> 5285 | P73: 8456 | Q73: 12910.91774
B74: 4.0 | C74: Capital - Bracket | D74: =IFERROR(INDEX('C_CAPEX Build Up'!S$15:S$189,MATCH($B74,'C_CAPEX Build Up'!$B$15:$B$189,0)),0) -> 18.51652432 | E74: =IFERROR(INDEX('C_CAPEX Build Up'!T$15:T$189,MATCH($B74,'C_CAPEX Build Up'!$B$15:$B$189,0)),0) -> 19.04881111 | F74: =IFERROR(INDEX('C_CAPEX Build Up'!U$15:U$189,MATCH($B74,'C_CAPEX Build Up'!$B$15:$B$189,0)),0) -> 19.59639934 | G74: =IFERROR(INDEX('C_CAPEX Build Up'!V$15:V$189,MATCH($B74,'C_CAPEX Build Up'!$B$15:$B$189,0)),0) -> 20.15972885 | H74: =IFERROR(INDEX('C_CAPEX Build Up'!W$15:W$189,MATCH($B74,'C_CAPEX Build Up'!$B$15:$B$189,0)),0) -> 20.73925216 | J74: Bracket | K74: Minor (Cat P) | L74: Legacy Bracket - Minor (Cat P) road - Medium | M74: =INDEX(O74:Q74,,$M$3) -> 3145 | O74: =SUM('I_Asset number input'!K74:O74) -> 3145 | P74: 4952 | Q74: 12336.03804
B75: 4.5 | C75: Capital - Bracket | D75: =IFERROR(INDEX('C_CAPEX Build Up'!S$15:S$189,MATCH($B75,'C_CAPEX Build Up'!$B$15:$B$189,0)),0) -> 18.51652432 | E75: =IFERROR(INDEX('C_CAPEX Build Up'!T$15:T$189,MATCH($B75,'C_CAPEX Build Up'!$B$15:$B$189,0)),0) -> 19.04881111 | F75: =IFERROR(INDEX('C_CAPEX Build Up'!U$15:U$189,MATCH($B75,'C_CAPEX Build Up'!$B$15:$B$189,0)),0) -> 19.59639934 | G75: =IFERROR(INDEX('C_CAPEX Build Up'!V$15:V$189,MATCH($B75,'C_CAPEX Build Up'!$B$15:$B$189,0)),0) -> 20.15972885 | H75: =IFERROR(INDEX('C_CAPEX Build Up'!W$15:W$189,MATCH($B75,'C_CAPEX Build Up'!$B$15:$B$189,0)),0) -> 20.73925216 | J75: Bracket | K75: Minor (Cat P) | L75: Legacy Bracket - Minor (Cat P) road - Medium | M75: =INDEX(O75:Q75,,$M$3) -> 720 | O75: =SUM('I_Asset number input'!K75:O75) -> 720 | P75: 1096 | Q75: 2824.148614
B76: 5.0 | C76: Capital - Bracket | D76: =IFERROR(INDEX('C_CAPEX Build Up'!S$15:S$189,MATCH($B76,'C_CAPEX Build Up'!$B$15:$B$189,0)),0) -> 18.51652432 | E76: =IFERROR(INDEX('C_CAPEX Build Up'!T$15:T$189,MATCH($B76,'C_CAPEX Build Up'!$B$15:$B$189,0)),0) -> 19.04881111 | F76: =IFERROR(INDEX('C_CAPEX Build Up'!U$15:U$189,MATCH($B76,'C_CAPEX Build Up'!$B$15:$B$189,0)),0) -> 19.59639934 | G76: =IFERROR(INDEX('C_CAPEX Build Up'!V$15:V$189,MATCH($B76,'C_CAPEX Build Up'!$B$15:$B$189,0)),0) -> 20.15972885 | H76: =IFERROR(INDEX('C_CAPEX Build Up'!W$15:W$189,MATCH($B76,'C_CAPEX Build Up'!$B$15:$B$189,0)),0) -> 20.73925216 | J76: Bracket | K76: Minor (Cat P) | L76: Legacy Bracket - Minor (Cat P) road - Medium | M76: =INDEX(O76:Q76,,$M$3) -> 220 | O76: =SUM('I_Asset number input'!K76:O76) -> 220 | P76: 368 | Q76: 862.9342988
B77: 6.0 | C77: Capital - Bracket | D77: =IFERROR(INDEX('C_CAPEX Build Up'!S$15:S$189,MATCH($B77,'C_CAPEX Build Up'!$B$15:$B$189,0)),0) -> 23.0166333 | E77: =IFERROR(INDEX('C_CAPEX Build Up'!T$15:T$189,MATCH($B77,'C_CAPEX Build Up'!$B$15:$B$189,0)),0) -> 23.67828285 | F77: =IFERROR(INDEX('C_CAPEX Build Up'!U$15:U$189,MATCH($B77,'C_CAPEX Build Up'!$B$15:$B$189,0)),0) -> 24.35895257 | G77: =IFERROR(INDEX('C_CAPEX Build Up'!V$15:V$189,MATCH($B77,'C_CAPEX Build Up'!$B$15:$B$189,0)),0) -> 25.05918921 | H77: =IFERROR(INDEX('C_CAPEX Build Up'!W$15:W$189,MATCH($B77,'C_CAPEX Build Up'!$B$15:$B$189,0)),0) -> 25.77955526 | J77: Bracket | K77: Minor (Cat P) | L77: Legacy Bracket - Minor (Cat P) road - Long | M77: =INDEX(O77:Q77,,$M$3) -> 1360 | O77: =SUM('I_Asset number input'!K77:O77) -> 1360 | P77: 2144 | Q77: 6630.958158
B78: 6.5 | C78: Capital - Bracket | D78: =IFERROR(INDEX('C_CAPEX Build Up'!S$15:S$189,MATCH($B78,'C_CAPEX Build Up'!$B$15:$B$189,0)),0) -> 23.0166333 | E78: =IFERROR(INDEX('C_CAPEX Build Up'!T$15:T$189,MATCH($B78,'C_CAPEX Build Up'!$B$15:$B$189,0)),0) -> 23.67828285 | F78: =IFERROR(INDEX('C_CAPEX Build Up'!U$15:U$189,MATCH($B78,'C_CAPEX Build Up'!$B$15:$B$189,0)),0) -> 24.35895257 | G78: =IFERROR(INDEX('C_CAPEX Build Up'!V$15:V$189,MATCH($B78,'C_CAPEX Build Up'!$B$15:$B$189,0)),0) -> 25.05918921 | H78: =IFERROR(INDEX('C_CAPEX Build Up'!W$15:W$189,MATCH($B78,'C_CAPEX Build Up'!$B$15:$B$189,0)),0) -> 25.77955526 | J78: Bracket | K78: Minor (Cat P) | L78: Legacy Bracket - Minor (Cat P) road - Long | M78: =INDEX(O78:Q78,,$M$3) -> 190 | O78: =SUM('I_Asset number input'!K78:O78) -> 190 | P78: 312 | Q78: 926.3838603
B79: 7.0 | C79: Capital - Bracket | D79: =IFERROR(INDEX('C_CAPEX Build Up'!S$15:S$189,MATCH($B79,'C_CAPEX Build Up'!$B$15:$B$189,0)),0) -> 23.0166333 | E79: =IFERROR(INDEX('C_CAPEX Build Up'!T$15:T$189,MATCH($B79,'C_CAPEX Build Up'!$B$15:$B$189,0)),0) -> 23.67828285 | F79: =IFERROR(INDEX('C_CAPEX Build Up'!U$15:U$189,MATCH($B79,'C_CAPEX Build Up'!$B$15:$B$189,0)),0) -> 24.35895257 | G79: =IFERROR(INDEX('C_CAPEX Build Up'!V$15:V$189,MATCH($B79,'C_CAPEX Build Up'!$B$15:$B$189,0)),0) -> 25.05918921 | H79: =IFERROR(INDEX('C_CAPEX Build Up'!W$15:W$189,MATCH($B79,'C_CAPEX Build Up'!$B$15:$B$189,0)),0) -> 25.77955526 | J79: Bracket | K79: Minor (Cat P) | L79: Legacy Bracket - Minor (Cat P) road - Long | M79: =INDEX(O79:Q79,,$M$3) -> 120 | O79: =SUM('I_Asset number input'!K79:O79) -> 120 | P79: 200 | Q79: 585.0845434
B80: 8.0 | C80: =C79 -> Capital - Bracket | D80: =IFERROR(INDEX('C_CAPEX Build Up'!S$15:S$189,MATCH($B80,'C_CAPEX Build Up'!$B$15:$B$189,0)),0) -> 23.0166333 | E80: =IFERROR(INDEX('C_CAPEX Build Up'!T$15:T$189,MATCH($B80,'C_CAPEX Build Up'!$B$15:$B$189,0)),0) -> 23.67828285 | F80: =IFERROR(INDEX('C_CAPEX Build Up'!U$15:U$189,MATCH($B80,'C_CAPEX Build Up'!$B$15:$B$189,0)),0) -> 24.35895257 | G80: =IFERROR(INDEX('C_CAPEX Build Up'!V$15:V$189,MATCH($B80,'C_CAPEX Build Up'!$B$15:$B$189,0)),0) -> 25.05918921 | H80: =IFERROR(INDEX('C_CAPEX Build Up'!W$15:W$189,MATCH($B80,'C_CAPEX Build Up'!$B$15:$B$189,0)),0) -> 25.77955526 | J80: Bracket | K80: Minor (Cat P) | L80: Legacy Bracket - Minor (Cat P) road - Long | M80: =INDEX(O80:Q80,,$M$3) -> 10 | O80: =SUM('I_Asset number input'!K80:O80) -> 10 | P80: 16 | Q80: 48.75704528
B81: C4 | C81: Capital - Bracket | D81: =IFERROR(INDEX('C_CAPEX Build Up'!S$15:S$189,MATCH($B81,'C_CAPEX Build Up'!$B$15:$B$189,0)),0) -> 9.199174356 | E81: =IFERROR(INDEX('C_CAPEX Build Up'!T$15:T$189,MATCH($B81,'C_CAPEX Build Up'!$B$15:$B$189,0)),0) -> 9.463619181 | F81: =IFERROR(INDEX('C_CAPEX Build Up'!U$15:U$189,MATCH($B81,'C_CAPEX Build Up'!$B$15:$B$189,0)),0) -> 9.735665892 | G81: =IFERROR(INDEX('C_CAPEX Build Up'!V$15:V$189,MATCH($B81,'C_CAPEX Build Up'!$B$15:$B$189,0)),0) -> 10.01553302 | H81: =IFERROR(INDEX('C_CAPEX Build Up'!W$15:W$189,MATCH($B81,'C_CAPEX Build Up'!$B$15:$B$189,0)),0) -> 10.30344536 | J81: Bracket | K81: Major (Cat V) | L81: Legacy Bracket - Major (Cat V) road - Short | M81: =INDEX(O81:Q81,,$M$3) -> 270 | O81: =SUM('I_Asset number input'!K81:O81) -> 270 | P81: 432 | Q81: 526.1483283
B82: T1 | C82: Capital - Bracket | D82: =IFERROR(INDEX('C_CAPEX Build Up'!S$15:S$189,MATCH($B82,'C_CAPEX Build Up'!$B$15:$B$189,0)),0) -> 8.346996271 | E82: =IFERROR(INDEX('C_CAPEX Build Up'!T$15:T$189,MATCH($B82,'C_CAPEX Build Up'!$B$15:$B$189,0)),0) -> 8.586943888 | F82: =IFERROR(INDEX('C_CAPEX Build Up'!U$15:U$189,MATCH($B82,'C_CAPEX Build Up'!$B$15:$B$189,0)),0) -> 8.83378918 | G82: =IFERROR(INDEX('C_CAPEX Build Up'!V$15:V$189,MATCH($B82,'C_CAPEX Build Up'!$B$15:$B$189,0)),0) -> 9.087730431 | H82: =IFERROR(INDEX('C_CAPEX Build Up'!W$15:W$189,MATCH($B82,'C_CAPEX Build Up'!$B$15:$B$189,0)),0) -> 9.348971624 | J82: Bracket | K82: Major (Cat V) | L82: Legacy Bracket - Major (Cat V) road - Short | M82: =INDEX(O82:Q82,,$M$3) -> 10485 | O82: =SUM('I_Asset number input'!K82:O82) -> 10485 | P82: 14688 | Q82: 18539.33853
B83: T2 | C83: Capital - Bracket | D83: =IFERROR(INDEX('C_CAPEX Build Up'!S$15:S$189,MATCH($B83,'C_CAPEX Build Up'!$B$15:$B$189,0)),0) -> 14.19050314 | E83: =IFERROR(INDEX('C_CAPEX Build Up'!T$15:T$189,MATCH($B83,'C_CAPEX Build Up'!$B$15:$B$189,0)),0) -> 14.59843161 | F83: =IFERROR(INDEX('C_CAPEX Build Up'!U$15:U$189,MATCH($B83,'C_CAPEX Build Up'!$B$15:$B$189,0)),0) -> 15.01808663 | G83: =IFERROR(INDEX('C_CAPEX Build Up'!V$15:V$189,MATCH($B83,'C_CAPEX Build Up'!$B$15:$B$189,0)),0) -> 15.4498053 | H83: =IFERROR(INDEX('C_CAPEX Build Up'!W$15:W$189,MATCH($B83,'C_CAPEX Build Up'!$B$15:$B$189,0)),0) -> 15.8939344 | J83: Bracket | K83: Major (Cat V) | L83: Legacy Bracket - Major (Cat V) road - Short | M83: =INDEX(O83:Q83,,$M$3) -> 3660 | O83: =SUM('I_Asset number input'!K83:O83) -> 3660 | P83: 5848 | Q83: 11002.07142
B84: T2A | C84: Capital - Bracket | D84: =IFERROR(INDEX('C_CAPEX Build Up'!S$15:S$189,MATCH($B84,'C_CAPEX Build Up'!$B$15:$B$189,0)),0) -> 14.19050314 | E84: =IFERROR(INDEX('C_CAPEX Build Up'!T$15:T$189,MATCH($B84,'C_CAPEX Build Up'!$B$15:$B$189,0)),0) -> 14.59843161 | F84: =IFERROR(INDEX('C_CAPEX Build Up'!U$15:U$189,MATCH($B84,'C_CAPEX Build Up'!$B$15:$B$189,0)),0) -> 15.01808663 | G84: =IFERROR(INDEX('C_CAPEX Build Up'!V$15:V$189,MATCH($B84,'C_CAPEX Build Up'!$B$15:$B$189,0)),0) -> 15.4498053 | H84: =IFERROR(INDEX('C_CAPEX Build Up'!W$15:W$189,MATCH($B84,'C_CAPEX Build Up'!$B$15:$B$189,0)),0) -> 15.8939344 | J84: Bracket | K84: Major (Cat V) | L84: Legacy Bracket - Major (Cat V) road - Short | M84: =INDEX(O84:Q84,,$M$3) -> 1905 | O84: =SUM('I_Asset number input'!K84:O84) -> 1905 | P84: 2584 | Q84: 5726.487994
B85: T3 | C85: Capital - Bracket | D85: =IFERROR(INDEX('C_CAPEX Build Up'!S$15:S$189,MATCH($B85,'C_CAPEX Build Up'!$B$15:$B$189,0)),0) -> 21.22097234 | E85: =IFERROR(INDEX('C_CAPEX Build Up'!T$15:T$189,MATCH($B85,'C_CAPEX Build Up'!$B$15:$B$189,0)),0) -> 21.83100277 | F85: =IFERROR(INDEX('C_CAPEX Build Up'!U$15:U$189,MATCH($B85,'C_CAPEX Build Up'!$B$15:$B$189,0)),0) -> 22.4585695 | G85: =IFERROR(INDEX('C_CAPEX Build Up'!V$15:V$189,MATCH($B85,'C_CAPEX Build Up'!$B$15:$B$189,0)),0) -> 23.10417662 | H85: =IFERROR(INDEX('C_CAPEX Build Up'!W$15:W$189,MATCH($B85,'C_CAPEX Build Up'!$B$15:$B$189,0)),0) -> 23.76834274 | J85: Bracket | K85: Major (Cat V) | L85: Legacy Bracket - Major (Cat V) road - Medium | M85: =INDEX(O85:Q85,,$M$3) -> 3160 | O85: =SUM('I_Asset number input'!K85:O85) -> 3160 | P85: 5064 | Q85: 14205.21929
B86: T3A | C86: Capital - Bracket | D86: =IFERROR(INDEX('C_CAPEX Build Up'!S$15:S$189,MATCH($B86,'C_CAPEX Build Up'!$B$15:$B$189,0)),0) -> 21.22097234 | E86: =IFERROR(INDEX('C_CAPEX Build Up'!T$15:T$189,MATCH($B86,'C_CAPEX Build Up'!$B$15:$B$189,0)),0) -> 21.83100277 | F86: =IFERROR(INDEX('C_CAPEX Build Up'!U$15:U$189,MATCH($B86,'C_CAPEX Build Up'!$B$15:$B$189,0)),0) -> 22.4585695 | G86: =IFERROR(INDEX('C_CAPEX Build Up'!V$15:V$189,MATCH($B86,'C_CAPEX Build Up'!$B$15:$B$189,0)),0) -> 23.10417662 | H86: =IFERROR(INDEX('C_CAPEX Build Up'!W$15:W$189,MATCH($B86,'C_CAPEX Build Up'!$B$15:$B$189,0)),0) -> 23.76834274 | J86: Bracket | K86: Major (Cat V) | L86: Legacy Bracket - Major (Cat V) road - Medium | M86: =INDEX(O86:Q86,,$M$3) -> 1550 | O86: =SUM('I_Asset number input'!K86:O86) -> 1550 | P86: 2120 | Q86: 6967.749967
B87: T4 | C87: Capital - Bracket | D87: =IFERROR(INDEX('C_CAPEX Build Up'!S$15:S$189,MATCH($B87,'C_CAPEX Build Up'!$B$15:$B$189,0)),0) -> 21.22097234 | E87: =IFERROR(INDEX('C_CAPEX Build Up'!T$15:T$189,MATCH($B87,'C_CAPEX Build Up'!$B$15:$B$189,0)),0) -> 21.83100277 | F87: =IFERROR(INDEX('C_CAPEX Build Up'!U$15:U$189,MATCH($B87,'C_CAPEX Build Up'!$B$15:$B$189,0)),0) -> 22.4585695 | G87: =IFERROR(INDEX('C_CAPEX Build Up'!V$15:V$189,MATCH($B87,'C_CAPEX Build Up'!$B$15:$B$189,0)),0) -> 23.10417662 | H87: =IFERROR(INDEX('C_CAPEX Build Up'!W$15:W$189,MATCH($B87,'C_CAPEX Build Up'!$B$15:$B$189,0)),0) -> 23.76834274 | J87: Bracket | K87: Major (Cat V) | L87: Legacy Bracket - Major (Cat V) road - Medium | M87: =INDEX(O87:Q87,,$M$3) -> 2270 | O87: =SUM('I_Asset number input'!K87:O87) -> 2270 | P87: 3656 | Q87: 10204.38221
B88: T5 | C88: Capital - Bracket | D88: =IFERROR(INDEX('C_CAPEX Build Up'!S$15:S$189,MATCH($B88,'C_CAPEX Build Up'!$B$15:$B$189,0)),0) -> 21.22097234 | E88: =IFERROR(INDEX('C_CAPEX Build Up'!T$15:T$189,MATCH($B88,'C_CAPEX Build Up'!$B$15:$B$189,0)),0) -> 21.83100277 | F88: =IFERROR(INDEX('C_CAPEX Build Up'!U$15:U$189,MATCH($B88,'C_CAPEX Build Up'!$B$15:$B$189,0)),0) -> 22.4585695 | G88: =IFERROR(INDEX('C_CAPEX Build Up'!V$15:V$189,MATCH($B88,'C_CAPEX Build Up'!$B$15:$B$189,0)),0) -> 23.10417662 | H88: =IFERROR(INDEX('C_CAPEX Build Up'!W$15:W$189,MATCH($B88,'C_CAPEX Build Up'!$B$15:$B$189,0)),0) -> 23.76834274 | J88: Bracket | K88: Major (Cat V) | L88: Legacy Bracket - Major (Cat V) road - Medium | M88: =INDEX(O88:Q88,,$M$3) -> 395 | O88: =SUM('I_Asset number input'!K88:O88) -> 395 | P88: 624 | Q88: 1775.652411
B89: T6 | C89: Capital - Bracket | D89: =IFERROR(INDEX('C_CAPEX Build Up'!S$15:S$189,MATCH($B89,'C_CAPEX Build Up'!$B$15:$B$189,0)),0) -> 21.22097234 | E89: =IFERROR(INDEX('C_CAPEX Build Up'!T$15:T$189,MATCH($B89,'C_CAPEX Build Up'!$B$15:$B$189,0)),0) -> 21.83100277 | F89: =IFERROR(INDEX('C_CAPEX Build Up'!U$15:U$189,MATCH($B89,'C_CAPEX Build Up'!$B$15:$B$189,0)),0) -> 22.4585695 | G89: =IFERROR(INDEX('C_CAPEX Build Up'!V$15:V$189,MATCH($B89,'C_CAPEX Build Up'!$B$15:$B$189,0)),0) -> 23.10417662 | H89: =IFERROR(INDEX('C_CAPEX Build Up'!W$15:W$189,MATCH($B89,'C_CAPEX Build Up'!$B$15:$B$189,0)),0) -> 23.76834274 | J89: Bracket | K89: Major (Cat V) | L89: Legacy Bracket - Major (Cat V) road - Medium | M89: =INDEX(O89:Q89,,$M$3) -> 2525 | O89: =SUM('I_Asset number input'!K89:O89) -> 2525 | P89: 3896 | Q89: 11350.68946
B90: T7 | C90: Capital - Bracket | D90: =IFERROR(INDEX('C_CAPEX Build Up'!S$15:S$189,MATCH($B90,'C_CAPEX Build Up'!$B$15:$B$189,0)),0) -> 31.41667443 | E90: =IFERROR(INDEX('C_CAPEX Build Up'!T$15:T$189,MATCH($B90,'C_CAPEX Build Up'!$B$15:$B$189,0)),0) -> 32.31979645 | F90: =IFERROR(INDEX('C_CAPEX Build Up'!U$15:U$189,MATCH($B90,'C_CAPEX Build Up'!$B$15:$B$189,0)),0) -> 33.24888015 | G90: =IFERROR(INDEX('C_CAPEX Build Up'!V$15:V$189,MATCH($B90,'C_CAPEX Build Up'!$B$15:$B$189,0)),0) -> 34.20467183 | H90: =IFERROR(INDEX('C_CAPEX Build Up'!W$15:W$189,MATCH($B90,'C_CAPEX Build Up'!$B$15:$B$189,0)),0) -> 35.18793926 | J90: Bracket | K90: Major (Cat V) | L90: Legacy Bracket - Major (Cat V) road - Long | M90: =INDEX(O90:Q90,,$M$3) -> 1380 | O90: =SUM('I_Asset number input'!K90:O90) -> 1380 | P90: 2104 | Q90: 9184.063509
B91: Bracket - Minor Road (Cat P) - Short | C91: Capital - Bracket | D91: =IFERROR(INDEX('C_CAPEX Build Up'!S$15:S$189,MATCH($B91,'C_CAPEX Build Up'!$B$15:$B$189,0)),0) -> 9.862438558 | E91: =IFERROR(INDEX('C_CAPEX Build Up'!T$15:T$189,MATCH($B91,'C_CAPEX Build Up'!$B$15:$B$189,0)),0) -> 10.14594996 | F91: =IFERROR(INDEX('C_CAPEX Build Up'!U$15:U$189,MATCH($B91,'C_CAPEX Build Up'!$B$15:$B$189,0)),0) -> 10.43761135 | G91: =IFERROR(INDEX('C_CAPEX Build Up'!V$15:V$189,MATCH($B91,'C_CAPEX Build Up'!$B$15:$B$189,0)),0) -> 10.73765701 | H91: =IFERROR(INDEX('C_CAPEX Build Up'!W$15:W$189,MATCH($B91,'C_CAPEX Build Up'!$B$15:$B$189,0)),0) -> 11.04632795 | J91: Bracket | K91: Minor (Cat P) | L91: Bracket - Minor Road (Cat P) - Short | M91: =INDEX(O91:Q91,,$M$3) -> 10333.2 | O91: =SUM('I_Asset number input'!K91:O91) -> 10333.2 | Q91: 21588.11517
B92: Bracket - Minor Road (Cat P) - Medium | C92: Capital - Bracket | D92: =IFERROR(INDEX('C_CAPEX Build Up'!S$15:S$189,MATCH($B92,'C_CAPEX Build Up'!$B$15:$B$189,0)),0) -> 15.6593169 | E92: =IFERROR(INDEX('C_CAPEX Build Up'!T$15:T$189,MATCH($B92,'C_CAPEX Build Up'!$B$15:$B$189,0)),0) -> 16.10946874 | F92: =IFERROR(INDEX('C_CAPEX Build Up'!U$15:U$189,MATCH($B92,'C_CAPEX Build Up'!$B$15:$B$189,0)),0) -> 16.57256092 | G92: =IFERROR(INDEX('C_CAPEX Build Up'!V$15:V$189,MATCH($B92,'C_CAPEX Build Up'!$B$15:$B$189,0)),0) -> 17.04896541 | H92: =IFERROR(INDEX('C_CAPEX Build Up'!W$15:W$189,MATCH($B92,'C_CAPEX Build Up'!$B$15:$B$189,0)),0) -> 17.5390649 | J92: Bracket | K92: Minor (Cat P) | L92: Bracket - Minor Road (Cat P) - Medium | M92: =INDEX(O92:Q92,,$M$3) -> 0 | O92: =SUM('I_Asset number input'!K92:O92) -> 0 | Q92: 0
B93: Bracket - Major Road (Cat V) - Short | C93: Capital - Bracket | D93: =IFERROR(INDEX('C_CAPEX Build Up'!S$15:S$189,MATCH($B93,'C_CAPEX Build Up'!$B$15:$B$189,0)),0) -> 11.33960541 | E93: =IFERROR(INDEX('C_CAPEX Build Up'!T$15:T$189,MATCH($B93,'C_CAPEX Build Up'!$B$15:$B$189,0)),0) -> 11.66558032 | F93: =IFERROR(INDEX('C_CAPEX Build Up'!U$15:U$189,MATCH($B93,'C_CAPEX Build Up'!$B$15:$B$189,0)),0) -> 12.00092588 | G93: =IFERROR(INDEX('C_CAPEX Build Up'!V$15:V$189,MATCH($B93,'C_CAPEX Build Up'!$B$15:$B$189,0)),0) -> 12.34591149 | H93: =IFERROR(INDEX('C_CAPEX Build Up'!W$15:W$189,MATCH($B93,'C_CAPEX Build Up'!$B$15:$B$189,0)),0) -> 12.70081426 | J93: Bracket | K93: Major (Cat V) | L93: Bracket - Major Road (Cat V) - Short | M93: =INDEX(O93:Q93,,$M$3) -> 2583.3 | O93: =SUM('I_Asset number input'!K93:O93) -> 2583.3 | Q93: 6205.37979
B94: Bracket - Major Road (Cat V) - Medium | C94: Capital - Bracket | D94: =IFERROR(INDEX('C_CAPEX Build Up'!S$15:S$189,MATCH($B94,'C_CAPEX Build Up'!$B$15:$B$189,0)),0) -> 21.73724548 | E94: =IFERROR(INDEX('C_CAPEX Build Up'!T$15:T$189,MATCH($B94,'C_CAPEX Build Up'!$B$15:$B$189,0)),0) -> 22.36211701 | F94: =IFERROR(INDEX('C_CAPEX Build Up'!U$15:U$189,MATCH($B94,'C_CAPEX Build Up'!$B$15:$B$189,0)),0) -> 23.00495145 | G94: =IFERROR(INDEX('C_CAPEX Build Up'!V$15:V$189,MATCH($B94,'C_CAPEX Build Up'!$B$15:$B$189,0)),0) -> 23.66626519 | H94: =IFERROR(INDEX('C_CAPEX Build Up'!W$15:W$189,MATCH($B94,'C_CAPEX Build Up'!$B$15:$B$189,0)),0) -> 24.34658944 | J94: Bracket | K94: Major (Cat V) | L94: Bracket - Major Road (Cat V) - Medium | M94: =INDEX(O94:Q94,,$M$3) -> 0 | O94: =SUM('I_Asset number input'!K94:O94) -> 0 | Q94: 0
B95: Bracket - Major Road (Cat V) - Long | C95: Capital - Bracket | D95: =IFERROR(INDEX('C_CAPEX Build Up'!S$15:S$189,MATCH($B95,'C_CAPEX Build Up'!$B$15:$B$189,0)),0) -> 27.45079694 | E95: =IFERROR(INDEX('C_CAPEX Build Up'!T$15:T$189,MATCH($B95,'C_CAPEX Build Up'!$B$15:$B$189,0)),0) -> 28.23991354 | F95: =IFERROR(INDEX('C_CAPEX Build Up'!U$15:U$189,MATCH($B95,'C_CAPEX Build Up'!$B$15:$B$189,0)),0) -> 29.05171455 | G95: =IFERROR(INDEX('C_CAPEX Build Up'!V$15:V$189,MATCH($B95,'C_CAPEX Build Up'!$B$15:$B$189,0)),0) -> 29.88685206 | H95: =IFERROR(INDEX('C_CAPEX Build Up'!W$15:W$189,MATCH($B95,'C_CAPEX Build Up'!$B$15:$B$189,0)),0) -> 30.74599692 | J95: Bracket | K95: Major (Cat V) | L95: Bracket - Major Road (Cat V) - Long | M95: =INDEX(O95:Q95,,$M$3) -> 0 | O95: =SUM('I_Asset number input'!K95:O95) -> 0 | Q95: 0
B96: 1000W SON | C96: Capital - Traditional Luminaire | D96: =IFERROR(INDEX('C_CAPEX Build Up'!S$15:S$189,MATCH($B96,'C_CAPEX Build Up'!$B$15:$B$189,0)),0) -> 102.9907998 | E96: =IFERROR(INDEX('C_CAPEX Build Up'!T$15:T$189,MATCH($B96,'C_CAPEX Build Up'!$B$15:$B$189,0)),0) -> 105.9514334 | F96: =IFERROR(INDEX('C_CAPEX Build Up'!U$15:U$189,MATCH($B96,'C_CAPEX Build Up'!$B$15:$B$189,0)),0) -> 108.997175 | G96: =IFERROR(INDEX('C_CAPEX Build Up'!V$15:V$189,MATCH($B96,'C_CAPEX Build Up'!$B$15:$B$189,0)),0) -> 112.1304713 | H96: =IFERROR(INDEX('C_CAPEX Build Up'!W$15:W$189,MATCH($B96,'C_CAPEX Build Up'!$B$15:$B$189,0)),0) -> 115.3538392 | J96: Traditional | K96: Major (Cat V) | L96: Legacy Luminaire - 1000W SON | M96: =INDEX(O96:Q96,,$M$3) -> 32.5 | O96: =SUM('I_Asset number input'!K96:O96) -> 32.5 | P96: 64 | Q96: 709.0508343
B97: 1000W SON FLOODLIGHT | C97: Capital - Traditional Luminaire | D97: =IFERROR(INDEX('C_CAPEX Build Up'!S$15:S$189,MATCH($B97,'C_CAPEX Build Up'!$B$15:$B$189,0)),0) -> 83.2677007 | E97: =IFERROR(INDEX('C_CAPEX Build Up'!T$15:T$189,MATCH($B97,'C_CAPEX Build Up'!$B$15:$B$189,0)),0) -> 85.66136254 | F97: =IFERROR(INDEX('C_CAPEX Build Up'!U$15:U$189,MATCH($B97,'C_CAPEX Build Up'!$B$15:$B$189,0)),0) -> 88.12383397 | G97: =IFERROR(INDEX('C_CAPEX Build Up'!V$15:V$189,MATCH($B97,'C_CAPEX Build Up'!$B$15:$B$189,0)),0) -> 90.65709305 | H97: =IFERROR(INDEX('C_CAPEX Build Up'!W$15:W$189,MATCH($B97,'C_CAPEX Build Up'!$B$15:$B$189,0)),0) -> 93.26317466 | J97: Traditional | K97: Major (Cat V) | L97: Legacy Luminaire - 1000W SON FLOODLIGHT | M97: =INDEX(O97:Q97,,$M$3) -> 7.5 | O97: =SUM('I_Asset number input'!K97:O97) -> 7.5 | P97: 24 | Q97: 132.2919495
B98: 1000W/1500W MBI FLOODLIG | C98: Capital - Traditional Luminaire | D98: =IFERROR(INDEX('C_CAPEX Build Up'!S$15:S$189,MATCH($B98,'C_CAPEX Build Up'!$B$15:$B$189,0)),0) -> 114.7385017 | E98: =IFERROR(INDEX('C_CAPEX Build Up'!T$15:T$189,MATCH($B98,'C_CAPEX Build Up'!$B$15:$B$189,0)),0) -> 118.0368416 | F98: =IFERROR(INDEX('C_CAPEX Build Up'!U$15:U$189,MATCH($B98,'C_CAPEX Build Up'!$B$15:$B$189,0)),0) -> 121.4299974 | G98: =IFERROR(INDEX('C_CAPEX Build Up'!V$15:V$189,MATCH($B98,'C_CAPEX Build Up'!$B$15:$B$189,0)),0) -> 124.9206948 | H98: =IFERROR(INDEX('C_CAPEX Build Up'!W$15:W$189,MATCH($B98,'C_CAPEX Build Up'!$B$15:$B$189,0)),0) -> 128.5117379 | J98: Traditional | K98: Major (Cat V) | L98: Legacy Luminaire - 1000W/1500W MBI FLOODLIG | M98: =INDEX(O98:Q98,,$M$3) -> 12.5 | O98: =SUM('I_Asset number input'!K98:O98) -> 12.5 | P98: 40 | Q98: 303.8188867
B99: 100W MBI | C99: Capital - Traditional Luminaire | D99: =IFERROR(INDEX('C_CAPEX Build Up'!S$15:S$189,MATCH($B99,'C_CAPEX Build Up'!$B$15:$B$189,0)),0) -> 35.23873309 | E99: =IFERROR(INDEX('C_CAPEX Build Up'!T$15:T$189,MATCH($B99,'C_CAPEX Build Up'!$B$15:$B$189,0)),0) -> 36.25172624 | F99: =IFERROR(INDEX('C_CAPEX Build Up'!U$15:U$189,MATCH($B99,'C_CAPEX Build Up'!$B$15:$B$189,0)),0) -> 37.29383948 | G99: =IFERROR(INDEX('C_CAPEX Build Up'!V$15:V$189,MATCH($B99,'C_CAPEX Build Up'!$B$15:$B$189,0)),0) -> 38.36590992 | H99: =IFERROR(INDEX('C_CAPEX Build Up'!W$15:W$189,MATCH($B99,'C_CAPEX Build Up'!$B$15:$B$189,0)),0) -> 39.46879872 | J99: Traditional | K99: Major (Cat V) | L99: Legacy Luminaire - 100W MBI | M99: =INDEX(O99:Q99,,$M$3) -> 0 | O99: =SUM('I_Asset number input'!K99:O99) -> 0 | P99: 80 | Q99: 0
B100: 100W MBI FLOODLIGHT | C100: Capital - Traditional Luminaire | D100: =IFERROR(INDEX('C_CAPEX Build Up'!S$15:S$189,MATCH($B100,'C_CAPEX Build Up'!$B$15:$B$189,0)),0) -> 38.632643 | E100: =IFERROR(INDEX('C_CAPEX Build Up'!T$15:T$189,MATCH($B100,'C_CAPEX Build Up'!$B$15:$B$189,0)),0) -> 39.74319947 | F100: =IFERROR(INDEX('C_CAPEX Build Up'!U$15:U$189,MATCH($B100,'C_CAPEX Build Up'!$B$15:$B$189,0)),0) -> 40.88568063 | G100: =IFERROR(INDEX('C_CAPEX Build Up'!V$15:V$189,MATCH($B100,'C_CAPEX Build Up'!$B$15:$B$189,0)),0) -> 42.06100423 | H100: =IFERROR(INDEX('C_CAPEX Build Up'!W$15:W$189,MATCH($B100,'C_CAPEX Build Up'!$B$15:$B$189,0)),0) -> 43.27011436 | J100: Traditional | K100: Major (Cat V) | L100: Legacy Luminaire - 100W MBI FLOODLIGHT | M100: =INDEX(O100:Q100,,$M$3) -> 7.5 | O100: =SUM('I_Asset number input'!K100:O100) -> 7.5 | P100: 32 | Q100: 61.37779251
B101: 100W SON | C101: Capital - Traditional Luminaire | D101: =IFERROR(INDEX('C_CAPEX Build Up'!S$15:S$189,MATCH($B101,'C_CAPEX Build Up'!$B$15:$B$189,0)),0) -> 37.8874964 | E101: =IFERROR(INDEX('C_CAPEX Build Up'!T$15:T$189,MATCH($B101,'C_CAPEX Build Up'!$B$15:$B$189,0)),0) -> 38.97663245 | F101: =IFERROR(INDEX('C_CAPEX Build Up'!U$15:U$189,MATCH($B101,'C_CAPEX Build Up'!$B$15:$B$189,0)),0) -> 40.09707743 | G101: =IFERROR(INDEX('C_CAPEX Build Up'!V$15:V$189,MATCH($B101,'C_CAPEX Build Up'!$B$15:$B$189,0)),0) -> 41.24973138 | H101: =IFERROR(INDEX('C_CAPEX Build Up'!W$15:W$189,MATCH($B101,'C_CAPEX Build Up'!$B$15:$B$189,0)),0) -> 42.43552019 | J101: Traditional | K101: Major (Cat V) | L101: Legacy Luminaire - 100W SON | M101: =INDEX(O101:Q101,,$M$3) -> 223.3333333 | O101: =SUM('I_Asset number input'!K101:O101) -> 223.3333333 | P101: 3040 | Q101: 1792.44169
B102: 100W SON - PLAIN | C102: Capital - Traditional Luminaire | D102: =IFERROR(INDEX('C_CAPEX Build Up'!S$15:S$189,MATCH($B102,'C_CAPEX Build Up'!$B$15:$B$189,0)),0) -> 37.8874964 | E102: =IFERROR(INDEX('C_CAPEX Build Up'!T$15:T$189,MATCH($B102,'C_CAPEX Build Up'!$B$15:$B$189,0)),0) -> 38.97663245 | F102: =IFERROR(INDEX('C_CAPEX Build Up'!U$15:U$189,MATCH($B102,'C_CAPEX Build Up'!$B$15:$B$189,0)),0) -> 40.09707743 | G102: =IFERROR(INDEX('C_CAPEX Build Up'!V$15:V$189,MATCH($B102,'C_CAPEX Build Up'!$B$15:$B$189,0)),0) -> 41.24973138 | H102: =IFERROR(INDEX('C_CAPEX Build Up'!W$15:W$189,MATCH($B102,'C_CAPEX Build Up'!$B$15:$B$189,0)),0) -> 42.43552019 | J102: Traditional | K102: Major (Cat V) | L102: Legacy Luminaire - 100W SON - PLAIN | M102: =INDEX(O102:Q102,,$M$3) -> 84.66666667 | O102: =SUM('I_Asset number input'!K102:O102) -> 84.66666667 | P102: 1016 | Q102: 679.5226706
B103: 100W SON FLOODLIGHT | C103: Capital - Traditional Luminaire | D103: =IFERROR(INDEX('C_CAPEX Build Up'!S$15:S$189,MATCH($B103,'C_CAPEX Build Up'!$B$15:$B$189,0)),0) -> 58.27618222 | E103: =IFERROR(INDEX('C_CAPEX Build Up'!T$15:T$189,MATCH($B103,'C_CAPEX Build Up'!$B$15:$B$189,0)),0) -> 59.95142331 | F103: =IFERROR(INDEX('C_CAPEX Build Up'!U$15:U$189,MATCH($B103,'C_CAPEX Build Up'!$B$15:$B$189,0)),0) -> 61.67482185 | G103: =IFERROR(INDEX('C_CAPEX Build Up'!V$15:V$189,MATCH($B103,'C_CAPEX Build Up'!$B$15:$B$189,0)),0) -> 63.44776221 | H103: =IFERROR(INDEX('C_CAPEX Build Up'!W$15:W$189,MATCH($B103,'C_CAPEX Build Up'!$B$15:$B$189,0)),0) -> 65.27166855 | J103: Traditional | K103: Major (Cat V) | L103: Legacy Luminaire - 100W SON FLOODLIGHT | M103: =INDEX(O103:Q103,,$M$3) -> 5 | O103: =SUM('I_Asset number input'!K103:O103) -> 5 | P103: 16 | Q103: 61.72437163
B104: 125W MBF | C104: Capital - Traditional Luminaire | D104: =IFERROR(INDEX('C_CAPEX Build Up'!S$15:S$189,MATCH($B104,'C_CAPEX Build Up'!$B$15:$B$189,0)),0) -> 26.34160503 | E104: =IFERROR(INDEX('C_CAPEX Build Up'!T$15:T$189,MATCH($B104,'C_CAPEX Build Up'!$B$15:$B$189,0)),0) -> 27.09883616 | F104: =IFERROR(INDEX('C_CAPEX Build Up'!U$15:U$189,MATCH($B104,'C_CAPEX Build Up'!$B$15:$B$189,0)),0) -> 27.87783509 | G104: =IFERROR(INDEX('C_CAPEX Build Up'!V$15:V$189,MATCH($B104,'C_CAPEX Build Up'!$B$15:$B$189,0)),0) -> 28.67922758 | H104: =IFERROR(INDEX('C_CAPEX Build Up'!W$15:W$189,MATCH($B104,'C_CAPEX Build Up'!$B$15:$B$189,0)),0) -> 29.50365736 | J104: Traditional | K104: Minor (Cat P) | L104: Legacy Luminaire - 125W MBF | M104: =INDEX(O104:Q104,,$M$3) -> 0 | O104: =SUM('I_Asset number input'!K104:O104) -> 0 | P104: 1896 | Q104: 0
B105: 125W MBF - BOURKE HILL | C105: Capital - Traditional Luminaire | D105: =IFERROR(INDEX('C_CAPEX Build Up'!S$15:S$189,MATCH($B105,'C_CAPEX Build Up'!$B$15:$B$189,0)),0) -> 81.41647711 | E105: =IFERROR(INDEX('C_CAPEX Build Up'!T$15:T$189,MATCH($B105,'C_CAPEX Build Up'!$B$15:$B$189,0)),0) -> 83.75692259 | F105: =IFERROR(INDEX('C_CAPEX Build Up'!U$15:U$189,MATCH($B105,'C_CAPEX Build Up'!$B$15:$B$189,0)),0) -> 86.16464789 | G105: =IFERROR(INDEX('C_CAPEX Build Up'!V$15:V$189,MATCH($B105,'C_CAPEX Build Up'!$B$15:$B$189,0)),0) -> 88.64158706 | H105: =IFERROR(INDEX('C_CAPEX Build Up'!W$15:W$189,MATCH($B105,'C_CAPEX Build Up'!$B$15:$B$189,0)),0) -> 91.18972976 | J105: Traditional | K105: Minor (Cat P) | L105: Legacy Luminaire - 125W MBF - BOURKE HILL | M105: =INDEX(O105:Q105,,$M$3) -> 72.5 | O105: =SUM('I_Asset number input'!K105:O105) -> 72.5 | P105: 16 | Q105: 1250.391157
B106: 125W MBF - PARKVILLE | C106: Capital - Traditional Luminaire | D106: =IFERROR(INDEX('C_CAPEX Build Up'!S$15:S$189,MATCH($B106,'C_CAPEX Build Up'!$B$15:$B$189,0)),0) -> 102.5056784 | E106: =IFERROR(INDEX('C_CAPEX Build Up'!T$15:T$189,MATCH($B106,'C_CAPEX Build Up'!$B$15:$B$189,0)),0) -> 105.4523663 | F106: =IFERROR(INDEX('C_CAPEX Build Up'!U$15:U$189,MATCH($B106,'C_CAPEX Build Up'!$B$15:$B$189,0)),0) -> 108.4837615 | G106: =IFERROR(INDEX('C_CAPEX Build Up'!V$15:V$189,MATCH($B106,'C_CAPEX Build Up'!$B$15:$B$189,0)),0) -> 111.6022989 | H106: =IFERROR(INDEX('C_CAPEX Build Up'!W$15:W$189,MATCH($B106,'C_CAPEX Build Up'!$B$15:$B$189,0)),0) -> 114.8104836 | J106: Traditional | K106: Minor (Cat P) | L106: Legacy Luminaire - 125W MBF - PARKVILLE | M106: =INDEX(O106:Q106,,$M$3) -> 20 | O106: =SUM('I_Asset number input'!K106:O106) -> 20 | P106: 32 | Q106: 434.2836709
B107: 125W MBF - PLAIN | C107: Capital - Traditional Luminaire | D107: =IFERROR(INDEX('C_CAPEX Build Up'!S$15:S$189,MATCH($B107,'C_CAPEX Build Up'!$B$15:$B$189,0)),0) -> 26.34160503 | E107: =IFERROR(INDEX('C_CAPEX Build Up'!T$15:T$189,MATCH($B107,'C_CAPEX Build Up'!$B$15:$B$189,0)),0) -> 27.09883616 | F107: =IFERROR(INDEX('C_CAPEX Build Up'!U$15:U$189,MATCH($B107,'C_CAPEX Build Up'!$B$15:$B$189,0)),0) -> 27.87783509 | G107: =IFERROR(INDEX('C_CAPEX Build Up'!V$15:V$189,MATCH($B107,'C_CAPEX Build Up'!$B$15:$B$189,0)),0) -> 28.67922758 | H107: =IFERROR(INDEX('C_CAPEX Build Up'!W$15:W$189,MATCH($B107,'C_CAPEX Build Up'!$B$15:$B$189,0)),0) -> 29.50365736 | J107: Traditional | K107: Minor (Cat P) | L107: Legacy Luminaire - 125W MBF - PLAIN | M107: =INDEX(O107:Q107,,$M$3) -> 915 | O107: =SUM('I_Asset number input'!K107:O107) -> 915 | P107: 1528 | Q107: 5105.742501
B108: 125W/250W MBF FLOODLIGHT | C108: Capital - Traditional Luminaire | D108: =IFERROR(INDEX('C_CAPEX Build Up'!S$15:S$189,MATCH($B108,'C_CAPEX Build Up'!$B$15:$B$189,0)),0) -> 36.36489411 | E108: =IFERROR(INDEX('C_CAPEX Build Up'!T$15:T$189,MATCH($B108,'C_CAPEX Build Up'!$B$15:$B$189,0)),0) -> 37.41026054 | F108: =IFERROR(INDEX('C_CAPEX Build Up'!U$15:U$189,MATCH($B108,'C_CAPEX Build Up'!$B$15:$B$189,0)),0) -> 38.48567768 | G108: =IFERROR(INDEX('C_CAPEX Build Up'!V$15:V$189,MATCH($B108,'C_CAPEX Build Up'!$B$15:$B$189,0)),0) -> 39.5920094 | H108: =IFERROR(INDEX('C_CAPEX Build Up'!W$15:W$189,MATCH($B108,'C_CAPEX Build Up'!$B$15:$B$189,0)),0) -> 40.73014436 | J108: Traditional | K108: Minor (Cat P) | L108: Legacy Luminaire - 125W/250W MBF FLOODLIGHT | M108: =INDEX(O108:Q108,,$M$3) -> 25 | O108: =SUM('I_Asset number input'!K108:O108) -> 25 | P108: 72 | Q108: 192.5829861
B109: 150W SON | C109: Capital - Traditional Luminaire | D109: =IFERROR(INDEX('C_CAPEX Build Up'!S$15:S$189,MATCH($B109,'C_CAPEX Build Up'!$B$15:$B$189,0)),0) -> 38.27559359 | E109: =IFERROR(INDEX('C_CAPEX Build Up'!T$15:T$189,MATCH($B109,'C_CAPEX Build Up'!$B$15:$B$189,0)),0) -> 39.3758861 | F109: =IFERROR(INDEX('C_CAPEX Build Up'!U$15:U$189,MATCH($B109,'C_CAPEX Build Up'!$B$15:$B$189,0)),0) -> 40.50780827 | G109: =IFERROR(INDEX('C_CAPEX Build Up'!V$15:V$189,MATCH($B109,'C_CAPEX Build Up'!$B$15:$B$189,0)),0) -> 41.67226932 | H109: =IFERROR(INDEX('C_CAPEX Build Up'!W$15:W$189,MATCH($B109,'C_CAPEX Build Up'!$B$15:$B$189,0)),0) -> 42.87020466 | J109: Traditional | K109: Major (Cat V) | L109: Legacy Luminaire - 150W SON | M109: =INDEX(O109:Q109,,$M$3) -> 5170 | O109: =SUM('I_Asset number input'!K109:O109) -> 5170 | P109: 60400 | Q109: 41918.72437
B110: 150W SON - PARKVILLE | C110: Capital - Traditional Luminaire | D110: =IFERROR(INDEX('C_CAPEX Build Up'!S$15:S$189,MATCH($B110,'C_CAPEX Build Up'!$B$15:$B$189,0)),0) -> 112.6815866 | E110: =IFERROR(INDEX('C_CAPEX Build Up'!T$15:T$189,MATCH($B110,'C_CAPEX Build Up'!$B$15:$B$189,0)),0) -> 115.9207972 | F110: =IFERROR(INDEX('C_CAPEX Build Up'!U$15:U$189,MATCH($B110,'C_CAPEX Build Up'!$B$15:$B$189,0)),0) -> 119.253124 | G110: =IFERROR(INDEX('C_CAPEX Build Up'!V$15:V$189,MATCH($B110,'C_CAPEX Build Up'!$B$15:$B$189,0)),0) -> 122.6812437 | H110: =IFERROR(INDEX('C_CAPEX Build Up'!W$15:W$189,MATCH($B110,'C_CAPEX Build Up'!$B$15:$B$189,0)),0) -> 126.2079102 | J110: Traditional | K110: Major (Cat V) | L110: Legacy Luminaire - 150W SON - PARKVILLE | M110: =INDEX(O110:Q110,,$M$3) -> 75 | O110: =SUM('I_Asset number input'!K110:O110) -> 75 | P110: 112 | Q110: 1790.233985
B111: 150W SON - PARKWAY 1 | C111: Capital - Traditional Luminaire | D111: =IFERROR(INDEX('C_CAPEX Build Up'!S$15:S$189,MATCH($B111,'C_CAPEX Build Up'!$B$15:$B$189,0)),0) -> 46.71670745 | E111: =IFERROR(INDEX('C_CAPEX Build Up'!T$15:T$189,MATCH($B111,'C_CAPEX Build Up'!$B$15:$B$189,0)),0) -> 48.05965314 | F111: =IFERROR(INDEX('C_CAPEX Build Up'!U$15:U$189,MATCH($B111,'C_CAPEX Build Up'!$B$15:$B$189,0)),0) -> 49.44120393 | G111: =IFERROR(INDEX('C_CAPEX Build Up'!V$15:V$189,MATCH($B111,'C_CAPEX Build Up'!$B$15:$B$189,0)),0) -> 50.86246958 | H111: =IFERROR(INDEX('C_CAPEX Build Up'!W$15:W$189,MATCH($B111,'C_CAPEX Build Up'!$B$15:$B$189,0)),0) -> 52.32459177 | J111: Traditional | K111: Major (Cat V) | L111: Legacy Luminaire - 150W SON - PARKWAY 1 | M111: =INDEX(O111:Q111,,$M$3) -> 37.33333333 | O111: =SUM('I_Asset number input'!K111:O111) -> 37.33333333 | P111: 424 | Q111: 369.4575746
B112: 150W SON ACTIVE REACTOR | C112: Capital - Traditional Luminaire | D112: =IFERROR(INDEX('C_CAPEX Build Up'!S$15:S$189,MATCH($B112,'C_CAPEX Build Up'!$B$15:$B$189,0)),0) -> 58.8447446 | E112: =IFERROR(INDEX('C_CAPEX Build Up'!T$15:T$189,MATCH($B112,'C_CAPEX Build Up'!$B$15:$B$189,0)),0) -> 60.53632991 | F112: =IFERROR(INDEX('C_CAPEX Build Up'!U$15:U$189,MATCH($B112,'C_CAPEX Build Up'!$B$15:$B$189,0)),0) -> 62.27654252 | G112: =IFERROR(INDEX('C_CAPEX Build Up'!V$15:V$189,MATCH($B112,'C_CAPEX Build Up'!$B$15:$B$189,0)),0) -> 64.0667803 | H112: =IFERROR(INDEX('C_CAPEX Build Up'!W$15:W$189,MATCH($B112,'C_CAPEX Build Up'!$B$15:$B$189,0)),0) -> 65.90848129 | J112: Traditional | K112: Major (Cat V) | L112: Legacy Luminaire - 150W SON ACTIVE REACTOR | M112: =INDEX(O112:Q112,,$M$3) -> 1924.666667 | O112: =SUM('I_Asset number input'!K112:O112) -> 1924.666667 | P112: 21016 | Q112: 23991.57655
B113: 150W SON FLOODLIGHT | C113: Capital - Traditional Luminaire | D113: =IFERROR(INDEX('C_CAPEX Build Up'!S$15:S$189,MATCH($B113,'C_CAPEX Build Up'!$B$15:$B$189,0)),0) -> 45.74646448 | E113: =IFERROR(INDEX('C_CAPEX Build Up'!T$15:T$189,MATCH($B113,'C_CAPEX Build Up'!$B$15:$B$189,0)),0) -> 47.061519 | F113: =IFERROR(INDEX('C_CAPEX Build Up'!U$15:U$189,MATCH($B113,'C_CAPEX Build Up'!$B$15:$B$189,0)),0) -> 48.41437684 | G113: =IFERROR(INDEX('C_CAPEX Build Up'!V$15:V$189,MATCH($B113,'C_CAPEX Build Up'!$B$15:$B$189,0)),0) -> 49.80612472 | H113: =IFERROR(INDEX('C_CAPEX Build Up'!W$15:W$189,MATCH($B113,'C_CAPEX Build Up'!$B$15:$B$189,0)),0) -> 51.2378806 | J113: Traditional | K113: Major (Cat V) | L113: Legacy Luminaire - 150W SON FLOODLIGHT | M113: =INDEX(O113:Q113,,$M$3) -> 625 | O113: =SUM('I_Asset number input'!K113:O113) -> 625 | P113: 1488 | Q113: 6056.659141
B114: 150W/250W MBI FLOODLIGHT | C114: Capital - Traditional Luminaire | D114: =IFERROR(INDEX('C_CAPEX Build Up'!S$15:S$189,MATCH($B114,'C_CAPEX Build Up'!$B$15:$B$189,0)),0) -> 73.1888167 | E114: =IFERROR(INDEX('C_CAPEX Build Up'!T$15:T$189,MATCH($B114,'C_CAPEX Build Up'!$B$15:$B$189,0)),0) -> 75.29274507 | F114: =IFERROR(INDEX('C_CAPEX Build Up'!U$15:U$189,MATCH($B114,'C_CAPEX Build Up'!$B$15:$B$189,0)),0) -> 77.45715419 | G114: =IFERROR(INDEX('C_CAPEX Build Up'!V$15:V$189,MATCH($B114,'C_CAPEX Build Up'!$B$15:$B$189,0)),0) -> 79.68378267 | H114: =IFERROR(INDEX('C_CAPEX Build Up'!W$15:W$189,MATCH($B114,'C_CAPEX Build Up'!$B$15:$B$189,0)),0) -> 81.97441911 | J114: Traditional | K114: Major (Cat V) | L114: Legacy Luminaire - 150W/250W MBI FLOODLIGHT | M114: =INDEX(O114:Q114,,$M$3) -> 100 | O114: =SUM('I_Asset number input'!K114:O114) -> 100 | P114: 288 | Q114: 1550.387671
B115: 250W MBF | C115: Capital - Traditional Luminaire | D115: =IFERROR(INDEX('C_CAPEX Build Up'!S$15:S$189,MATCH($B115,'C_CAPEX Build Up'!$B$15:$B$189,0)),0) -> 37.49939921 | E115: =IFERROR(INDEX('C_CAPEX Build Up'!T$15:T$189,MATCH($B115,'C_CAPEX Build Up'!$B$15:$B$189,0)),0) -> 38.57737879 | F115: =IFERROR(INDEX('C_CAPEX Build Up'!U$15:U$189,MATCH($B115,'C_CAPEX Build Up'!$B$15:$B$189,0)),0) -> 39.6863466 | G115: =IFERROR(INDEX('C_CAPEX Build Up'!V$15:V$189,MATCH($B115,'C_CAPEX Build Up'!$B$15:$B$189,0)),0) -> 40.82719344 | H115: =IFERROR(INDEX('C_CAPEX Build Up'!W$15:W$189,MATCH($B115,'C_CAPEX Build Up'!$B$15:$B$189,0)),0) -> 42.00083573 | J115: Traditional | K115: Major (Cat V) | L115: Legacy Luminaire - 250W MBF | M115: =INDEX(O115:Q115,,$M$3) -> 794 | O115: =SUM('I_Asset number input'!K115:O115) -> 794 | P115: 9040 | Q115: 6307.255043
B116: 250W MBF - PARKWAY 1 | C116: Capital - Traditional Luminaire | D116: =IFERROR(INDEX('C_CAPEX Build Up'!S$15:S$189,MATCH($B116,'C_CAPEX Build Up'!$B$15:$B$189,0)),0) -> 46.71670745 | E116: =IFERROR(INDEX('C_CAPEX Build Up'!T$15:T$189,MATCH($B116,'C_CAPEX Build Up'!$B$15:$B$189,0)),0) -> 48.05965314 | F116: =IFERROR(INDEX('C_CAPEX Build Up'!U$15:U$189,MATCH($B116,'C_CAPEX Build Up'!$B$15:$B$189,0)),0) -> 49.44120393 | G116: =IFERROR(INDEX('C_CAPEX Build Up'!V$15:V$189,MATCH($B116,'C_CAPEX Build Up'!$B$15:$B$189,0)),0) -> 50.86246958 | H116: =IFERROR(INDEX('C_CAPEX Build Up'!W$15:W$189,MATCH($B116,'C_CAPEX Build Up'!$B$15:$B$189,0)),0) -> 52.32459177 | J116: Traditional | K116: Major (Cat V) | L116: Legacy Luminaire - 250W MBF - PARKWAY 1 | M116: =INDEX(O116:Q116,,$M$3) -> 86 | O116: =SUM('I_Asset number input'!K116:O116) -> 86 | P116: 1032 | Q116: 851.071913
B117: 250W SON | C117: Capital - Traditional Luminaire | D117: =IFERROR(INDEX('C_CAPEX Build Up'!S$15:S$189,MATCH($B117,'C_CAPEX Build Up'!$B$15:$B$189,0)),0) -> 38.27559359 | E117: =IFERROR(INDEX('C_CAPEX Build Up'!T$15:T$189,MATCH($B117,'C_CAPEX Build Up'!$B$15:$B$189,0)),0) -> 39.3758861 | F117: =IFERROR(INDEX('C_CAPEX Build Up'!U$15:U$189,MATCH($B117,'C_CAPEX Build Up'!$B$15:$B$189,0)),0) -> 40.50780827 | G117: =IFERROR(INDEX('C_CAPEX Build Up'!V$15:V$189,MATCH($B117,'C_CAPEX Build Up'!$B$15:$B$189,0)),0) -> 41.67226932 | H117: =IFERROR(INDEX('C_CAPEX Build Up'!W$15:W$189,MATCH($B117,'C_CAPEX Build Up'!$B$15:$B$189,0)),0) -> 42.87020466 | J117: Traditional | K117: Major (Cat V) | L117: Legacy Luminaire - 250W SON | M117: =INDEX(O117:Q117,,$M$3) -> 5995.333333 | O117: =SUM('I_Asset number input'!K117:O117) -> 5995.333333 | P117: 62872 | Q117: 48610.5852
B118: 250W SON - PARKVILLE | C118: Capital - Traditional Luminaire | D118: =IFERROR(INDEX('C_CAPEX Build Up'!S$15:S$189,MATCH($B118,'C_CAPEX Build Up'!$B$15:$B$189,0)),0) -> 122.1433961 | E118: =IFERROR(INDEX('C_CAPEX Build Up'!T$15:T$189,MATCH($B118,'C_CAPEX Build Up'!$B$15:$B$189,0)),0) -> 125.6546013 | F118: =IFERROR(INDEX('C_CAPEX Build Up'!U$15:U$189,MATCH($B118,'C_CAPEX Build Up'!$B$15:$B$189,0)),0) -> 129.2667417 | G118: =IFERROR(INDEX('C_CAPEX Build Up'!V$15:V$189,MATCH($B118,'C_CAPEX Build Up'!$B$15:$B$189,0)),0) -> 132.9827188 | H118: =IFERROR(INDEX('C_CAPEX Build Up'!W$15:W$189,MATCH($B118,'C_CAPEX Build Up'!$B$15:$B$189,0)),0) -> 136.8055175 | J118: Traditional | K118: Major (Cat V) | L118: Legacy Luminaire - 250W SON - PARKVILLE | M118: =INDEX(O118:Q118,,$M$3) -> 55 | O118: =SUM('I_Asset number input'!K118:O118) -> 55 | P118: 48 | Q118: 1423.076546
B119: 250W SON - PARKWAY 1 | C119: Capital - Traditional Luminaire | D119: =IFERROR(INDEX('C_CAPEX Build Up'!S$15:S$189,MATCH($B119,'C_CAPEX Build Up'!$B$15:$B$189,0)),0) -> 46.71670745 | E119: =IFERROR(INDEX('C_CAPEX Build Up'!T$15:T$189,MATCH($B119,'C_CAPEX Build Up'!$B$15:$B$189,0)),0) -> 48.05965314 | F119: =IFERROR(INDEX('C_CAPEX Build Up'!U$15:U$189,MATCH($B119,'C_CAPEX Build Up'!$B$15:$B$189,0)),0) -> 49.44120393 | G119: =IFERROR(INDEX('C_CAPEX Build Up'!V$15:V$189,MATCH($B119,'C_CAPEX Build Up'!$B$15:$B$189,0)),0) -> 50.86246958 | H119: =IFERROR(INDEX('C_CAPEX Build Up'!W$15:W$189,MATCH($B119,'C_CAPEX Build Up'!$B$15:$B$189,0)),0) -> 52.32459177 | J119: Traditional | K119: Major (Cat V) | L119: Legacy Luminaire - 250W SON - PARKWAY 1 | M119: =INDEX(O119:Q119,,$M$3) -> 185 | O119: =SUM('I_Asset number input'!K119:O119) -> 185 | P119: 280 | Q119: 1830.794231
B120: 250W SON ACTIVE REACTOR | C120: Capital - Traditional Luminaire | D120: =IFERROR(INDEX('C_CAPEX Build Up'!S$15:S$189,MATCH($B120,'C_CAPEX Build Up'!$B$15:$B$189,0)),0) -> 58.8447446 | E120: =IFERROR(INDEX('C_CAPEX Build Up'!T$15:T$189,MATCH($B120,'C_CAPEX Build Up'!$B$15:$B$189,0)),0) -> 60.53632991 | F120: =IFERROR(INDEX('C_CAPEX Build Up'!U$15:U$189,MATCH($B120,'C_CAPEX Build Up'!$B$15:$B$189,0)),0) -> 62.27654252 | G120: =IFERROR(INDEX('C_CAPEX Build Up'!V$15:V$189,MATCH($B120,'C_CAPEX Build Up'!$B$15:$B$189,0)),0) -> 64.0667803 | H120: =IFERROR(INDEX('C_CAPEX Build Up'!W$15:W$189,MATCH($B120,'C_CAPEX Build Up'!$B$15:$B$189,0)),0) -> 65.90848129 | J120: Traditional | K120: Major (Cat V) | L120: Legacy Luminaire - 250W SON ACTIVE REACTOR | M120: =INDEX(O120:Q120,,$M$3) -> 2546 | O120: =SUM('I_Asset number input'!K120:O120) -> 2546 | P120: 25160 | Q120: 31736.69236
B121: 250W SON FLOODLIGHT | C121: Capital - Traditional Luminaire | D121: =IFERROR(INDEX('C_CAPEX Build Up'!S$15:S$189,MATCH($B121,'C_CAPEX Build Up'!$B$15:$B$189,0)),0) -> 45.74646448 | E121: =IFERROR(INDEX('C_CAPEX Build Up'!T$15:T$189,MATCH($B121,'C_CAPEX Build Up'!$B$15:$B$189,0)),0) -> 47.061519 | F121: =IFERROR(INDEX('C_CAPEX Build Up'!U$15:U$189,MATCH($B121,'C_CAPEX Build Up'!$B$15:$B$189,0)),0) -> 48.41437684 | G121: =IFERROR(INDEX('C_CAPEX Build Up'!V$15:V$189,MATCH($B121,'C_CAPEX Build Up'!$B$15:$B$189,0)),0) -> 49.80612472 | H121: =IFERROR(INDEX('C_CAPEX Build Up'!W$15:W$189,MATCH($B121,'C_CAPEX Build Up'!$B$15:$B$189,0)),0) -> 51.2378806 | J121: Traditional | K121: Major (Cat V) | L121: Legacy Luminaire - 250W SON FLOODLIGHT | M121: =INDEX(O121:Q121,,$M$3) -> 2652.5 | O121: =SUM('I_Asset number input'!K121:O121) -> 2652.5 | P121: 7184 | Q121: 25704.46139
B122: 250W SON GEC 'BOSTON 3' | C122: Capital - Traditional Luminaire | D122: =IFERROR(INDEX('C_CAPEX Build Up'!S$15:S$189,MATCH($B122,'C_CAPEX Build Up'!$B$15:$B$189,0)),0) -> 104.556772 | E122: =IFERROR(INDEX('C_CAPEX Build Up'!T$15:T$189,MATCH($B122,'C_CAPEX Build Up'!$B$15:$B$189,0)),0) -> 107.5624219 | F122: =IFERROR(INDEX('C_CAPEX Build Up'!U$15:U$189,MATCH($B122,'C_CAPEX Build Up'!$B$15:$B$189,0)),0) -> 110.6544739 | G122: =IFERROR(INDEX('C_CAPEX Build Up'!V$15:V$189,MATCH($B122,'C_CAPEX Build Up'!$B$15:$B$189,0)),0) -> 113.8354119 | H122: =IFERROR(INDEX('C_CAPEX Build Up'!W$15:W$189,MATCH($B122,'C_CAPEX Build Up'!$B$15:$B$189,0)),0) -> 117.107791 | J122: Traditional | K122: Major (Cat V) | L122: Legacy Luminaire - 250W SON GEC 'BOSTON 3' | M122: =INDEX(O122:Q122,,$M$3) -> 35 | O122: =SUM('I_Asset number input'!K122:O122) -> 35 | P122: 24 | Q122: 775.203619
B123: 2X14W TF - T5 PIERLIGHT | C123: Capital - Traditional Luminaire | D123: =IFERROR(INDEX('C_CAPEX Build Up'!S$15:S$189,MATCH($B123,'C_CAPEX Build Up'!$B$15:$B$189,0)),0) -> 34.46738992 | E123: =IFERROR(INDEX('C_CAPEX Build Up'!T$15:T$189,MATCH($B123,'C_CAPEX Build Up'!$B$15:$B$189,0)),0) -> 35.4582096 | F123: =IFERROR(INDEX('C_CAPEX Build Up'!U$15:U$189,MATCH($B123,'C_CAPEX Build Up'!$B$15:$B$189,0)),0) -> 36.47751195 | G123: =IFERROR(INDEX('C_CAPEX Build Up'!V$15:V$189,MATCH($B123,'C_CAPEX Build Up'!$B$15:$B$189,0)),0) -> 37.52611576 | H123: =IFERROR(INDEX('C_CAPEX Build Up'!W$15:W$189,MATCH($B123,'C_CAPEX Build Up'!$B$15:$B$189,0)),0) -> 38.60486334 | J123: Traditional | K123: Minor (Cat P) | L123: Legacy Luminaire - 2X14W TF - T5 PIERLIGHT | M123: =INDEX(O123:Q123,,$M$3) -> 0 | O123: =SUM('I_Asset number input'!K123:O123) -> 0 | P123: 0 | Q123: 0
B124: 2x14W TF - T5 PIERLITE M | C124: Capital - Traditional Luminaire | D124: =IFERROR(INDEX('C_CAPEX Build Up'!S$15:S$189,MATCH($B124,'C_CAPEX Build Up'!$B$15:$B$189,0)),0) -> 34.46738992 | E124: =IFERROR(INDEX('C_CAPEX Build Up'!T$15:T$189,MATCH($B124,'C_CAPEX Build Up'!$B$15:$B$189,0)),0) -> 35.4582096 | F124: =IFERROR(INDEX('C_CAPEX Build Up'!U$15:U$189,MATCH($B124,'C_CAPEX Build Up'!$B$15:$B$189,0)),0) -> 36.47751195 | G124: =IFERROR(INDEX('C_CAPEX Build Up'!V$15:V$189,MATCH($B124,'C_CAPEX Build Up'!$B$15:$B$189,0)),0) -> 37.52611576 | H124: =IFERROR(INDEX('C_CAPEX Build Up'!W$15:W$189,MATCH($B124,'C_CAPEX Build Up'!$B$15:$B$189,0)),0) -> 38.60486334 | J124: Traditional | K124: Minor (Cat P) | L124: Legacy Luminaire - 2x14W TF - T5 PIERLITE M | M124: =INDEX(O124:Q124,,$M$3) -> 0 | O124: =SUM('I_Asset number input'!K124:O124) -> 0 | P124: 16 | Q124: 0
B125: 2x250W SON FLOODLIGHT | C125: Capital - Traditional Luminaire | D125: =IFERROR(INDEX('C_CAPEX Build Up'!S$15:S$189,MATCH($B125,'C_CAPEX Build Up'!$B$15:$B$189,0)),0) -> 66.60668838 | E125: =IFERROR(INDEX('C_CAPEX Build Up'!T$15:T$189,MATCH($B125,'C_CAPEX Build Up'!$B$15:$B$189,0)),0) -> 68.52140305 | F125: =IFERROR(INDEX('C_CAPEX Build Up'!U$15:U$189,MATCH($B125,'C_CAPEX Build Up'!$B$15:$B$189,0)),0) -> 70.49115922 | G125: =IFERROR(INDEX('C_CAPEX Build Up'!V$15:V$189,MATCH($B125,'C_CAPEX Build Up'!$B$15:$B$189,0)),0) -> 72.51753916 | H125: =IFERROR(INDEX('C_CAPEX Build Up'!W$15:W$189,MATCH($B125,'C_CAPEX Build Up'!$B$15:$B$189,0)),0) -> 74.60217059 | J125: Traditional | K125: Major (Cat V) | L125: Legacy Luminaire - 2x250W SON FLOODLIGHT | M125: =INDEX(O125:Q125,,$M$3) -> 4.666666667 | O125: =SUM('I_Asset number input'!K125:O125) -> 4.666666667 | P125: 40 | Q125: 65.84460594
B126: 2x400W SON FLOODLIGHT | C126: Capital - Traditional Luminaire | D126: =IFERROR(INDEX('C_CAPEX Build Up'!S$15:S$189,MATCH($B126,'C_CAPEX Build Up'!$B$15:$B$189,0)),0) -> 138.2901797 | E126: =IFERROR(INDEX('C_CAPEX Build Up'!T$15:T$189,MATCH($B126,'C_CAPEX Build Up'!$B$15:$B$189,0)),0) -> 142.2655497 | F126: =IFERROR(INDEX('C_CAPEX Build Up'!U$15:U$189,MATCH($B126,'C_CAPEX Build Up'!$B$15:$B$189,0)),0) -> 146.3551981 | G126: =IFERROR(INDEX('C_CAPEX Build Up'!V$15:V$189,MATCH($B126,'C_CAPEX Build Up'!$B$15:$B$189,0)),0) -> 150.5624099 | H126: =IFERROR(INDEX('C_CAPEX Build Up'!W$15:W$189,MATCH($B126,'C_CAPEX Build Up'!$B$15:$B$189,0)),0) -> 154.8905647 | J126: Traditional | K126: Major (Cat V) | L126: Legacy Luminaire - 2x400W SON FLOODLIGHT | M126: =INDEX(O126:Q126,,$M$3) -> 5.333333333 | O126: =SUM('I_Asset number input'!K126:O126) -> 5.333333333 | P126: 48 | Q126: 156.2376324
B127: 2x80W MBF - BOURKE HILL | C127: Capital - Traditional Luminaire | D127: =IFERROR(INDEX('C_CAPEX Build Up'!S$15:S$189,MATCH($B127,'C_CAPEX Build Up'!$B$15:$B$189,0)),0) -> 70.97278176 | E127: =IFERROR(INDEX('C_CAPEX Build Up'!T$15:T$189,MATCH($B127,'C_CAPEX Build Up'!$B$15:$B$189,0)),0) -> 73.01300669 | F127: =IFERROR(INDEX('C_CAPEX Build Up'!U$15:U$189,MATCH($B127,'C_CAPEX Build Up'!$B$15:$B$189,0)),0) -> 75.11188112 | G127: =IFERROR(INDEX('C_CAPEX Build Up'!V$15:V$189,MATCH($B127,'C_CAPEX Build Up'!$B$15:$B$189,0)),0) -> 77.27109101 | H127: =IFERROR(INDEX('C_CAPEX Build Up'!W$15:W$189,MATCH($B127,'C_CAPEX Build Up'!$B$15:$B$189,0)),0) -> 79.49237082 | J127: Traditional | K127: Minor (Cat P) | L127: Legacy Luminaire - 2x80W MBF - BOURKE HILL | M127: =INDEX(O127:Q127,,$M$3) -> 2.666666667 | O127: =SUM('I_Asset number input'!K127:O127) -> 2.666666667 | P127: 32 | Q127: 40.09185402
B128: 400W MBF | C128: Capital - Traditional Luminaire | D128: =IFERROR(INDEX('C_CAPEX Build Up'!S$15:S$189,MATCH($B128,'C_CAPEX Build Up'!$B$15:$B$189,0)),0) -> 28.93215377 | E128: =IFERROR(INDEX('C_CAPEX Build Up'!T$15:T$189,MATCH($B128,'C_CAPEX Build Up'!$B$15:$B$189,0)),0) -> 29.76385432 | F128: =IFERROR(INDEX('C_CAPEX Build Up'!U$15:U$189,MATCH($B128,'C_CAPEX Build Up'!$B$15:$B$189,0)),0) -> 30.61946341 | G128: =IFERROR(INDEX('C_CAPEX Build Up'!V$15:V$189,MATCH($B128,'C_CAPEX Build Up'!$B$15:$B$189,0)),0) -> 31.49966835 | H128: =IFERROR(INDEX('C_CAPEX Build Up'!W$15:W$189,MATCH($B128,'C_CAPEX Build Up'!$B$15:$B$189,0)),0) -> 32.40517617 | J128: Traditional | K128: Major (Cat V) | L128: Legacy Luminaire - 400W MBF | M128: =INDEX(O128:Q128,,$M$3) -> 329.3333333 | O128: =SUM('I_Asset number input'!K128:O128) -> 329.3333333 | P128: 3800 | Q128: 2018.422296
B129: 400W MBF - B2229 | C129: Capital - Traditional Luminaire | D129: =IFERROR(INDEX('C_CAPEX Build Up'!S$15:S$189,MATCH($B129,'C_CAPEX Build Up'!$B$15:$B$189,0)),0) -> 28.93215377 | E129: =IFERROR(INDEX('C_CAPEX Build Up'!T$15:T$189,MATCH($B129,'C_CAPEX Build Up'!$B$15:$B$189,0)),0) -> 29.76385432 | F129: =IFERROR(INDEX('C_CAPEX Build Up'!U$15:U$189,MATCH($B129,'C_CAPEX Build Up'!$B$15:$B$189,0)),0) -> 30.61946341 | G129: =IFERROR(INDEX('C_CAPEX Build Up'!V$15:V$189,MATCH($B129,'C_CAPEX Build Up'!$B$15:$B$189,0)),0) -> 31.49966835 | H129: =IFERROR(INDEX('C_CAPEX Build Up'!W$15:W$189,MATCH($B129,'C_CAPEX Build Up'!$B$15:$B$189,0)),0) -> 32.40517617 | J129: Traditional | K129: Major (Cat V) | L129: Legacy Luminaire - 400W MBF - B2229 | M129: =INDEX(O129:Q129,,$M$3) -> 56.66666667 | O129: =SUM('I_Asset number input'!K129:O129) -> 56.66666667 | P129: 664 | Q129: 347.299383
B130: 400W MBF - PARKWAY 1 | C130: Capital - Traditional Luminaire | D130: =IFERROR(INDEX('C_CAPEX Build Up'!S$15:S$189,MATCH($B130,'C_CAPEX Build Up'!$B$15:$B$189,0)),0) -> 63.63323997 | E130: =IFERROR(INDEX('C_CAPEX Build Up'!T$15:T$189,MATCH($B130,'C_CAPEX Build Up'!$B$15:$B$189,0)),0) -> 65.46247816 | F130: =IFERROR(INDEX('C_CAPEX Build Up'!U$15:U$189,MATCH($B130,'C_CAPEX Build Up'!$B$15:$B$189,0)),0) -> 67.3443007 | G130: =IFERROR(INDEX('C_CAPEX Build Up'!V$15:V$189,MATCH($B130,'C_CAPEX Build Up'!$B$15:$B$189,0)),0) -> 69.2802192 | H130: =IFERROR(INDEX('C_CAPEX Build Up'!W$15:W$189,MATCH($B130,'C_CAPEX Build Up'!$B$15:$B$189,0)),0) -> 71.27178875 | J130: Traditional | K130: Major (Cat V) | L130: Legacy Luminaire - 400W MBF - PARKWAY 1 | M130: =INDEX(O130:Q130,,$M$3) -> 48.66666667 | O130: =SUM('I_Asset number input'!K130:O130) -> 48.66666667 | P130: 544 | Q130: 656.0111455
B131: 400W MBF FLOODLIGHT | C131: Capital - Traditional Luminaire | D131: =IFERROR(INDEX('C_CAPEX Build Up'!S$15:S$189,MATCH($B131,'C_CAPEX Build Up'!$B$15:$B$189,0)),0) -> 70.41616005 | E131: =IFERROR(INDEX('C_CAPEX Build Up'!T$15:T$189,MATCH($B131,'C_CAPEX Build Up'!$B$15:$B$189,0)),0) -> 72.44038401 | F131: =IFERROR(INDEX('C_CAPEX Build Up'!U$15:U$189,MATCH($B131,'C_CAPEX Build Up'!$B$15:$B$189,0)),0) -> 74.5227975 | G131: =IFERROR(INDEX('C_CAPEX Build Up'!V$15:V$189,MATCH($B131,'C_CAPEX Build Up'!$B$15:$B$189,0)),0) -> 76.66507325 | H131: =IFERROR(INDEX('C_CAPEX Build Up'!W$15:W$189,MATCH($B131,'C_CAPEX Build Up'!$B$15:$B$189,0)),0) -> 78.86893211 | J131: Traditional | K131: Major (Cat V) | L131: Legacy Luminaire - 400W MBF FLOODLIGHT | M131: =INDEX(O131:Q131,,$M$3) -> 70 | O131: =SUM('I_Asset number input'!K131:O131) -> 70 | P131: 176 | Q131: 1044.157371
B132: 400W MBI FLOODLIGHT | C132: Capital - Traditional Luminaire | D132: =IFERROR(INDEX('C_CAPEX Build Up'!S$15:S$189,MATCH($B132,'C_CAPEX Build Up'!$B$15:$B$189,0)),0) -> 54.26519777 | E132: =IFERROR(INDEX('C_CAPEX Build Up'!T$15:T$189,MATCH($B132,'C_CAPEX Build Up'!$B$15:$B$189,0)),0) -> 55.82513676 | F132: =IFERROR(INDEX('C_CAPEX Build Up'!U$15:U$189,MATCH($B132,'C_CAPEX Build Up'!$B$15:$B$189,0)),0) -> 57.42991867 | G132: =IFERROR(INDEX('C_CAPEX Build Up'!V$15:V$189,MATCH($B132,'C_CAPEX Build Up'!$B$15:$B$189,0)),0) -> 59.08083257 | H132: =IFERROR(INDEX('C_CAPEX Build Up'!W$15:W$189,MATCH($B132,'C_CAPEX Build Up'!$B$15:$B$189,0)),0) -> 60.77920461 | J132: Traditional | K132: Major (Cat V) | L132: Legacy Luminaire - 400W MBI FLOODLIGHT | M132: =INDEX(O132:Q132,,$M$3) -> 132.5 | O132: =SUM('I_Asset number input'!K132:O132) -> 132.5 | P132: 432 | Q132: 1523.115539
B133: 400W SON | C133: Capital - Traditional Luminaire | D133: =IFERROR(INDEX('C_CAPEX Build Up'!S$15:S$189,MATCH($B133,'C_CAPEX Build Up'!$B$15:$B$189,0)),0) -> 42.05954118 | E133: =IFERROR(INDEX('C_CAPEX Build Up'!T$15:T$189,MATCH($B133,'C_CAPEX Build Up'!$B$15:$B$189,0)),0) -> 43.26860926 | F133: =IFERROR(INDEX('C_CAPEX Build Up'!U$15:U$189,MATCH($B133,'C_CAPEX Build Up'!$B$15:$B$189,0)),0) -> 44.51243391 | G133: =IFERROR(INDEX('C_CAPEX Build Up'!V$15:V$189,MATCH($B133,'C_CAPEX Build Up'!$B$15:$B$189,0)),0) -> 45.79201427 | H133: =IFERROR(INDEX('C_CAPEX Build Up'!W$15:W$189,MATCH($B133,'C_CAPEX Build Up'!$B$15:$B$189,0)),0) -> 47.10837819 | J133: Traditional | K133: Major (Cat V) | L133: Legacy Luminaire - 400W SON | M133: =INDEX(O133:Q133,,$M$3) -> 447.3333333 | O133: =SUM('I_Asset number input'!K133:O133) -> 447.3333333 | P133: 3952 | Q133: 3985.578545
B134: 400W SON - PARKWAY 1 | C134: Capital - Traditional Luminaire | D134: =IFERROR(INDEX('C_CAPEX Build Up'!S$15:S$189,MATCH($B134,'C_CAPEX Build Up'!$B$15:$B$189,0)),0) -> 46.71670745 | E134: =IFERROR(INDEX('C_CAPEX Build Up'!T$15:T$189,MATCH($B134,'C_CAPEX Build Up'!$B$15:$B$189,0)),0) -> 48.05965314 | F134: =IFERROR(INDEX('C_CAPEX Build Up'!U$15:U$189,MATCH($B134,'C_CAPEX Build Up'!$B$15:$B$189,0)),0) -> 49.44120393 | G134: =IFERROR(INDEX('C_CAPEX Build Up'!V$15:V$189,MATCH($B134,'C_CAPEX Build Up'!$B$15:$B$189,0)),0) -> 50.86246958 | H134: =IFERROR(INDEX('C_CAPEX Build Up'!W$15:W$189,MATCH($B134,'C_CAPEX Build Up'!$B$15:$B$189,0)),0) -> 52.32459177 | J134: Traditional | K134: Major (Cat V) | L134: Legacy Luminaire - 400W SON - PARKWAY 1 | M134: =INDEX(O134:Q134,,$M$3) -> 3.333333333 | O134: =SUM('I_Asset number input'!K134:O134) -> 3.333333333 | P134: 40 | Q134: =+O134/5*AVERAGE(D134,E134,F134,G134,H134) -> 32.98728345
B135: 400W SON ACTIVE REACTOR | C135: Capital - Traditional Luminaire | D135: =IFERROR(INDEX('C_CAPEX Build Up'!S$15:S$189,MATCH($B135,'C_CAPEX Build Up'!$B$15:$B$189,0)),0) -> 66.60668838 | E135: =IFERROR(INDEX('C_CAPEX Build Up'!T$15:T$189,MATCH($B135,'C_CAPEX Build Up'!$B$15:$B$189,0)),0) -> 68.52140305 | F135: =IFERROR(INDEX('C_CAPEX Build Up'!U$15:U$189,MATCH($B135,'C_CAPEX Build Up'!$B$15:$B$189,0)),0) -> 70.49115922 | G135: =IFERROR(INDEX('C_CAPEX Build Up'!V$15:V$189,MATCH($B135,'C_CAPEX Build Up'!$B$15:$B$189,0)),0) -> 72.51753916 | H135: =IFERROR(INDEX('C_CAPEX Build Up'!W$15:W$189,MATCH($B135,'C_CAPEX Build Up'!$B$15:$B$189,0)),0) -> 74.60217059 | J135: Traditional | K135: Major (Cat V) | L135: Legacy Luminaire - 400W SON ACTIVE REACTOR | M135: =INDEX(O135:Q135,,$M$3) -> 268.6666667 | O135: =SUM('I_Asset number input'!K135:O135) -> 268.6666667 | P135: 1528 | Q135: 3790.768028
B136: 400W SON FLOODLIGHT | C136: Capital - Traditional Luminaire | D136: =IFERROR(INDEX('C_CAPEX Build Up'!S$15:S$189,MATCH($B136,'C_CAPEX Build Up'!$B$15:$B$189,0)),0) -> 45.74646448 | E136: =IFERROR(INDEX('C_CAPEX Build Up'!T$15:T$189,MATCH($B136,'C_CAPEX Build Up'!$B$15:$B$189,0)),0) -> 47.061519 | F136: =IFERROR(INDEX('C_CAPEX Build Up'!U$15:U$189,MATCH($B136,'C_CAPEX Build Up'!$B$15:$B$189,0)),0) -> 48.41437684 | G136: =IFERROR(INDEX('C_CAPEX Build Up'!V$15:V$189,MATCH($B136,'C_CAPEX Build Up'!$B$15:$B$189,0)),0) -> 49.80612472 | H136: =IFERROR(INDEX('C_CAPEX Build Up'!W$15:W$189,MATCH($B136,'C_CAPEX Build Up'!$B$15:$B$189,0)),0) -> 51.2378806 | J136: Traditional | K136: Major (Cat V) | L136: Legacy Luminaire - 400W SON FLOODLIGHT | M136: =INDEX(O136:Q136,,$M$3) -> 877.5 | O136: =SUM('I_Asset number input'!K136:O136) -> 877.5 | P136: 2248 | Q136: 8503.549434
B137: 42W MBF SYLVANIA SUB ECO | C137: Capital - Traditional Luminaire | D137: =IFERROR(INDEX('C_CAPEX Build Up'!S$15:S$189,MATCH($B137,'C_CAPEX Build Up'!$B$15:$B$189,0)),0) -> 31.67794138 | E137: =IFERROR(INDEX('C_CAPEX Build Up'!T$15:T$189,MATCH($B137,'C_CAPEX Build Up'!$B$15:$B$189,0)),0) -> 32.58857394 | F137: =IFERROR(INDEX('C_CAPEX Build Up'!U$15:U$189,MATCH($B137,'C_CAPEX Build Up'!$B$15:$B$189,0)),0) -> 33.52538407 | G137: =IFERROR(INDEX('C_CAPEX Build Up'!V$15:V$189,MATCH($B137,'C_CAPEX Build Up'!$B$15:$B$189,0)),0) -> 34.48912429 | H137: =IFERROR(INDEX('C_CAPEX Build Up'!W$15:W$189,MATCH($B137,'C_CAPEX Build Up'!$B$15:$B$189,0)),0) -> 35.48056875 | J137: Traditional | K137: Minor (Cat P) | L137: Legacy Luminaire - 42W MBF SYLVANIA SUB ECO | M137: =INDEX(O137:Q137,,$M$3) -> 0 | O137: =SUM('I_Asset number input'!K137:O137) -> 0 | P137: 193272 | Q137: 0
B138: 4x250W SON | C138: Capital - Traditional Luminaire | D138: =IFERROR(INDEX('C_CAPEX Build Up'!S$15:S$189,MATCH($B138,'C_CAPEX Build Up'!$B$15:$B$189,0)),0) -> 75.65711483 | E138: =IFERROR(INDEX('C_CAPEX Build Up'!T$15:T$189,MATCH($B138,'C_CAPEX Build Up'!$B$15:$B$189,0)),0) -> 77.83199833 | F138: =IFERROR(INDEX('C_CAPEX Build Up'!U$15:U$189,MATCH($B138,'C_CAPEX Build Up'!$B$15:$B$189,0)),0) -> 80.0694023 | G138: =IFERROR(INDEX('C_CAPEX Build Up'!V$15:V$189,MATCH($B138,'C_CAPEX Build Up'!$B$15:$B$189,0)),0) -> 82.37112399 | H138: =IFERROR(INDEX('C_CAPEX Build Up'!W$15:W$189,MATCH($B138,'C_CAPEX Build Up'!$B$15:$B$189,0)),0) -> 84.73901231 | J138: Traditional | K138: Major (Cat V) | L138: Legacy Luminaire - 4x250W SON | M138: =INDEX(O138:Q138,,$M$3) -> 0 | O138: =SUM('I_Asset number input'!K138:O138) -> 0 | P138: 0 | Q138: 0
B139: 4x600W SON | C139: Capital - Traditional Luminaire | D139: =IFERROR(INDEX('C_CAPEX Build Up'!S$15:S$189,MATCH($B139,'C_CAPEX Build Up'!$B$15:$B$189,0)),0) -> 118.0295659 | E139: =IFERROR(INDEX('C_CAPEX Build Up'!T$15:T$189,MATCH($B139,'C_CAPEX Build Up'!$B$15:$B$189,0)),0) -> 121.4225126 | F139: =IFERROR(INDEX('C_CAPEX Build Up'!U$15:U$189,MATCH($B139,'C_CAPEX Build Up'!$B$15:$B$189,0)),0) -> 124.9129949 | G139: =IFERROR(INDEX('C_CAPEX Build Up'!V$15:V$189,MATCH($B139,'C_CAPEX Build Up'!$B$15:$B$189,0)),0) -> 128.5038166 | H139: =IFERROR(INDEX('C_CAPEX Build Up'!W$15:W$189,MATCH($B139,'C_CAPEX Build Up'!$B$15:$B$189,0)),0) -> 132.1978622 | J139: Traditional | K139: Major (Cat V) | L139: Legacy Luminaire - 4x600W SON | M139: =INDEX(O139:Q139,,$M$3) -> 7.5 | O139: =SUM('I_Asset number input'!K139:O139) -> 7.5 | P139: 24 | Q139: 187.5200256
B140: 50W MBF | C140: Capital - Traditional Luminaire | D140: =IFERROR(INDEX('C_CAPEX Build Up'!S$15:S$189,MATCH($B140,'C_CAPEX Build Up'!$B$15:$B$189,0)),0) -> 23.9159976 | E140: =IFERROR(INDEX('C_CAPEX Build Up'!T$15:T$189,MATCH($B140,'C_CAPEX Build Up'!$B$15:$B$189,0)),0) -> 24.6035008 | F140: =IFERROR(INDEX('C_CAPEX Build Up'!U$15:U$189,MATCH($B140,'C_CAPEX Build Up'!$B$15:$B$189,0)),0) -> 25.31076737 | G140: =IFERROR(INDEX('C_CAPEX Build Up'!V$15:V$189,MATCH($B140,'C_CAPEX Build Up'!$B$15:$B$189,0)),0) -> 26.03836543 | H140: =IFERROR(INDEX('C_CAPEX Build Up'!W$15:W$189,MATCH($B140,'C_CAPEX Build Up'!$B$15:$B$189,0)),0) -> 26.78687946 | J140: Traditional | K140: Minor (Cat P) | L140: Legacy Luminaire - 50W MBF | M140: =INDEX(O140:Q140,,$M$3) -> 0 | O140: =SUM('I_Asset number input'!K140:O140) -> 0 | P140: 1208 | Q140: 0
B141: 50W MBF - BOURKE HILL | C141: Capital - Traditional Luminaire | D141: =IFERROR(INDEX('C_CAPEX Build Up'!S$15:S$189,MATCH($B141,'C_CAPEX Build Up'!$B$15:$B$189,0)),0) -> 70.97278176 | E141: =IFERROR(INDEX('C_CAPEX Build Up'!T$15:T$189,MATCH($B141,'C_CAPEX Build Up'!$B$15:$B$189,0)),0) -> 73.01300669 | F141: =IFERROR(INDEX('C_CAPEX Build Up'!U$15:U$189,MATCH($B141,'C_CAPEX Build Up'!$B$15:$B$189,0)),0) -> 75.11188112 | G141: =IFERROR(INDEX('C_CAPEX Build Up'!V$15:V$189,MATCH($B141,'C_CAPEX Build Up'!$B$15:$B$189,0)),0) -> 77.27109101 | H141: =IFERROR(INDEX('C_CAPEX Build Up'!W$15:W$189,MATCH($B141,'C_CAPEX Build Up'!$B$15:$B$189,0)),0) -> 79.49237082 | J141: Traditional | K141: Minor (Cat P) | L141: Legacy Luminaire - 50W MBF - BOURKE HILL | M141: =INDEX(O141:Q141,,$M$3) -> 40 | O141: =SUM('I_Asset number input'!K141:O141) -> 40 | P141: 8 | Q141: 601.3778102
B142: 50W MBF - NOSTALGIA | C142: Capital - Traditional Luminaire | D142: =IFERROR(INDEX('C_CAPEX Build Up'!S$15:S$189,MATCH($B142,'C_CAPEX Build Up'!$B$15:$B$189,0)),0) -> 70.97278176 | E142: =IFERROR(INDEX('C_CAPEX Build Up'!T$15:T$189,MATCH($B142,'C_CAPEX Build Up'!$B$15:$B$189,0)),0) -> 73.01300669 | F142: =IFERROR(INDEX('C_CAPEX Build Up'!U$15:U$189,MATCH($B142,'C_CAPEX Build Up'!$B$15:$B$189,0)),0) -> 75.11188112 | G142: =IFERROR(INDEX('C_CAPEX Build Up'!V$15:V$189,MATCH($B142,'C_CAPEX Build Up'!$B$15:$B$189,0)),0) -> 77.27109101 | H142: =IFERROR(INDEX('C_CAPEX Build Up'!W$15:W$189,MATCH($B142,'C_CAPEX Build Up'!$B$15:$B$189,0)),0) -> 79.49237082 | J142: Traditional | K142: Minor (Cat P) | L142: Legacy Luminaire - 50W MBF - NOSTALGIA | M142: =INDEX(O142:Q142,,$M$3) -> 0 | O142: =SUM('I_Asset number input'!K142:O142) -> 0 | P142: 392 | Q142: 0
B143: 50W MBF - PLAIN | C143: Capital - Traditional Luminaire | D143: =IFERROR(INDEX('C_CAPEX Build Up'!S$15:S$189,MATCH($B143,'C_CAPEX Build Up'!$B$15:$B$189,0)),0) -> 23.9159976 | E143: =IFERROR(INDEX('C_CAPEX Build Up'!T$15:T$189,MATCH($B143,'C_CAPEX Build Up'!$B$15:$B$189,0)),0) -> 24.6035008 | F143: =IFERROR(INDEX('C_CAPEX Build Up'!U$15:U$189,MATCH($B143,'C_CAPEX Build Up'!$B$15:$B$189,0)),0) -> 25.31076737 | G143: =IFERROR(INDEX('C_CAPEX Build Up'!V$15:V$189,MATCH($B143,'C_CAPEX Build Up'!$B$15:$B$189,0)),0) -> 26.03836543 | H143: =IFERROR(INDEX('C_CAPEX Build Up'!W$15:W$189,MATCH($B143,'C_CAPEX Build Up'!$B$15:$B$189,0)),0) -> 26.78687946 | J143: Traditional | K143: Minor (Cat P) | L143: Legacy Luminaire - 50W MBF - PLAIN | M143: =INDEX(O143:Q143,,$M$3) -> 290 | O143: =SUM('I_Asset number input'!K143:O143) -> 290 | P143: 536 | Q143: 1469.203924
B144: 50W SON | C144: Capital - Traditional Luminaire | D144: =IFERROR(INDEX('C_CAPEX Build Up'!S$15:S$189,MATCH($B144,'C_CAPEX Build Up'!$B$15:$B$189,0)),0) -> 23.13980322 | E144: =IFERROR(INDEX('C_CAPEX Build Up'!T$15:T$189,MATCH($B144,'C_CAPEX Build Up'!$B$15:$B$189,0)),0) -> 23.80499349 | F144: =IFERROR(INDEX('C_CAPEX Build Up'!U$15:U$189,MATCH($B144,'C_CAPEX Build Up'!$B$15:$B$189,0)),0) -> 24.4893057 | G144: =IFERROR(INDEX('C_CAPEX Build Up'!V$15:V$189,MATCH($B144,'C_CAPEX Build Up'!$B$15:$B$189,0)),0) -> 25.19328955 | H144: =IFERROR(INDEX('C_CAPEX Build Up'!W$15:W$189,MATCH($B144,'C_CAPEX Build Up'!$B$15:$B$189,0)),0) -> 25.91751053 | J144: Traditional | K144: Minor (Cat P) | L144: Legacy Luminaire - 50W SON | M144: =INDEX(O144:Q144,,$M$3) -> 0 | O144: =SUM('I_Asset number input'!K144:O144) -> 0 | P144: 16 | Q144: 0
B145: 50W SON - NOSTALGIA | C145: Capital - Traditional Luminaire | D145: =IFERROR(INDEX('C_CAPEX Build Up'!S$15:S$189,MATCH($B145,'C_CAPEX Build Up'!$B$15:$B$189,0)),0) -> 36.04403475 | E145: =IFERROR(INDEX('C_CAPEX Build Up'!T$15:T$189,MATCH($B145,'C_CAPEX Build Up'!$B$15:$B$189,0)),0) -> 37.08017758 | F145: =IFERROR(INDEX('C_CAPEX Build Up'!U$15:U$189,MATCH($B145,'C_CAPEX Build Up'!$B$15:$B$189,0)),0) -> 38.14610596 | G145: =IFERROR(INDEX('C_CAPEX Build Up'!V$15:V$189,MATCH($B145,'C_CAPEX Build Up'!$B$15:$B$189,0)),0) -> 39.24267615 | H145: =IFERROR(INDEX('C_CAPEX Build Up'!W$15:W$189,MATCH($B145,'C_CAPEX Build Up'!$B$15:$B$189,0)),0) -> 40.37076898 | J145: Traditional | K145: Minor (Cat P) | L145: Legacy Luminaire - 50W SON - NOSTALGIA | M145: =INDEX(O145:Q145,,$M$3) -> 0 | O145: =SUM('I_Asset number input'!K145:O145) -> 0 | P145: 16 | Q145: 0
B146: 50W SON - PLAIN | C146: Capital - Traditional Luminaire | D146: =IFERROR(INDEX('C_CAPEX Build Up'!S$15:S$189,MATCH($B146,'C_CAPEX Build Up'!$B$15:$B$189,0)),0) -> 23.13980322 | E146: =IFERROR(INDEX('C_CAPEX Build Up'!T$15:T$189,MATCH($B146,'C_CAPEX Build Up'!$B$15:$B$189,0)),0) -> 23.80499349 | F146: =IFERROR(INDEX('C_CAPEX Build Up'!U$15:U$189,MATCH($B146,'C_CAPEX Build Up'!$B$15:$B$189,0)),0) -> 24.4893057 | G146: =IFERROR(INDEX('C_CAPEX Build Up'!V$15:V$189,MATCH($B146,'C_CAPEX Build Up'!$B$15:$B$189,0)),0) -> 25.19328955 | H146: =IFERROR(INDEX('C_CAPEX Build Up'!W$15:W$189,MATCH($B146,'C_CAPEX Build Up'!$B$15:$B$189,0)),0) -> 25.91751053 | J146: Traditional | K146: Minor (Cat P) | L146: Legacy Luminaire - 50W SON - PLAIN | M146: =INDEX(O146:Q146,,$M$3) -> 0 | O146: =SUM('I_Asset number input'!K146:O146) -> 0 | P146: 8 | Q146: 0
B147: 70W MBI | C147: =C146 -> Capital - Traditional Luminaire | D147: =IFERROR(INDEX('C_CAPEX Build Up'!S$15:S$189,MATCH($B147,'C_CAPEX Build Up'!$B$15:$B$189,0)),0) -> 29.89075382 | E147: =IFERROR(INDEX('C_CAPEX Build Up'!T$15:T$189,MATCH($B147,'C_CAPEX Build Up'!$B$15:$B$189,0)),0) -> 30.75001085 | F147: =IFERROR(INDEX('C_CAPEX Build Up'!U$15:U$189,MATCH($B147,'C_CAPEX Build Up'!$B$15:$B$189,0)),0) -> 31.63396858 | G147: =IFERROR(INDEX('C_CAPEX Build Up'!V$15:V$189,MATCH($B147,'C_CAPEX Build Up'!$B$15:$B$189,0)),0) -> 32.54333707 | H147: =IFERROR(INDEX('C_CAPEX Build Up'!W$15:W$189,MATCH($B147,'C_CAPEX Build Up'!$B$15:$B$189,0)),0) -> 33.47884679 | J147: Traditional | K147: Minor (Cat P) | L147: Legacy Luminaire - 70W MBI | M147: =INDEX(O147:Q147,,$M$3) -> 0 | O147: =SUM('I_Asset number input'!K147:O147) -> 0 | P147: 384 | Q147: 0
B148: 70W MBI - MACQUARIE DEC. | C148: Capital - Traditional Luminaire | D148: =IFERROR(INDEX('C_CAPEX Build Up'!S$15:S$189,MATCH($B148,'C_CAPEX Build Up'!$B$15:$B$189,0)),0) -> 115.2527305 | E148: =IFERROR(INDEX('C_CAPEX Build Up'!T$15:T$189,MATCH($B148,'C_CAPEX Build Up'!$B$15:$B$189,0)),0) -> 118.5658527 | F148: =IFERROR(INDEX('C_CAPEX Build Up'!U$15:U$189,MATCH($B148,'C_CAPEX Build Up'!$B$15:$B$189,0)),0) -> 121.9742157 | G148: =IFERROR(INDEX('C_CAPEX Build Up'!V$15:V$189,MATCH($B148,'C_CAPEX Build Up'!$B$15:$B$189,0)),0) -> 125.4805576 | H148: =IFERROR(INDEX('C_CAPEX Build Up'!W$15:W$189,MATCH($B148,'C_CAPEX Build Up'!$B$15:$B$189,0)),0) -> 129.0876948 | J148: Traditional | K148: Minor (Cat P) | L148: Legacy Luminaire - 70W MBI - MACQUARIE DEC. | M148: =INDEX(O148:Q148,,$M$3) -> 25 | O148: =SUM('I_Asset number input'!K148:O148) -> 25 | P148: 48 | Q148: 610.3610514
B149: 70W MBI II | C149: Capital - Traditional Luminaire | D149: =IFERROR(INDEX('C_CAPEX Build Up'!S$15:S$189,MATCH($B149,'C_CAPEX Build Up'!$B$15:$B$189,0)),0) -> 26.34160503 | E149: =IFERROR(INDEX('C_CAPEX Build Up'!T$15:T$189,MATCH($B149,'C_CAPEX Build Up'!$B$15:$B$189,0)),0) -> 27.09883616 | F149: =IFERROR(INDEX('C_CAPEX Build Up'!U$15:U$189,MATCH($B149,'C_CAPEX Build Up'!$B$15:$B$189,0)),0) -> 27.87783509 | G149: =IFERROR(INDEX('C_CAPEX Build Up'!V$15:V$189,MATCH($B149,'C_CAPEX Build Up'!$B$15:$B$189,0)),0) -> 28.67922758 | H149: =IFERROR(INDEX('C_CAPEX Build Up'!W$15:W$189,MATCH($B149,'C_CAPEX Build Up'!$B$15:$B$189,0)),0) -> 29.50365736 | J149: Traditional | K149: Minor (Cat P) | L149: Legacy Luminaire - 70W MBI II | M149: =INDEX(O149:Q149,,$M$3) -> 0 | O149: =SUM('I_Asset number input'!K149:O149) -> 0 | P149: 520 | Q149: 0
B150: 70W MBI II AERO | C150: Capital - Traditional Luminaire | D150: =IFERROR(INDEX('C_CAPEX Build Up'!S$15:S$189,MATCH($B150,'C_CAPEX Build Up'!$B$15:$B$189,0)),0) -> 27.311848 | E150: =IFERROR(INDEX('C_CAPEX Build Up'!T$15:T$189,MATCH($B150,'C_CAPEX Build Up'!$B$15:$B$189,0)),0) -> 28.0969703 | F150: =IFERROR(INDEX('C_CAPEX Build Up'!U$15:U$189,MATCH($B150,'C_CAPEX Build Up'!$B$15:$B$189,0)),0) -> 28.90466218 | G150: =IFERROR(INDEX('C_CAPEX Build Up'!V$15:V$189,MATCH($B150,'C_CAPEX Build Up'!$B$15:$B$189,0)),0) -> 29.73557244 | H150: =IFERROR(INDEX('C_CAPEX Build Up'!W$15:W$189,MATCH($B150,'C_CAPEX Build Up'!$B$15:$B$189,0)),0) -> 30.59036852 | J150: Traditional | K150: Minor (Cat P) | L150: Legacy Luminaire - 70W MBI II AERO | M150: =INDEX(O150:Q150,,$M$3) -> 0 | O150: =SUM('I_Asset number input'!K150:O150) -> 0 | P150: 24 | Q150: 0
B151: 70W SON | C151: Capital - Traditional Luminaire | D151: =IFERROR(INDEX('C_CAPEX Build Up'!S$15:S$189,MATCH($B151,'C_CAPEX Build Up'!$B$15:$B$189,0)),0) -> 26.24458073 | E151: =IFERROR(INDEX('C_CAPEX Build Up'!T$15:T$189,MATCH($B151,'C_CAPEX Build Up'!$B$15:$B$189,0)),0) -> 26.99902274 | F151: =IFERROR(INDEX('C_CAPEX Build Up'!U$15:U$189,MATCH($B151,'C_CAPEX Build Up'!$B$15:$B$189,0)),0) -> 27.77515238 | G151: =IFERROR(INDEX('C_CAPEX Build Up'!V$15:V$189,MATCH($B151,'C_CAPEX Build Up'!$B$15:$B$189,0)),0) -> 28.57359309 | H151: =IFERROR(INDEX('C_CAPEX Build Up'!W$15:W$189,MATCH($B151,'C_CAPEX Build Up'!$B$15:$B$189,0)),0) -> 29.39498625 | J151: Traditional | K151: Minor (Cat P) | L151: Legacy Luminaire - 70W SON | M151: =INDEX(O151:Q151,,$M$3) -> 0 | O151: =SUM('I_Asset number input'!K151:O151) -> 0 | P151: 1144 | Q151: 0
B152: 70W SON - BOURKE HILL | C152: Capital - Traditional Luminaire | D152: =IFERROR(INDEX('C_CAPEX Build Up'!S$15:S$189,MATCH($B152,'C_CAPEX Build Up'!$B$15:$B$189,0)),0) -> 79.35956201 | E152: =IFERROR(INDEX('C_CAPEX Build Up'!T$15:T$189,MATCH($B152,'C_CAPEX Build Up'!$B$15:$B$189,0)),0) -> 81.64087821 | F152: =IFERROR(INDEX('C_CAPEX Build Up'!U$15:U$189,MATCH($B152,'C_CAPEX Build Up'!$B$15:$B$189,0)),0) -> 83.98777446 | G152: =IFERROR(INDEX('C_CAPEX Build Up'!V$15:V$189,MATCH($B152,'C_CAPEX Build Up'!$B$15:$B$189,0)),0) -> 86.40213596 | H152: =IFERROR(INDEX('C_CAPEX Build Up'!W$15:W$189,MATCH($B152,'C_CAPEX Build Up'!$B$15:$B$189,0)),0) -> 88.8859021 | J152: Traditional | K152: Minor (Cat P) | L152: Legacy Luminaire - 70W SON - BOURKE HILL | M152: =INDEX(O152:Q152,,$M$3) -> 5 | O152: =SUM('I_Asset number input'!K152:O152) -> 5 | P152: 16 | Q152: 84.05525055
B153: 70W SON - NOSTALGIA | C153: Capital - Traditional Luminaire | D153: =IFERROR(INDEX('C_CAPEX Build Up'!S$15:S$189,MATCH($B153,'C_CAPEX Build Up'!$B$15:$B$189,0)),0) -> 74.01158275 | E153: =IFERROR(INDEX('C_CAPEX Build Up'!T$15:T$189,MATCH($B153,'C_CAPEX Build Up'!$B$15:$B$189,0)),0) -> 76.13916282 | F153: =IFERROR(INDEX('C_CAPEX Build Up'!U$15:U$189,MATCH($B153,'C_CAPEX Build Up'!$B$15:$B$189,0)),0) -> 78.32790356 | G153: =IFERROR(INDEX('C_CAPEX Build Up'!V$15:V$189,MATCH($B153,'C_CAPEX Build Up'!$B$15:$B$189,0)),0) -> 80.57956311 | H153: =IFERROR(INDEX('C_CAPEX Build Up'!W$15:W$189,MATCH($B153,'C_CAPEX Build Up'!$B$15:$B$189,0)),0) -> 82.89595017 | J153: Traditional | K153: Minor (Cat P) | L153: Legacy Luminaire - 70W SON - NOSTALGIA | M153: =INDEX(O153:Q153,,$M$3) -> 345 | O153: =SUM('I_Asset number input'!K153:O153) -> 345 | P153: 480 | Q153: 5408.967441
B154: 70W SON - PARKVILLE | C154: Capital - Traditional Luminaire | D154: =IFERROR(INDEX('C_CAPEX Build Up'!S$15:S$189,MATCH($B154,'C_CAPEX Build Up'!$B$15:$B$189,0)),0) -> 92.80324863 | E154: =IFERROR(INDEX('C_CAPEX Build Up'!T$15:T$189,MATCH($B154,'C_CAPEX Build Up'!$B$15:$B$189,0)),0) -> 95.47102489 | F154: =IFERROR(INDEX('C_CAPEX Build Up'!U$15:U$189,MATCH($B154,'C_CAPEX Build Up'!$B$15:$B$189,0)),0) -> 98.21549059 | G154: =IFERROR(INDEX('C_CAPEX Build Up'!V$15:V$189,MATCH($B154,'C_CAPEX Build Up'!$B$15:$B$189,0)),0) -> 101.0388503 | H154: =IFERROR(INDEX('C_CAPEX Build Up'!W$15:W$189,MATCH($B154,'C_CAPEX Build Up'!$B$15:$B$189,0)),0) -> 103.943372 | J154: Traditional | K154: Minor (Cat P) | L154: Legacy Luminaire - 70W SON - PARKVILLE | M154: =INDEX(O154:Q154,,$M$3) -> 30 | O154: =SUM('I_Asset number input'!K154:O154) -> 30 | P154: 40 | Q154: 589.7663836
B155: 70W SON - PLAIN | C155: Capital - Traditional Luminaire | D155: =IFERROR(INDEX('C_CAPEX Build Up'!S$15:S$189,MATCH($B155,'C_CAPEX Build Up'!$B$15:$B$189,0)),0) -> 26.24458073 | E155: =IFERROR(INDEX('C_CAPEX Build Up'!T$15:T$189,MATCH($B155,'C_CAPEX Build Up'!$B$15:$B$189,0)),0) -> 26.99902274 | F155: =IFERROR(INDEX('C_CAPEX Build Up'!U$15:U$189,MATCH($B155,'C_CAPEX Build Up'!$B$15:$B$189,0)),0) -> 27.77515238 | G155: =IFERROR(INDEX('C_CAPEX Build Up'!V$15:V$189,MATCH($B155,'C_CAPEX Build Up'!$B$15:$B$189,0)),0) -> 28.57359309 | H155: =IFERROR(INDEX('C_CAPEX Build Up'!W$15:W$189,MATCH($B155,'C_CAPEX Build Up'!$B$15:$B$189,0)),0) -> 29.39498625 | J155: Traditional | K155: Minor (Cat P) | L155: Legacy Luminaire - 70W SON - PLAIN | M155: =INDEX(O155:Q155,,$M$3) -> 160 | O155: =SUM('I_Asset number input'!K155:O155) -> 160 | P155: 272 | Q155: 889.5189453
B156: 70W SON BOLLARD | C156: Capital - Traditional Luminaire | D156: =IFERROR(INDEX('C_CAPEX Build Up'!S$15:S$189,MATCH($B156,'C_CAPEX Build Up'!$B$15:$B$189,0)),0) -> 56.52780438 | E156: =IFERROR(INDEX('C_CAPEX Build Up'!T$15:T$189,MATCH($B156,'C_CAPEX Build Up'!$B$15:$B$189,0)),0) -> 58.15278558 | F156: =IFERROR(INDEX('C_CAPEX Build Up'!U$15:U$189,MATCH($B156,'C_CAPEX Build Up'!$B$15:$B$189,0)),0) -> 59.82447944 | G156: =IFERROR(INDEX('C_CAPEX Build Up'!V$15:V$189,MATCH($B156,'C_CAPEX Build Up'!$B$15:$B$189,0)),0) -> 61.54422878 | H156: =IFERROR(INDEX('C_CAPEX Build Up'!W$15:W$189,MATCH($B156,'C_CAPEX Build Up'!$B$15:$B$189,0)),0) -> 63.31341504 | J156: Traditional | K156: Minor (Cat P) | L156: Legacy Luminaire - 70W SON BOLLARD | M156: =INDEX(O156:Q156,,$M$3) -> 5 | O156: =SUM('I_Asset number input'!K156:O156) -> 5 | P156: 8 | Q156: 59.87254264
B157: 70W SON FLOODLIGHT | C157: Capital - Traditional Luminaire | D157: =IFERROR(INDEX('C_CAPEX Build Up'!S$15:S$189,MATCH($B157,'C_CAPEX Build Up'!$B$15:$B$189,0)),0) -> 31.6237048 | E157: =IFERROR(INDEX('C_CAPEX Build Up'!T$15:T$189,MATCH($B157,'C_CAPEX Build Up'!$B$15:$B$189,0)),0) -> 32.53277824 | F157: =IFERROR(INDEX('C_CAPEX Build Up'!U$15:U$189,MATCH($B157,'C_CAPEX Build Up'!$B$15:$B$189,0)),0) -> 33.46798444 | G157: =IFERROR(INDEX('C_CAPEX Build Up'!V$15:V$189,MATCH($B157,'C_CAPEX Build Up'!$B$15:$B$189,0)),0) -> 34.43007462 | H157: =IFERROR(INDEX('C_CAPEX Build Up'!W$15:W$189,MATCH($B157,'C_CAPEX Build Up'!$B$15:$B$189,0)),0) -> 35.4198216 | J157: Traditional | K157: Minor (Cat P) | L157: Legacy Luminaire - 70W SON FLOODLIGHT | M157: =INDEX(O157:Q157,,$M$3) -> 52.5 | O157: =SUM('I_Asset number input'!K157:O157) -> 52.5 | P157: 168 | Q157: 351.6961637
B158: 80W MBF - BEGA+CURVE BRA | C158: Capital - Traditional Luminaire | D158: =IFERROR(INDEX('C_CAPEX Build Up'!S$15:S$189,MATCH($B158,'C_CAPEX Build Up'!$B$15:$B$189,0)),0) -> 115.8698051 | E158: =IFERROR(INDEX('C_CAPEX Build Up'!T$15:T$189,MATCH($B158,'C_CAPEX Build Up'!$B$15:$B$189,0)),0) -> 119.200666 | F158: =IFERROR(INDEX('C_CAPEX Build Up'!U$15:U$189,MATCH($B158,'C_CAPEX Build Up'!$B$15:$B$189,0)),0) -> 122.6272778 | G158: =IFERROR(INDEX('C_CAPEX Build Up'!V$15:V$189,MATCH($B158,'C_CAPEX Build Up'!$B$15:$B$189,0)),0) -> 126.1523929 | H158: =IFERROR(INDEX('C_CAPEX Build Up'!W$15:W$189,MATCH($B158,'C_CAPEX Build Up'!$B$15:$B$189,0)),0) -> 129.7788431 | J158: Traditional | K158: Minor (Cat P) | L158: Legacy Luminaire - 80W MBF - BEGA+CURVE BRA | M158: =INDEX(O158:Q158,,$M$3) -> 150 | O158: =SUM('I_Asset number input'!K158:O158) -> 150 | P158: 64 | Q158: 3681.773909
B159: 80W MBF - BOURKE HILL | C159: Capital - Traditional Luminaire | D159: =IFERROR(INDEX('C_CAPEX Build Up'!S$15:S$189,MATCH($B159,'C_CAPEX Build Up'!$B$15:$B$189,0)),0) -> 54.36804353 | E159: =IFERROR(INDEX('C_CAPEX Build Up'!T$15:T$189,MATCH($B159,'C_CAPEX Build Up'!$B$15:$B$189,0)),0) -> 55.93093898 | F159: =IFERROR(INDEX('C_CAPEX Build Up'!U$15:U$189,MATCH($B159,'C_CAPEX Build Up'!$B$15:$B$189,0)),0) -> 57.53876234 | G159: =IFERROR(INDEX('C_CAPEX Build Up'!V$15:V$189,MATCH($B159,'C_CAPEX Build Up'!$B$15:$B$189,0)),0) -> 59.19280513 | H159: =IFERROR(INDEX('C_CAPEX Build Up'!W$15:W$189,MATCH($B159,'C_CAPEX Build Up'!$B$15:$B$189,0)),0) -> 60.89439599 | J159: Traditional | K159: Minor (Cat P) | L159: Legacy Luminaire - 80W MBF - BOURKE HILL | M159: =INDEX(O159:Q159,,$M$3) -> 1445 | O159: =SUM('I_Asset number input'!K159:O159) -> 1445 | P159: 1744 | Q159: 16642.06188
B160: 80W MBF - NOSTALGIA | C160: Capital - Traditional Luminaire | D160: =IFERROR(INDEX('C_CAPEX Build Up'!S$15:S$189,MATCH($B160,'C_CAPEX Build Up'!$B$15:$B$189,0)),0) -> 69.79490679 | E160: =IFERROR(INDEX('C_CAPEX Build Up'!T$15:T$189,MATCH($B160,'C_CAPEX Build Up'!$B$15:$B$189,0)),0) -> 71.80127184 | F160: =IFERROR(INDEX('C_CAPEX Build Up'!U$15:U$189,MATCH($B160,'C_CAPEX Build Up'!$B$15:$B$189,0)),0) -> 73.86531303 | G160: =IFERROR(INDEX('C_CAPEX Build Up'!V$15:V$189,MATCH($B160,'C_CAPEX Build Up'!$B$15:$B$189,0)),0) -> 75.98868836 | H160: =IFERROR(INDEX('C_CAPEX Build Up'!W$15:W$189,MATCH($B160,'C_CAPEX Build Up'!$B$15:$B$189,0)),0) -> 78.17310346 | J160: Traditional | K160: Minor (Cat P) | L160: Legacy Luminaire - 80W MBF - NOSTALGIA | M160: =INDEX(O160:Q160,,$M$3) -> 0 | O160: =SUM('I_Asset number input'!K160:O160) -> 0 | P160: 760 | Q160: 0
B161: 80W MBF - PLAIN | C161: Capital - Traditional Luminaire | D161: =IFERROR(INDEX('C_CAPEX Build Up'!S$15:S$189,MATCH($B161,'C_CAPEX Build Up'!$B$15:$B$189,0)),0) -> 22.80992061 | E161: =IFERROR(INDEX('C_CAPEX Build Up'!T$15:T$189,MATCH($B161,'C_CAPEX Build Up'!$B$15:$B$189,0)),0) -> 23.46562788 | F161: =IFERROR(INDEX('C_CAPEX Build Up'!U$15:U$189,MATCH($B161,'C_CAPEX Build Up'!$B$15:$B$189,0)),0) -> 24.14018449 | G161: =IFERROR(INDEX('C_CAPEX Build Up'!V$15:V$189,MATCH($B161,'C_CAPEX Build Up'!$B$15:$B$189,0)),0) -> 24.8341323 | H161: =IFERROR(INDEX('C_CAPEX Build Up'!W$15:W$189,MATCH($B161,'C_CAPEX Build Up'!$B$15:$B$189,0)),0) -> 25.54802873 | J161: Traditional | K161: Minor (Cat P) | L161: Legacy Luminaire - 80W MBF - PLAIN | M161: =INDEX(O161:Q161,,$M$3) -> 815 | O161: =SUM('I_Asset number input'!K161:O161) -> 815 | P161: 12048 | Q161: 3938.011345
B162: 80W MBF - REGAL/FLINDERS | C162: Capital - Traditional Luminaire | D162: =IFERROR(INDEX('C_CAPEX Build Up'!S$15:S$189,MATCH($B162,'C_CAPEX Build Up'!$B$15:$B$189,0)),0) -> 126.2572263 | E162: =IFERROR(INDEX('C_CAPEX Build Up'!T$15:T$189,MATCH($B162,'C_CAPEX Build Up'!$B$15:$B$189,0)),0) -> 129.8866901 | F162: =IFERROR(INDEX('C_CAPEX Build Up'!U$15:U$189,MATCH($B162,'C_CAPEX Build Up'!$B$15:$B$189,0)),0) -> 133.6204886 | G162: =IFERROR(INDEX('C_CAPEX Build Up'!V$15:V$189,MATCH($B162,'C_CAPEX Build Up'!$B$15:$B$189,0)),0) -> 137.461621 | H162: =IFERROR(INDEX('C_CAPEX Build Up'!W$15:W$189,MATCH($B162,'C_CAPEX Build Up'!$B$15:$B$189,0)),0) -> 141.4131728 | J162: Traditional | K162: Minor (Cat P) | L162: Legacy Luminaire - 80W MBF - REGAL/FLINDERS | M162: =INDEX(O162:Q162,,$M$3) -> 85 | O162: =SUM('I_Asset number input'!K162:O162) -> 85 | P162: 112 | Q162: 2273.373276
B163: 80W MBF BOLLARD | C163: Capital - Traditional Luminaire | D163: =IFERROR(INDEX('C_CAPEX Build Up'!S$15:S$189,MATCH($B163,'C_CAPEX Build Up'!$B$15:$B$189,0)),0) -> 45.00907982 | E163: =IFERROR(INDEX('C_CAPEX Build Up'!T$15:T$189,MATCH($B163,'C_CAPEX Build Up'!$B$15:$B$189,0)),0) -> 46.30293705 | F163: =IFERROR(INDEX('C_CAPEX Build Up'!U$15:U$189,MATCH($B163,'C_CAPEX Build Up'!$B$15:$B$189,0)),0) -> 47.63398825 | G163: =IFERROR(INDEX('C_CAPEX Build Up'!V$15:V$189,MATCH($B163,'C_CAPEX Build Up'!$B$15:$B$189,0)),0) -> 49.00330263 | H163: =IFERROR(INDEX('C_CAPEX Build Up'!W$15:W$189,MATCH($B163,'C_CAPEX Build Up'!$B$15:$B$189,0)),0) -> 50.41198012 | J163: Traditional | K163: Minor (Cat P) | L163: Legacy Luminaire - 80W MBF BOLLARD | M163: =INDEX(O163:Q163,,$M$3) -> 215 | O163: =SUM('I_Asset number input'!K163:O163) -> 215 | P163: 32 | Q163: 2049.907076
B164: 80W MBF TOORAK | C164: Capital - Traditional Luminaire | D164: =IFERROR(INDEX('C_CAPEX Build Up'!S$15:S$189,MATCH($B164,'C_CAPEX Build Up'!$B$15:$B$189,0)),0) -> 63.69595946 | E164: =IFERROR(INDEX('C_CAPEX Build Up'!T$15:T$189,MATCH($B164,'C_CAPEX Build Up'!$B$15:$B$189,0)),0) -> 65.52700062 | F164: =IFERROR(INDEX('C_CAPEX Build Up'!U$15:U$189,MATCH($B164,'C_CAPEX Build Up'!$B$15:$B$189,0)),0) -> 67.41067796 | G164: =IFERROR(INDEX('C_CAPEX Build Up'!V$15:V$189,MATCH($B164,'C_CAPEX Build Up'!$B$15:$B$189,0)),0) -> 69.34850458 | H164: =IFERROR(INDEX('C_CAPEX Build Up'!W$15:W$189,MATCH($B164,'C_CAPEX Build Up'!$B$15:$B$189,0)),0) -> 71.3420371 | J164: Traditional | K164: Minor (Cat P) | L164: Legacy Luminaire - 80W MBF TOORAK | M164: =INDEX(O164:Q164,,$M$3) -> 330 | O164: =SUM('I_Asset number input'!K164:O164) -> 330 | P164: 104 | Q164: 4452.679172
B165: TH FLOODLIGHT | C165: Capital - Traditional Luminaire | D165: =IFERROR(INDEX('C_CAPEX Build Up'!S$15:S$189,MATCH($B165,'C_CAPEX Build Up'!$B$15:$B$189,0)),0) -> 123.9946197 | E165: =IFERROR(INDEX('C_CAPEX Build Up'!T$15:T$189,MATCH($B165,'C_CAPEX Build Up'!$B$15:$B$189,0)),0) -> 127.5590413 | F165: =IFERROR(INDEX('C_CAPEX Build Up'!U$15:U$189,MATCH($B165,'C_CAPEX Build Up'!$B$15:$B$189,0)),0) -> 131.2259278 | G165: =IFERROR(INDEX('C_CAPEX Build Up'!V$15:V$189,MATCH($B165,'C_CAPEX Build Up'!$B$15:$B$189,0)),0) -> 134.9982248 | H165: =IFERROR(INDEX('C_CAPEX Build Up'!W$15:W$189,MATCH($B165,'C_CAPEX Build Up'!$B$15:$B$189,0)),0) -> 138.8789624 | J165: Traditional | K165: Major (Cat V) | L165: Legacy Luminaire - TH FLOODLIGHT | M165: =INDEX(O165:Q165,,$M$3) -> 27.5 | O165: =SUM('I_Asset number input'!K165:O165) -> 27.5 | P165: 88 | Q165: 722.3224536
B166: 10W LED PH RRW | C166: Capital - LED Luminaire | D166: =IFERROR(INDEX('C_CAPEX Build Up'!S$15:S$189,MATCH($B166,'C_CAPEX Build Up'!$B$15:$B$189,0)),0) -> 54.92529799 | E166: =IFERROR(INDEX('C_CAPEX Build Up'!T$15:T$189,MATCH($B166,'C_CAPEX Build Up'!$B$15:$B$189,0)),0) -> 56.5042126 | F166: =IFERROR(INDEX('C_CAPEX Build Up'!U$15:U$189,MATCH($B166,'C_CAPEX Build Up'!$B$15:$B$189,0)),0) -> 58.12851562 | G166: =IFERROR(INDEX('C_CAPEX Build Up'!V$15:V$189,MATCH($B166,'C_CAPEX Build Up'!$B$15:$B$189,0)),0) -> 59.7995118 | H166: =IFERROR(INDEX('C_CAPEX Build Up'!W$15:W$189,MATCH($B166,'C_CAPEX Build Up'!$B$15:$B$189,0)),0) -> 61.5185434 | J166: LED | K166: Minor (Cat P) | L166: Philips minor road RRW | M166: =INDEX(O166:Q166,,$M$3) -> 5 | O166: =SUM('I_Asset number input'!K166:O166) -> 5 | P166: 0 | Q166: 58.17521628
B167: 16W LED PH | C167: Capital - LED Luminaire | D167: =IFERROR(INDEX('C_CAPEX Build Up'!S$15:S$189,MATCH($B167,'C_CAPEX Build Up'!$B$15:$B$189,0)),0) -> 55.07571306 | E167: =IFERROR(INDEX('C_CAPEX Build Up'!T$15:T$189,MATCH($B167,'C_CAPEX Build Up'!$B$15:$B$189,0)),0) -> 56.6589516 | F167: =IFERROR(INDEX('C_CAPEX Build Up'!U$15:U$189,MATCH($B167,'C_CAPEX Build Up'!$B$15:$B$189,0)),0) -> 58.28770283 | G167: =IFERROR(INDEX('C_CAPEX Build Up'!V$15:V$189,MATCH($B167,'C_CAPEX Build Up'!$B$15:$B$189,0)),0) -> 59.96327509 | H167: =IFERROR(INDEX('C_CAPEX Build Up'!W$15:W$189,MATCH($B167,'C_CAPEX Build Up'!$B$15:$B$189,0)),0) -> 61.68701433 | J167: LED | K167: Minor (Cat P) | L167: Philips minor road | M167: =INDEX(O167:Q167,,$M$3) -> 985 | O167: =SUM('I_Asset number input'!K167:O167) -> 985 | P167: 896 | Q167: 11491.90268
B168: 17W LED ALD | C168: Capital - LED Luminaire | D168: =IFERROR(INDEX('C_CAPEX Build Up'!S$15:S$189,MATCH($B168,'C_CAPEX Build Up'!$B$15:$B$189,0)),0) -> 51.09873854 | E168: =IFERROR(INDEX('C_CAPEX Build Up'!T$15:T$189,MATCH($B168,'C_CAPEX Build Up'!$B$15:$B$189,0)),0) -> 52.56765265 | F168: =IFERROR(INDEX('C_CAPEX Build Up'!U$15:U$189,MATCH($B168,'C_CAPEX Build Up'!$B$15:$B$189,0)),0) -> 54.07879302 | G168: =IFERROR(INDEX('C_CAPEX Build Up'!V$15:V$189,MATCH($B168,'C_CAPEX Build Up'!$B$15:$B$189,0)),0) -> 55.63337351 | H168: =IFERROR(INDEX('C_CAPEX Build Up'!W$15:W$189,MATCH($B168,'C_CAPEX Build Up'!$B$15:$B$189,0)),0) -> 57.23264288 | J168: LED | K168: Minor (Cat P) | L168: Aldridge minor road | M168: =INDEX(O168:Q168,,$M$3) -> 60485 | O168: =SUM('I_Asset number input'!K168:O168) -> 60485 | P168: 204624 | Q168: 654716.7387
B169: 17W LED ALD RRW | C169: Capital - LED Luminaire | D169: =IFERROR(INDEX('C_CAPEX Build Up'!S$15:S$189,MATCH($B169,'C_CAPEX Build Up'!$B$15:$B$189,0)),0) -> 51.09873854 | E169: =IFERROR(INDEX('C_CAPEX Build Up'!T$15:T$189,MATCH($B169,'C_CAPEX Build Up'!$B$15:$B$189,0)),0) -> 52.56765265 | F169: =IFERROR(INDEX('C_CAPEX Build Up'!U$15:U$189,MATCH($B169,'C_CAPEX Build Up'!$B$15:$B$189,0)),0) -> 54.07879302 | G169: =IFERROR(INDEX('C_CAPEX Build Up'!V$15:V$189,MATCH($B169,'C_CAPEX Build Up'!$B$15:$B$189,0)),0) -> 55.63337351 | H169: =IFERROR(INDEX('C_CAPEX Build Up'!W$15:W$189,MATCH($B169,'C_CAPEX Build Up'!$B$15:$B$189,0)),0) -> 57.23264288 | J169: LED | K169: Minor (Cat P) | L169: Aldridge minor road RRW | M169: =INDEX(O169:Q169,,$M$3) -> 3525 | O169: =SUM('I_Asset number input'!K169:O169) -> 3525 | P169: 4856 | Q169: 38156.17928
B170: 17W LED ALD RRW ZHAGA | C170: Capital - LED Luminaire | D170: =IFERROR(INDEX('C_CAPEX Build Up'!S$15:S$189,MATCH($B170,'C_CAPEX Build Up'!$B$15:$B$189,0)),0) -> 53.79718494 | E170: =IFERROR(INDEX('C_CAPEX Build Up'!T$15:T$189,MATCH($B170,'C_CAPEX Build Up'!$B$15:$B$189,0)),0) -> 55.34367016 | F170: =IFERROR(INDEX('C_CAPEX Build Up'!U$15:U$189,MATCH($B170,'C_CAPEX Build Up'!$B$15:$B$189,0)),0) -> 56.93461155 | G170: =IFERROR(INDEX('C_CAPEX Build Up'!V$15:V$189,MATCH($B170,'C_CAPEX Build Up'!$B$15:$B$189,0)),0) -> 58.57128706 | H170: =IFERROR(INDEX('C_CAPEX Build Up'!W$15:W$189,MATCH($B170,'C_CAPEX Build Up'!$B$15:$B$189,0)),0) -> 60.25501141 | J170: LED | K170: Minor (Cat P) | L170: Aldridge minor road RRW ZHAGA | M170: =INDEX(O170:Q170,,$M$3) -> 3480 | O170: =SUM('I_Asset number input'!K170:O170) -> 3480 | P170: 0 | Q170: 39658.32571
B171: 17W LED ALD ZHAGA | C171: Capital - LED Luminaire | D171: =IFERROR(INDEX('C_CAPEX Build Up'!S$15:S$189,MATCH($B171,'C_CAPEX Build Up'!$B$15:$B$189,0)),0) -> 53.79718494 | E171: =IFERROR(INDEX('C_CAPEX Build Up'!T$15:T$189,MATCH($B171,'C_CAPEX Build Up'!$B$15:$B$189,0)),0) -> 55.34367016 | F171: =IFERROR(INDEX('C_CAPEX Build Up'!U$15:U$189,MATCH($B171,'C_CAPEX Build Up'!$B$15:$B$189,0)),0) -> 56.93461155 | G171: =IFERROR(INDEX('C_CAPEX Build Up'!V$15:V$189,MATCH($B171,'C_CAPEX Build Up'!$B$15:$B$189,0)),0) -> 58.57128706 | H171: =IFERROR(INDEX('C_CAPEX Build Up'!W$15:W$189,MATCH($B171,'C_CAPEX Build Up'!$B$15:$B$189,0)),0) -> 60.25501141 | J171: LED | K171: Minor (Cat P) | L171: Aldridge minor road ZHAGA | M171: =INDEX(O171:Q171,,$M$3) -> 195465 | O171: =SUM('I_Asset number input'!K171:O171) -> 195465 | P171: 0 | Q171: 2227532.941
B172: 17W LED SY RRW | C172: Capital - LED Luminaire | D172: =IFERROR(INDEX('C_CAPEX Build Up'!S$15:S$189,MATCH($B172,'C_CAPEX Build Up'!$B$15:$B$189,0)),0) -> 68.86961173 | E172: =IFERROR(INDEX('C_CAPEX Build Up'!T$15:T$189,MATCH($B172,'C_CAPEX Build Up'!$B$15:$B$189,0)),0) -> 70.84937771 | F172: =IFERROR(INDEX('C_CAPEX Build Up'!U$15:U$189,MATCH($B172,'C_CAPEX Build Up'!$B$15:$B$189,0)),0) -> 72.8860552 | G172: =IFERROR(INDEX('C_CAPEX Build Up'!V$15:V$189,MATCH($B172,'C_CAPEX Build Up'!$B$15:$B$189,0)),0) -> 74.98128021 | H172: =IFERROR(INDEX('C_CAPEX Build Up'!W$15:W$189,MATCH($B172,'C_CAPEX Build Up'!$B$15:$B$189,0)),0) -> 77.13673577 | J172: LED | K172: Minor (Cat P) | L172: 17W LED SY RRW | M172: =INDEX(O172:Q172,,$M$3) -> 12565 | O172: =SUM('I_Asset number input'!K172:O172) -> 12565 | P172: 20088 | Q172: 183309.8103
B173: 1x17W LED | C173: Capital - LED Luminaire | D173: =IFERROR(INDEX('C_CAPEX Build Up'!S$15:S$189,MATCH($B173,'C_CAPEX Build Up'!$B$15:$B$189,0)),0) -> 65.02370469 | E173: =IFERROR(INDEX('C_CAPEX Build Up'!T$15:T$189,MATCH($B173,'C_CAPEX Build Up'!$B$15:$B$189,0)),0) -> 66.89291399 | F173: =IFERROR(INDEX('C_CAPEX Build Up'!U$15:U$189,MATCH($B173,'C_CAPEX Build Up'!$B$15:$B$189,0)),0) -> 68.81585666 | G173: =IFERROR(INDEX('C_CAPEX Build Up'!V$15:V$189,MATCH($B173,'C_CAPEX Build Up'!$B$15:$B$189,0)),0) -> 70.79407737 | H173: =IFERROR(INDEX('C_CAPEX Build Up'!W$15:W$189,MATCH($B173,'C_CAPEX Build Up'!$B$15:$B$189,0)),0) -> 72.82916517 | J173: LED | K173: Minor (Cat P) | L173: 1x17W LED | M173: =INDEX(O173:Q173,,$M$3) -> 95490.13909 | O173: =SUM('I_Asset number input'!K173:O173) -> 95490.13909 | P173: 45040 | Q173: 1315303.016
B174: 20W LED GE | C174: Capital - LED Luminaire | D174: =IFERROR(INDEX('C_CAPEX Build Up'!S$15:S$189,MATCH($B174,'C_CAPEX Build Up'!$B$15:$B$189,0)),0) -> 58.13312124 | E174: =IFERROR(INDEX('C_CAPEX Build Up'!T$15:T$189,MATCH($B174,'C_CAPEX Build Up'!$B$15:$B$189,0)),0) -> 59.80424981 | F174: =IFERROR(INDEX('C_CAPEX Build Up'!U$15:U$189,MATCH($B174,'C_CAPEX Build Up'!$B$15:$B$189,0)),0) -> 61.52341762 | G174: =IFERROR(INDEX('C_CAPEX Build Up'!V$15:V$189,MATCH($B174,'C_CAPEX Build Up'!$B$15:$B$189,0)),0) -> 63.29200563 | H174: =IFERROR(INDEX('C_CAPEX Build Up'!W$15:W$189,MATCH($B174,'C_CAPEX Build Up'!$B$15:$B$189,0)),0) -> 65.11143449 | J174: LED | K174: Minor (Cat P) | L174: 20W LED GE | M174: =INDEX(O174:Q174,,$M$3) -> 223.2292886 | O174: =SUM('I_Asset number input'!K174:O174) -> 223.2292886 | P174: 392 | Q174: 2748.972511
B175: 1x22W LED | C175: Capital - LED Luminaire | D175: =IFERROR(INDEX('C_CAPEX Build Up'!S$15:S$189,MATCH($B175,'C_CAPEX Build Up'!$B$15:$B$189,0)),0) -> 67.42739659 | E175: =IFERROR(INDEX('C_CAPEX Build Up'!T$15:T$189,MATCH($B175,'C_CAPEX Build Up'!$B$15:$B$189,0)),0) -> 69.36570381 | F175: =IFERROR(INDEX('C_CAPEX Build Up'!U$15:U$189,MATCH($B175,'C_CAPEX Build Up'!$B$15:$B$189,0)),0) -> 71.35973075 | G175: =IFERROR(INDEX('C_CAPEX Build Up'!V$15:V$189,MATCH($B175,'C_CAPEX Build Up'!$B$15:$B$189,0)),0) -> 73.41107914 | H175: =IFERROR(INDEX('C_CAPEX Build Up'!W$15:W$189,MATCH($B175,'C_CAPEX Build Up'!$B$15:$B$189,0)),0) -> 75.52139679 | J175: LED | K175: Minor (Cat P) | L175: 1x22W LED | M175: =INDEX(O175:Q175,,$M$3) -> 28375.36095 | O175: =SUM('I_Asset number input'!K175:O175) -> 28375.36095 | P175: 96776 | Q175: 405296.9792
B176: 1x25W LED GE | C176: Capital - LED Luminaire | D176: =IFERROR(INDEX('C_CAPEX Build Up'!S$15:S$189,MATCH($B176,'C_CAPEX Build Up'!$B$15:$B$189,0)),0) -> 58.13312124 | E176: =IFERROR(INDEX('C_CAPEX Build Up'!T$15:T$189,MATCH($B176,'C_CAPEX Build Up'!$B$15:$B$189,0)),0) -> 59.80424981 | F176: =IFERROR(INDEX('C_CAPEX Build Up'!U$15:U$189,MATCH($B176,'C_CAPEX Build Up'!$B$15:$B$189,0)),0) -> 61.52341762 | G176: =IFERROR(INDEX('C_CAPEX Build Up'!V$15:V$189,MATCH($B176,'C_CAPEX Build Up'!$B$15:$B$189,0)),0) -> 63.29200563 | H176: =IFERROR(INDEX('C_CAPEX Build Up'!W$15:W$189,MATCH($B176,'C_CAPEX Build Up'!$B$15:$B$189,0)),0) -> 65.11143449 | J176: LED | K176: Minor (Cat P) | L176: 1x25W LED GE | M176: =INDEX(O176:Q176,,$M$3) -> 12330.26196 | O176: =SUM('I_Asset number input'!K176:O176) -> 12330.26196 | P176: 32944 | Q176: 151841.8636
B177: 25W LED PH | C177: Capital - LED Luminaire | D177: =IFERROR(INDEX('C_CAPEX Build Up'!S$15:S$189,MATCH($B177,'C_CAPEX Build Up'!$B$15:$B$189,0)),0) -> 55.22612813 | E177: =IFERROR(INDEX('C_CAPEX Build Up'!T$15:T$189,MATCH($B177,'C_CAPEX Build Up'!$B$15:$B$189,0)),0) -> 56.81369059 | F177: =IFERROR(INDEX('C_CAPEX Build Up'!U$15:U$189,MATCH($B177,'C_CAPEX Build Up'!$B$15:$B$189,0)),0) -> 58.44689004 | G177: =IFERROR(INDEX('C_CAPEX Build Up'!V$15:V$189,MATCH($B177,'C_CAPEX Build Up'!$B$15:$B$189,0)),0) -> 60.12703839 | H177: =IFERROR(INDEX('C_CAPEX Build Up'!W$15:W$189,MATCH($B177,'C_CAPEX Build Up'!$B$15:$B$189,0)),0) -> 61.85548527 | J177: LED | K177: Minor (Cat P) | L177: Philips minor road high | M177: =INDEX(O177:Q177,,$M$3) -> 4200 | O177: =SUM('I_Asset number input'!K177:O177) -> 4200 | P177: 1840 | Q177: 49134.83105
B178: 28W LED SY | C178: Capital - LED Luminaire | D178: =IFERROR(INDEX('C_CAPEX Build Up'!S$15:S$189,MATCH($B178,'C_CAPEX Build Up'!$B$15:$B$189,0)),0) -> 71.75404201 | E178: =IFERROR(INDEX('C_CAPEX Build Up'!T$15:T$189,MATCH($B178,'C_CAPEX Build Up'!$B$15:$B$189,0)),0) -> 73.8167255 | F178: =IFERROR(INDEX('C_CAPEX Build Up'!U$15:U$189,MATCH($B178,'C_CAPEX Build Up'!$B$15:$B$189,0)),0) -> 75.9387041 | G178: =IFERROR(INDEX('C_CAPEX Build Up'!V$15:V$189,MATCH($B178,'C_CAPEX Build Up'!$B$15:$B$189,0)),0) -> 78.12168233 | H178: =IFERROR(INDEX('C_CAPEX Build Up'!W$15:W$189,MATCH($B178,'C_CAPEX Build Up'!$B$15:$B$189,0)),0) -> 80.36741373 | J178: LED | K178: Minor (Cat P) | L178: 28W LED SY | M178: =INDEX(O178:Q178,,$M$3) -> 4894.559844 | O178: =SUM('I_Asset number input'!K178:O178) -> 4894.559844 | P178: 6344 | Q178: 74397.0292
B179: 1x29W LED | C179: Capital - LED Luminaire | D179: =IFERROR(INDEX('C_CAPEX Build Up'!S$15:S$189,MATCH($B179,'C_CAPEX Build Up'!$B$15:$B$189,0)),0) -> 43.3765756 | E179: =IFERROR(INDEX('C_CAPEX Build Up'!T$15:T$189,MATCH($B179,'C_CAPEX Build Up'!$B$15:$B$189,0)),0) -> 44.62350392 | F179: =IFERROR(INDEX('C_CAPEX Build Up'!U$15:U$189,MATCH($B179,'C_CAPEX Build Up'!$B$15:$B$189,0)),0) -> 45.90627716 | G179: =IFERROR(INDEX('C_CAPEX Build Up'!V$15:V$189,MATCH($B179,'C_CAPEX Build Up'!$B$15:$B$189,0)),0) -> 47.22592575 | H179: =IFERROR(INDEX('C_CAPEX Build Up'!W$15:W$189,MATCH($B179,'C_CAPEX Build Up'!$B$15:$B$189,0)),0) -> 48.58350972 | J179: LED20 | K179: Minor (Cat P) | L179: 1x29W LED | M179: =INDEX(O179:Q179,,$M$3) -> 65825 | O179: =SUM('I_Asset number input'!K179:O179) -> 65825 | P179: 105648 | Q179: 604841.6807
B180: 33W LED LRL | C180: Capital - LED Luminaire | D180: =IFERROR(INDEX('C_CAPEX Build Up'!S$15:S$189,MATCH($B180,'C_CAPEX Build Up'!$B$15:$B$189,0)),0) -> 78.3241332 | E180: =IFERROR(INDEX('C_CAPEX Build Up'!T$15:T$189,MATCH($B180,'C_CAPEX Build Up'!$B$15:$B$189,0)),0) -> 80.57568437 | F180: =IFERROR(INDEX('C_CAPEX Build Up'!U$15:U$189,MATCH($B180,'C_CAPEX Build Up'!$B$15:$B$189,0)),0) -> 82.89195994 | G180: =IFERROR(INDEX('C_CAPEX Build Up'!V$15:V$189,MATCH($B180,'C_CAPEX Build Up'!$B$15:$B$189,0)),0) -> 85.27482051 | H180: =IFERROR(INDEX('C_CAPEX Build Up'!W$15:W$189,MATCH($B180,'C_CAPEX Build Up'!$B$15:$B$189,0)),0) -> 87.72618018 | J180: LED | K180: Minor (Cat P) | L180: 33W LED LRL | M180: =INDEX(O180:Q180,,$M$3) -> 14.5025 | O180: =SUM('I_Asset number input'!K180:O180) -> 14.5025 | P180: 24 | Q180: 240.6212906
B181: 34W LED BOURKE HILL | C181: Capital - LED Luminaire | D181: =IFERROR(INDEX('C_CAPEX Build Up'!S$15:S$189,MATCH($B181,'C_CAPEX Build Up'!$B$15:$B$189,0)),0) -> 156.6058871 | E181: =IFERROR(INDEX('C_CAPEX Build Up'!T$15:T$189,MATCH($B181,'C_CAPEX Build Up'!$B$15:$B$189,0)),0) -> 161.1077712 | F181: =IFERROR(INDEX('C_CAPEX Build Up'!U$15:U$189,MATCH($B181,'C_CAPEX Build Up'!$B$15:$B$189,0)),0) -> 165.7390691 | G181: =IFERROR(INDEX('C_CAPEX Build Up'!V$15:V$189,MATCH($B181,'C_CAPEX Build Up'!$B$15:$B$189,0)),0) -> 170.5035009 | H181: =IFERROR(INDEX('C_CAPEX Build Up'!W$15:W$189,MATCH($B181,'C_CAPEX Build Up'!$B$15:$B$189,0)),0) -> 175.4048939 | J181: LED | K181: Minor (Cat P) | L181: Bourke Hill Decorative | M181: =INDEX(O181:Q181,,$M$3) -> 235 | O181: =SUM('I_Asset number input'!K181:O181) -> 235 | P181: 328 | Q181: 7795.994548
B182: 40W LED ALD | C182: Capital - LED Luminaire | D182: =IFERROR(INDEX('C_CAPEX Build Up'!S$15:S$189,MATCH($B182,'C_CAPEX Build Up'!$B$15:$B$189,0)),0) -> 56.24749274 | E182: =IFERROR(INDEX('C_CAPEX Build Up'!T$15:T$189,MATCH($B182,'C_CAPEX Build Up'!$B$15:$B$189,0)),0) -> 57.86441593 | F182: =IFERROR(INDEX('C_CAPEX Build Up'!U$15:U$189,MATCH($B182,'C_CAPEX Build Up'!$B$15:$B$189,0)),0) -> 59.52782015 | G182: =IFERROR(INDEX('C_CAPEX Build Up'!V$15:V$189,MATCH($B182,'C_CAPEX Build Up'!$B$15:$B$189,0)),0) -> 61.23904155 | H182: =IFERROR(INDEX('C_CAPEX Build Up'!W$15:W$189,MATCH($B182,'C_CAPEX Build Up'!$B$15:$B$189,0)),0) -> 62.99945471 | J182: LED | K182: Minor (Cat P) | L182: 40W LED ALD | M182: =INDEX(O182:Q182,,$M$3) -> 15 | O182: =SUM('I_Asset number input'!K182:O182) -> 15 | P182: 0 | Q182: 178.726935
B183: 40W LED ALD ZHAGA | C183: Capital - LED Luminaire | D183: =IFERROR(INDEX('C_CAPEX Build Up'!S$15:S$189,MATCH($B183,'C_CAPEX Build Up'!$B$15:$B$189,0)),0) -> 57.24620256 | E183: =IFERROR(INDEX('C_CAPEX Build Up'!T$15:T$189,MATCH($B183,'C_CAPEX Build Up'!$B$15:$B$189,0)),0) -> 58.89183525 | F183: =IFERROR(INDEX('C_CAPEX Build Up'!U$15:U$189,MATCH($B183,'C_CAPEX Build Up'!$B$15:$B$189,0)),0) -> 60.58477426 | G183: =IFERROR(INDEX('C_CAPEX Build Up'!V$15:V$189,MATCH($B183,'C_CAPEX Build Up'!$B$15:$B$189,0)),0) -> 62.32637948 | H183: =IFERROR(INDEX('C_CAPEX Build Up'!W$15:W$189,MATCH($B183,'C_CAPEX Build Up'!$B$15:$B$189,0)),0) -> 64.11804989 | J183: LED | K183: Minor (Cat P) | L183: 40W LED ALD ZHAGA | M183: =INDEX(O183:Q183,,$M$3) -> 0 | O183: =SUM('I_Asset number input'!K183:O183) -> 0 | P183: 0 | Q183: 0
B184: 42W LED LRL | C184: Capital - LED Luminaire | D184: =IFERROR(INDEX('C_CAPEX Build Up'!S$15:S$189,MATCH($B184,'C_CAPEX Build Up'!$B$15:$B$189,0)),0) -> 85.85570116 | E184: =IFERROR(INDEX('C_CAPEX Build Up'!T$15:T$189,MATCH($B184,'C_CAPEX Build Up'!$B$15:$B$189,0)),0) -> 88.32375916 | F184: =IFERROR(INDEX('C_CAPEX Build Up'!U$15:U$189,MATCH($B184,'C_CAPEX Build Up'!$B$15:$B$189,0)),0) -> 90.8627654 | G184: =IFERROR(INDEX('C_CAPEX Build Up'!V$15:V$189,MATCH($B184,'C_CAPEX Build Up'!$B$15:$B$189,0)),0) -> 93.47475939 | H184: =IFERROR(INDEX('C_CAPEX Build Up'!W$15:W$189,MATCH($B184,'C_CAPEX Build Up'!$B$15:$B$189,0)),0) -> 96.16183929 | J184: LED | K184: Major (Cat V) | L184: 42W LED LRL | M184: =INDEX(O184:Q184,,$M$3) -> 48.2612375 | O184: =SUM('I_Asset number input'!K184:O184) -> 48.2612375 | P184: 80 | Q184: 877.7345092
B185: 49W LED PH | C185: Capital - LED Luminaire | D185: =IFERROR(INDEX('C_CAPEX Build Up'!S$15:S$189,MATCH($B185,'C_CAPEX Build Up'!$B$15:$B$189,0)),0) -> 59.13692002 | E185: =IFERROR(INDEX('C_CAPEX Build Up'!T$15:T$189,MATCH($B185,'C_CAPEX Build Up'!$B$15:$B$189,0)),0) -> 60.83690438 | F185: =IFERROR(INDEX('C_CAPEX Build Up'!U$15:U$189,MATCH($B185,'C_CAPEX Build Up'!$B$15:$B$189,0)),0) -> 62.58575748 | G185: =IFERROR(INDEX('C_CAPEX Build Up'!V$15:V$189,MATCH($B185,'C_CAPEX Build Up'!$B$15:$B$189,0)),0) -> 64.38488413 | H185: =IFERROR(INDEX('C_CAPEX Build Up'!W$15:W$189,MATCH($B185,'C_CAPEX Build Up'!$B$15:$B$189,0)),0) -> 66.23572952 | J185: LED | K185: Minor (Cat P) | L185: Philips major road V5 | M185: =INDEX(O185:Q185,,$M$3) -> 940 | O185: =SUM('I_Asset number input'!K185:O185) -> 940 | P185: 528 | Q185: 11775.57535
B186: 49W LED PH ZHAGA | C186: Capital - LED Luminaire | D186: =IFERROR(INDEX('C_CAPEX Build Up'!S$15:S$189,MATCH($B186,'C_CAPEX Build Up'!$B$15:$B$189,0)),0) -> 67.40974902 | E186: =IFERROR(INDEX('C_CAPEX Build Up'!T$15:T$189,MATCH($B186,'C_CAPEX Build Up'!$B$15:$B$189,0)),0) -> 69.34754894 | F186: =IFERROR(INDEX('C_CAPEX Build Up'!U$15:U$189,MATCH($B186,'C_CAPEX Build Up'!$B$15:$B$189,0)),0) -> 71.34105398 | G186: =IFERROR(INDEX('C_CAPEX Build Up'!V$15:V$189,MATCH($B186,'C_CAPEX Build Up'!$B$15:$B$189,0)),0) -> 73.39186549 | H186: =IFERROR(INDEX('C_CAPEX Build Up'!W$15:W$189,MATCH($B186,'C_CAPEX Build Up'!$B$15:$B$189,0)),0) -> 75.50163081 | J186: LED | K186: Minor (Cat P) | L186: Philips major road V5 ZHAGA | M186: =INDEX(O186:Q186,,$M$3) -> 4779.666667 | O186: =SUM('I_Asset number input'!K186:O186) -> 4779.666667 | P186: 0 | Q186: 68252.08149
B187: 50W LED SY PT | C187: Capital - LED Luminaire | D187: =IFERROR(INDEX('C_CAPEX Build Up'!S$15:S$189,MATCH($B187,'C_CAPEX Build Up'!$B$15:$B$189,0)),0) -> 203.2389339 | E187: =IFERROR(INDEX('C_CAPEX Build Up'!T$15:T$189,MATCH($B187,'C_CAPEX Build Up'!$B$15:$B$189,0)),0) -> 209.0813587 | F187: =IFERROR(INDEX('C_CAPEX Build Up'!U$15:U$189,MATCH($B187,'C_CAPEX Build Up'!$B$15:$B$189,0)),0) -> 215.0917333 | G187: =IFERROR(INDEX('C_CAPEX Build Up'!V$15:V$189,MATCH($B187,'C_CAPEX Build Up'!$B$15:$B$189,0)),0) -> 221.2748855 | H187: =IFERROR(INDEX('C_CAPEX Build Up'!W$15:W$189,MATCH($B187,'C_CAPEX Build Up'!$B$15:$B$189,0)),0) -> 227.6357823 | J187: LED | K187: Minor (Cat P) | L187: 50W LED SY PT | M187: =INDEX(O187:Q187,,$M$3) -> 125 | O187: =SUM('I_Asset number input'!K187:O187) -> 125 | P187: 152 | Q187: 5381.613468
B188: 58W LED ALD | C188: Capital - LED Luminaire | D188: =IFERROR(INDEX('C_CAPEX Build Up'!S$15:S$189,MATCH($B188,'C_CAPEX Build Up'!$B$15:$B$189,0)),0) -> 83.63887832 | E188: =IFERROR(INDEX('C_CAPEX Build Up'!T$15:T$189,MATCH($B188,'C_CAPEX Build Up'!$B$15:$B$189,0)),0) -> 86.04321024 | F188: =IFERROR(INDEX('C_CAPEX Build Up'!U$15:U$189,MATCH($B188,'C_CAPEX Build Up'!$B$15:$B$189,0)),0) -> 88.51665849 | G188: =IFERROR(INDEX('C_CAPEX Build Up'!V$15:V$189,MATCH($B188,'C_CAPEX Build Up'!$B$15:$B$189,0)),0) -> 91.06120993 | H188: =IFERROR(INDEX('C_CAPEX Build Up'!W$15:W$189,MATCH($B188,'C_CAPEX Build Up'!$B$15:$B$189,0)),0) -> 93.67890852 | J188: LED | K188: Minor (Cat P) | L188: Aldridge major road V5 | M188: =INDEX(O188:Q188,,$M$3) -> 30 | O188: =SUM('I_Asset number input'!K188:O188) -> 30 | P188: 16 | Q188: 531.5266386
B189: 58W LED ALD ZHAGA | C189: Capital - LED Luminaire | D189: =IFERROR(INDEX('C_CAPEX Build Up'!S$15:S$189,MATCH($B189,'C_CAPEX Build Up'!$B$15:$B$189,0)),0) -> 86.6379768 | E189: =IFERROR(INDEX('C_CAPEX Build Up'!T$15:T$189,MATCH($B189,'C_CAPEX Build Up'!$B$15:$B$189,0)),0) -> 89.12852256 | F189: =IFERROR(INDEX('C_CAPEX Build Up'!U$15:U$189,MATCH($B189,'C_CAPEX Build Up'!$B$15:$B$189,0)),0) -> 91.69066299 | G189: =IFERROR(INDEX('C_CAPEX Build Up'!V$15:V$189,MATCH($B189,'C_CAPEX Build Up'!$B$15:$B$189,0)),0) -> 94.32645621 | H189: =IFERROR(INDEX('C_CAPEX Build Up'!W$15:W$189,MATCH($B189,'C_CAPEX Build Up'!$B$15:$B$189,0)),0) -> 97.03801948 | J189: LED | K189: Minor (Cat P) | L189: Aldridge major road V5 Zhaga | M189: =INDEX(O189:Q189,,$M$3) -> 0 | O189: =SUM('I_Asset number input'!K189:O189) -> 0 | P189: 0 | Q189: 0
B190: 70W LED PH FLOOD | C190: Capital - LED Luminaire | D190: =IFERROR(INDEX('C_CAPEX Build Up'!S$15:S$189,MATCH($B190,'C_CAPEX Build Up'!$B$15:$B$189,0)),0) -> 76.73548353 | E190: =IFERROR(INDEX('C_CAPEX Build Up'!T$15:T$189,MATCH($B190,'C_CAPEX Build Up'!$B$15:$B$189,0)),0) -> 78.94136644 | F190: =IFERROR(INDEX('C_CAPEX Build Up'!U$15:U$189,MATCH($B190,'C_CAPEX Build Up'!$B$15:$B$189,0)),0) -> 81.21066096 | G190: =IFERROR(INDEX('C_CAPEX Build Up'!V$15:V$189,MATCH($B190,'C_CAPEX Build Up'!$B$15:$B$189,0)),0) -> 83.54518993 | H190: =IFERROR(INDEX('C_CAPEX Build Up'!W$15:W$189,MATCH($B190,'C_CAPEX Build Up'!$B$15:$B$189,0)),0) -> 85.94682863 | J190: LED | K190: Major (Cat V) | L190: Philips floodlight PX3 | M190: =INDEX(O190:Q190,,$M$3) -> 1177.5 | O190: =SUM('I_Asset number input'!K190:O190) -> 1177.5 | P190: 40 | Q190: 19140.47584
B191: 74W LED ALD | C191: Capital - LED Luminaire | D191: =IFERROR(INDEX('C_CAPEX Build Up'!S$15:S$189,MATCH($B191,'C_CAPEX Build Up'!$B$15:$B$189,0)),0) -> 83.63887832 | E191: =IFERROR(INDEX('C_CAPEX Build Up'!T$15:T$189,MATCH($B191,'C_CAPEX Build Up'!$B$15:$B$189,0)),0) -> 86.04321024 | F191: =IFERROR(INDEX('C_CAPEX Build Up'!U$15:U$189,MATCH($B191,'C_CAPEX Build Up'!$B$15:$B$189,0)),0) -> 88.51665849 | G191: =IFERROR(INDEX('C_CAPEX Build Up'!V$15:V$189,MATCH($B191,'C_CAPEX Build Up'!$B$15:$B$189,0)),0) -> 91.06120993 | H191: =IFERROR(INDEX('C_CAPEX Build Up'!W$15:W$189,MATCH($B191,'C_CAPEX Build Up'!$B$15:$B$189,0)),0) -> 93.67890852 | J191: LED | K191: Major (Cat V) | L191: Aldridge major road V3 | M191: =INDEX(O191:Q191,,$M$3) -> 155 | O191: =SUM('I_Asset number input'!K191:O191) -> 155 | P191: 184 | Q191: 2746.220966
B192: 74W LED ALD ZHAGA | C192: Capital - LED Luminaire | D192: =IFERROR(INDEX('C_CAPEX Build Up'!S$15:S$189,MATCH($B192,'C_CAPEX Build Up'!$B$15:$B$189,0)),0) -> 86.6379768 | E192: =IFERROR(INDEX('C_CAPEX Build Up'!T$15:T$189,MATCH($B192,'C_CAPEX Build Up'!$B$15:$B$189,0)),0) -> 89.12852256 | F192: =IFERROR(INDEX('C_CAPEX Build Up'!U$15:U$189,MATCH($B192,'C_CAPEX Build Up'!$B$15:$B$189,0)),0) -> 91.69066299 | G192: =IFERROR(INDEX('C_CAPEX Build Up'!V$15:V$189,MATCH($B192,'C_CAPEX Build Up'!$B$15:$B$189,0)),0) -> 94.32645621 | H192: =IFERROR(INDEX('C_CAPEX Build Up'!W$15:W$189,MATCH($B192,'C_CAPEX Build Up'!$B$15:$B$189,0)),0) -> 97.03801948 | J192: LED | K192: Major (Cat V) | L192: Aldridge major road V3 ZHAGA | M192: =INDEX(O192:Q192,,$M$3) -> 5 | O192: =SUM('I_Asset number input'!K192:O192) -> 5 | P192: 0 | Q192: 91.76432761
B193: 76W LED PH | C193: Capital - LED Luminaire | D193: =IFERROR(INDEX('C_CAPEX Build Up'!S$15:S$189,MATCH($B193,'C_CAPEX Build Up'!$B$15:$B$189,0)),0) -> 60.18982553 | E193: =IFERROR(INDEX('C_CAPEX Build Up'!T$15:T$189,MATCH($B193,'C_CAPEX Build Up'!$B$15:$B$189,0)),0) -> 61.92007732 | F193: =IFERROR(INDEX('C_CAPEX Build Up'!U$15:U$189,MATCH($B193,'C_CAPEX Build Up'!$B$15:$B$189,0)),0) -> 63.70006794 | G193: =IFERROR(INDEX('C_CAPEX Build Up'!V$15:V$189,MATCH($B193,'C_CAPEX Build Up'!$B$15:$B$189,0)),0) -> 65.53122721 | H193: =IFERROR(INDEX('C_CAPEX Build Up'!W$15:W$189,MATCH($B193,'C_CAPEX Build Up'!$B$15:$B$189,0)),0) -> 67.41502604 | J193: LED | K193: Major (Cat V) | L193: Philips major road V3 | M193: =INDEX(O193:Q193,,$M$3) -> 16885 | O193: =SUM('I_Asset number input'!K193:O193) -> 16885 | P193: 19376 | Q193: 215287.9537
B194: 76W LED PH ZHAGA | C194: Capital - LED Luminaire | D194: =IFERROR(INDEX('C_CAPEX Build Up'!S$15:S$189,MATCH($B194,'C_CAPEX Build Up'!$B$15:$B$189,0)),0) -> 68.46265453 | E194: =IFERROR(INDEX('C_CAPEX Build Up'!T$15:T$189,MATCH($B194,'C_CAPEX Build Up'!$B$15:$B$189,0)),0) -> 70.43072188 | F194: =IFERROR(INDEX('C_CAPEX Build Up'!U$15:U$189,MATCH($B194,'C_CAPEX Build Up'!$B$15:$B$189,0)),0) -> 72.45536445 | G194: =IFERROR(INDEX('C_CAPEX Build Up'!V$15:V$189,MATCH($B194,'C_CAPEX Build Up'!$B$15:$B$189,0)),0) -> 74.53820857 | H194: =IFERROR(INDEX('C_CAPEX Build Up'!W$15:W$189,MATCH($B194,'C_CAPEX Build Up'!$B$15:$B$189,0)),0) -> 76.68092734 | J194: LED | K194: Major (Cat V) | L194: Philips major road V3 ZHAGA | M194: =INDEX(O194:Q194,,$M$3) -> 133207.6667 | O194: =SUM('I_Asset number input'!K194:O194) -> 133207.6667 | P194: 0 | Q194: 1931872.835
B195: 100W LED ALD | C195: Capital - LED Luminaire | D195: =IFERROR(INDEX('C_CAPEX Build Up'!S$15:S$189,MATCH($B195,'C_CAPEX Build Up'!$B$15:$B$189,0)),0) -> 117.7446804 | E195: =IFERROR(INDEX('C_CAPEX Build Up'!T$15:T$189,MATCH($B195,'C_CAPEX Build Up'!$B$15:$B$189,0)),0) -> 121.1294376 | F195: =IFERROR(INDEX('C_CAPEX Build Up'!U$15:U$189,MATCH($B195,'C_CAPEX Build Up'!$B$15:$B$189,0)),0) -> 124.6114949 | G195: =IFERROR(INDEX('C_CAPEX Build Up'!V$15:V$189,MATCH($B195,'C_CAPEX Build Up'!$B$15:$B$189,0)),0) -> 128.1936496 | H195: =IFERROR(INDEX('C_CAPEX Build Up'!W$15:W$189,MATCH($B195,'C_CAPEX Build Up'!$B$15:$B$189,0)),0) -> 131.8787789 | J195: LED | K195: Major (Cat V) | L195: 100W LED ALD | M195: =INDEX(O195:Q195,,$M$3) -> 13519.92888 | O195: =SUM('I_Asset number input'!K195:O195) -> 13519.92888 | P195: 22168 | Q195: 337218.4147
B196: 100W LED SY CT | C196: Capital - LED Luminaire | D196: =IFERROR(INDEX('C_CAPEX Build Up'!S$15:S$189,MATCH($B196,'C_CAPEX Build Up'!$B$15:$B$189,0)),0) -> 221.3301882 | E196: =IFERROR(INDEX('C_CAPEX Build Up'!T$15:T$189,MATCH($B196,'C_CAPEX Build Up'!$B$15:$B$189,0)),0) -> 227.6926747 | F196: =IFERROR(INDEX('C_CAPEX Build Up'!U$15:U$189,MATCH($B196,'C_CAPEX Build Up'!$B$15:$B$189,0)),0) -> 234.238061 | G196: =IFERROR(INDEX('C_CAPEX Build Up'!V$15:V$189,MATCH($B196,'C_CAPEX Build Up'!$B$15:$B$189,0)),0) -> 240.9716048 | H196: =IFERROR(INDEX('C_CAPEX Build Up'!W$15:W$189,MATCH($B196,'C_CAPEX Build Up'!$B$15:$B$189,0)),0) -> 247.8987149 | J196: LED | K196: Minor (Cat P) | L196: 100W LED SY CT | M196: =INDEX(O196:Q196,,$M$3) -> 30 | O196: =SUM('I_Asset number input'!K196:O196) -> 30 | P196: 40 | Q196: 1406.557492
B197: 100W LED SY PT | C197: Capital - LED Luminaire | D197: =IFERROR(INDEX('C_CAPEX Build Up'!S$15:S$189,MATCH($B197,'C_CAPEX Build Up'!$B$15:$B$189,0)),0) -> 218.3149791 | E197: =IFERROR(INDEX('C_CAPEX Build Up'!T$15:T$189,MATCH($B197,'C_CAPEX Build Up'!$B$15:$B$189,0)),0) -> 224.5907887 | F197: =IFERROR(INDEX('C_CAPEX Build Up'!U$15:U$189,MATCH($B197,'C_CAPEX Build Up'!$B$15:$B$189,0)),0) -> 231.0470064 | G197: =IFERROR(INDEX('C_CAPEX Build Up'!V$15:V$189,MATCH($B197,'C_CAPEX Build Up'!$B$15:$B$189,0)),0) -> 237.6888182 | H197: =IFERROR(INDEX('C_CAPEX Build Up'!W$15:W$189,MATCH($B197,'C_CAPEX Build Up'!$B$15:$B$189,0)),0) -> 244.5215595 | J197: LED | K197: Minor (Cat P) | L197: 100W LED SY PT | M197: =INDEX(O197:Q197,,$M$3) -> 215 | O197: =SUM('I_Asset number input'!K197:O197) -> 215 | P197: 304 | Q197: 9943.003107
B198: 110W LED SY FLOOD | C198: Capital - LED Luminaire | D198: =IFERROR(INDEX('C_CAPEX Build Up'!S$15:S$189,MATCH($B198,'C_CAPEX Build Up'!$B$15:$B$189,0)),0) -> 119.002119 | E198: =IFERROR(INDEX('C_CAPEX Build Up'!T$15:T$189,MATCH($B198,'C_CAPEX Build Up'!$B$15:$B$189,0)),0) -> 122.4230232 | F198: =IFERROR(INDEX('C_CAPEX Build Up'!U$15:U$189,MATCH($B198,'C_CAPEX Build Up'!$B$15:$B$189,0)),0) -> 125.9422667 | G198: =IFERROR(INDEX('C_CAPEX Build Up'!V$15:V$189,MATCH($B198,'C_CAPEX Build Up'!$B$15:$B$189,0)),0) -> 129.5626765 | H198: =IFERROR(INDEX('C_CAPEX Build Up'!W$15:W$189,MATCH($B198,'C_CAPEX Build Up'!$B$15:$B$189,0)),0) -> 133.2871607 | J198: LED | K198: Major (Cat V) | L198: Sylvania floodlight PX2 | M198: =INDEX(O198:Q198,,$M$3) -> 20 | O198: =SUM('I_Asset number input'!K198:O198) -> 20 | P198: 0 | Q198: =+O198/5*AVERAGE(D198,E198,F198,G198,H198) -> 504.1737969
B199: 120W LED PH FLOOD | C199: Capital - LED Luminaire | D199: =IFERROR(INDEX('C_CAPEX Build Up'!S$15:S$189,MATCH($B199,'C_CAPEX Build Up'!$B$15:$B$189,0)),0) -> 85.30914267 | E199: =IFERROR(INDEX('C_CAPEX Build Up'!T$15:T$189,MATCH($B199,'C_CAPEX Build Up'!$B$15:$B$189,0)),0) -> 87.76148899 | F199: =IFERROR(INDEX('C_CAPEX Build Up'!U$15:U$189,MATCH($B199,'C_CAPEX Build Up'!$B$15:$B$189,0)),0) -> 90.28433188 | G199: =IFERROR(INDEX('C_CAPEX Build Up'!V$15:V$189,MATCH($B199,'C_CAPEX Build Up'!$B$15:$B$189,0)),0) -> 92.87969789 | H199: =IFERROR(INDEX('C_CAPEX Build Up'!W$15:W$189,MATCH($B199,'C_CAPEX Build Up'!$B$15:$B$189,0)),0) -> 95.5496718 | J199: LED | K199: Major (Cat V) | L199: Philips floodlight PX2 | M199: =INDEX(O199:Q199,,$M$3) -> 130 | O199: =SUM('I_Asset number input'!K199:O199) -> 130 | P199: 112 | Q199: 2349.278533
B200: 140W LED PH | C200: Capital - LED Luminaire | D200: =IFERROR(INDEX('C_CAPEX Build Up'!S$15:S$189,MATCH($B200,'C_CAPEX Build Up'!$B$15:$B$189,0)),0) -> 65.45435308 | E200: =IFERROR(INDEX('C_CAPEX Build Up'!T$15:T$189,MATCH($B200,'C_CAPEX Build Up'!$B$15:$B$189,0)),0) -> 67.33594204 | F200: =IFERROR(INDEX('C_CAPEX Build Up'!U$15:U$189,MATCH($B200,'C_CAPEX Build Up'!$B$15:$B$189,0)),0) -> 69.27162027 | G200: =IFERROR(INDEX('C_CAPEX Build Up'!V$15:V$189,MATCH($B200,'C_CAPEX Build Up'!$B$15:$B$189,0)),0) -> 71.26294262 | H200: =IFERROR(INDEX('C_CAPEX Build Up'!W$15:W$189,MATCH($B200,'C_CAPEX Build Up'!$B$15:$B$189,0)),0) -> 73.31150869 | J200: LED | K200: Major (Cat V) | L200: Philips major road V1 | M200: =INDEX(O200:Q200,,$M$3) -> 16890 | O200: =SUM('I_Asset number input'!K200:O200) -> 16890 | P200: 19768 | Q200: 234187.5293
... 37 more rows

Sheet Weighted average price list
B1: Public lighting pricing list - weighted average price
B2: This sheet displays the proposed weighted average post 2009 annuity capital and and annual maintenace charges.
C3: Nominal $
B4: Categories | C4: ='C_CAPEX Build Up'!S14 -> FY25 | D4: ='C_CAPEX Build Up'!T14 -> FY26 | E4: ='C_CAPEX Build Up'!U14 -> FY27 | F4: ='C_CAPEX Build Up'!V14 -> FY28 | G4: ='C_CAPEX Build Up'!W14 -> FY29
B5: Connection - O/U | C5: =IF(SUMIF('Detailed price list'!$L$5:$L$237,$B5,'Detailed price list'!$M$5:$M$237)=0,0, SUMPRODUCT(('Detailed price list'!D$5:D$237)*('Detailed price list'!$M$5:$M$237)*('Detailed price list'!$L$5:$L$237=$B5))/SUMIF('Detailed price list'!$L$5:$L$237,$B5,'Detailed price list'!$M$5:$M$237)) -> 101.0791094 | D5: =IF(SUMIF('Detailed price list'!$L$5:$L$237,$B5,'Detailed price list'!$M$5:$M$237)=0,0, SUMPRODUCT(('Detailed price list'!E$5:E$237)*('Detailed price list'!$M$5:$M$237)*('Detailed price list'!$L$5:$L$237=$B5))/SUMIF('Detailed price list'!$L$5:$L$237,$B5,'Detailed price list'!$M$5:$M$237)) -> 103.9847883 | E5: =IF(SUMIF('Detailed price list'!$L$5:$L$237,$B5,'Detailed price list'!$M$5:$M$237)=0,0, SUMPRODUCT(('Detailed price list'!F$5:F$237)*('Detailed price list'!$M$5:$M$237)*('Detailed price list'!$L$5:$L$237=$B5))/SUMIF('Detailed price list'!$L$5:$L$237,$B5,'Detailed price list'!$M$5:$M$237)) -> 106.9739956 | F5: =IF(SUMIF('Detailed price list'!$L$5:$L$237,$B5,'Detailed price list'!$M$5:$M$237)=0,0, SUMPRODUCT(('Detailed price list'!G$5:G$237)*('Detailed price list'!$M$5:$M$237)*('Detailed price list'!$L$5:$L$237=$B5))/SUMIF('Detailed price list'!$L$5:$L$237,$B5,'Detailed price list'!$M$5:$M$237)) -> 110.0491325 | G5: =IF(SUMIF('Detailed price list'!$L$5:$L$237,$B5,'Detailed price list'!$M$5:$M$237)=0,0, SUMPRODUCT(('Detailed price list'!H$5:H$237)*('Detailed price list'!$M$5:$M$237)*('Detailed price list'!$L$5:$L$237=$B5))/SUMIF('Detailed price list'!$L$5:$L$237,$B5,'Detailed price list'!$M$5:$M$237)) -> 113.2126689
B6: Connection - UGR1 | C6: =IF(SUMIF('Detailed price list'!$L$5:$L$237,$B6,'Detailed price list'!$M$5:$M$237)=0,0, SUMPRODUCT(('Detailed price list'!D$5:D$237)*('Detailed price list'!$M$5:$M$237)*('Detailed price list'!$L$5:$L$237=$B6))/SUMIF('Detailed price list'!$L$5:$L$237,$B6,'Detailed price list'!$M$5:$M$237)) -> 92.65350793 | D6: =IF(SUMIF('Detailed price list'!$L$5:$L$237,$B6,'Detailed price list'!$M$5:$M$237)=0,0, SUMPRODUCT(('Detailed price list'!E$5:E$237)*('Detailed price list'!$M$5:$M$237)*('Detailed price list'!$L$5:$L$237=$B6))/SUMIF('Detailed price list'!$L$5:$L$237,$B6,'Detailed price list'!$M$5:$M$237)) -> 95.31697965 | E6: =IF(SUMIF('Detailed price list'!$L$5:$L$237,$B6,'Detailed price list'!$M$5:$M$237)=0,0, SUMPRODUCT(('Detailed price list'!F$5:F$237)*('Detailed price list'!$M$5:$M$237)*('Detailed price list'!$L$5:$L$237=$B6))/SUMIF('Detailed price list'!$L$5:$L$237,$B6,'Detailed price list'!$M$5:$M$237)) -> 98.05701708 | F6: =IF(SUMIF('Detailed price list'!$L$5:$L$237,$B6,'Detailed price list'!$M$5:$M$237)=0,0, SUMPRODUCT(('Detailed price list'!G$5:G$237)*('Detailed price list'!$M$5:$M$237)*('Detailed price list'!$L$5:$L$237=$B6))/SUMIF('Detailed price list'!$L$5:$L$237,$B6,'Detailed price list'!$M$5:$M$237)) -> 100.8758212 | G6: =IF(SUMIF('Detailed price list'!$L$5:$L$237,$B6,'Detailed price list'!$M$5:$M$237)=0,0, SUMPRODUCT(('Detailed price list'!H$5:H$237)*('Detailed price list'!$M$5:$M$237)*('Detailed price list'!$L$5:$L$237=$B6))/SUMIF('Detailed price list'!$L$5:$L$237,$B6,'Detailed price list'!$M$5:$M$237)) -> 103.7756563
B7: Connection - UGR2 | C7: =IF(SUMIF('Detailed price list'!$L$5:$L$237,$B7,'Detailed price list'!$M$5:$M$237)=0,0, SUMPRODUCT(('Detailed price list'!D$5:D$237)*('Detailed price list'!$M$5:$M$237)*('Detailed price list'!$L$5:$L$237=$B7))/SUMIF('Detailed price list'!$L$5:$L$237,$B7,'Detailed price list'!$M$5:$M$237)) -> 33.68802363 | D7: =IF(SUMIF('Detailed price list'!$L$5:$L$237,$B7,'Detailed price list'!$M$5:$M$237)=0,0, SUMPRODUCT(('Detailed price list'!E$5:E$237)*('Detailed price list'!$M$5:$M$237)*('Detailed price list'!$L$5:$L$237=$B7))/SUMIF('Detailed price list'!$L$5:$L$237,$B7,'Detailed price list'!$M$5:$M$237)) -> 34.65643919 | E7: =IF(SUMIF('Detailed price list'!$L$5:$L$237,$B7,'Detailed price list'!$M$5:$M$237)=0,0, SUMPRODUCT(('Detailed price list'!F$5:F$237)*('Detailed price list'!$M$5:$M$237)*('Detailed price list'!$L$5:$L$237=$B7))/SUMIF('Detailed price list'!$L$5:$L$237,$B7,'Detailed price list'!$M$5:$M$237)) -> 35.65269338 | F7: =IF(SUMIF('Detailed price list'!$L$5:$L$237,$B7,'Detailed price list'!$M$5:$M$237)=0,0, SUMPRODUCT(('Detailed price list'!G$5:G$237)*('Detailed price list'!$M$5:$M$237)*('Detailed price list'!$L$5:$L$237=$B7))/SUMIF('Detailed price list'!$L$5:$L$237,$B7,'Detailed price list'!$M$5:$M$237)) -> 36.67758647 | G7: =IF(SUMIF('Detailed price list'!$L$5:$L$237,$B7,'Detailed price list'!$M$5:$M$237)=0,0, SUMPRODUCT(('Detailed price list'!H$5:H$237)*('Detailed price list'!$M$5:$M$237)*('Detailed price list'!$L$5:$L$237=$B7))/SUMIF('Detailed price list'!$L$5:$L$237,$B7,'Detailed price list'!$M$5:$M$237)) -> 37.73194174
B8: Legacy Luminaire - Major (Cat V) road | C8: =IF(SUMIF('Detailed price list'!$L$5:$L$237,$B8,'Detailed price list'!$M$5:$M$237)=0,0, SUMPRODUCT(('Detailed price list'!D$5:D$237)*('Detailed price list'!$M$5:$M$237)*('Detailed price list'!$L$5:$L$237=$B8))/SUMIF('Detailed price list'!$L$5:$L$237,$B8,'Detailed price list'!$M$5:$M$237)) -> 53.43183113 | D8: =IF(SUMIF('Detailed price list'!$L$5:$L$237,$B8,'Detailed price list'!$M$5:$M$237)=0,0, SUMPRODUCT(('Detailed price list'!E$5:E$237)*('Detailed price list'!$M$5:$M$237)*('Detailed price list'!$L$5:$L$237=$B8))/SUMIF('Detailed price list'!$L$5:$L$237,$B8,'Detailed price list'!$M$5:$M$237)) -> 54.96781368 | E8: =IF(SUMIF('Detailed price list'!$L$5:$L$237,$B8,'Detailed price list'!$M$5:$M$237)=0,0, SUMPRODUCT(('Detailed price list'!F$5:F$237)*('Detailed price list'!$M$5:$M$237)*('Detailed price list'!$L$5:$L$237=$B8))/SUMIF('Detailed price list'!$L$5:$L$237,$B8,'Detailed price list'!$M$5:$M$237)) -> 56.54795048 | F8: =IF(SUMIF('Detailed price list'!$L$5:$L$237,$B8,'Detailed price list'!$M$5:$M$237)=0,0, SUMPRODUCT(('Detailed price list'!G$5:G$237)*('Detailed price list'!$M$5:$M$237)*('Detailed price list'!$L$5:$L$237=$B8))/SUMIF('Detailed price list'!$L$5:$L$237,$B8,'Detailed price list'!$M$5:$M$237)) -> 58.17351081 | G8: =IF(SUMIF('Detailed price list'!$L$5:$L$237,$B8,'Detailed price list'!$M$5:$M$237)=0,0, SUMPRODUCT(('Detailed price list'!H$5:H$237)*('Detailed price list'!$M$5:$M$237)*('Detailed price list'!$L$5:$L$237=$B8))/SUMIF('Detailed price list'!$L$5:$L$237,$B8,'Detailed price list'!$M$5:$M$237)) -> 59.84580044
B9: Legacy Luminaire - Minor (Cat P) road | C9: =IF(SUMIF('Detailed price list'!$L$5:$L$237,$B9,'Detailed price list'!$M$5:$M$237)=0,0, SUMPRODUCT(('Detailed price list'!D$5:D$237)*('Detailed price list'!$M$5:$M$237)*('Detailed price list'!$L$5:$L$237=$B9))/SUMIF('Detailed price list'!$L$5:$L$237,$B9,'Detailed price list'!$M$5:$M$237)) -> 33.38595335 | D9: =IF(SUMIF('Detailed price list'!$L$5:$L$237,$B9,'Detailed price list'!$M$5:$M$237)=0,0, SUMPRODUCT(('Detailed price list'!E$5:E$237)*('Detailed price list'!$M$5:$M$237)*('Detailed price list'!$L$5:$L$237=$B9))/SUMIF('Detailed price list'!$L$5:$L$237,$B9,'Detailed price list'!$M$5:$M$237)) -> 34.34568542 | E9: =IF(SUMIF('Detailed price list'!$L$5:$L$237,$B9,'Detailed price list'!$M$5:$M$237)=0,0, SUMPRODUCT(('Detailed price list'!F$5:F$237)*('Detailed price list'!$M$5:$M$237)*('Detailed price list'!$L$5:$L$237=$B9))/SUMIF('Detailed price list'!$L$5:$L$237,$B9,'Detailed price list'!$M$5:$M$237)) -> 35.3330065 | F9: =IF(SUMIF('Detailed price list'!$L$5:$L$237,$B9,'Detailed price list'!$M$5:$M$237)=0,0, SUMPRODUCT(('Detailed price list'!G$5:G$237)*('Detailed price list'!$M$5:$M$237)*('Detailed price list'!$L$5:$L$237=$B9))/SUMIF('Detailed price list'!$L$5:$L$237,$B9,'Detailed price list'!$M$5:$M$237)) -> 36.34870969 | G9: =IF(SUMIF('Detailed price list'!$L$5:$L$237,$B9,'Detailed price list'!$M$5:$M$237)=0,0, SUMPRODUCT(('Detailed price list'!H$5:H$237)*('Detailed price list'!$M$5:$M$237)*('Detailed price list'!$L$5:$L$237=$B9))/SUMIF('Detailed price list'!$L$5:$L$237,$B9,'Detailed price list'!$M$5:$M$237)) -> 37.39361088
B10: Legacy Luminaire - Major (Cat V) road | C10: =IF(SUMIF('Detailed price list'!$L$5:$L$237,$B10,'Detailed price list'!$M$5:$M$237)=0,0, SUMPRODUCT(('Detailed price list'!D$5:D$237)*('Detailed price list'!$M$5:$M$237)*('Detailed price list'!$L$5:$L$237=$B10))/SUMIF('Detailed price list'!$L$5:$L$237,$B10,'Detailed price list'!$M$5:$M$237)) -> 53.43183113 | D10: =IF(SUMIF('Detailed price list'!$L$5:$L$237,$B10,'Detailed price list'!$M$5:$M$237)=0,0, SUMPRODUCT(('Detailed price list'!E$5:E$237)*('Detailed price list'!$M$5:$M$237)*('Detailed price list'!$L$5:$L$237=$B10))/SUMIF('Detailed price list'!$L$5:$L$237,$B10,'Detailed price list'!$M$5:$M$237)) -> 54.96781368 | E10: =IF(SUMIF('Detailed price list'!$L$5:$L$237,$B10,'Detailed price list'!$M$5:$M$237)=0,0, SUMPRODUCT(('Detailed price list'!F$5:F$237)*('Detailed price list'!$M$5:$M$237)*('Detailed price list'!$L$5:$L$237=$B10))/SUMIF('Detailed price list'!$L$5:$L$237,$B10,'Detailed price list'!$M$5:$M$237)) -> 56.54795048 | F10: =IF(SUMIF('Detailed price list'!$L$5:$L$237,$B10,'Detailed price list'!$M$5:$M$237)=0,0, SUMPRODUCT(('Detailed price list'!G$5:G$237)*('Detailed price list'!$M$5:$M$237)*('Detailed price list'!$L$5:$L$237=$B10))/SUMIF('Detailed price list'!$L$5:$L$237,$B10,'Detailed price list'!$M$5:$M$237)) -> 58.17351081 | G10: =IF(SUMIF('Detailed price list'!$L$5:$L$237,$B10,'Detailed price list'!$M$5:$M$237)=0,0, SUMPRODUCT(('Detailed price list'!H$5:H$237)*('Detailed price list'!$M$5:$M$237)*('Detailed price list'!$L$5:$L$237=$B10))/SUMIF('Detailed price list'!$L$5:$L$237,$B10,'Detailed price list'!$M$5:$M$237)) -> 59.84580044
B11: Legacy Luminaire - Major (Cat V) road | C11: =IF(SUMIF('Detailed price list'!$L$5:$L$237,$B11,'Detailed price list'!$M$5:$M$237)=0,0, SUMPRODUCT(('Detailed price list'!D$5:D$237)*('Detailed price list'!$M$5:$M$237)*('Detailed price list'!$L$5:$L$237=$B11))/SUMIF('Detailed price list'!$L$5:$L$237,$B11,'Detailed price list'!$M$5:$M$237)) -> 53.43183113 | D11: =IF(SUMIF('Detailed price list'!$L$5:$L$237,$B11,'Detailed price list'!$M$5:$M$237)=0,0, SUMPRODUCT(('Detailed price list'!E$5:E$237)*('Detailed price list'!$M$5:$M$237)*('Detailed price list'!$L$5:$L$237=$B11))/SUMIF('Detailed price list'!$L$5:$L$237,$B11,'Detailed price list'!$M$5:$M$237)) -> 54.96781368 | E11: =IF(SUMIF('Detailed price list'!$L$5:$L$237,$B11,'Detailed price list'!$M$5:$M$237)=0,0, SUMPRODUCT(('Detailed price list'!F$5:F$237)*('Detailed price list'!$M$5:$M$237)*('Detailed price list'!$L$5:$L$237=$B11))/SUMIF('Detailed price list'!$L$5:$L$237,$B11,'Detailed price list'!$M$5:$M$237)) -> 56.54795048 | F11: =IF(SUMIF('Detailed price list'!$L$5:$L$237,$B11,'Detailed price list'!$M$5:$M$237)=0,0, SUMPRODUCT(('Detailed price list'!G$5:G$237)*('Detailed price list'!$M$5:$M$237)*('Detailed price list'!$L$5:$L$237=$B11))/SUMIF('Detailed price list'!$L$5:$L$237,$B11,'Detailed price list'!$M$5:$M$237)) -> 58.17351081 | G11: =IF(SUMIF('Detailed price list'!$L$5:$L$237,$B11,'Detailed price list'!$M$5:$M$237)=0,0, SUMPRODUCT(('Detailed price list'!H$5:H$237)*('Detailed price list'!$M$5:$M$237)*('Detailed price list'!$L$5:$L$237=$B11))/SUMIF('Detailed price list'!$L$5:$L$237,$B11,'Detailed price list'!$M$5:$M$237)) -> 59.84580044
B12: Legacy Luminaire - Minor (Cat P) road | C12: =IF(SUMIF('Detailed price list'!$L$5:$L$237,$B12,'Detailed price list'!$M$5:$M$237)=0,0, SUMPRODUCT(('Detailed price list'!D$5:D$237)*('Detailed price list'!$M$5:$M$237)*('Detailed price list'!$L$5:$L$237=$B12))/SUMIF('Detailed price list'!$L$5:$L$237,$B12,'Detailed price list'!$M$5:$M$237)) -> 33.38595335 | D12: =IF(SUMIF('Detailed price list'!$L$5:$L$237,$B12,'Detailed price list'!$M$5:$M$237)=0,0, SUMPRODUCT(('Detailed price list'!E$5:E$237)*('Detailed price list'!$M$5:$M$237)*('Detailed price list'!$L$5:$L$237=$B12))/SUMIF('Detailed price list'!$L$5:$L$237,$B12,'Detailed price list'!$M$5:$M$237)) -> 34.34568542 | E12: =IF(SUMIF('Detailed price list'!$L$5:$L$237,$B12,'Detailed price list'!$M$5:$M$237)=0,0, SUMPRODUCT(('Detailed price list'!F$5:F$237)*('Detailed price list'!$M$5:$M$237)*('Detailed price list'!$L$5:$L$237=$B12))/SUMIF('Detailed price list'!$L$5:$L$237,$B12,'Detailed price list'!$M$5:$M$237)) -> 35.3330065 | F12: =IF(SUMIF('Detailed price list'!$L$5:$L$237,$B12,'Detailed price list'!$M$5:$M$237)=0,0, SUMPRODUCT(('Detailed price list'!G$5:G$237)*('Detailed price list'!$M$5:$M$237)*('Detailed price list'!$L$5:$L$237=$B12))/SUMIF('Detailed price list'!$L$5:$L$237,$B12,'Detailed price list'!$M$5:$M$237)) -> 36.34870969 | G12: =IF(SUMIF('Detailed price list'!$L$5:$L$237,$B12,'Detailed price list'!$M$5:$M$237)=0,0, SUMPRODUCT(('Detailed price list'!H$5:H$237)*('Detailed price list'!$M$5:$M$237)*('Detailed price list'!$L$5:$L$237=$B12))/SUMIF('Detailed price list'!$L$5:$L$237,$B12,'Detailed price list'!$M$5:$M$237)) -> 37.39361088
B13: Legacy Luminaire - Minor (Cat P) road | C13: =IF(SUMIF('Detailed price list'!$L$5:$L$237,$B13,'Detailed price list'!$M$5:$M$237)=0,0, SUMPRODUCT(('Detailed price list'!D$5:D$237)*('Detailed price list'!$M$5:$M$237)*('Detailed price list'!$L$5:$L$237=$B13))/SUMIF('Detailed price list'!$L$5:$L$237,$B13,'Detailed price list'!$M$5:$M$237)) -> 33.38595335 | D13: =IF(SUMIF('Detailed price list'!$L$5:$L$237,$B13,'Detailed price list'!$M$5:$M$237)=0,0, SUMPRODUCT(('Detailed price list'!E$5:E$237)*('Detailed price list'!$M$5:$M$237)*('Detailed price list'!$L$5:$L$237=$B13))/SUMIF('Detailed price list'!$L$5:$L$237,$B13,'Detailed price list'!$M$5:$M$237)) -> 34.34568542 | E13: =IF(SUMIF('Detailed price list'!$L$5:$L$237,$B13,'Detailed price list'!$M$5:$M$237)=0,0, SUMPRODUCT(('Detailed price list'!F$5:F$237)*('Detailed price list'!$M$5:$M$237)*('Detailed price list'!$L$5:$L$237=$B13))/SUMIF('Detailed price list'!$L$5:$L$237,$B13,'Detailed price list'!$M$5:$M$237)) -> 35.3330065 | F13: =IF(SUMIF('Detailed price list'!$L$5:$L$237,$B13,'Detailed price list'!$M$5:$M$237)=0,0, SUMPRODUCT(('Detailed price list'!G$5:G$237)*('Detailed price list'!$M$5:$M$237)*('Detailed price list'!$L$5:$L$237=$B13))/SUMIF('Detailed price list'!$L$5:$L$237,$B13,'Detailed price list'!$M$5:$M$237)) -> 36.34870969 | G13: =IF(SUMIF('Detailed price list'!$L$5:$L$237,$B13,'Detailed price list'!$M$5:$M$237)=0,0, SUMPRODUCT(('Detailed price list'!H$5:H$237)*('Detailed price list'!$M$5:$M$237)*('Detailed price list'!$L$5:$L$237=$B13))/SUMIF('Detailed price list'!$L$5:$L$237,$B13,'Detailed price list'!$M$5:$M$237)) -> 37.39361088
B14: Legacy Luminaire - Minor (Cat P) road | C14: =IF(SUMIF('Detailed price list'!$L$5:$L$237,$B14,'Detailed price list'!$M$5:$M$237)=0,0, SUMPRODUCT(('Detailed price list'!D$5:D$237)*('Detailed price list'!$M$5:$M$237)*('Detailed price list'!$L$5:$L$237=$B14))/SUMIF('Detailed price list'!$L$5:$L$237,$B14,'Detailed price list'!$M$5:$M$237)) -> 33.38595335 | D14: =IF(SUMIF('Detailed price list'!$L$5:$L$237,$B14,'Detailed price list'!$M$5:$M$237)=0,0, SUMPRODUCT(('Detailed price list'!E$5:E$237)*('Detailed price list'!$M$5:$M$237)*('Detailed price list'!$L$5:$L$237=$B14))/SUMIF('Detailed price list'!$L$5:$L$237,$B14,'Detailed price list'!$M$5:$M$237)) -> 34.34568542 | E14: =IF(SUMIF('Detailed price list'!$L$5:$L$237,$B14,'Detailed price list'!$M$5:$M$237)=0,0, SUMPRODUCT(('Detailed price list'!F$5:F$237)*('Detailed price list'!$M$5:$M$237)*('Detailed price list'!$L$5:$L$237=$B14))/SUMIF('Detailed price list'!$L$5:$L$237,$B14,'Detailed price list'!$M$5:$M$237)) -> 35.3330065 | F14: =IF(SUMIF('Detailed price list'!$L$5:$L$237,$B14,'Detailed price list'!$M$5:$M$237)=0,0, SUMPRODUCT(('Detailed price list'!G$5:G$237)*('Detailed price list'!$M$5:$M$237)*('Detailed price list'!$L$5:$L$237=$B14))/SUMIF('Detailed price list'!$L$5:$L$237,$B14,'Detailed price list'!$M$5:$M$237)) -> 36.34870969 | G14: =IF(SUMIF('Detailed price list'!$L$5:$L$237,$B14,'Detailed price list'!$M$5:$M$237)=0,0, SUMPRODUCT(('Detailed price list'!H$5:H$237)*('Detailed price list'!$M$5:$M$237)*('Detailed price list'!$L$5:$L$237=$B14))/SUMIF('Detailed price list'!$L$5:$L$237,$B14,'Detailed price list'!$M$5:$M$237)) -> 37.39361088
B15: Legacy Luminaire - Minor (Cat P) road | C15: =IF(SUMIF('Detailed price list'!$L$5:$L$237,$B15,'Detailed price list'!$M$5:$M$237)=0,0, SUMPRODUCT(('Detailed price list'!D$5:D$237)*('Detailed price list'!$M$5:$M$237)*('Detailed price list'!$L$5:$L$237=$B15))/SUMIF('Detailed price list'!$L$5:$L$237,$B15,'Detailed price list'!$M$5:$M$237)) -> 33.38595335 | D15: =IF(SUMIF('Detailed price list'!$L$5:$L$237,$B15,'Detailed price list'!$M$5:$M$237)=0,0, SUMPRODUCT(('Detailed price list'!E$5:E$237)*('Detailed price list'!$M$5:$M$237)*('Detailed price list'!$L$5:$L$237=$B15))/SUMIF('Detailed price list'!$L$5:$L$237,$B15,'Detailed price list'!$M$5:$M$237)) -> 34.34568542 | E15: =IF(SUMIF('Detailed price list'!$L$5:$L$237,$B15,'Detailed price list'!$M$5:$M$237)=0,0, SUMPRODUCT(('Detailed price list'!F$5:F$237)*('Detailed price list'!$M$5:$M$237)*('Detailed price list'!$L$5:$L$237=$B15))/SUMIF('Detailed price list'!$L$5:$L$237,$B15,'Detailed price list'!$M$5:$M$237)) -> 35.3330065 | F15: =IF(SUMIF('Detailed price list'!$L$5:$L$237,$B15,'Detailed price list'!$M$5:$M$237)=0,0, SUMPRODUCT(('Detailed price list'!G$5:G$237)*('Detailed price list'!$M$5:$M$237)*('Detailed price list'!$L$5:$L$237=$B15))/SUMIF('Detailed price list'!$L$5:$L$237,$B15,'Detailed price list'!$M$5:$M$237)) -> 36.34870969 | G15: =IF(SUMIF('Detailed price list'!$L$5:$L$237,$B15,'Detailed price list'!$M$5:$M$237)=0,0, SUMPRODUCT(('Detailed price list'!H$5:H$237)*('Detailed price list'!$M$5:$M$237)*('Detailed price list'!$L$5:$L$237=$B15))/SUMIF('Detailed price list'!$L$5:$L$237,$B15,'Detailed price list'!$M$5:$M$237)) -> 37.39361088
B16: Legacy Luminaire - Major (Cat V) road | C16: =IF(SUMIF('Detailed price list'!$L$5:$L$237,$B16,'Detailed price list'!$M$5:$M$237)=0,0, SUMPRODUCT(('Detailed price list'!D$5:D$237)*('Detailed price list'!$M$5:$M$237)*('Detailed price list'!$L$5:$L$237=$B16))/SUMIF('Detailed price list'!$L$5:$L$237,$B16,'Detailed price list'!$M$5:$M$237)) -> 53.43183113 | D16: =IF(SUMIF('Detailed price list'!$L$5:$L$237,$B16,'Detailed price list'!$M$5:$M$237)=0,0, SUMPRODUCT(('Detailed price list'!E$5:E$237)*('Detailed price list'!$M$5:$M$237)*('Detailed price list'!$L$5:$L$237=$B16))/SUMIF('Detailed price list'!$L$5:$L$237,$B16,'Detailed price list'!$M$5:$M$237)) -> 54.96781368 | E16: =IF(SUMIF('Detailed price list'!$L$5:$L$237,$B16,'Detailed price list'!$M$5:$M$237)=0,0, SUMPRODUCT(('Detailed price list'!F$5:F$237)*('Detailed price list'!$M$5:$M$237)*('Detailed price list'!$L$5:$L$237=$B16))/SUMIF('Detailed price list'!$L$5:$L$237,$B16,'Detailed price list'!$M$5:$M$237)) -> 56.54795048 | F16: =IF(SUMIF('Detailed price list'!$L$5:$L$237,$B16,'Detailed price list'!$M$5:$M$237)=0,0, SUMPRODUCT(('Detailed price list'!G$5:G$237)*('Detailed price list'!$M$5:$M$237)*('Detailed price list'!$L$5:$L$237=$B16))/SUMIF('Detailed price list'!$L$5:$L$237,$B16,'Detailed price list'!$M$5:$M$237)) -> 58.17351081 | G16: =IF(SUMIF('Detailed price list'!$L$5:$L$237,$B16,'Detailed price list'!$M$5:$M$237)=0,0, SUMPRODUCT(('Detailed price list'!H$5:H$237)*('Detailed price list'!$M$5:$M$237)*('Detailed price list'!$L$5:$L$237=$B16))/SUMIF('Detailed price list'!$L$5:$L$237,$B16,'Detailed price list'!$M$5:$M$237)) -> 59.84580044
B17: Legacy Luminaire - Major (Cat V) road | C17: =IF(SUMIF('Detailed price list'!$L$5:$L$237,$B17,'Detailed price list'!$M$5:$M$237)=0,0, SUMPRODUCT(('Detailed price list'!D$5:D$237)*('Detailed price list'!$M$5:$M$237)*('Detailed price list'!$L$5:$L$237=$B17))/SUMIF('Detailed price list'!$L$5:$L$237,$B17,'Detailed price list'!$M$5:$M$237)) -> 53.43183113 | D17: =IF(SUMIF('Detailed price list'!$L$5:$L$237,$B17,'Detailed price list'!$M$5:$M$237)=0,0, SUMPRODUCT(('Detailed price list'!E$5:E$237)*('Detailed price list'!$M$5:$M$237)*('Detailed price list'!$L$5:$L$237=$B17))/SUMIF('Detailed price list'!$L$5:$L$237,$B17,'Detailed price list'!$M$5:$M$237)) -> 54.96781368 | E17: =IF(SUMIF('Detailed price list'!$L$5:$L$237,$B17,'Detailed price list'!$M$5:$M$237)=0,0, SUMPRODUCT(('Detailed price list'!F$5:F$237)*('Detailed price list'!$M$5:$M$237)*('Detailed price list'!$L$5:$L$237=$B17))/SUMIF('Detailed price list'!$L$5:$L$237,$B17,'Detailed price list'!$M$5:$M$237)) -> 56.54795048 | F17: =IF(SUMIF('Detailed price list'!$L$5:$L$237,$B17,'Detailed price list'!$M$5:$M$237)=0,0, SUMPRODUCT(('Detailed price list'!G$5:G$237)*('Detailed price list'!$M$5:$M$237)*('Detailed price list'!$L$5:$L$237=$B17))/SUMIF('Detailed price list'!$L$5:$L$237,$B17,'Detailed price list'!$M$5:$M$237)) -> 58.17351081 | G17: =IF(SUMIF('Detailed price list'!$L$5:$L$237,$B17,'Detailed price list'!$M$5:$M$237)=0,0, SUMPRODUCT(('Detailed price list'!H$5:H$237)*('Detailed price list'!$M$5:$M$237)*('Detailed price list'!$L$5:$L$237=$B17))/SUMIF('Detailed price list'!$L$5:$L$237,$B17,'Detailed price list'!$M$5:$M$237)) -> 59.84580044
B18: Legacy Luminaire - Major (Cat V) road | C18: =IF(SUMIF('Detailed price list'!$L$5:$L$237,$B18,'Detailed price list'!$M$5:$M$237)=0,0, SUMPRODUCT(('Detailed price list'!D$5:D$237)*('Detailed price list'!$M$5:$M$237)*('Detailed price list'!$L$5:$L$237=$B18))/SUMIF('Detailed price list'!$L$5:$L$237,$B18,'Detailed price list'!$M$5:$M$237)) -> 53.43183113 | D18: =IF(SUMIF('Detailed price list'!$L$5:$L$237,$B18,'Detailed price list'!$M$5:$M$237)=0,0, SUMPRODUCT(('Detailed price list'!E$5:E$237)*('Detailed price list'!$M$5:$M$237)*('Detailed price list'!$L$5:$L$237=$B18))/SUMIF('Detailed price list'!$L$5:$L$237,$B18,'Detailed price list'!$M$5:$M$237)) -> 54.96781368 | E18: =IF(SUMIF('Detailed price list'!$L$5:$L$237,$B18,'Detailed price list'!$M$5:$M$237)=0,0, SUMPRODUCT(('Detailed price list'!F$5:F$237)*('Detailed price list'!$M$5:$M$237)*('Detailed price list'!$L$5:$L$237=$B18))/SUMIF('Detailed price list'!$L$5:$L$237,$B18,'Detailed price list'!$M$5:$M$237)) -> 56.54795048 | F18: =IF(SUMIF('Detailed price list'!$L$5:$L$237,$B18,'Detailed price list'!$M$5:$M$237)=0,0, SUMPRODUCT(('Detailed price list'!G$5:G$237)*('Detailed price list'!$M$5:$M$237)*('Detailed price list'!$L$5:$L$237=$B18))/SUMIF('Detailed price list'!$L$5:$L$237,$B18,'Detailed price list'!$M$5:$M$237)) -> 58.17351081 | G18: =IF(SUMIF('Detailed price list'!$L$5:$L$237,$B18,'Detailed price list'!$M$5:$M$237)=0,0, SUMPRODUCT(('Detailed price list'!H$5:H$237)*('Detailed price list'!$M$5:$M$237)*('Detailed price list'!$L$5:$L$237=$B18))/SUMIF('Detailed price list'!$L$5:$L$237,$B18,'Detailed price list'!$M$5:$M$237)) -> 59.84580044
B19: Legacy Luminaire - Major (Cat V) road | C19: =IF(SUMIF('Detailed price list'!$L$5:$L$237,$B19,'Detailed price list'!$M$5:$M$237)=0,0, SUMPRODUCT(('Detailed price list'!D$5:D$237)*('Detailed price list'!$M$5:$M$237)*('Detailed price list'!$L$5:$L$237=$B19))/SUMIF('Detailed price list'!$L$5:$L$237,$B19,'Detailed price list'!$M$5:$M$237)) -> 53.43183113 | D19: =IF(SUMIF('Detailed price list'!$L$5:$L$237,$B19,'Detailed price list'!$M$5:$M$237)=0,0, SUMPRODUCT(('Detailed price list'!E$5:E$237)*('Detailed price list'!$M$5:$M$237)*('Detailed price list'!$L$5:$L$237=$B19))/SUMIF('Detailed price list'!$L$5:$L$237,$B19,'Detailed price list'!$M$5:$M$237)) -> 54.96781368 | E19: =IF(SUMIF('Detailed price list'!$L$5:$L$237,$B19,'Detailed price list'!$M$5:$M$237)=0,0, SUMPRODUCT(('Detailed price list'!F$5:F$237)*('Detailed price list'!$M$5:$M$237)*('Detailed price list'!$L$5:$L$237=$B19))/SUMIF('Detailed price list'!$L$5:$L$237,$B19,'Detailed price list'!$M$5:$M$237)) -> 56.54795048 | F19: =IF(SUMIF('Detailed price list'!$L$5:$L$237,$B19,'Detailed price list'!$M$5:$M$237)=0,0, SUMPRODUCT(('Detailed price list'!G$5:G$237)*('Detailed price list'!$M$5:$M$237)*('Detailed price list'!$L$5:$L$237=$B19))/SUMIF('Detailed price list'!$L$5:$L$237,$B19,'Detailed price list'!$M$5:$M$237)) -> 58.17351081 | G19: =IF(SUMIF('Detailed price list'!$L$5:$L$237,$B19,'Detailed price list'!$M$5:$M$237)=0,0, SUMPRODUCT(('Detailed price list'!H$5:H$237)*('Detailed price list'!$M$5:$M$237)*('Detailed price list'!$L$5:$L$237=$B19))/SUMIF('Detailed price list'!$L$5:$L$237,$B19,'Detailed price list'!$M$5:$M$237)) -> 59.84580044
B20: Legacy Luminaire - Major (Cat V) road | C20: =IF(SUMIF('Detailed price list'!$L$5:$L$237,$B20,'Detailed price list'!$M$5:$M$237)=0,0, SUMPRODUCT(('Detailed price list'!D$5:D$237)*('Detailed price list'!$M$5:$M$237)*('Detailed price list'!$L$5:$L$237=$B20))/SUMIF('Detailed price list'!$L$5:$L$237,$B20,'Detailed price list'!$M$5:$M$237)) -> 53.43183113 | D20: =IF(SUMIF('Detailed price list'!$L$5:$L$237,$B20,'Detailed price list'!$M$5:$M$237)=0,0, SUMPRODUCT(('Detailed price list'!E$5:E$237)*('Detailed price list'!$M$5:$M$237)*('Detailed price list'!$L$5:$L$237=$B20))/SUMIF('Detailed price list'!$L$5:$L$237,$B20,'Detailed price list'!$M$5:$M$237)) -> 54.96781368 | E20: =IF(SUMIF('Detailed price list'!$L$5:$L$237,$B20,'Detailed price list'!$M$5:$M$237)=0,0, SUMPRODUCT(('Detailed price list'!F$5:F$237)*('Detailed price list'!$M$5:$M$237)*('Detailed price list'!$L$5:$L$237=$B20))/SUMIF('Detailed price list'!$L$5:$L$237,$B20,'Detailed price list'!$M$5:$M$237)) -> 56.54795048 | F20: =IF(SUMIF('Detailed price list'!$L$5:$L$237,$B20,'Detailed price list'!$M$5:$M$237)=0,0, SUMPRODUCT(('Detailed price list'!G$5:G$237)*('Detailed price list'!$M$5:$M$237)*('Detailed price list'!$L$5:$L$237=$B20))/SUMIF('Detailed price list'!$L$5:$L$237,$B20,'Detailed price list'!$M$5:$M$237)) -> 58.17351081 | G20: =IF(SUMIF('Detailed price list'!$L$5:$L$237,$B20,'Detailed price list'!$M$5:$M$237)=0,0, SUMPRODUCT(('Detailed price list'!H$5:H$237)*('Detailed price list'!$M$5:$M$237)*('Detailed price list'!$L$5:$L$237=$B20))/SUMIF('Detailed price list'!$L$5:$L$237,$B20,'Detailed price list'!$M$5:$M$237)) -> 59.84580044
B21: Legacy Luminaire - Minor (Cat P) road | C21: =IF(SUMIF('Detailed price list'!$L$5:$L$237,$B21,'Detailed price list'!$M$5:$M$237)=0,0, SUMPRODUCT(('Detailed price list'!D$5:D$237)*('Detailed price list'!$M$5:$M$237)*('Detailed price list'!$L$5:$L$237=$B21))/SUMIF('Detailed price list'!$L$5:$L$237,$B21,'Detailed price list'!$M$5:$M$237)) -> 33.38595335 | D21: =IF(SUMIF('Detailed price list'!$L$5:$L$237,$B21,'Detailed price list'!$M$5:$M$237)=0,0, SUMPRODUCT(('Detailed price list'!E$5:E$237)*('Detailed price list'!$M$5:$M$237)*('Detailed price list'!$L$5:$L$237=$B21))/SUMIF('Detailed price list'!$L$5:$L$237,$B21,'Detailed price list'!$M$5:$M$237)) -> 34.34568542 | E21: =IF(SUMIF('Detailed price list'!$L$5:$L$237,$B21,'Detailed price list'!$M$5:$M$237)=0,0, SUMPRODUCT(('Detailed price list'!F$5:F$237)*('Detailed price list'!$M$5:$M$237)*('Detailed price list'!$L$5:$L$237=$B21))/SUMIF('Detailed price list'!$L$5:$L$237,$B21,'Detailed price list'!$M$5:$M$237)) -> 35.3330065 | F21: =IF(SUMIF('Detailed price list'!$L$5:$L$237,$B21,'Detailed price list'!$M$5:$M$237)=0,0, SUMPRODUCT(('Detailed price list'!G$5:G$237)*('Detailed price list'!$M$5:$M$237)*('Detailed price list'!$L$5:$L$237=$B21))/SUMIF('Detailed price list'!$L$5:$L$237,$B21,'Detailed price list'!$M$5:$M$237)) -> 36.34870969 | G21: =IF(SUMIF('Detailed price list'!$L$5:$L$237,$B21,'Detailed price list'!$M$5:$M$237)=0,0, SUMPRODUCT(('Detailed price list'!H$5:H$237)*('Detailed price list'!$M$5:$M$237)*('Detailed price list'!$L$5:$L$237=$B21))/SUMIF('Detailed price list'!$L$5:$L$237,$B21,'Detailed price list'!$M$5:$M$237)) -> 37.39361088
B22: Legacy Luminaire - Minor (Cat P) road | C22: =IF(SUMIF('Detailed price list'!$L$5:$L$237,$B22,'Detailed price list'!$M$5:$M$237)=0,0, SUMPRODUCT(('Detailed price list'!D$5:D$237)*('Detailed price list'!$M$5:$M$237)*('Detailed price list'!$L$5:$L$237=$B22))/SUMIF('Detailed price list'!$L$5:$L$237,$B22,'Detailed price list'!$M$5:$M$237)) -> 33.38595335 | D22: =IF(SUMIF('Detailed price list'!$L$5:$L$237,$B22,'Detailed price list'!$M$5:$M$237)=0,0, SUMPRODUCT(('Detailed price list'!E$5:E$237)*('Detailed price list'!$M$5:$M$237)*('Detailed price list'!$L$5:$L$237=$B22))/SUMIF('Detailed price list'!$L$5:$L$237,$B22,'Detailed price list'!$M$5:$M$237)) -> 34.34568542 | E22: =IF(SUMIF('Detailed price list'!$L$5:$L$237,$B22,'Detailed price list'!$M$5:$M$237)=0,0, SUMPRODUCT(('Detailed price list'!F$5:F$237)*('Detailed price list'!$M$5:$M$237)*('Detailed price list'!$L$5:$L$237=$B22))/SUMIF('Detailed price list'!$L$5:$L$237,$B22,'Detailed price list'!$M$5:$M$237)) -> 35.3330065 | F22: =IF(SUMIF('Detailed price list'!$L$5:$L$237,$B22,'Detailed price list'!$M$5:$M$237)=0,0, SUMPRODUCT(('Detailed price list'!G$5:G$237)*('Detailed price list'!$M$5:$M$237)*('Detailed price list'!$L$5:$L$237=$B22))/SUMIF('Detailed price list'!$L$5:$L$237,$B22,'Detailed price list'!$M$5:$M$237)) -> 36.34870969 | G22: =IF(SUMIF('Detailed price list'!$L$5:$L$237,$B22,'Detailed price list'!$M$5:$M$237)=0,0, SUMPRODUCT(('Detailed price list'!H$5:H$237)*('Detailed price list'!$M$5:$M$237)*('Detailed price list'!$L$5:$L$237=$B22))/SUMIF('Detailed price list'!$L$5:$L$237,$B22,'Detailed price list'!$M$5:$M$237)) -> 37.39361088
B23: Legacy Luminaire - Major (Cat V) road | C23: =IF(SUMIF('Detailed price list'!$L$5:$L$237,$B23,'Detailed price list'!$M$5:$M$237)=0,0, SUMPRODUCT(('Detailed price list'!D$5:D$237)*('Detailed price list'!$M$5:$M$237)*('Detailed price list'!$L$5:$L$237=$B23))/SUMIF('Detailed price list'!$L$5:$L$237,$B23,'Detailed price list'!$M$5:$M$237)) -> 53.43183113 | D23: =IF(SUMIF('Detailed price list'!$L$5:$L$237,$B23,'Detailed price list'!$M$5:$M$237)=0,0, SUMPRODUCT(('Detailed price list'!E$5:E$237)*('Detailed price list'!$M$5:$M$237)*('Detailed price list'!$L$5:$L$237=$B23))/SUMIF('Detailed price list'!$L$5:$L$237,$B23,'Detailed price list'!$M$5:$M$237)) -> 54.96781368 | E23: =IF(SUMIF('Detailed price list'!$L$5:$L$237,$B23,'Detailed price list'!$M$5:$M$237)=0,0, SUMPRODUCT(('Detailed price list'!F$5:F$237)*('Detailed price list'!$M$5:$M$237)*('Detailed price list'!$L$5:$L$237=$B23))/SUMIF('Detailed price list'!$L$5:$L$237,$B23,'Detailed price list'!$M$5:$M$237)) -> 56.54795048 | F23: =IF(SUMIF('Detailed price list'!$L$5:$L$237,$B23,'Detailed price list'!$M$5:$M$237)=0,0, SUMPRODUCT(('Detailed price list'!G$5:G$237)*('Detailed price list'!$M$5:$M$237)*('Detailed price list'!$L$5:$L$237=$B23))/SUMIF('Detailed price list'!$L$5:$L$237,$B23,'Detailed price list'!$M$5:$M$237)) -> 58.17351081 | G23: =IF(SUMIF('Detailed price list'!$L$5:$L$237,$B23,'Detailed price list'!$M$5:$M$237)=0,0, SUMPRODUCT(('Detailed price list'!H$5:H$237)*('Detailed price list'!$M$5:$M$237)*('Detailed price list'!$L$5:$L$237=$B23))/SUMIF('Detailed price list'!$L$5:$L$237,$B23,'Detailed price list'!$M$5:$M$237)) -> 59.84580044
B24: Legacy Luminaire - Major (Cat V) road | C24: =IF(SUMIF('Detailed price list'!$L$5:$L$237,$B24,'Detailed price list'!$M$5:$M$237)=0,0, SUMPRODUCT(('Detailed price list'!D$5:D$237)*('Detailed price list'!$M$5:$M$237)*('Detailed price list'!$L$5:$L$237=$B24))/SUMIF('Detailed price list'!$L$5:$L$237,$B24,'Detailed price list'!$M$5:$M$237)) -> 53.43183113 | D24: =IF(SUMIF('Detailed price list'!$L$5:$L$237,$B24,'Detailed price list'!$M$5:$M$237)=0,0, SUMPRODUCT(('Detailed price list'!E$5:E$237)*('Detailed price list'!$M$5:$M$237)*('Detailed price list'!$L$5:$L$237=$B24))/SUMIF('Detailed price list'!$L$5:$L$237,$B24,'Detailed price list'!$M$5:$M$237)) -> 54.96781368 | E24: =IF(SUMIF('Detailed price list'!$L$5:$L$237,$B24,'Detailed price list'!$M$5:$M$237)=0,0, SUMPRODUCT(('Detailed price list'!F$5:F$237)*('Detailed price list'!$M$5:$M$237)*('Detailed price list'!$L$5:$L$237=$B24))/SUMIF('Detailed price list'!$L$5:$L$237,$B24,'Detailed price list'!$M$5:$M$237)) -> 56.54795048 | F24: =IF(SUMIF('Detailed price list'!$L$5:$L$237,$B24,'Detailed price list'!$M$5:$M$237)=0,0, SUMPRODUCT(('Detailed price list'!G$5:G$237)*('Detailed price list'!$M$5:$M$237)*('Detailed price list'!$L$5:$L$237=$B24))/SUMIF('Detailed price list'!$L$5:$L$237,$B24,'Detailed price list'!$M$5:$M$237)) -> 58.17351081 | G24: =IF(SUMIF('Detailed price list'!$L$5:$L$237,$B24,'Detailed price list'!$M$5:$M$237)=0,0, SUMPRODUCT(('Detailed price list'!H$5:H$237)*('Detailed price list'!$M$5:$M$237)*('Detailed price list'!$L$5:$L$237=$B24))/SUMIF('Detailed price list'!$L$5:$L$237,$B24,'Detailed price list'!$M$5:$M$237)) -> 59.84580044
B25: Legacy Luminaire - Major (Cat V) road | C25: =IF(SUMIF('Detailed price list'!$L$5:$L$237,$B25,'Detailed price list'!$M$5:$M$237)=0,0, SUMPRODUCT(('Detailed price list'!D$5:D$237)*('Detailed price list'!$M$5:$M$237)*('Detailed price list'!$L$5:$L$237=$B25))/SUMIF('Detailed price list'!$L$5:$L$237,$B25,'Detailed price list'!$M$5:$M$237)) -> 53.43183113 | D25: =IF(SUMIF('Detailed price list'!$L$5:$L$237,$B25,'Detailed price list'!$M$5:$M$237)=0,0, SUMPRODUCT(('Detailed price list'!E$5:E$237)*('Detailed price list'!$M$5:$M$237)*('Detailed price list'!$L$5:$L$237=$B25))/SUMIF('Detailed price list'!$L$5:$L$237,$B25,'Detailed price list'!$M$5:$M$237)) -> 54.96781368 | E25: =IF(SUMIF('Detailed price list'!$L$5:$L$237,$B25,'Detailed price list'!$M$5:$M$237)=0,0, SUMPRODUCT(('Detailed price list'!F$5:F$237)*('Detailed price list'!$M$5:$M$237)*('Detailed price list'!$L$5:$L$237=$B25))/SUMIF('Detailed price list'!$L$5:$L$237,$B25,'Detailed price list'!$M$5:$M$237)) -> 56.54795048 | F25: =IF(SUMIF('Detailed price list'!$L$5:$L$237,$B25,'Detailed price list'!$M$5:$M$237)=0,0, SUMPRODUCT(('Detailed price list'!G$5:G$237)*('Detailed price list'!$M$5:$M$237)*('Detailed price list'!$L$5:$L$237=$B25))/SUMIF('Detailed price list'!$L$5:$L$237,$B25,'Detailed price list'!$M$5:$M$237)) -> 58.17351081 | G25: =IF(SUMIF('Detailed price list'!$L$5:$L$237,$B25,'Detailed price list'!$M$5:$M$237)=0,0, SUMPRODUCT(('Detailed price list'!H$5:H$237)*('Detailed price list'!$M$5:$M$237)*('Detailed price list'!$L$5:$L$237=$B25))/SUMIF('Detailed price list'!$L$5:$L$237,$B25,'Detailed price list'!$M$5:$M$237)) -> 59.84580044
B26: Legacy Luminaire - Major (Cat V) road | C26: =IF(SUMIF('Detailed price list'!$L$5:$L$237,$B26,'Detailed price list'!$M$5:$M$237)=0,0, SUMPRODUCT(('Detailed price list'!D$5:D$237)*('Detailed price list'!$M$5:$M$237)*('Detailed price list'!$L$5:$L$237=$B26))/SUMIF('Detailed price list'!$L$5:$L$237,$B26,'Detailed price list'!$M$5:$M$237)) -> 53.43183113 | D26: =IF(SUMIF('Detailed price list'!$L$5:$L$237,$B26,'Detailed price list'!$M$5:$M$237)=0,0, SUMPRODUCT(('Detailed price list'!E$5:E$237)*('Detailed price list'!$M$5:$M$237)*('Detailed price list'!$L$5:$L$237=$B26))/SUMIF('Detailed price list'!$L$5:$L$237,$B26,'Detailed price list'!$M$5:$M$237)) -> 54.96781368 | E26: =IF(SUMIF('Detailed price list'!$L$5:$L$237,$B26,'Detailed price list'!$M$5:$M$237)=0,0, SUMPRODUCT(('Detailed price list'!F$5:F$237)*('Detailed price list'!$M$5:$M$237)*('Detailed price list'!$L$5:$L$237=$B26))/SUMIF('Detailed price list'!$L$5:$L$237,$B26,'Detailed price list'!$M$5:$M$237)) -> 56.54795048 | F26: =IF(SUMIF('Detailed price list'!$L$5:$L$237,$B26,'Detailed price list'!$M$5:$M$237)=0,0, SUMPRODUCT(('Detailed price list'!G$5:G$237)*('Detailed price list'!$M$5:$M$237)*('Detailed price list'!$L$5:$L$237=$B26))/SUMIF('Detailed price list'!$L$5:$L$237,$B26,'Detailed price list'!$M$5:$M$237)) -> 58.17351081 | G26: =IF(SUMIF('Detailed price list'!$L$5:$L$237,$B26,'Detailed price list'!$M$5:$M$237)=0,0, SUMPRODUCT(('Detailed price list'!H$5:H$237)*('Detailed price list'!$M$5:$M$237)*('Detailed price list'!$L$5:$L$237=$B26))/SUMIF('Detailed price list'!$L$5:$L$237,$B26,'Detailed price list'!$M$5:$M$237)) -> 59.84580044
B27: Legacy Luminaire - Major (Cat V) road | C27: =IF(SUMIF('Detailed price list'!$L$5:$L$237,$B27,'Detailed price list'!$M$5:$M$237)=0,0, SUMPRODUCT(('Detailed price list'!D$5:D$237)*('Detailed price list'!$M$5:$M$237)*('Detailed price list'!$L$5:$L$237=$B27))/SUMIF('Detailed price list'!$L$5:$L$237,$B27,'Detailed price list'!$M$5:$M$237)) -> 53.43183113 | D27: =IF(SUMIF('Detailed price list'!$L$5:$L$237,$B27,'Detailed price list'!$M$5:$M$237)=0,0, SUMPRODUCT(('Detailed price list'!E$5:E$237)*('Detailed price list'!$M$5:$M$237)*('Detailed price list'!$L$5:$L$237=$B27))/SUMIF('Detailed price list'!$L$5:$L$237,$B27,'Detailed price list'!$M$5:$M$237)) -> 54.96781368 | E27: =IF(SUMIF('Detailed price list'!$L$5:$L$237,$B27,'Detailed price list'!$M$5:$M$237)=0,0, SUMPRODUCT(('Detailed price list'!F$5:F$237)*('Detailed price list'!$M$5:$M$237)*('Detailed price list'!$L$5:$L$237=$B27))/SUMIF('Detailed price list'!$L$5:$L$237,$B27,'Detailed price list'!$M$5:$M$237)) -> 56.54795048 | F27: =IF(SUMIF('Detailed price list'!$L$5:$L$237,$B27,'Detailed price list'!$M$5:$M$237)=0,0, SUMPRODUCT(('Detailed price list'!G$5:G$237)*('Detailed price list'!$M$5:$M$237)*('Detailed price list'!$L$5:$L$237=$B27))/SUMIF('Detailed price list'!$L$5:$L$237,$B27,'Detailed price list'!$M$5:$M$237)) -> 58.17351081 | G27: =IF(SUMIF('Detailed price list'!$L$5:$L$237,$B27,'Detailed price list'!$M$5:$M$237)=0,0, SUMPRODUCT(('Detailed price list'!H$5:H$237)*('Detailed price list'!$M$5:$M$237)*('Detailed price list'!$L$5:$L$237=$B27))/SUMIF('Detailed price list'!$L$5:$L$237,$B27,'Detailed price list'!$M$5:$M$237)) -> 59.84580044
B28: Legacy Luminaire - Major (Cat V) road | C28: =IF(SUMIF('Detailed price list'!$L$5:$L$237,$B28,'Detailed price list'!$M$5:$M$237)=0,0, SUMPRODUCT(('Detailed price list'!D$5:D$237)*('Detailed price list'!$M$5:$M$237)*('Detailed price list'!$L$5:$L$237=$B28))/SUMIF('Detailed price list'!$L$5:$L$237,$B28,'Detailed price list'!$M$5:$M$237)) -> 53.43183113 | D28: =IF(SUMIF('Detailed price list'!$L$5:$L$237,$B28,'Detailed price list'!$M$5:$M$237)=0,0, SUMPRODUCT(('Detailed price list'!E$5:E$237)*('Detailed price list'!$M$5:$M$237)*('Detailed price list'!$L$5:$L$237=$B28))/SUMIF('Detailed price list'!$L$5:$L$237,$B28,'Detailed price list'!$M$5:$M$237)) -> 54.96781368 | E28: =IF(SUMIF('Detailed price list'!$L$5:$L$237,$B28,'Detailed price list'!$M$5:$M$237)=0,0, SUMPRODUCT(('Detailed price list'!F$5:F$237)*('Detailed price list'!$M$5:$M$237)*('Detailed price list'!$L$5:$L$237=$B28))/SUMIF('Detailed price list'!$L$5:$L$237,$B28,'Detailed price list'!$M$5:$M$237)) -> 56.54795048 | F28: =IF(SUMIF('Detailed price list'!$L$5:$L$237,$B28,'Detailed price list'!$M$5:$M$237)=0,0, SUMPRODUCT(('Detailed price list'!G$5:G$237)*('Detailed price list'!$M$5:$M$237)*('Detailed price list'!$L$5:$L$237=$B28))/SUMIF('Detailed price list'!$L$5:$L$237,$B28,'Detailed price list'!$M$5:$M$237)) -> 58.17351081 | G28: =IF(SUMIF('Detailed price list'!$L$5:$L$237,$B28,'Detailed price list'!$M$5:$M$237)=0,0, SUMPRODUCT(('Detailed price list'!H$5:H$237)*('Detailed price list'!$M$5:$M$237)*('Detailed price list'!$L$5:$L$237=$B28))/SUMIF('Detailed price list'!$L$5:$L$237,$B28,'Detailed price list'!$M$5:$M$237)) -> 59.84580044
B29: Legacy Luminaire - Major (Cat V) road | C29: =IF(SUMIF('Detailed price list'!$L$5:$L$237,$B29,'Detailed price list'!$M$5:$M$237)=0,0, SUMPRODUCT(('Detailed price list'!D$5:D$237)*('Detailed price list'!$M$5:$M$237)*('Detailed price list'!$L$5:$L$237=$B29))/SUMIF('Detailed price list'!$L$5:$L$237,$B29,'Detailed price list'!$M$5:$M$237)) -> 53.43183113 | D29: =IF(SUMIF('Detailed price list'!$L$5:$L$237,$B29,'Detailed price list'!$M$5:$M$237)=0,0, SUMPRODUCT(('Detailed price list'!E$5:E$237)*('Detailed price list'!$M$5:$M$237)*('Detailed price list'!$L$5:$L$237=$B29))/SUMIF('Detailed price list'!$L$5:$L$237,$B29,'Detailed price list'!$M$5:$M$237)) -> 54.96781368 | E29: =IF(SUMIF('Detailed price list'!$L$5:$L$237,$B29,'Detailed price list'!$M$5:$M$237)=0,0, SUMPRODUCT(('Detailed price list'!F$5:F$237)*('Detailed price list'!$M$5:$M$237)*('Detailed price list'!$L$5:$L$237=$B29))/SUMIF('Detailed price list'!$L$5:$L$237,$B29,'Detailed price list'!$M$5:$M$237)) -> 56.54795048 | F29: =IF(SUMIF('Detailed price list'!$L$5:$L$237,$B29,'Detailed price list'!$M$5:$M$237)=0,0, SUMPRODUCT(('Detailed price list'!G$5:G$237)*('Detailed price list'!$M$5:$M$237)*('Detailed price list'!$L$5:$L$237=$B29))/SUMIF('Detailed price list'!$L$5:$L$237,$B29,'Detailed price list'!$M$5:$M$237)) -> 58.17351081 | G29: =IF(SUMIF('Detailed price list'!$L$5:$L$237,$B29,'Detailed price list'!$M$5:$M$237)=0,0, SUMPRODUCT(('Detailed price list'!H$5:H$237)*('Detailed price list'!$M$5:$M$237)*('Detailed price list'!$L$5:$L$237=$B29))/SUMIF('Detailed price list'!$L$5:$L$237,$B29,'Detailed price list'!$M$5:$M$237)) -> 59.84580044
B30: Legacy Luminaire - Major (Cat V) road | C30: =IF(SUMIF('Detailed price list'!$L$5:$L$237,$B30,'Detailed price list'!$M$5:$M$237)=0,0, SUMPRODUCT(('Detailed price list'!D$5:D$237)*('Detailed price list'!$M$5:$M$237)*('Detailed price list'!$L$5:$L$237=$B30))/SUMIF('Detailed price list'!$L$5:$L$237,$B30,'Detailed price list'!$M$5:$M$237)) -> 53.43183113 | D30: =IF(SUMIF('Detailed price list'!$L$5:$L$237,$B30,'Detailed price list'!$M$5:$M$237)=0,0, SUMPRODUCT(('Detailed price list'!E$5:E$237)*('Detailed price list'!$M$5:$M$237)*('Detailed price list'!$L$5:$L$237=$B30))/SUMIF('Detailed price list'!$L$5:$L$237,$B30,'Detailed price list'!$M$5:$M$237)) -> 54.96781368 | E30: =IF(SUMIF('Detailed price list'!$L$5:$L$237,$B30,'Detailed price list'!$M$5:$M$237)=0,0, SUMPRODUCT(('Detailed price list'!F$5:F$237)*('Detailed price list'!$M$5:$M$237)*('Detailed price list'!$L$5:$L$237=$B30))/SUMIF('Detailed price list'!$L$5:$L$237,$B30,'Detailed price list'!$M$5:$M$237)) -> 56.54795048 | F30: =IF(SUMIF('Detailed price list'!$L$5:$L$237,$B30,'Detailed price list'!$M$5:$M$237)=0,0, SUMPRODUCT(('Detailed price list'!G$5:G$237)*('Detailed price list'!$M$5:$M$237)*('Detailed price list'!$L$5:$L$237=$B30))/SUMIF('Detailed price list'!$L$5:$L$237,$B30,'Detailed price list'!$M$5:$M$237)) -> 58.17351081 | G30: =IF(SUMIF('Detailed price list'!$L$5:$L$237,$B30,'Detailed price list'!$M$5:$M$237)=0,0, SUMPRODUCT(('Detailed price list'!H$5:H$237)*('Detailed price list'!$M$5:$M$237)*('Detailed price list'!$L$5:$L$237=$B30))/SUMIF('Detailed price list'!$L$5:$L$237,$B30,'Detailed price list'!$M$5:$M$237)) -> 59.84580044
B31: Legacy Luminaire - Minor (Cat P) road | C31: =IF(SUMIF('Detailed price list'!$L$5:$L$237,$B31,'Detailed price list'!$M$5:$M$237)=0,0, SUMPRODUCT(('Detailed price list'!D$5:D$237)*('Detailed price list'!$M$5:$M$237)*('Detailed price list'!$L$5:$L$237=$B31))/SUMIF('Detailed price list'!$L$5:$L$237,$B31,'Detailed price list'!$M$5:$M$237)) -> 33.38595335 | D31: =IF(SUMIF('Detailed price list'!$L$5:$L$237,$B31,'Detailed price list'!$M$5:$M$237)=0,0, SUMPRODUCT(('Detailed price list'!E$5:E$237)*('Detailed price list'!$M$5:$M$237)*('Detailed price list'!$L$5:$L$237=$B31))/SUMIF('Detailed price list'!$L$5:$L$237,$B31,'Detailed price list'!$M$5:$M$237)) -> 34.34568542 | E31: =IF(SUMIF('Detailed price list'!$L$5:$L$237,$B31,'Detailed price list'!$M$5:$M$237)=0,0, SUMPRODUCT(('Detailed price list'!F$5:F$237)*('Detailed price list'!$M$5:$M$237)*('Detailed price list'!$L$5:$L$237=$B31))/SUMIF('Detailed price list'!$L$5:$L$237,$B31,'Detailed price list'!$M$5:$M$237)) -> 35.3330065 | F31: =IF(SUMIF('Detailed price list'!$L$5:$L$237,$B31,'Detailed price list'!$M$5:$M$237)=0,0, SUMPRODUCT(('Detailed price list'!G$5:G$237)*('Detailed price list'!$M$5:$M$237)*('Detailed price list'!$L$5:$L$237=$B31))/SUMIF('Detailed price list'!$L$5:$L$237,$B31,'Detailed price list'!$M$5:$M$237)) -> 36.34870969 | G31: =IF(SUMIF('Detailed price list'!$L$5:$L$237,$B31,'Detailed price list'!$M$5:$M$237)=0,0, SUMPRODUCT(('Detailed price list'!H$5:H$237)*('Detailed price list'!$M$5:$M$237)*('Detailed price list'!$L$5:$L$237=$B31))/SUMIF('Detailed price list'!$L$5:$L$237,$B31,'Detailed price list'!$M$5:$M$237)) -> 37.39361088
B32: Legacy Luminaire - Major (Cat V) road | C32: =IF(SUMIF('Detailed price list'!$L$5:$L$237,$B32,'Detailed price list'!$M$5:$M$237)=0,0, SUMPRODUCT(('Detailed price list'!D$5:D$237)*('Detailed price list'!$M$5:$M$237)*('Detailed price list'!$L$5:$L$237=$B32))/SUMIF('Detailed price list'!$L$5:$L$237,$B32,'Detailed price list'!$M$5:$M$237)) -> 53.43183113 | D32: =IF(SUMIF('Detailed price list'!$L$5:$L$237,$B32,'Detailed price list'!$M$5:$M$237)=0,0, SUMPRODUCT(('Detailed price list'!E$5:E$237)*('Detailed price list'!$M$5:$M$237)*('Detailed price list'!$L$5:$L$237=$B32))/SUMIF('Detailed price list'!$L$5:$L$237,$B32,'Detailed price list'!$M$5:$M$237)) -> 54.96781368 | E32: =IF(SUMIF('Detailed price list'!$L$5:$L$237,$B32,'Detailed price list'!$M$5:$M$237)=0,0, SUMPRODUCT(('Detailed price list'!F$5:F$237)*('Detailed price list'!$M$5:$M$237)*('Detailed price list'!$L$5:$L$237=$B32))/SUMIF('Detailed price list'!$L$5:$L$237,$B32,'Detailed price list'!$M$5:$M$237)) -> 56.54795048 | F32: =IF(SUMIF('Detailed price list'!$L$5:$L$237,$B32,'Detailed price list'!$M$5:$M$237)=0,0, SUMPRODUCT(('Detailed price list'!G$5:G$237)*('Detailed price list'!$M$5:$M$237)*('Detailed price list'!$L$5:$L$237=$B32))/SUMIF('Detailed price list'!$L$5:$L$237,$B32,'Detailed price list'!$M$5:$M$237)) -> 58.17351081 | G32: =IF(SUMIF('Detailed price list'!$L$5:$L$237,$B32,'Detailed price list'!$M$5:$M$237)=0,0, SUMPRODUCT(('Detailed price list'!H$5:H$237)*('Detailed price list'!$M$5:$M$237)*('Detailed price list'!$L$5:$L$237=$B32))/SUMIF('Detailed price list'!$L$5:$L$237,$B32,'Detailed price list'!$M$5:$M$237)) -> 59.84580044
B33: Legacy Luminaire - Minor (Cat P) road | C33: =IF(SUMIF('Detailed price list'!$L$5:$L$237,$B33,'Detailed price list'!$M$5:$M$237)=0,0, SUMPRODUCT(('Detailed price list'!D$5:D$237)*('Detailed price list'!$M$5:$M$237)*('Detailed price list'!$L$5:$L$237=$B33))/SUMIF('Detailed price list'!$L$5:$L$237,$B33,'Detailed price list'!$M$5:$M$237)) -> 33.38595335 | D33: =IF(SUMIF('Detailed price list'!$L$5:$L$237,$B33,'Detailed price list'!$M$5:$M$237)=0,0, SUMPRODUCT(('Detailed price list'!E$5:E$237)*('Detailed price list'!$M$5:$M$237)*('Detailed price list'!$L$5:$L$237=$B33))/SUMIF('Detailed price list'!$L$5:$L$237,$B33,'Detailed price list'!$M$5:$M$237)) -> 34.34568542 | E33: =IF(SUMIF('Detailed price list'!$L$5:$L$237,$B33,'Detailed price list'!$M$5:$M$237)=0,0, SUMPRODUCT(('Detailed price list'!F$5:F$237)*('Detailed price list'!$M$5:$M$237)*('Detailed price list'!$L$5:$L$237=$B33))/SUMIF('Detailed price list'!$L$5:$L$237,$B33,'Detailed price list'!$M$5:$M$237)) -> 35.3330065 | F33: =IF(SUMIF('Detailed price list'!$L$5:$L$237,$B33,'Detailed price list'!$M$5:$M$237)=0,0, SUMPRODUCT(('Detailed price list'!G$5:G$237)*('Detailed price list'!$M$5:$M$237)*('Detailed price list'!$L$5:$L$237=$B33))/SUMIF('Detailed price list'!$L$5:$L$237,$B33,'Detailed price list'!$M$5:$M$237)) -> 36.34870969 | G33: =IF(SUMIF('Detailed price list'!$L$5:$L$237,$B33,'Detailed price list'!$M$5:$M$237)=0,0, SUMPRODUCT(('Detailed price list'!H$5:H$237)*('Detailed price list'!$M$5:$M$237)*('Detailed price list'!$L$5:$L$237=$B33))/SUMIF('Detailed price list'!$L$5:$L$237,$B33,'Detailed price list'!$M$5:$M$237)) -> 37.39361088
B34: Legacy Luminaire - Major (Cat V) road | C34: =IF(SUMIF('Detailed price list'!$L$5:$L$237,$B34,'Detailed price list'!$M$5:$M$237)=0,0, SUMPRODUCT(('Detailed price list'!D$5:D$237)*('Detailed price list'!$M$5:$M$237)*('Detailed price list'!$L$5:$L$237=$B34))/SUMIF('Detailed price list'!$L$5:$L$237,$B34,'Detailed price list'!$M$5:$M$237)) -> 53.43183113 | D34: =IF(SUMIF('Detailed price list'!$L$5:$L$237,$B34,'Detailed price list'!$M$5:$M$237)=0,0, SUMPRODUCT(('Detailed price list'!E$5:E$237)*('Detailed price list'!$M$5:$M$237)*('Detailed price list'!$L$5:$L$237=$B34))/SUMIF('Detailed price list'!$L$5:$L$237,$B34,'Detailed price list'!$M$5:$M$237)) -> 54.96781368 | E34: =IF(SUMIF('Detailed price list'!$L$5:$L$237,$B34,'Detailed price list'!$M$5:$M$237)=0,0, SUMPRODUCT(('Detailed price list'!F$5:F$237)*('Detailed price list'!$M$5:$M$237)*('Detailed price list'!$L$5:$L$237=$B34))/SUMIF('Detailed price list'!$L$5:$L$237,$B34,'Detailed price list'!$M$5:$M$237)) -> 56.54795048 | F34: =IF(SUMIF('Detailed price list'!$L$5:$L$237,$B34,'Detailed price list'!$M$5:$M$237)=0,0, SUMPRODUCT(('Detailed price list'!G$5:G$237)*('Detailed price list'!$M$5:$M$237)*('Detailed price list'!$L$5:$L$237=$B34))/SUMIF('Detailed price list'!$L$5:$L$237,$B34,'Detailed price list'!$M$5:$M$237)) -> 58.17351081 | G34: =IF(SUMIF('Detailed price list'!$L$5:$L$237,$B34,'Detailed price list'!$M$5:$M$237)=0,0, SUMPRODUCT(('Detailed price list'!H$5:H$237)*('Detailed price list'!$M$5:$M$237)*('Detailed price list'!$L$5:$L$237=$B34))/SUMIF('Detailed price list'!$L$5:$L$237,$B34,'Detailed price list'!$M$5:$M$237)) -> 59.84580044
B35: Legacy Luminaire - Major (Cat V) road | C35: =IF(SUMIF('Detailed price list'!$L$5:$L$237,$B35,'Detailed price list'!$M$5:$M$237)=0,0, SUMPRODUCT(('Detailed price list'!D$5:D$237)*('Detailed price list'!$M$5:$M$237)*('Detailed price list'!$L$5:$L$237=$B35))/SUMIF('Detailed price list'!$L$5:$L$237,$B35,'Detailed price list'!$M$5:$M$237)) -> 53.43183113 | D35: =IF(SUMIF('Detailed price list'!$L$5:$L$237,$B35,'Detailed price list'!$M$5:$M$237)=0,0, SUMPRODUCT(('Detailed price list'!E$5:E$237)*('Detailed price list'!$M$5:$M$237)*('Detailed price list'!$L$5:$L$237=$B35))/SUMIF('Detailed price list'!$L$5:$L$237,$B35,'Detailed price list'!$M$5:$M$237)) -> 54.96781368 | E35: =IF(SUMIF('Detailed price list'!$L$5:$L$237,$B35,'Detailed price list'!$M$5:$M$237)=0,0, SUMPRODUCT(('Detailed price list'!F$5:F$237)*('Detailed price list'!$M$5:$M$237)*('Detailed price list'!$L$5:$L$237=$B35))/SUMIF('Detailed price list'!$L$5:$L$237,$B35,'Detailed price list'!$M$5:$M$237)) -> 56.54795048 | F35: =IF(SUMIF('Detailed price list'!$L$5:$L$237,$B35,'Detailed price list'!$M$5:$M$237)=0,0, SUMPRODUCT(('Detailed price list'!G$5:G$237)*('Detailed price list'!$M$5:$M$237)*('Detailed price list'!$L$5:$L$237=$B35))/SUMIF('Detailed price list'!$L$5:$L$237,$B35,'Detailed price list'!$M$5:$M$237)) -> 58.17351081 | G35: =IF(SUMIF('Detailed price list'!$L$5:$L$237,$B35,'Detailed price list'!$M$5:$M$237)=0,0, SUMPRODUCT(('Detailed price list'!H$5:H$237)*('Detailed price list'!$M$5:$M$237)*('Detailed price list'!$L$5:$L$237=$B35))/SUMIF('Detailed price list'!$L$5:$L$237,$B35,'Detailed price list'!$M$5:$M$237)) -> 59.84580044
B36: Legacy Luminaire - Major (Cat V) road | C36: =IF(SUMIF('Detailed price list'!$L$5:$L$237,$B36,'Detailed price list'!$M$5:$M$237)=0,0, SUMPRODUCT(('Detailed price list'!D$5:D$237)*('Detailed price list'!$M$5:$M$237)*('Detailed price list'!$L$5:$L$237=$B36))/SUMIF('Detailed price list'!$L$5:$L$237,$B36,'Detailed price list'!$M$5:$M$237)) -> 53.43183113 | D36: =IF(SUMIF('Detailed price list'!$L$5:$L$237,$B36,'Detailed price list'!$M$5:$M$237)=0,0, SUMPRODUCT(('Detailed price list'!E$5:E$237)*('Detailed price list'!$M$5:$M$237)*('Detailed price list'!$L$5:$L$237=$B36))/SUMIF('Detailed price list'!$L$5:$L$237,$B36,'Detailed price list'!$M$5:$M$237)) -> 54.96781368 | E36: =IF(SUMIF('Detailed price list'!$L$5:$L$237,$B36,'Detailed price list'!$M$5:$M$237)=0,0, SUMPRODUCT(('Detailed price list'!F$5:F$237)*('Detailed price list'!$M$5:$M$237)*('Detailed price list'!$L$5:$L$237=$B36))/SUMIF('Detailed price list'!$L$5:$L$237,$B36,'Detailed price list'!$M$5:$M$237)) -> 56.54795048 | F36: =IF(SUMIF('Detailed price list'!$L$5:$L$237,$B36,'Detailed price list'!$M$5:$M$237)=0,0, SUMPRODUCT(('Detailed price list'!G$5:G$237)*('Detailed price list'!$M$5:$M$237)*('Detailed price list'!$L$5:$L$237=$B36))/SUMIF('Detailed price list'!$L$5:$L$237,$B36,'Detailed price list'!$M$5:$M$237)) -> 58.17351081 | G36: =IF(SUMIF('Detailed price list'!$L$5:$L$237,$B36,'Detailed price list'!$M$5:$M$237)=0,0, SUMPRODUCT(('Detailed price list'!H$5:H$237)*('Detailed price list'!$M$5:$M$237)*('Detailed price list'!$L$5:$L$237=$B36))/SUMIF('Detailed price list'!$L$5:$L$237,$B36,'Detailed price list'!$M$5:$M$237)) -> 59.84580044
B37: Legacy Luminaire - Major (Cat V) road | C37: =IF(SUMIF('Detailed price list'!$L$5:$L$237,$B37,'Detailed price list'!$M$5:$M$237)=0,0, SUMPRODUCT(('Detailed price list'!D$5:D$237)*('Detailed price list'!$M$5:$M$237)*('Detailed price list'!$L$5:$L$237=$B37))/SUMIF('Detailed price list'!$L$5:$L$237,$B37,'Detailed price list'!$M$5:$M$237)) -> 53.43183113 | D37: =IF(SUMIF('Detailed price list'!$L$5:$L$237,$B37,'Detailed price list'!$M$5:$M$237)=0,0, SUMPRODUCT(('Detailed price list'!E$5:E$237)*('Detailed price list'!$M$5:$M$237)*('Detailed price list'!$L$5:$L$237=$B37))/SUMIF('Detailed price list'!$L$5:$L$237,$B37,'Detailed price list'!$M$5:$M$237)) -> 54.96781368 | E37: =IF(SUMIF('Detailed price list'!$L$5:$L$237,$B37,'Detailed price list'!$M$5:$M$237)=0,0, SUMPRODUCT(('Detailed price list'!F$5:F$237)*('Detailed price list'!$M$5:$M$237)*('Detailed price list'!$L$5:$L$237=$B37))/SUMIF('Detailed price list'!$L$5:$L$237,$B37,'Detailed price list'!$M$5:$M$237)) -> 56.54795048 | F37: =IF(SUMIF('Detailed price list'!$L$5:$L$237,$B37,'Detailed price list'!$M$5:$M$237)=0,0, SUMPRODUCT(('Detailed price list'!G$5:G$237)*('Detailed price list'!$M$5:$M$237)*('Detailed price list'!$L$5:$L$237=$B37))/SUMIF('Detailed price list'!$L$5:$L$237,$B37,'Detailed price list'!$M$5:$M$237)) -> 58.17351081 | G37: =IF(SUMIF('Detailed price list'!$L$5:$L$237,$B37,'Detailed price list'!$M$5:$M$237)=0,0, SUMPRODUCT(('Detailed price list'!H$5:H$237)*('Detailed price list'!$M$5:$M$237)*('Detailed price list'!$L$5:$L$237=$B37))/SUMIF('Detailed price list'!$L$5:$L$237,$B37,'Detailed price list'!$M$5:$M$237)) -> 59.84580044
B38: Legacy Luminaire - Minor (Cat P) road | C38: =IF(SUMIF('Detailed price list'!$L$5:$L$237,$B38,'Detailed price list'!$M$5:$M$237)=0,0, SUMPRODUCT(('Detailed price list'!D$5:D$237)*('Detailed price list'!$M$5:$M$237)*('Detailed price list'!$L$5:$L$237=$B38))/SUMIF('Detailed price list'!$L$5:$L$237,$B38,'Detailed price list'!$M$5:$M$237)) -> 33.38595335 | D38: =IF(SUMIF('Detailed price list'!$L$5:$L$237,$B38,'Detailed price list'!$M$5:$M$237)=0,0, SUMPRODUCT(('Detailed price list'!E$5:E$237)*('Detailed price list'!$M$5:$M$237)*('Detailed price list'!$L$5:$L$237=$B38))/SUMIF('Detailed price list'!$L$5:$L$237,$B38,'Detailed price list'!$M$5:$M$237)) -> 34.34568542 | E38: =IF(SUMIF('Detailed price list'!$L$5:$L$237,$B38,'Detailed price list'!$M$5:$M$237)=0,0, SUMPRODUCT(('Detailed price list'!F$5:F$237)*('Detailed price list'!$M$5:$M$237)*('Detailed price list'!$L$5:$L$237=$B38))/SUMIF('Detailed price list'!$L$5:$L$237,$B38,'Detailed price list'!$M$5:$M$237)) -> 35.3330065 | F38: =IF(SUMIF('Detailed price list'!$L$5:$L$237,$B38,'Detailed price list'!$M$5:$M$237)=0,0, SUMPRODUCT(('Detailed price list'!G$5:G$237)*('Detailed price list'!$M$5:$M$237)*('Detailed price list'!$L$5:$L$237=$B38))/SUMIF('Detailed price list'!$L$5:$L$237,$B38,'Detailed price list'!$M$5:$M$237)) -> 36.34870969 | G38: =IF(SUMIF('Detailed price list'!$L$5:$L$237,$B38,'Detailed price list'!$M$5:$M$237)=0,0, SUMPRODUCT(('Detailed price list'!H$5:H$237)*('Detailed price list'!$M$5:$M$237)*('Detailed price list'!$L$5:$L$237=$B38))/SUMIF('Detailed price list'!$L$5:$L$237,$B38,'Detailed price list'!$M$5:$M$237)) -> 37.39361088
B39: Legacy Luminaire - Minor (Cat P) road | C39: =IF(SUMIF('Detailed price list'!$L$5:$L$237,$B39,'Detailed price list'!$M$5:$M$237)=0,0, SUMPRODUCT(('Detailed price list'!D$5:D$237)*('Detailed price list'!$M$5:$M$237)*('Detailed price list'!$L$5:$L$237=$B39))/SUMIF('Detailed price list'!$L$5:$L$237,$B39,'Detailed price list'!$M$5:$M$237)) -> 33.38595335 | D39: =IF(SUMIF('Detailed price list'!$L$5:$L$237,$B39,'Detailed price list'!$M$5:$M$237)=0,0, SUMPRODUCT(('Detailed price list'!E$5:E$237)*('Detailed price list'!$M$5:$M$237)*('Detailed price list'!$L$5:$L$237=$B39))/SUMIF('Detailed price list'!$L$5:$L$237,$B39,'Detailed price list'!$M$5:$M$237)) -> 34.34568542 | E39: =IF(SUMIF('Detailed price list'!$L$5:$L$237,$B39,'Detailed price list'!$M$5:$M$237)=0,0, SUMPRODUCT(('Detailed price list'!F$5:F$237)*('Detailed price list'!$M$5:$M$237)*('Detailed price list'!$L$5:$L$237=$B39))/SUMIF('Detailed price list'!$L$5:$L$237,$B39,'Detailed price list'!$M$5:$M$237)) -> 35.3330065 | F39: =IF(SUMIF('Detailed price list'!$L$5:$L$237,$B39,'Detailed price list'!$M$5:$M$237)=0,0, SUMPRODUCT(('Detailed price list'!G$5:G$237)*('Detailed price list'!$M$5:$M$237)*('Detailed price list'!$L$5:$L$237=$B39))/SUMIF('Detailed price list'!$L$5:$L$237,$B39,'Detailed price list'!$M$5:$M$237)) -> 36.34870969 | G39: =IF(SUMIF('Detailed price list'!$L$5:$L$237,$B39,'Detailed price list'!$M$5:$M$237)=0,0, SUMPRODUCT(('Detailed price list'!H$5:H$237)*('Detailed price list'!$M$5:$M$237)*('Detailed price list'!$L$5:$L$237=$B39))/SUMIF('Detailed price list'!$L$5:$L$237,$B39,'Detailed price list'!$M$5:$M$237)) -> 37.39361088
B40: Legacy Luminaire - Minor (Cat P) road | C40: =IF(SUMIF('Detailed price list'!$L$5:$L$237,$B40,'Detailed price list'!$M$5:$M$237)=0,0, SUMPRODUCT(('Detailed price list'!D$5:D$237)*('Detailed price list'!$M$5:$M$237)*('Detailed price list'!$L$5:$L$237=$B40))/SUMIF('Detailed price list'!$L$5:$L$237,$B40,'Detailed price list'!$M$5:$M$237)) -> 33.38595335 | D40: =IF(SUMIF('Detailed price list'!$L$5:$L$237,$B40,'Detailed price list'!$M$5:$M$237)=0,0, SUMPRODUCT(('Detailed price list'!E$5:E$237)*('Detailed price list'!$M$5:$M$237)*('Detailed price list'!$L$5:$L$237=$B40))/SUMIF('Detailed price list'!$L$5:$L$237,$B40,'Detailed price list'!$M$5:$M$237)) -> 34.34568542 | E40: =IF(SUMIF('Detailed price list'!$L$5:$L$237,$B40,'Detailed price list'!$M$5:$M$237)=0,0, SUMPRODUCT(('Detailed price list'!F$5:F$237)*('Detailed price list'!$M$5:$M$237)*('Detailed price list'!$L$5:$L$237=$B40))/SUMIF('Detailed price list'!$L$5:$L$237,$B40,'Detailed price list'!$M$5:$M$237)) -> 35.3330065 | F40: =IF(SUMIF('Detailed price list'!$L$5:$L$237,$B40,'Detailed price list'!$M$5:$M$237)=0,0, SUMPRODUCT(('Detailed price list'!G$5:G$237)*('Detailed price list'!$M$5:$M$237)*('Detailed price list'!$L$5:$L$237=$B40))/SUMIF('Detailed price list'!$L$5:$L$237,$B40,'Detailed price list'!$M$5:$M$237)) -> 36.34870969 | G40: =IF(SUMIF('Detailed price list'!$L$5:$L$237,$B40,'Detailed price list'!$M$5:$M$237)=0,0, SUMPRODUCT(('Detailed price list'!H$5:H$237)*('Detailed price list'!$M$5:$M$237)*('Detailed price list'!$L$5:$L$237=$B40))/SUMIF('Detailed price list'!$L$5:$L$237,$B40,'Detailed price list'!$M$5:$M$237)) -> 37.39361088
B41: Legacy Luminaire - Minor (Cat P) road | C41: =IF(SUMIF('Detailed price list'!$L$5:$L$237,$B41,'Detailed price list'!$M$5:$M$237)=0,0, SUMPRODUCT(('Detailed price list'!D$5:D$237)*('Detailed price list'!$M$5:$M$237)*('Detailed price list'!$L$5:$L$237=$B41))/SUMIF('Detailed price list'!$L$5:$L$237,$B41,'Detailed price list'!$M$5:$M$237)) -> 33.38595335 | D41: =IF(SUMIF('Detailed price list'!$L$5:$L$237,$B41,'Detailed price list'!$M$5:$M$237)=0,0, SUMPRODUCT(('Detailed price list'!E$5:E$237)*('Detailed price list'!$M$5:$M$237)*('Detailed price list'!$L$5:$L$237=$B41))/SUMIF('Detailed price list'!$L$5:$L$237,$B41,'Detailed price list'!$M$5:$M$237)) -> 34.34568542 | E41: =IF(SUMIF('Detailed price list'!$L$5:$L$237,$B41,'Detailed price list'!$M$5:$M$237)=0,0, SUMPRODUCT(('Detailed price list'!F$5:F$237)*('Detailed price list'!$M$5:$M$237)*('Detailed price list'!$L$5:$L$237=$B41))/SUMIF('Detailed price list'!$L$5:$L$237,$B41,'Detailed price list'!$M$5:$M$237)) -> 35.3330065 | F41: =IF(SUMIF('Detailed price list'!$L$5:$L$237,$B41,'Detailed price list'!$M$5:$M$237)=0,0, SUMPRODUCT(('Detailed price list'!G$5:G$237)*('Detailed price list'!$M$5:$M$237)*('Detailed price list'!$L$5:$L$237=$B41))/SUMIF('Detailed price list'!$L$5:$L$237,$B41,'Detailed price list'!$M$5:$M$237)) -> 36.34870969 | G41: =IF(SUMIF('Detailed price list'!$L$5:$L$237,$B41,'Detailed price list'!$M$5:$M$237)=0,0, SUMPRODUCT(('Detailed price list'!H$5:H$237)*('Detailed price list'!$M$5:$M$237)*('Detailed price list'!$L$5:$L$237=$B41))/SUMIF('Detailed price list'!$L$5:$L$237,$B41,'Detailed price list'!$M$5:$M$237)) -> 37.39361088
B42: Legacy Luminaire - Minor (Cat P) road | C42: =IF(SUMIF('Detailed price list'!$L$5:$L$237,$B42,'Detailed price list'!$M$5:$M$237)=0,0, SUMPRODUCT(('Detailed price list'!D$5:D$237)*('Detailed price list'!$M$5:$M$237)*('Detailed price list'!$L$5:$L$237=$B42))/SUMIF('Detailed price list'!$L$5:$L$237,$B42,'Detailed price list'!$M$5:$M$237)) -> 33.38595335 | D42: =IF(SUMIF('Detailed price list'!$L$5:$L$237,$B42,'Detailed price list'!$M$5:$M$237)=0,0, SUMPRODUCT(('Detailed price list'!E$5:E$237)*('Detailed price list'!$M$5:$M$237)*('Detailed price list'!$L$5:$L$237=$B42))/SUMIF('Detailed price list'!$L$5:$L$237,$B42,'Detailed price list'!$M$5:$M$237)) -> 34.34568542 | E42: =IF(SUMIF('Detailed price list'!$L$5:$L$237,$B42,'Detailed price list'!$M$5:$M$237)=0,0, SUMPRODUCT(('Detailed price list'!F$5:F$237)*('Detailed price list'!$M$5:$M$237)*('Detailed price list'!$L$5:$L$237=$B42))/SUMIF('Detailed price list'!$L$5:$L$237,$B42,'Detailed price list'!$M$5:$M$237)) -> 35.3330065 | F42: =IF(SUMIF('Detailed price list'!$L$5:$L$237,$B42,'Detailed price list'!$M$5:$M$237)=0,0, SUMPRODUCT(('Detailed price list'!G$5:G$237)*('Detailed price list'!$M$5:$M$237)*('Detailed price list'!$L$5:$L$237=$B42))/SUMIF('Detailed price list'!$L$5:$L$237,$B42,'Detailed price list'!$M$5:$M$237)) -> 36.34870969 | G42: =IF(SUMIF('Detailed price list'!$L$5:$L$237,$B42,'Detailed price list'!$M$5:$M$237)=0,0, SUMPRODUCT(('Detailed price list'!H$5:H$237)*('Detailed price list'!$M$5:$M$237)*('Detailed price list'!$L$5:$L$237=$B42))/SUMIF('Detailed price list'!$L$5:$L$237,$B42,'Detailed price list'!$M$5:$M$237)) -> 37.39361088
B43: Legacy Luminaire - Minor (Cat P) road | C43: =IF(SUMIF('Detailed price list'!$L$5:$L$237,$B43,'Detailed price list'!$M$5:$M$237)=0,0, SUMPRODUCT(('Detailed price list'!D$5:D$237)*('Detailed price list'!$M$5:$M$237)*('Detailed price list'!$L$5:$L$237=$B43))/SUMIF('Detailed price list'!$L$5:$L$237,$B43,'Detailed price list'!$M$5:$M$237)) -> 33.38595335 | D43: =IF(SUMIF('Detailed price list'!$L$5:$L$237,$B43,'Detailed price list'!$M$5:$M$237)=0,0, SUMPRODUCT(('Detailed price list'!E$5:E$237)*('Detailed price list'!$M$5:$M$237)*('Detailed price list'!$L$5:$L$237=$B43))/SUMIF('Detailed price list'!$L$5:$L$237,$B43,'Detailed price list'!$M$5:$M$237)) -> 34.34568542 | E43: =IF(SUMIF('Detailed price list'!$L$5:$L$237,$B43,'Detailed price list'!$M$5:$M$237)=0,0, SUMPRODUCT(('Detailed price list'!F$5:F$237)*('Detailed price list'!$M$5:$M$237)*('Detailed price list'!$L$5:$L$237=$B43))/SUMIF('Detailed price list'!$L$5:$L$237,$B43,'Detailed price list'!$M$5:$M$237)) -> 35.3330065 | F43: =IF(SUMIF('Detailed price list'!$L$5:$L$237,$B43,'Detailed price list'!$M$5:$M$237)=0,0, SUMPRODUCT(('Detailed price list'!G$5:G$237)*('Detailed price list'!$M$5:$M$237)*('Detailed price list'!$L$5:$L$237=$B43))/SUMIF('Detailed price list'!$L$5:$L$237,$B43,'Detailed price list'!$M$5:$M$237)) -> 36.34870969 | G43: =IF(SUMIF('Detailed price list'!$L$5:$L$237,$B43,'Detailed price list'!$M$5:$M$237)=0,0, SUMPRODUCT(('Detailed price list'!H$5:H$237)*('Detailed price list'!$M$5:$M$237)*('Detailed price list'!$L$5:$L$237=$B43))/SUMIF('Detailed price list'!$L$5:$L$237,$B43,'Detailed price list'!$M$5:$M$237)) -> 37.39361088
B44: Legacy Luminaire - Minor (Cat P) road | C44: =IF(SUMIF('Detailed price list'!$L$5:$L$237,$B44,'Detailed price list'!$M$5:$M$237)=0,0, SUMPRODUCT(('Detailed price list'!D$5:D$237)*('Detailed price list'!$M$5:$M$237)*('Detailed price list'!$L$5:$L$237=$B44))/SUMIF('Detailed price list'!$L$5:$L$237,$B44,'Detailed price list'!$M$5:$M$237)) -> 33.38595335 | D44: =IF(SUMIF('Detailed price list'!$L$5:$L$237,$B44,'Detailed price list'!$M$5:$M$237)=0,0, SUMPRODUCT(('Detailed price list'!E$5:E$237)*('Detailed price list'!$M$5:$M$237)*('Detailed price list'!$L$5:$L$237=$B44))/SUMIF('Detailed price list'!$L$5:$L$237,$B44,'Detailed price list'!$M$5:$M$237)) -> 34.34568542 | E44: =IF(SUMIF('Detailed price list'!$L$5:$L$237,$B44,'Detailed price list'!$M$5:$M$237)=0,0, SUMPRODUCT(('Detailed price list'!F$5:F$237)*('Detailed price list'!$M$5:$M$237)*('Detailed price list'!$L$5:$L$237=$B44))/SUMIF('Detailed price list'!$L$5:$L$237,$B44,'Detailed price list'!$M$5:$M$237)) -> 35.3330065 | F44: =IF(SUMIF('Detailed price list'!$L$5:$L$237,$B44,'Detailed price list'!$M$5:$M$237)=0,0, SUMPRODUCT(('Detailed price list'!G$5:G$237)*('Detailed price list'!$M$5:$M$237)*('Detailed price list'!$L$5:$L$237=$B44))/SUMIF('Detailed price list'!$L$5:$L$237,$B44,'Detailed price list'!$M$5:$M$237)) -> 36.34870969 | G44: =IF(SUMIF('Detailed price list'!$L$5:$L$237,$B44,'Detailed price list'!$M$5:$M$237)=0,0, SUMPRODUCT(('Detailed price list'!H$5:H$237)*('Detailed price list'!$M$5:$M$237)*('Detailed price list'!$L$5:$L$237=$B44))/SUMIF('Detailed price list'!$L$5:$L$237,$B44,'Detailed price list'!$M$5:$M$237)) -> 37.39361088
B45: Legacy Luminaire - Minor (Cat P) road | C45: =IF(SUMIF('Detailed price list'!$L$5:$L$237,$B45,'Detailed price list'!$M$5:$M$237)=0,0, SUMPRODUCT(('Detailed price list'!D$5:D$237)*('Detailed price list'!$M$5:$M$237)*('Detailed price list'!$L$5:$L$237=$B45))/SUMIF('Detailed price list'!$L$5:$L$237,$B45,'Detailed price list'!$M$5:$M$237)) -> 33.38595335 | D45: =IF(SUMIF('Detailed price list'!$L$5:$L$237,$B45,'Detailed price list'!$M$5:$M$237)=0,0, SUMPRODUCT(('Detailed price list'!E$5:E$237)*('Detailed price list'!$M$5:$M$237)*('Detailed price list'!$L$5:$L$237=$B45))/SUMIF('Detailed price list'!$L$5:$L$237,$B45,'Detailed price list'!$M$5:$M$237)) -> 34.34568542 | E45: =IF(SUMIF('Detailed price list'!$L$5:$L$237,$B45,'Detailed price list'!$M$5:$M$237)=0,0, SUMPRODUCT(('Detailed price list'!F$5:F$237)*('Detailed price list'!$M$5:$M$237)*('Detailed price list'!$L$5:$L$237=$B45))/SUMIF('Detailed price list'!$L$5:$L$237,$B45,'Detailed price list'!$M$5:$M$237)) -> 35.3330065 | F45: =IF(SUMIF('Detailed price list'!$L$5:$L$237,$B45,'Detailed price list'!$M$5:$M$237)=0,0, SUMPRODUCT(('Detailed price list'!G$5:G$237)*('Detailed price list'!$M$5:$M$237)*('Detailed price list'!$L$5:$L$237=$B45))/SUMIF('Detailed price list'!$L$5:$L$237,$B45,'Detailed price list'!$M$5:$M$237)) -> 36.34870969 | G45: =IF(SUMIF('Detailed price list'!$L$5:$L$237,$B45,'Detailed price list'!$M$5:$M$237)=0,0, SUMPRODUCT(('Detailed price list'!H$5:H$237)*('Detailed price list'!$M$5:$M$237)*('Detailed price list'!$L$5:$L$237=$B45))/SUMIF('Detailed price list'!$L$5:$L$237,$B45,'Detailed price list'!$M$5:$M$237)) -> 37.39361088
B46: Legacy Luminaire - Minor (Cat P) road | C46: =IF(SUMIF('Detailed price list'!$L$5:$L$237,$B46,'Detailed price list'!$M$5:$M$237)=0,0, SUMPRODUCT(('Detailed price list'!D$5:D$237)*('Detailed price list'!$M$5:$M$237)*('Detailed price list'!$L$5:$L$237=$B46))/SUMIF('Detailed price list'!$L$5:$L$237,$B46,'Detailed price list'!$M$5:$M$237)) -> 33.38595335 | D46: =IF(SUMIF('Detailed price list'!$L$5:$L$237,$B46,'Detailed price list'!$M$5:$M$237)=0,0, SUMPRODUCT(('Detailed price list'!E$5:E$237)*('Detailed price list'!$M$5:$M$237)*('Detailed price list'!$L$5:$L$237=$B46))/SUMIF('Detailed price list'!$L$5:$L$237,$B46,'Detailed price list'!$M$5:$M$237)) -> 34.34568542 | E46: =IF(SUMIF('Detailed price list'!$L$5:$L$237,$B46,'Detailed price list'!$M$5:$M$237)=0,0, SUMPRODUCT(('Detailed price list'!F$5:F$237)*('Detailed price list'!$M$5:$M$237)*('Detailed price list'!$L$5:$L$237=$B46))/SUMIF('Detailed price list'!$L$5:$L$237,$B46,'Detailed price list'!$M$5:$M$237)) -> 35.3330065 | F46: =IF(SUMIF('Detailed price list'!$L$5:$L$237,$B46,'Detailed price list'!$M$5:$M$237)=0,0, SUMPRODUCT(('Detailed price list'!G$5:G$237)*('Detailed price list'!$M$5:$M$237)*('Detailed price list'!$L$5:$L$237=$B46))/SUMIF('Detailed price list'!$L$5:$L$237,$B46,'Detailed price list'!$M$5:$M$237)) -> 36.34870969 | G46: =IF(SUMIF('Detailed price list'!$L$5:$L$237,$B46,'Detailed price list'!$M$5:$M$237)=0,0, SUMPRODUCT(('Detailed price list'!H$5:H$237)*('Detailed price list'!$M$5:$M$237)*('Detailed price list'!$L$5:$L$237=$B46))/SUMIF('Detailed price list'!$L$5:$L$237,$B46,'Detailed price list'!$M$5:$M$237)) -> 37.39361088
B47: Luminaire - Minor (Cat P) road | C47: =IF(SUMIF('Detailed price list'!$L$5:$L$237,$B47,'Detailed price list'!$M$5:$M$237)=0,0, SUMPRODUCT(('Detailed price list'!D$5:D$237)*('Detailed price list'!$M$5:$M$237)*('Detailed price list'!$L$5:$L$237=$B47))/SUMIF('Detailed price list'!$L$5:$L$237,$B47,'Detailed price list'!$M$5:$M$237)) -> 23.25313016 | D47: =IF(SUMIF('Detailed price list'!$L$5:$L$237,$B47,'Detailed price list'!$M$5:$M$237)=0,0, SUMPRODUCT(('Detailed price list'!E$5:E$237)*('Detailed price list'!$M$5:$M$237)*('Detailed price list'!$L$5:$L$237=$B47))/SUMIF('Detailed price list'!$L$5:$L$237,$B47,'Detailed price list'!$M$5:$M$237)) -> 23.92157819 | E47: =IF(SUMIF('Detailed price list'!$L$5:$L$237,$B47,'Detailed price list'!$M$5:$M$237)=0,0, SUMPRODUCT(('Detailed price list'!F$5:F$237)*('Detailed price list'!$M$5:$M$237)*('Detailed price list'!$L$5:$L$237=$B47))/SUMIF('Detailed price list'!$L$5:$L$237,$B47,'Detailed price list'!$M$5:$M$237)) -> 24.60924181 | F47: =IF(SUMIF('Detailed price list'!$L$5:$L$237,$B47,'Detailed price list'!$M$5:$M$237)=0,0, SUMPRODUCT(('Detailed price list'!G$5:G$237)*('Detailed price list'!$M$5:$M$237)*('Detailed price list'!$L$5:$L$237=$B47))/SUMIF('Detailed price list'!$L$5:$L$237,$B47,'Detailed price list'!$M$5:$M$237)) -> 25.31667341 | G47: =IF(SUMIF('Detailed price list'!$L$5:$L$237,$B47,'Detailed price list'!$M$5:$M$237)=0,0, SUMPRODUCT(('Detailed price list'!H$5:H$237)*('Detailed price list'!$M$5:$M$237)*('Detailed price list'!$L$5:$L$237=$B47))/SUMIF('Detailed price list'!$L$5:$L$237,$B47,'Detailed price list'!$M$5:$M$237)) -> 26.04444126
B48: Luminaire - Major (Cat V) road | C48: =IF(SUMIF('Detailed price list'!$L$5:$L$237,$B48,'Detailed price list'!$M$5:$M$237)=0,0, SUMPRODUCT(('Detailed price list'!D$5:D$237)*('Detailed price list'!$M$5:$M$237)*('Detailed price list'!$L$5:$L$237=$B48))/SUMIF('Detailed price list'!$L$5:$L$237,$B48,'Detailed price list'!$M$5:$M$237)) -> 31.69347077 | D48: =IF(SUMIF('Detailed price list'!$L$5:$L$237,$B48,'Detailed price list'!$M$5:$M$237)=0,0, SUMPRODUCT(('Detailed price list'!E$5:E$237)*('Detailed price list'!$M$5:$M$237)*('Detailed price list'!$L$5:$L$237=$B48))/SUMIF('Detailed price list'!$L$5:$L$237,$B48,'Detailed price list'!$M$5:$M$237)) -> 32.60454974 | E48: =IF(SUMIF('Detailed price list'!$L$5:$L$237,$B48,'Detailed price list'!$M$5:$M$237)=0,0, SUMPRODUCT(('Detailed price list'!F$5:F$237)*('Detailed price list'!$M$5:$M$237)*('Detailed price list'!$L$5:$L$237=$B48))/SUMIF('Detailed price list'!$L$5:$L$237,$B48,'Detailed price list'!$M$5:$M$237)) -> 33.54181912 | F48: =IF(SUMIF('Detailed price list'!$L$5:$L$237,$B48,'Detailed price list'!$M$5:$M$237)=0,0, SUMPRODUCT(('Detailed price list'!G$5:G$237)*('Detailed price list'!$M$5:$M$237)*('Detailed price list'!$L$5:$L$237=$B48))/SUMIF('Detailed price list'!$L$5:$L$237,$B48,'Detailed price list'!$M$5:$M$237)) -> 34.5060318 | G48: =IF(SUMIF('Detailed price list'!$L$5:$L$237,$B48,'Detailed price list'!$M$5:$M$237)=0,0, SUMPRODUCT(('Detailed price list'!H$5:H$237)*('Detailed price list'!$M$5:$M$237)*('Detailed price list'!$L$5:$L$237=$B48))/SUMIF('Detailed price list'!$L$5:$L$237,$B48,'Detailed price list'!$M$5:$M$237)) -> 35.49796229
B49: Luminaire - Minor (Cat P) road | C49: =IF(SUMIF('Detailed price list'!$L$5:$L$237,$B49,'Detailed price list'!$M$5:$M$237)=0,0, SUMPRODUCT(('Detailed price list'!D$5:D$237)*('Detailed price list'!$M$5:$M$237)*('Detailed price list'!$L$5:$L$237=$B49))/SUMIF('Detailed price list'!$L$5:$L$237,$B49,'Detailed price list'!$M$5:$M$237)) -> 23.25313016 | D49: =IF(SUMIF('Detailed price list'!$L$5:$L$237,$B49,'Detailed price list'!$M$5:$M$237)=0,0, SUMPRODUCT(('Detailed price list'!E$5:E$237)*('Detailed price list'!$M$5:$M$237)*('Detailed price list'!$L$5:$L$237=$B49))/SUMIF('Detailed price list'!$L$5:$L$237,$B49,'Detailed price list'!$M$5:$M$237)) -> 23.92157819 | E49: =IF(SUMIF('Detailed price list'!$L$5:$L$237,$B49,'Detailed price list'!$M$5:$M$237)=0,0, SUMPRODUCT(('Detailed price list'!F$5:F$237)*('Detailed price list'!$M$5:$M$237)*('Detailed price list'!$L$5:$L$237=$B49))/SUMIF('Detailed price list'!$L$5:$L$237,$B49,'Detailed price list'!$M$5:$M$237)) -> 24.60924181 | F49: =IF(SUMIF('Detailed price list'!$L$5:$L$237,$B49,'Detailed price list'!$M$5:$M$237)=0,0, SUMPRODUCT(('Detailed price list'!G$5:G$237)*('Detailed price list'!$M$5:$M$237)*('Detailed price list'!$L$5:$L$237=$B49))/SUMIF('Detailed price list'!$L$5:$L$237,$B49,'Detailed price list'!$M$5:$M$237)) -> 25.31667341 | G49: =IF(SUMIF('Detailed price list'!$L$5:$L$237,$B49,'Detailed price list'!$M$5:$M$237)=0,0, SUMPRODUCT(('Detailed price list'!H$5:H$237)*('Detailed price list'!$M$5:$M$237)*('Detailed price list'!$L$5:$L$237=$B49))/SUMIF('Detailed price list'!$L$5:$L$237,$B49,'Detailed price list'!$M$5:$M$237)) -> 26.04444126
B50: Luminaire - Major (Cat V) road | C50: =IF(SUMIF('Detailed price list'!$L$5:$L$237,$B50,'Detailed price list'!$M$5:$M$237)=0,0, SUMPRODUCT(('Detailed price list'!D$5:D$237)*('Detailed price list'!$M$5:$M$237)*('Detailed price list'!$L$5:$L$237=$B50))/SUMIF('Detailed price list'!$L$5:$L$237,$B50,'Detailed price list'!$M$5:$M$237)) -> 31.69347077 | D50: =IF(SUMIF('Detailed price list'!$L$5:$L$237,$B50,'Detailed price list'!$M$5:$M$237)=0,0, SUMPRODUCT(('Detailed price list'!E$5:E$237)*('Detailed price list'!$M$5:$M$237)*('Detailed price list'!$L$5:$L$237=$B50))/SUMIF('Detailed price list'!$L$5:$L$237,$B50,'Detailed price list'!$M$5:$M$237)) -> 32.60454974 | E50: =IF(SUMIF('Detailed price list'!$L$5:$L$237,$B50,'Detailed price list'!$M$5:$M$237)=0,0, SUMPRODUCT(('Detailed price list'!F$5:F$237)*('Detailed price list'!$M$5:$M$237)*('Detailed price list'!$L$5:$L$237=$B50))/SUMIF('Detailed price list'!$L$5:$L$237,$B50,'Detailed price list'!$M$5:$M$237)) -> 33.54181912 | F50: =IF(SUMIF('Detailed price list'!$L$5:$L$237,$B50,'Detailed price list'!$M$5:$M$237)=0,0, SUMPRODUCT(('Detailed price list'!G$5:G$237)*('Detailed price list'!$M$5:$M$237)*('Detailed price list'!$L$5:$L$237=$B50))/SUMIF('Detailed price list'!$L$5:$L$237,$B50,'Detailed price list'!$M$5:$M$237)) -> 34.5060318 | G50: =IF(SUMIF('Detailed price list'!$L$5:$L$237,$B50,'Detailed price list'!$M$5:$M$237)=0,0, SUMPRODUCT(('Detailed price list'!H$5:H$237)*('Detailed price list'!$M$5:$M$237)*('Detailed price list'!$L$5:$L$237=$B50))/SUMIF('Detailed price list'!$L$5:$L$237,$B50,'Detailed price list'!$M$5:$M$237)) -> 35.49796229
B51: Luminaire - Minor (Cat P) road | C51: =IF(SUMIF('Detailed price list'!$L$5:$L$237,$B51,'Detailed price list'!$M$5:$M$237)=0,0, SUMPRODUCT(('Detailed price list'!D$5:D$237)*('Detailed price list'!$M$5:$M$237)*('Detailed price list'!$L$5:$L$237=$B51))/SUMIF('Detailed price list'!$L$5:$L$237,$B51,'Detailed price list'!$M$5:$M$237)) -> 23.25313016 | D51: =IF(SUMIF('Detailed price list'!$L$5:$L$237,$B51,'Detailed price list'!$M$5:$M$237)=0,0, SUMPRODUCT(('Detailed price list'!E$5:E$237)*('Detailed price list'!$M$5:$M$237)*('Detailed price list'!$L$5:$L$237=$B51))/SUMIF('Detailed price list'!$L$5:$L$237,$B51,'Detailed price list'!$M$5:$M$237)) -> 23.92157819 | E51: =IF(SUMIF('Detailed price list'!$L$5:$L$237,$B51,'Detailed price list'!$M$5:$M$237)=0,0, SUMPRODUCT(('Detailed price list'!F$5:F$237)*('Detailed price list'!$M$5:$M$237)*('Detailed price list'!$L$5:$L$237=$B51))/SUMIF('Detailed price list'!$L$5:$L$237,$B51,'Detailed price list'!$M$5:$M$237)) -> 24.60924181 | F51: =IF(SUMIF('Detailed price list'!$L$5:$L$237,$B51,'Detailed price list'!$M$5:$M$237)=0,0, SUMPRODUCT(('Detailed price list'!G$5:G$237)*('Detailed price list'!$M$5:$M$237)*('Detailed price list'!$L$5:$L$237=$B51))/SUMIF('Detailed price list'!$L$5:$L$237,$B51,'Detailed price list'!$M$5:$M$237)) -> 25.31667341 | G51: =IF(SUMIF('Detailed price list'!$L$5:$L$237,$B51,'Detailed price list'!$M$5:$M$237)=0,0, SUMPRODUCT(('Detailed price list'!H$5:H$237)*('Detailed price list'!$M$5:$M$237)*('Detailed price list'!$L$5:$L$237=$B51))/SUMIF('Detailed price list'!$L$5:$L$237,$B51,'Detailed price list'!$M$5:$M$237)) -> 26.04444126
B52: Luminaire - Minor (Cat P) road | C52: =IF(SUMIF('Detailed price list'!$L$5:$L$237,$B52,'Detailed price list'!$M$5:$M$237)=0,0, SUMPRODUCT(('Detailed price list'!D$5:D$237)*('Detailed price list'!$M$5:$M$237)*('Detailed price list'!$L$5:$L$237=$B52))/SUMIF('Detailed price list'!$L$5:$L$237,$B52,'Detailed price list'!$M$5:$M$237)) -> 23.25313016 | D52: =IF(SUMIF('Detailed price list'!$L$5:$L$237,$B52,'Detailed price list'!$M$5:$M$237)=0,0, SUMPRODUCT(('Detailed price list'!E$5:E$237)*('Detailed price list'!$M$5:$M$237)*('Detailed price list'!$L$5:$L$237=$B52))/SUMIF('Detailed price list'!$L$5:$L$237,$B52,'Detailed price list'!$M$5:$M$237)) -> 23.92157819 | E52: =IF(SUMIF('Detailed price list'!$L$5:$L$237,$B52,'Detailed price list'!$M$5:$M$237)=0,0, SUMPRODUCT(('Detailed price list'!F$5:F$237)*('Detailed price list'!$M$5:$M$237)*('Detailed price list'!$L$5:$L$237=$B52))/SUMIF('Detailed price list'!$L$5:$L$237,$B52,'Detailed price list'!$M$5:$M$237)) -> 24.60924181 | F52: =IF(SUMIF('Detailed price list'!$L$5:$L$237,$B52,'Detailed price list'!$M$5:$M$237)=0,0, SUMPRODUCT(('Detailed price list'!G$5:G$237)*('Detailed price list'!$M$5:$M$237)*('Detailed price list'!$L$5:$L$237=$B52))/SUMIF('Detailed price list'!$L$5:$L$237,$B52,'Detailed price list'!$M$5:$M$237)) -> 25.31667341 | G52: =IF(SUMIF('Detailed price list'!$L$5:$L$237,$B52,'Detailed price list'!$M$5:$M$237)=0,0, SUMPRODUCT(('Detailed price list'!H$5:H$237)*('Detailed price list'!$M$5:$M$237)*('Detailed price list'!$L$5:$L$237=$B52))/SUMIF('Detailed price list'!$L$5:$L$237,$B52,'Detailed price list'!$M$5:$M$237)) -> 26.04444126
B53: Luminaire - Minor (Cat P) road | C53: =IF(SUMIF('Detailed price list'!$L$5:$L$237,$B53,'Detailed price list'!$M$5:$M$237)=0,0, SUMPRODUCT(('Detailed price list'!D$5:D$237)*('Detailed price list'!$M$5:$M$237)*('Detailed price list'!$L$5:$L$237=$B53))/SUMIF('Detailed price list'!$L$5:$L$237,$B53,'Detailed price list'!$M$5:$M$237)) -> 23.25313016 | D53: =IF(SUMIF('Detailed price list'!$L$5:$L$237,$B53,'Detailed price list'!$M$5:$M$237)=0,0, SUMPRODUCT(('Detailed price list'!E$5:E$237)*('Detailed price list'!$M$5:$M$237)*('Detailed price list'!$L$5:$L$237=$B53))/SUMIF('Detailed price list'!$L$5:$L$237,$B53,'Detailed price list'!$M$5:$M$237)) -> 23.92157819 | E53: =IF(SUMIF('Detailed price list'!$L$5:$L$237,$B53,'Detailed price list'!$M$5:$M$237)=0,0, SUMPRODUCT(('Detailed price list'!F$5:F$237)*('Detailed price list'!$M$5:$M$237)*('Detailed price list'!$L$5:$L$237=$B53))/SUMIF('Detailed price list'!$L$5:$L$237,$B53,'Detailed price list'!$M$5:$M$237)) -> 24.60924181 | F53: =IF(SUMIF('Detailed price list'!$L$5:$L$237,$B53,'Detailed price list'!$M$5:$M$237)=0,0, SUMPRODUCT(('Detailed price list'!G$5:G$237)*('Detailed price list'!$M$5:$M$237)*('Detailed price list'!$L$5:$L$237=$B53))/SUMIF('Detailed price list'!$L$5:$L$237,$B53,'Detailed price list'!$M$5:$M$237)) -> 25.31667341 | G53: =IF(SUMIF('Detailed price list'!$L$5:$L$237,$B53,'Detailed price list'!$M$5:$M$237)=0,0, SUMPRODUCT(('Detailed price list'!H$5:H$237)*('Detailed price list'!$M$5:$M$237)*('Detailed price list'!$L$5:$L$237=$B53))/SUMIF('Detailed price list'!$L$5:$L$237,$B53,'Detailed price list'!$M$5:$M$237)) -> 26.04444126
B54: Luminaire - Minor (Cat P) road | C54: =IF(SUMIF('Detailed price list'!$L$5:$L$237,$B54,'Detailed price list'!$M$5:$M$237)=0,0, SUMPRODUCT(('Detailed price list'!D$5:D$237)*('Detailed price list'!$M$5:$M$237)*('Detailed price list'!$L$5:$L$237=$B54))/SUMIF('Detailed price list'!$L$5:$L$237,$B54,'Detailed price list'!$M$5:$M$237)) -> 23.25313016 | D54: =IF(SUMIF('Detailed price list'!$L$5:$L$237,$B54,'Detailed price list'!$M$5:$M$237)=0,0, SUMPRODUCT(('Detailed price list'!E$5:E$237)*('Detailed price list'!$M$5:$M$237)*('Detailed price list'!$L$5:$L$237=$B54))/SUMIF('Detailed price list'!$L$5:$L$237,$B54,'Detailed price list'!$M$5:$M$237)) -> 23.92157819 | E54: =IF(SUMIF('Detailed price list'!$L$5:$L$237,$B54,'Detailed price list'!$M$5:$M$237)=0,0, SUMPRODUCT(('Detailed price list'!F$5:F$237)*('Detailed price list'!$M$5:$M$237)*('Detailed price list'!$L$5:$L$237=$B54))/SUMIF('Detailed price list'!$L$5:$L$237,$B54,'Detailed price list'!$M$5:$M$237)) -> 24.60924181 | F54: =IF(SUMIF('Detailed price list'!$L$5:$L$237,$B54,'Detailed price list'!$M$5:$M$237)=0,0, SUMPRODUCT(('Detailed price list'!G$5:G$237)*('Detailed price list'!$M$5:$M$237)*('Detailed price list'!$L$5:$L$237=$B54))/SUMIF('Detailed price list'!$L$5:$L$237,$B54,'Detailed price list'!$M$5:$M$237)) -> 25.31667341 | G54: =IF(SUMIF('Detailed price list'!$L$5:$L$237,$B54,'Detailed price list'!$M$5:$M$237)=0,0, SUMPRODUCT(('Detailed price list'!H$5:H$237)*('Detailed price list'!$M$5:$M$237)*('Detailed price list'!$L$5:$L$237=$B54))/SUMIF('Detailed price list'!$L$5:$L$237,$B54,'Detailed price list'!$M$5:$M$237)) -> 26.04444126
B55: Luminaire - Major (Cat V) road | C55: =IF(SUMIF('Detailed price list'!$L$5:$L$237,$B55,'Detailed price list'!$M$5:$M$237)=0,0, SUMPRODUCT(('Detailed price list'!D$5:D$237)*('Detailed price list'!$M$5:$M$237)*('Detailed price list'!$L$5:$L$237=$B55))/SUMIF('Detailed price list'!$L$5:$L$237,$B55,'Detailed price list'!$M$5:$M$237)) -> 31.69347077 | D55: =IF(SUMIF('Detailed price list'!$L$5:$L$237,$B55,'Detailed price list'!$M$5:$M$237)=0,0, SUMPRODUCT(('Detailed price list'!E$5:E$237)*('Detailed price list'!$M$5:$M$237)*('Detailed price list'!$L$5:$L$237=$B55))/SUMIF('Detailed price list'!$L$5:$L$237,$B55,'Detailed price list'!$M$5:$M$237)) -> 32.60454974 | E55: =IF(SUMIF('Detailed price list'!$L$5:$L$237,$B55,'Detailed price list'!$M$5:$M$237)=0,0, SUMPRODUCT(('Detailed price list'!F$5:F$237)*('Detailed price list'!$M$5:$M$237)*('Detailed price list'!$L$5:$L$237=$B55))/SUMIF('Detailed price list'!$L$5:$L$237,$B55,'Detailed price list'!$M$5:$M$237)) -> 33.54181912 | F55: =IF(SUMIF('Detailed price list'!$L$5:$L$237,$B55,'Detailed price list'!$M$5:$M$237)=0,0, SUMPRODUCT(('Detailed price list'!G$5:G$237)*('Detailed price list'!$M$5:$M$237)*('Detailed price list'!$L$5:$L$237=$B55))/SUMIF('Detailed price list'!$L$5:$L$237,$B55,'Detailed price list'!$M$5:$M$237)) -> 34.5060318 | G55: =IF(SUMIF('Detailed price list'!$L$5:$L$237,$B55,'Detailed price list'!$M$5:$M$237)=0,0, SUMPRODUCT(('Detailed price list'!H$5:H$237)*('Detailed price list'!$M$5:$M$237)*('Detailed price list'!$L$5:$L$237=$B55))/SUMIF('Detailed price list'!$L$5:$L$237,$B55,'Detailed price list'!$M$5:$M$237)) -> 35.49796229
B56: Luminaire - Minor (Cat P) road | C56: =IF(SUMIF('Detailed price list'!$L$5:$L$237,$B56,'Detailed price list'!$M$5:$M$237)=0,0, SUMPRODUCT(('Detailed price list'!D$5:D$237)*('Detailed price list'!$M$5:$M$237)*('Detailed price list'!$L$5:$L$237=$B56))/SUMIF('Detailed price list'!$L$5:$L$237,$B56,'Detailed price list'!$M$5:$M$237)) -> 23.25313016 | D56: =IF(SUMIF('Detailed price list'!$L$5:$L$237,$B56,'Detailed price list'!$M$5:$M$237)=0,0, SUMPRODUCT(('Detailed price list'!E$5:E$237)*('Detailed price list'!$M$5:$M$237)*('Detailed price list'!$L$5:$L$237=$B56))/SUMIF('Detailed price list'!$L$5:$L$237,$B56,'Detailed price list'!$M$5:$M$237)) -> 23.92157819 | E56: =IF(SUMIF('Detailed price list'!$L$5:$L$237,$B56,'Detailed price list'!$M$5:$M$237)=0,0, SUMPRODUCT(('Detailed price list'!F$5:F$237)*('Detailed price list'!$M$5:$M$237)*('Detailed price list'!$L$5:$L$237=$B56))/SUMIF('Detailed price list'!$L$5:$L$237,$B56,'Detailed price list'!$M$5:$M$237)) -> 24.60924181 | F56: =IF(SUMIF('Detailed price list'!$L$5:$L$237,$B56,'Detailed price list'!$M$5:$M$237)=0,0, SUMPRODUCT(('Detailed price list'!G$5:G$237)*('Detailed price list'!$M$5:$M$237)*('Detailed price list'!$L$5:$L$237=$B56))/SUMIF('Detailed price list'!$L$5:$L$237,$B56,'Detailed price list'!$M$5:$M$237)) -> 25.31667341 | G56: =IF(SUMIF('Detailed price list'!$L$5:$L$237,$B56,'Detailed price list'!$M$5:$M$237)=0,0, SUMPRODUCT(('Detailed price list'!H$5:H$237)*('Detailed price list'!$M$5:$M$237)*('Detailed price list'!$L$5:$L$237=$B56))/SUMIF('Detailed price list'!$L$5:$L$237,$B56,'Detailed price list'!$M$5:$M$237)) -> 26.04444126
B57: Luminaire - Minor (Cat P) road | C57: =IF(SUMIF('Detailed price list'!$L$5:$L$237,$B57,'Detailed price list'!$M$5:$M$237)=0,0, SUMPRODUCT(('Detailed price list'!D$5:D$237)*('Detailed price list'!$M$5:$M$237)*('Detailed price list'!$L$5:$L$237=$B57))/SUMIF('Detailed price list'!$L$5:$L$237,$B57,'Detailed price list'!$M$5:$M$237)) -> 23.25313016 | D57: =IF(SUMIF('Detailed price list'!$L$5:$L$237,$B57,'Detailed price list'!$M$5:$M$237)=0,0, SUMPRODUCT(('Detailed price list'!E$5:E$237)*('Detailed price list'!$M$5:$M$237)*('Detailed price list'!$L$5:$L$237=$B57))/SUMIF('Detailed price list'!$L$5:$L$237,$B57,'Detailed price list'!$M$5:$M$237)) -> 23.92157819 | E57: =IF(SUMIF('Detailed price list'!$L$5:$L$237,$B57,'Detailed price list'!$M$5:$M$237)=0,0, SUMPRODUCT(('Detailed price list'!F$5:F$237)*('Detailed price list'!$M$5:$M$237)*('Detailed price list'!$L$5:$L$237=$B57))/SUMIF('Detailed price list'!$L$5:$L$237,$B57,'Detailed price list'!$M$5:$M$237)) -> 24.60924181 | F57: =IF(SUMIF('Detailed price list'!$L$5:$L$237,$B57,'Detailed price list'!$M$5:$M$237)=0,0, SUMPRODUCT(('Detailed price list'!G$5:G$237)*('Detailed price list'!$M$5:$M$237)*('Detailed price list'!$L$5:$L$237=$B57))/SUMIF('Detailed price list'!$L$5:$L$237,$B57,'Detailed price list'!$M$5:$M$237)) -> 25.31667341 | G57: =IF(SUMIF('Detailed price list'!$L$5:$L$237,$B57,'Detailed price list'!$M$5:$M$237)=0,0, SUMPRODUCT(('Detailed price list'!H$5:H$237)*('Detailed price list'!$M$5:$M$237)*('Detailed price list'!$L$5:$L$237=$B57))/SUMIF('Detailed price list'!$L$5:$L$237,$B57,'Detailed price list'!$M$5:$M$237)) -> 26.04444126
B58: Smart Controller - Licence and maintenance fee | C58: =IF(SUMIF('Detailed price list'!$L$5:$L$237,$B58,'Detailed price list'!$M$5:$M$237)=0,0, SUMPRODUCT(('Detailed price list'!D$5:D$237)*('Detailed price list'!$M$5:$M$237)*('Detailed price list'!$L$5:$L$237=$B58))/SUMIF('Detailed price list'!$L$5:$L$237,$B58,'Detailed price list'!$M$5:$M$237)) -> 5.849940492 | D58: =IF(SUMIF('Detailed price list'!$L$5:$L$237,$B58,'Detailed price list'!$M$5:$M$237)=0,0, SUMPRODUCT(('Detailed price list'!E$5:E$237)*('Detailed price list'!$M$5:$M$237)*('Detailed price list'!$L$5:$L$237=$B58))/SUMIF('Detailed price list'!$L$5:$L$237,$B58,'Detailed price list'!$M$5:$M$237)) -> 6.018106289 | E58: =IF(SUMIF('Detailed price list'!$L$5:$L$237,$B58,'Detailed price list'!$M$5:$M$237)=0,0, SUMPRODUCT(('Detailed price list'!F$5:F$237)*('Detailed price list'!$M$5:$M$237)*('Detailed price list'!$L$5:$L$237=$B58))/SUMIF('Detailed price list'!$L$5:$L$237,$B58,'Detailed price list'!$M$5:$M$237)) -> 6.191106279 | F58: =IF(SUMIF('Detailed price list'!$L$5:$L$237,$B58,'Detailed price list'!$M$5:$M$237)=0,0, SUMPRODUCT(('Detailed price list'!G$5:G$237)*('Detailed price list'!$M$5:$M$237)*('Detailed price list'!$L$5:$L$237=$B58))/SUMIF('Detailed price list'!$L$5:$L$237,$B58,'Detailed price list'!$M$5:$M$237)) -> 6.369079427 | G58: =IF(SUMIF('Detailed price list'!$L$5:$L$237,$B58,'Detailed price list'!$M$5:$M$237)=0,0, SUMPRODUCT(('Detailed price list'!H$5:H$237)*('Detailed price list'!$M$5:$M$237)*('Detailed price list'!$L$5:$L$237=$B58))/SUMIF('Detailed price list'!$L$5:$L$237,$B58,'Detailed price list'!$M$5:$M$237)) -> 6.552168695
B59: Luminaire - Decorative | C59: =IF(SUMIF('Detailed price list'!$L$5:$L$237,$B59,'Detailed price list'!$M$5:$M$237)=0,0, SUMPRODUCT(('Detailed price list'!D$5:D$237)*('Detailed price list'!$M$5:$M$237)*('Detailed price list'!$L$5:$L$237=$B59))/SUMIF('Detailed price list'!$L$5:$L$237,$B59,'Detailed price list'!$M$5:$M$237)) -> 0 | D59: =IF(SUMIF('Detailed price list'!$L$5:$L$237,$B59,'Detailed price list'!$M$5:$M$237)=0,0, SUMPRODUCT(('Detailed price list'!E$5:E$237)*('Detailed price list'!$M$5:$M$237)*('Detailed price list'!$L$5:$L$237=$B59))/SUMIF('Detailed price list'!$L$5:$L$237,$B59,'Detailed price list'!$M$5:$M$237)) -> 0 | E59: =IF(SUMIF('Detailed price list'!$L$5:$L$237,$B59,'Detailed price list'!$M$5:$M$237)=0,0, SUMPRODUCT(('Detailed price list'!F$5:F$237)*('Detailed price list'!$M$5:$M$237)*('Detailed price list'!$L$5:$L$237=$B59))/SUMIF('Detailed price list'!$L$5:$L$237,$B59,'Detailed price list'!$M$5:$M$237)) -> 0 | F59: =IF(SUMIF('Detailed price list'!$L$5:$L$237,$B59,'Detailed price list'!$M$5:$M$237)=0,0, SUMPRODUCT(('Detailed price list'!G$5:G$237)*('Detailed price list'!$M$5:$M$237)*('Detailed price list'!$L$5:$L$237=$B59))/SUMIF('Detailed price list'!$L$5:$L$237,$B59,'Detailed price list'!$M$5:$M$237)) -> 0 | G59: =IF(SUMIF('Detailed price list'!$L$5:$L$237,$B59,'Detailed price list'!$M$5:$M$237)=0,0, SUMPRODUCT(('Detailed price list'!H$5:H$237)*('Detailed price list'!$M$5:$M$237)*('Detailed price list'!$L$5:$L$237=$B59))/SUMIF('Detailed price list'!$L$5:$L$237,$B59,'Detailed price list'!$M$5:$M$237)) -> 0
B60: Luminaire - Floodlight | C60: =IF(SUMIF('Detailed price list'!$L$5:$L$237,$B60,'Detailed price list'!$M$5:$M$237)=0,0, SUMPRODUCT(('Detailed price list'!D$5:D$237)*('Detailed price list'!$M$5:$M$237)*('Detailed price list'!$L$5:$L$237=$B60))/SUMIF('Detailed price list'!$L$5:$L$237,$B60,'Detailed price list'!$M$5:$M$237)) -> 0 | D60: =IF(SUMIF('Detailed price list'!$L$5:$L$237,$B60,'Detailed price list'!$M$5:$M$237)=0,0, SUMPRODUCT(('Detailed price list'!E$5:E$237)*('Detailed price list'!$M$5:$M$237)*('Detailed price list'!$L$5:$L$237=$B60))/SUMIF('Detailed price list'!$L$5:$L$237,$B60,'Detailed price list'!$M$5:$M$237)) -> 0 | E60: =IF(SUMIF('Detailed price list'!$L$5:$L$237,$B60,'Detailed price list'!$M$5:$M$237)=0,0, SUMPRODUCT(('Detailed price list'!F$5:F$237)*('Detailed price list'!$M$5:$M$237)*('Detailed price list'!$L$5:$L$237=$B60))/SUMIF('Detailed price list'!$L$5:$L$237,$B60,'Detailed price list'!$M$5:$M$237)) -> 0 | F60: =IF(SUMIF('Detailed price list'!$L$5:$L$237,$B60,'Detailed price list'!$M$5:$M$237)=0,0, SUMPRODUCT(('Detailed price list'!G$5:G$237)*('Detailed price list'!$M$5:$M$237)*('Detailed price list'!$L$5:$L$237=$B60))/SUMIF('Detailed price list'!$L$5:$L$237,$B60,'Detailed price list'!$M$5:$M$237)) -> 0 | G60: =IF(SUMIF('Detailed price list'!$L$5:$L$237,$B60,'Detailed price list'!$M$5:$M$237)=0,0, SUMPRODUCT(('Detailed price list'!H$5:H$237)*('Detailed price list'!$M$5:$M$237)*('Detailed price list'!$L$5:$L$237=$B60))/SUMIF('Detailed price list'!$L$5:$L$237,$B60,'Detailed price list'!$M$5:$M$237)) -> 0
B61: Luminaire - Major (Cat V) road - smart controller installed | C61: =IF(SUMIF('Detailed price list'!$L$5:$L$237,$B61,'Detailed price list'!$M$5:$M$237)=0,0, SUMPRODUCT(('Detailed price list'!D$5:D$237)*('Detailed price list'!$M$5:$M$237)*('Detailed price list'!$L$5:$L$237=$B61))/SUMIF('Detailed price list'!$L$5:$L$237,$B61,'Detailed price list'!$M$5:$M$237)) -> 22.43196985 | D61: =IF(SUMIF('Detailed price list'!$L$5:$L$237,$B61,'Detailed price list'!$M$5:$M$237)=0,0, SUMPRODUCT(('Detailed price list'!E$5:E$237)*('Detailed price list'!$M$5:$M$237)*('Detailed price list'!$L$5:$L$237=$B61))/SUMIF('Detailed price list'!$L$5:$L$237,$B61,'Detailed price list'!$M$5:$M$237)) -> 23.07681233 | E61: =IF(SUMIF('Detailed price list'!$L$5:$L$237,$B61,'Detailed price list'!$M$5:$M$237)=0,0, SUMPRODUCT(('Detailed price list'!F$5:F$237)*('Detailed price list'!$M$5:$M$237)*('Detailed price list'!$L$5:$L$237=$B61))/SUMIF('Detailed price list'!$L$5:$L$237,$B61,'Detailed price list'!$M$5:$M$237)) -> 23.74019182 | F61: =IF(SUMIF('Detailed price list'!$L$5:$L$237,$B61,'Detailed price list'!$M$5:$M$237)=0,0, SUMPRODUCT(('Detailed price list'!G$5:G$237)*('Detailed price list'!$M$5:$M$237)*('Detailed price list'!$L$5:$L$237=$B61))/SUMIF('Detailed price list'!$L$5:$L$237,$B61,'Detailed price list'!$M$5:$M$237)) -> 24.42264121 | G61: =IF(SUMIF('Detailed price list'!$L$5:$L$237,$B61,'Detailed price list'!$M$5:$M$237)=0,0, SUMPRODUCT(('Detailed price list'!H$5:H$237)*('Detailed price list'!$M$5:$M$237)*('Detailed price list'!$L$5:$L$237=$B61))/SUMIF('Detailed price list'!$L$5:$L$237,$B61,'Detailed price list'!$M$5:$M$237)) -> 25.12470868
B62: Luminaire - Minor (Cat P) road - smart controller installed | C62: =IF(SUMIF('Detailed price list'!$L$5:$L$237,$B62,'Detailed price list'!$M$5:$M$237)=0,0, SUMPRODUCT(('Detailed price list'!D$5:D$237)*('Detailed price list'!$M$5:$M$237)*('Detailed price list'!$L$5:$L$237=$B62))/SUMIF('Detailed price list'!$L$5:$L$237,$B62,'Detailed price list'!$M$5:$M$237)) -> 17.96979969 | D62: =IF(SUMIF('Detailed price list'!$L$5:$L$237,$B62,'Detailed price list'!$M$5:$M$237)=0,0, SUMPRODUCT(('Detailed price list'!E$5:E$237)*('Detailed price list'!$M$5:$M$237)*('Detailed price list'!$L$5:$L$237=$B62))/SUMIF('Detailed price list'!$L$5:$L$237,$B62,'Detailed price list'!$M$5:$M$237)) -> 18.48637002 | E62: =IF(SUMIF('Detailed price list'!$L$5:$L$237,$B62,'Detailed price list'!$M$5:$M$237)=0,0, SUMPRODUCT(('Detailed price list'!F$5:F$237)*('Detailed price list'!$M$5:$M$237)*('Detailed price list'!$L$5:$L$237=$B62))/SUMIF('Detailed price list'!$L$5:$L$237,$B62,'Detailed price list'!$M$5:$M$237)) -> 19.01778998 | F62: =IF(SUMIF('Detailed price list'!$L$5:$L$237,$B62,'Detailed price list'!$M$5:$M$237)=0,0, SUMPRODUCT(('Detailed price list'!G$5:G$237)*('Detailed price list'!$M$5:$M$237)*('Detailed price list'!$L$5:$L$237=$B62))/SUMIF('Detailed price list'!$L$5:$L$237,$B62,'Detailed price list'!$M$5:$M$237)) -> 19.56448645 | G62: =IF(SUMIF('Detailed price list'!$L$5:$L$237,$B62,'Detailed price list'!$M$5:$M$237)=0,0, SUMPRODUCT(('Detailed price list'!H$5:H$237)*('Detailed price list'!$M$5:$M$237)*('Detailed price list'!$L$5:$L$237=$B62))/SUMIF('Detailed price list'!$L$5:$L$237,$B62,'Detailed price list'!$M$5:$M$237)) -> 20.12689858
B63: Luminaire - Floodlight - smart controller installed | C63: =IF(SUMIF('Detailed price list'!$L$5:$L$237,$B63,'Detailed price list'!$M$5:$M$237)=0,0, SUMPRODUCT(('Detailed price list'!D$5:D$237)*('Detailed price list'!$M$5:$M$237)*('Detailed price list'!$L$5:$L$237=$B63))/SUMIF('Detailed price list'!$L$5:$L$237,$B63,'Detailed price list'!$M$5:$M$237)) -> 0 | D63: =IF(SUMIF('Detailed price list'!$L$5:$L$237,$B63,'Detailed price list'!$M$5:$M$237)=0,0, SUMPRODUCT(('Detailed price list'!E$5:E$237)*('Detailed price list'!$M$5:$M$237)*('Detailed price list'!$L$5:$L$237=$B63))/SUMIF('Detailed price list'!$L$5:$L$237,$B63,'Detailed price list'!$M$5:$M$237)) -> 0 | E63: =IF(SUMIF('Detailed price list'!$L$5:$L$237,$B63,'Detailed price list'!$M$5:$M$237)=0,0, SUMPRODUCT(('Detailed price list'!F$5:F$237)*('Detailed price list'!$M$5:$M$237)*('Detailed price list'!$L$5:$L$237=$B63))/SUMIF('Detailed price list'!$L$5:$L$237,$B63,'Detailed price list'!$M$5:$M$237)) -> 0 | F63: =IF(SUMIF('Detailed price list'!$L$5:$L$237,$B63,'Detailed price list'!$M$5:$M$237)=0,0, SUMPRODUCT(('Detailed price list'!G$5:G$237)*('Detailed price list'!$M$5:$M$237)*('Detailed price list'!$L$5:$L$237=$B63))/SUMIF('Detailed price list'!$L$5:$L$237,$B63,'Detailed price list'!$M$5:$M$237)) -> 0 | G63: =IF(SUMIF('Detailed price list'!$L$5:$L$237,$B63,'Detailed price list'!$M$5:$M$237)=0,0, SUMPRODUCT(('Detailed price list'!H$5:H$237)*('Detailed price list'!$M$5:$M$237)*('Detailed price list'!$L$5:$L$237=$B63))/SUMIF('Detailed price list'!$L$5:$L$237,$B63,'Detailed price list'!$M$5:$M$237)) -> 0
B64: Luminaire - Decorative - smart controller installed | C64: =IF(SUMIF('Detailed price list'!$L$5:$L$237,$B64,'Detailed price list'!$M$5:$M$237)=0,0, SUMPRODUCT(('Detailed price list'!D$5:D$237)*('Detailed price list'!$M$5:$M$237)*('Detailed price list'!$L$5:$L$237=$B64))/SUMIF('Detailed price list'!$L$5:$L$237,$B64,'Detailed price list'!$M$5:$M$237)) -> 0 | D64: =IF(SUMIF('Detailed price list'!$L$5:$L$237,$B64,'Detailed price list'!$M$5:$M$237)=0,0, SUMPRODUCT(('Detailed price list'!E$5:E$237)*('Detailed price list'!$M$5:$M$237)*('Detailed price list'!$L$5:$L$237=$B64))/SUMIF('Detailed price list'!$L$5:$L$237,$B64,'Detailed price list'!$M$5:$M$237)) -> 0 | E64: =IF(SUMIF('Detailed price list'!$L$5:$L$237,$B64,'Detailed price list'!$M$5:$M$237)=0,0, SUMPRODUCT(('Detailed price list'!F$5:F$237)*('Detailed price list'!$M$5:$M$237)*('Detailed price list'!$L$5:$L$237=$B64))/SUMIF('Detailed price list'!$L$5:$L$237,$B64,'Detailed price list'!$M$5:$M$237)) -> 0 | F64: =IF(SUMIF('Detailed price list'!$L$5:$L$237,$B64,'Detailed price list'!$M$5:$M$237)=0,0, SUMPRODUCT(('Detailed price list'!G$5:G$237)*('Detailed price list'!$M$5:$M$237)*('Detailed price list'!$L$5:$L$237=$B64))/SUMIF('Detailed price list'!$L$5:$L$237,$B64,'Detailed price list'!$M$5:$M$237)) -> 0 | G64: =IF(SUMIF('Detailed price list'!$L$5:$L$237,$B64,'Detailed price list'!$M$5:$M$237)=0,0, SUMPRODUCT(('Detailed price list'!H$5:H$237)*('Detailed price list'!$M$5:$M$237)*('Detailed price list'!$L$5:$L$237=$B64))/SUMIF('Detailed price list'!$L$5:$L$237,$B64,'Detailed price list'!$M$5:$M$237)) -> 0
B65: Legacy Bracket - Minor (Cat P) road - Short | C65: =IF(SUMIF('Detailed price list'!$L$5:$L$237,$B65,'Detailed price list'!$M$5:$M$237)=0,0, SUMPRODUCT(('Detailed price list'!D$5:D$237)*('Detailed price list'!$M$5:$M$237)*('Detailed price list'!$L$5:$L$237=$B65))/SUMIF('Detailed price list'!$L$5:$L$237,$B65,'Detailed price list'!$M$5:$M$237)) -> 7.965708486 | D65: =IF(SUMIF('Detailed price list'!$L$5:$L$237,$B65,'Detailed price list'!$M$5:$M$237)=0,0, SUMPRODUCT(('Detailed price list'!E$5:E$237)*('Detailed price list'!$M$5:$M$237)*('Detailed price list'!$L$5:$L$237=$B65))/SUMIF('Detailed price list'!$L$5:$L$237,$B65,'Detailed price list'!$M$5:$M$237)) -> 8.194695383 | E65: =IF(SUMIF('Detailed price list'!$L$5:$L$237,$B65,'Detailed price list'!$M$5:$M$237)=0,0, SUMPRODUCT(('Detailed price list'!F$5:F$237)*('Detailed price list'!$M$5:$M$237)*('Detailed price list'!$L$5:$L$237=$B65))/SUMIF('Detailed price list'!$L$5:$L$237,$B65,'Detailed price list'!$M$5:$M$237)) -> 8.430264871 | F65: =IF(SUMIF('Detailed price list'!$L$5:$L$237,$B65,'Detailed price list'!$M$5:$M$237)=0,0, SUMPRODUCT(('Detailed price list'!G$5:G$237)*('Detailed price list'!$M$5:$M$237)*('Detailed price list'!$L$5:$L$237=$B65))/SUMIF('Detailed price list'!$L$5:$L$237,$B65,'Detailed price list'!$M$5:$M$237)) -> 8.672606176 | G65: =IF(SUMIF('Detailed price list'!$L$5:$L$237,$B65,'Detailed price list'!$M$5:$M$237)=0,0, SUMPRODUCT(('Detailed price list'!H$5:H$237)*('Detailed price list'!$M$5:$M$237)*('Detailed price list'!$L$5:$L$237=$B65))/SUMIF('Detailed price list'!$L$5:$L$237,$B65,'Detailed price list'!$M$5:$M$237)) -> 8.921913966
B66: Legacy Bracket - Minor (Cat P) road - Short | C66: =IF(SUMIF('Detailed price list'!$L$5:$L$237,$B66,'Detailed price list'!$M$5:$M$237)=0,0, SUMPRODUCT(('Detailed price list'!D$5:D$237)*('Detailed price list'!$M$5:$M$237)*('Detailed price list'!$L$5:$L$237=$B66))/SUMIF('Detailed price list'!$L$5:$L$237,$B66,'Detailed price list'!$M$5:$M$237)) -> 7.965708486 | D66: =IF(SUMIF('Detailed price list'!$L$5:$L$237,$B66,'Detailed price list'!$M$5:$M$237)=0,0, SUMPRODUCT(('Detailed price list'!E$5:E$237)*('Detailed price list'!$M$5:$M$237)*('Detailed price list'!$L$5:$L$237=$B66))/SUMIF('Detailed price list'!$L$5:$L$237,$B66,'Detailed price list'!$M$5:$M$237)) -> 8.194695383 | E66: =IF(SUMIF('Detailed price list'!$L$5:$L$237,$B66,'Detailed price list'!$M$5:$M$237)=0,0, SUMPRODUCT(('Detailed price list'!F$5:F$237)*('Detailed price list'!$M$5:$M$237)*('Detailed price list'!$L$5:$L$237=$B66))/SUMIF('Detailed price list'!$L$5:$L$237,$B66,'Detailed price list'!$M$5:$M$237)) -> 8.430264871 | F66: =IF(SUMIF('Detailed price list'!$L$5:$L$237,$B66,'Detailed price list'!$M$5:$M$237)=0,0, SUMPRODUCT(('Detailed price list'!G$5:G$237)*('Detailed price list'!$M$5:$M$237)*('Detailed price list'!$L$5:$L$237=$B66))/SUMIF('Detailed price list'!$L$5:$L$237,$B66,'Detailed price list'!$M$5:$M$237)) -> 8.672606176 | G66: =IF(SUMIF('Detailed price list'!$L$5:$L$237,$B66,'Detailed price list'!$M$5:$M$237)=0,0, SUMPRODUCT(('Detailed price list'!H$5:H$237)*('Detailed price list'!$M$5:$M$237)*('Detailed price list'!$L$5:$L$237=$B66))/SUMIF('Detailed price list'!$L$5:$L$237,$B66,'Detailed price list'!$M$5:$M$237)) -> 8.921913966
B67: Legacy Bracket - Minor (Cat P) road - Short | C67: =IF(SUMIF('Detailed price list'!$L$5:$L$237,$B67,'Detailed price list'!$M$5:$M$237)=0,0, SUMPRODUCT(('Detailed price list'!D$5:D$237)*('Detailed price list'!$M$5:$M$237)*('Detailed price list'!$L$5:$L$237=$B67))/SUMIF('Detailed price list'!$L$5:$L$237,$B67,'Detailed price list'!$M$5:$M$237)) -> 7.965708486 | D67: =IF(SUMIF('Detailed price list'!$L$5:$L$237,$B67,'Detailed price list'!$M$5:$M$237)=0,0, SUMPRODUCT(('Detailed price list'!E$5:E$237)*('Detailed price list'!$M$5:$M$237)*('Detailed price list'!$L$5:$L$237=$B67))/SUMIF('Detailed price list'!$L$5:$L$237,$B67,'Detailed price list'!$M$5:$M$237)) -> 8.194695383 | E67: =IF(SUMIF('Detailed price list'!$L$5:$L$237,$B67,'Detailed price list'!$M$5:$M$237)=0,0, SUMPRODUCT(('Detailed price list'!F$5:F$237)*('Detailed price list'!$M$5:$M$237)*('Detailed price list'!$L$5:$L$237=$B67))/SUMIF('Detailed price list'!$L$5:$L$237,$B67,'Detailed price list'!$M$5:$M$237)) -> 8.430264871 | F67: =IF(SUMIF('Detailed price list'!$L$5:$L$237,$B67,'Detailed price list'!$M$5:$M$237)=0,0, SUMPRODUCT(('Detailed price list'!G$5:G$237)*('Detailed price list'!$M$5:$M$237)*('Detailed price list'!$L$5:$L$237=$B67))/SUMIF('Detailed price list'!$L$5:$L$237,$B67,'Detailed price list'!$M$5:$M$237)) -> 8.672606176 | G67: =IF(SUMIF('Detailed price list'!$L$5:$L$237,$B67,'Detailed price list'!$M$5:$M$237)=0,0, SUMPRODUCT(('Detailed price list'!H$5:H$237)*('Detailed price list'!$M$5:$M$237)*('Detailed price list'!$L$5:$L$237=$B67))/SUMIF('Detailed price list'!$L$5:$L$237,$B67,'Detailed price list'!$M$5:$M$237)) -> 8.921913966
B68: Legacy Bracket - Minor (Cat P) road - Short | C68: =IF(SUMIF('Detailed price list'!$L$5:$L$237,$B68,'Detailed price list'!$M$5:$M$237)=0,0, SUMPRODUCT(('Detailed price list'!D$5:D$237)*('Detailed price list'!$M$5:$M$237)*('Detailed price list'!$L$5:$L$237=$B68))/SUMIF('Detailed price list'!$L$5:$L$237,$B68,'Detailed price list'!$M$5:$M$237)) -> 7.965708486 | D68: =IF(SUMIF('Detailed price list'!$L$5:$L$237,$B68,'Detailed price list'!$M$5:$M$237)=0,0, SUMPRODUCT(('Detailed price list'!E$5:E$237)*('Detailed price list'!$M$5:$M$237)*('Detailed price list'!$L$5:$L$237=$B68))/SUMIF('Detailed price list'!$L$5:$L$237,$B68,'Detailed price list'!$M$5:$M$237)) -> 8.194695383 | E68: =IF(SUMIF('Detailed price list'!$L$5:$L$237,$B68,'Detailed price list'!$M$5:$M$237)=0,0, SUMPRODUCT(('Detailed price list'!F$5:F$237)*('Detailed price list'!$M$5:$M$237)*('Detailed price list'!$L$5:$L$237=$B68))/SUMIF('Detailed price list'!$L$5:$L$237,$B68,'Detailed price list'!$M$5:$M$237)) -> 8.430264871 | F68: =IF(SUMIF('Detailed price list'!$L$5:$L$237,$B68,'Detailed price list'!$M$5:$M$237)=0,0, SUMPRODUCT(('Detailed price list'!G$5:G$237)*('Detailed price list'!$M$5:$M$237)*('Detailed price list'!$L$5:$L$237=$B68))/SUMIF('Detailed price list'!$L$5:$L$237,$B68,'Detailed price list'!$M$5:$M$237)) -> 8.672606176 | G68: =IF(SUMIF('Detailed price list'!$L$5:$L$237,$B68,'Detailed price list'!$M$5:$M$237)=0,0, SUMPRODUCT(('Detailed price list'!H$5:H$237)*('Detailed price list'!$M$5:$M$237)*('Detailed price list'!$L$5:$L$237=$B68))/SUMIF('Detailed price list'!$L$5:$L$237,$B68,'Detailed price list'!$M$5:$M$237)) -> 8.921913966
B69: Legacy Bracket - Minor (Cat P) road - Short | C69: =IF(SUMIF('Detailed price list'!$L$5:$L$237,$B69,'Detailed price list'!$M$5:$M$237)=0,0, SUMPRODUCT(('Detailed price list'!D$5:D$237)*('Detailed price list'!$M$5:$M$237)*('Detailed price list'!$L$5:$L$237=$B69))/SUMIF('Detailed price list'!$L$5:$L$237,$B69,'Detailed price list'!$M$5:$M$237)) -> 7.965708486 | D69: =IF(SUMIF('Detailed price list'!$L$5:$L$237,$B69,'Detailed price list'!$M$5:$M$237)=0,0, SUMPRODUCT(('Detailed price list'!E$5:E$237)*('Detailed price list'!$M$5:$M$237)*('Detailed price list'!$L$5:$L$237=$B69))/SUMIF('Detailed price list'!$L$5:$L$237,$B69,'Detailed price list'!$M$5:$M$237)) -> 8.194695383 | E69: =IF(SUMIF('Detailed price list'!$L$5:$L$237,$B69,'Detailed price list'!$M$5:$M$237)=0,0, SUMPRODUCT(('Detailed price list'!F$5:F$237)*('Detailed price list'!$M$5:$M$237)*('Detailed price list'!$L$5:$L$237=$B69))/SUMIF('Detailed price list'!$L$5:$L$237,$B69,'Detailed price list'!$M$5:$M$237)) -> 8.430264871 | F69: =IF(SUMIF('Detailed price list'!$L$5:$L$237,$B69,'Detailed price list'!$M$5:$M$237)=0,0, SUMPRODUCT(('Detailed price list'!G$5:G$237)*('Detailed price list'!$M$5:$M$237)*('Detailed price list'!$L$5:$L$237=$B69))/SUMIF('Detailed price list'!$L$5:$L$237,$B69,'Detailed price list'!$M$5:$M$237)) -> 8.672606176 | G69: =IF(SUMIF('Detailed price list'!$L$5:$L$237,$B69,'Detailed price list'!$M$5:$M$237)=0,0, SUMPRODUCT(('Detailed price list'!H$5:H$237)*('Detailed price list'!$M$5:$M$237)*('Detailed price list'!$L$5:$L$237=$B69))/SUMIF('Detailed price list'!$L$5:$L$237,$B69,'Detailed price list'!$M$5:$M$237)) -> 8.921913966
B70: Legacy Bracket - Minor (Cat P) road - Short | C70: =IF(SUMIF('Detailed price list'!$L$5:$L$237,$B70,'Detailed price list'!$M$5:$M$237)=0,0, SUMPRODUCT(('Detailed price list'!D$5:D$237)*('Detailed price list'!$M$5:$M$237)*('Detailed price list'!$L$5:$L$237=$B70))/SUMIF('Detailed price list'!$L$5:$L$237,$B70,'Detailed price list'!$M$5:$M$237)) -> 7.965708486 | D70: =IF(SUMIF('Detailed price list'!$L$5:$L$237,$B70,'Detailed price list'!$M$5:$M$237)=0,0, SUMPRODUCT(('Detailed price list'!E$5:E$237)*('Detailed price list'!$M$5:$M$237)*('Detailed price list'!$L$5:$L$237=$B70))/SUMIF('Detailed price list'!$L$5:$L$237,$B70,'Detailed price list'!$M$5:$M$237)) -> 8.194695383 | E70: =IF(SUMIF('Detailed price list'!$L$5:$L$237,$B70,'Detailed price list'!$M$5:$M$237)=0,0, SUMPRODUCT(('Detailed price list'!F$5:F$237)*('Detailed price list'!$M$5:$M$237)*('Detailed price list'!$L$5:$L$237=$B70))/SUMIF('Detailed price list'!$L$5:$L$237,$B70,'Detailed price list'!$M$5:$M$237)) -> 8.430264871 | F70: =IF(SUMIF('Detailed price list'!$L$5:$L$237,$B70,'Detailed price list'!$M$5:$M$237)=0,0, SUMPRODUCT(('Detailed price list'!G$5:G$237)*('Detailed price list'!$M$5:$M$237)*('Detailed price list'!$L$5:$L$237=$B70))/SUMIF('Detailed price list'!$L$5:$L$237,$B70,'Detailed price list'!$M$5:$M$237)) -> 8.672606176 | G70: =IF(SUMIF('Detailed price list'!$L$5:$L$237,$B70,'Detailed price list'!$M$5:$M$237)=0,0, SUMPRODUCT(('Detailed price list'!H$5:H$237)*('Detailed price list'!$M$5:$M$237)*('Detailed price list'!$L$5:$L$237=$B70))/SUMIF('Detailed price list'!$L$5:$L$237,$B70,'Detailed price list'!$M$5:$M$237)) -> 8.921913966
B71: Legacy Bracket - Minor (Cat P) road - Short | C71: =IF(SUMIF('Detailed price list'!$L$5:$L$237,$B71,'Detailed price list'!$M$5:$M$237)=0,0, SUMPRODUCT(('Detailed price list'!D$5:D$237)*('Detailed price list'!$M$5:$M$237)*('Detailed price list'!$L$5:$L$237=$B71))/SUMIF('Detailed price list'!$L$5:$L$237,$B71,'Detailed price list'!$M$5:$M$237)) -> 7.965708486 | D71: =IF(SUMIF('Detailed price list'!$L$5:$L$237,$B71,'Detailed price list'!$M$5:$M$237)=0,0, SUMPRODUCT(('Detailed price list'!E$5:E$237)*('Detailed price list'!$M$5:$M$237)*('Detailed price list'!$L$5:$L$237=$B71))/SUMIF('Detailed price list'!$L$5:$L$237,$B71,'Detailed price list'!$M$5:$M$237)) -> 8.194695383 | E71: =IF(SUMIF('Detailed price list'!$L$5:$L$237,$B71,'Detailed price list'!$M$5:$M$237)=0,0, SUMPRODUCT(('Detailed price list'!F$5:F$237)*('Detailed price list'!$M$5:$M$237)*('Detailed price list'!$L$5:$L$237=$B71))/SUMIF('Detailed price list'!$L$5:$L$237,$B71,'Detailed price list'!$M$5:$M$237)) -> 8.430264871 | F71: =IF(SUMIF('Detailed price list'!$L$5:$L$237,$B71,'Detailed price list'!$M$5:$M$237)=0,0, SUMPRODUCT(('Detailed price list'!G$5:G$237)*('Detailed price list'!$M$5:$M$237)*('Detailed price list'!$L$5:$L$237=$B71))/SUMIF('Detailed price list'!$L$5:$L$237,$B71,'Detailed price list'!$M$5:$M$237)) -> 8.672606176 | G71: =IF(SUMIF('Detailed price list'!$L$5:$L$237,$B71,'Detailed price list'!$M$5:$M$237)=0,0, SUMPRODUCT(('Detailed price list'!H$5:H$237)*('Detailed price list'!$M$5:$M$237)*('Detailed price list'!$L$5:$L$237=$B71))/SUMIF('Detailed price list'!$L$5:$L$237,$B71,'Detailed price list'!$M$5:$M$237)) -> 8.921913966
B72: Legacy Bracket - Minor (Cat P) road - Short | C72: =IF(SUMIF('Detailed price list'!$L$5:$L$237,$B72,'Detailed price list'!$M$5:$M$237)=0,0, SUMPRODUCT(('Detailed price list'!D$5:D$237)*('Detailed price list'!$M$5:$M$237)*('Detailed price list'!$L$5:$L$237=$B72))/SUMIF('Detailed price list'!$L$5:$L$237,$B72,'Detailed price list'!$M$5:$M$237)) -> 7.965708486 | D72: =IF(SUMIF('Detailed price list'!$L$5:$L$237,$B72,'Detailed price list'!$M$5:$M$237)=0,0, SUMPRODUCT(('Detailed price list'!E$5:E$237)*('Detailed price list'!$M$5:$M$237)*('Detailed price list'!$L$5:$L$237=$B72))/SUMIF('Detailed price list'!$L$5:$L$237,$B72,'Detailed price list'!$M$5:$M$237)) -> 8.194695383 | E72: =IF(SUMIF('Detailed price list'!$L$5:$L$237,$B72,'Detailed price list'!$M$5:$M$237)=0,0, SUMPRODUCT(('Detailed price list'!F$5:F$237)*('Detailed price list'!$M$5:$M$237)*('Detailed price list'!$L$5:$L$237=$B72))/SUMIF('Detailed price list'!$L$5:$L$237,$B72,'Detailed price list'!$M$5:$M$237)) -> 8.430264871 | F72: =IF(SUMIF('Detailed price list'!$L$5:$L$237,$B72,'Detailed price list'!$M$5:$M$237)=0,0, SUMPRODUCT(('Detailed price list'!G$5:G$237)*('Detailed price list'!$M$5:$M$237)*('Detailed price list'!$L$5:$L$237=$B72))/SUMIF('Detailed price list'!$L$5:$L$237,$B72,'Detailed price list'!$M$5:$M$237)) -> 8.672606176 | G72: =IF(SUMIF('Detailed price list'!$L$5:$L$237,$B72,'Detailed price list'!$M$5:$M$237)=0,0, SUMPRODUCT(('Detailed price list'!H$5:H$237)*('Detailed price list'!$M$5:$M$237)*('Detailed price list'!$L$5:$L$237=$B72))/SUMIF('Detailed price list'!$L$5:$L$237,$B72,'Detailed price list'!$M$5:$M$237)) -> 8.921913966
B73: Legacy Bracket - Minor (Cat P) road - Medium | C73: =IF(SUMIF('Detailed price list'!$L$5:$L$237,$B73,'Detailed price list'!$M$5:$M$237)=0,0, SUMPRODUCT(('Detailed price list'!D$5:D$237)*('Detailed price list'!$M$5:$M$237)*('Detailed price list'!$L$5:$L$237=$B73))/SUMIF('Detailed price list'!$L$5:$L$237,$B73,'Detailed price list'!$M$5:$M$237)) -> 14.57719242 | D73: =IF(SUMIF('Detailed price list'!$L$5:$L$237,$B73,'Detailed price list'!$M$5:$M$237)=0,0, SUMPRODUCT(('Detailed price list'!E$5:E$237)*('Detailed price list'!$M$5:$M$237)*('Detailed price list'!$L$5:$L$237=$B73))/SUMIF('Detailed price list'!$L$5:$L$237,$B73,'Detailed price list'!$M$5:$M$237)) -> 14.99623689 | E73: =IF(SUMIF('Detailed price list'!$L$5:$L$237,$B73,'Detailed price list'!$M$5:$M$237)=0,0, SUMPRODUCT(('Detailed price list'!F$5:F$237)*('Detailed price list'!$M$5:$M$237)*('Detailed price list'!$L$5:$L$237=$B73))/SUMIF('Detailed price list'!$L$5:$L$237,$B73,'Detailed price list'!$M$5:$M$237)) -> 15.42732745 | F73: =IF(SUMIF('Detailed price list'!$L$5:$L$237,$B73,'Detailed price list'!$M$5:$M$237)=0,0, SUMPRODUCT(('Detailed price list'!G$5:G$237)*('Detailed price list'!$M$5:$M$237)*('Detailed price list'!$L$5:$L$237=$B73))/SUMIF('Detailed price list'!$L$5:$L$237,$B73,'Detailed price list'!$M$5:$M$237)) -> 15.8708104 | G73: =IF(SUMIF('Detailed price list'!$L$5:$L$237,$B73,'Detailed price list'!$M$5:$M$237)=0,0, SUMPRODUCT(('Detailed price list'!H$5:H$237)*('Detailed price list'!$M$5:$M$237)*('Detailed price list'!$L$5:$L$237=$B73))/SUMIF('Detailed price list'!$L$5:$L$237,$B73,'Detailed price list'!$M$5:$M$237)) -> 16.32704196
B74: Legacy Bracket - Minor (Cat P) road - Medium | C74: =IF(SUMIF('Detailed price list'!$L$5:$L$237,$B74,'Detailed price list'!$M$5:$M$237)=0,0, SUMPRODUCT(('Detailed price list'!D$5:D$237)*('Detailed price list'!$M$5:$M$237)*('Detailed price list'!$L$5:$L$237=$B74))/SUMIF('Detailed price list'!$L$5:$L$237,$B74,'Detailed price list'!$M$5:$M$237)) -> 14.57719242 | D74: =IF(SUMIF('Detailed price list'!$L$5:$L$237,$B74,'Detailed price list'!$M$5:$M$237)=0,0, SUMPRODUCT(('Detailed price list'!E$5:E$237)*('Detailed price list'!$M$5:$M$237)*('Detailed price list'!$L$5:$L$237=$B74))/SUMIF('Detailed price list'!$L$5:$L$237,$B74,'Detailed price list'!$M$5:$M$237)) -> 14.99623689 | E74: =IF(SUMIF('Detailed price list'!$L$5:$L$237,$B74,'Detailed price list'!$M$5:$M$237)=0,0, SUMPRODUCT(('Detailed price list'!F$5:F$237)*('Detailed price list'!$M$5:$M$237)*('Detailed price list'!$L$5:$L$237=$B74))/SUMIF('Detailed price list'!$L$5:$L$237,$B74,'Detailed price list'!$M$5:$M$237)) -> 15.42732745 | F74: =IF(SUMIF('Detailed price list'!$L$5:$L$237,$B74,'Detailed price list'!$M$5:$M$237)=0,0, SUMPRODUCT(('Detailed price list'!G$5:G$237)*('Detailed price list'!$M$5:$M$237)*('Detailed price list'!$L$5:$L$237=$B74))/SUMIF('Detailed price list'!$L$5:$L$237,$B74,'Detailed price list'!$M$5:$M$237)) -> 15.8708104 | G74: =IF(SUMIF('Detailed price list'!$L$5:$L$237,$B74,'Detailed price list'!$M$5:$M$237)=0,0, SUMPRODUCT(('Detailed price list'!H$5:H$237)*('Detailed price list'!$M$5:$M$237)*('Detailed price list'!$L$5:$L$237=$B74))/SUMIF('Detailed price list'!$L$5:$L$237,$B74,'Detailed price list'!$M$5:$M$237)) -> 16.32704196
B75: Legacy Bracket - Minor (Cat P) road - Medium | C75: =IF(SUMIF('Detailed price list'!$L$5:$L$237,$B75,'Detailed price list'!$M$5:$M$237)=0,0, SUMPRODUCT(('Detailed price list'!D$5:D$237)*('Detailed price list'!$M$5:$M$237)*('Detailed price list'!$L$5:$L$237=$B75))/SUMIF('Detailed price list'!$L$5:$L$237,$B75,'Detailed price list'!$M$5:$M$237)) -> 14.57719242 | D75: =IF(SUMIF('Detailed price list'!$L$5:$L$237,$B75,'Detailed price list'!$M$5:$M$237)=0,0, SUMPRODUCT(('Detailed price list'!E$5:E$237)*('Detailed price list'!$M$5:$M$237)*('Detailed price list'!$L$5:$L$237=$B75))/SUMIF('Detailed price list'!$L$5:$L$237,$B75,'Detailed price list'!$M$5:$M$237)) -> 14.99623689 | E75: =IF(SUMIF('Detailed price list'!$L$5:$L$237,$B75,'Detailed price list'!$M$5:$M$237)=0,0, SUMPRODUCT(('Detailed price list'!F$5:F$237)*('Detailed price list'!$M$5:$M$237)*('Detailed price list'!$L$5:$L$237=$B75))/SUMIF('Detailed price list'!$L$5:$L$237,$B75,'Detailed price list'!$M$5:$M$237)) -> 15.42732745 | F75: =IF(SUMIF('Detailed price list'!$L$5:$L$237,$B75,'Detailed price list'!$M$5:$M$237)=0,0, SUMPRODUCT(('Detailed price list'!G$5:G$237)*('Detailed price list'!$M$5:$M$237)*('Detailed price list'!$L$5:$L$237=$B75))/SUMIF('Detailed price list'!$L$5:$L$237,$B75,'Detailed price list'!$M$5:$M$237)) -> 15.8708104 | G75: =IF(SUMIF('Detailed price list'!$L$5:$L$237,$B75,'Detailed price list'!$M$5:$M$237)=0,0, SUMPRODUCT(('Detailed price list'!H$5:H$237)*('Detailed price list'!$M$5:$M$237)*('Detailed price list'!$L$5:$L$237=$B75))/SUMIF('Detailed price list'!$L$5:$L$237,$B75,'Detailed price list'!$M$5:$M$237)) -> 16.32704196
B76: Legacy Bracket - Minor (Cat P) road - Medium | C76: =IF(SUMIF('Detailed price list'!$L$5:$L$237,$B76,'Detailed price list'!$M$5:$M$237)=0,0, SUMPRODUCT(('Detailed price list'!D$5:D$237)*('Detailed price list'!$M$5:$M$237)*('Detailed price list'!$L$5:$L$237=$B76))/SUMIF('Detailed price list'!$L$5:$L$237,$B76,'Detailed price list'!$M$5:$M$237)) -> 14.57719242 | D76: =IF(SUMIF('Detailed price list'!$L$5:$L$237,$B76,'Detailed price list'!$M$5:$M$237)=0,0, SUMPRODUCT(('Detailed price list'!E$5:E$237)*('Detailed price list'!$M$5:$M$237)*('Detailed price list'!$L$5:$L$237=$B76))/SUMIF('Detailed price list'!$L$5:$L$237,$B76,'Detailed price list'!$M$5:$M$237)) -> 14.99623689 | E76: =IF(SUMIF('Detailed price list'!$L$5:$L$237,$B76,'Detailed price list'!$M$5:$M$237)=0,0, SUMPRODUCT(('Detailed price list'!F$5:F$237)*('Detailed price list'!$M$5:$M$237)*('Detailed price list'!$L$5:$L$237=$B76))/SUMIF('Detailed price list'!$L$5:$L$237,$B76,'Detailed price list'!$M$5:$M$237)) -> 15.42732745 | F76: =IF(SUMIF('Detailed price list'!$L$5:$L$237,$B76,'Detailed price list'!$M$5:$M$237)=0,0, SUMPRODUCT(('Detailed price list'!G$5:G$237)*('Detailed price list'!$M$5:$M$237)*('Detailed price list'!$L$5:$L$237=$B76))/SUMIF('Detailed price list'!$L$5:$L$237,$B76,'Detailed price list'!$M$5:$M$237)) -> 15.8708104 | G76: =IF(SUMIF('Detailed price list'!$L$5:$L$237,$B76,'Detailed price list'!$M$5:$M$237)=0,0, SUMPRODUCT(('Detailed price list'!H$5:H$237)*('Detailed price list'!$M$5:$M$237)*('Detailed price list'!$L$5:$L$237=$B76))/SUMIF('Detailed price list'!$L$5:$L$237,$B76,'Detailed price list'!$M$5:$M$237)) -> 16.32704196
B77: Legacy Bracket - Minor (Cat P) road - Long | C77: =IF(SUMIF('Detailed price list'!$L$5:$L$237,$B77,'Detailed price list'!$M$5:$M$237)=0,0, SUMPRODUCT(('Detailed price list'!D$5:D$237)*('Detailed price list'!$M$5:$M$237)*('Detailed price list'!$L$5:$L$237=$B77))/SUMIF('Detailed price list'!$L$5:$L$237,$B77,'Detailed price list'!$M$5:$M$237)) -> 23.0166333 | D77: =IF(SUMIF('Detailed price list'!$L$5:$L$237,$B77,'Detailed price list'!$M$5:$M$237)=0,0, SUMPRODUCT(('Detailed price list'!E$5:E$237)*('Detailed price list'!$M$5:$M$237)*('Detailed price list'!$L$5:$L$237=$B77))/SUMIF('Detailed price list'!$L$5:$L$237,$B77,'Detailed price list'!$M$5:$M$237)) -> 23.67828285 | E77: =IF(SUMIF('Detailed price list'!$L$5:$L$237,$B77,'Detailed price list'!$M$5:$M$237)=0,0, SUMPRODUCT(('Detailed price list'!F$5:F$237)*('Detailed price list'!$M$5:$M$237)*('Detailed price list'!$L$5:$L$237=$B77))/SUMIF('Detailed price list'!$L$5:$L$237,$B77,'Detailed price list'!$M$5:$M$237)) -> 24.35895257 | F77: =IF(SUMIF('Detailed price list'!$L$5:$L$237,$B77,'Detailed price list'!$M$5:$M$237)=0,0, SUMPRODUCT(('Detailed price list'!G$5:G$237)*('Detailed price list'!$M$5:$M$237)*('Detailed price list'!$L$5:$L$237=$B77))/SUMIF('Detailed price list'!$L$5:$L$237,$B77,'Detailed price list'!$M$5:$M$237)) -> 25.05918921 | G77: =IF(SUMIF('Detailed price list'!$L$5:$L$237,$B77,'Detailed price list'!$M$5:$M$237)=0,0, SUMPRODUCT(('Detailed price list'!H$5:H$237)*('Detailed price list'!$M$5:$M$237)*('Detailed price list'!$L$5:$L$237=$B77))/SUMIF('Detailed price list'!$L$5:$L$237,$B77,'Detailed price list'!$M$5:$M$237)) -> 25.77955526
B78: Legacy Bracket - Minor (Cat P) road - Long | C78: =IF(SUMIF('Detailed price list'!$L$5:$L$237,$B78,'Detailed price list'!$M$5:$M$237)=0,0, SUMPRODUCT(('Detailed price list'!D$5:D$237)*('Detailed price list'!$M$5:$M$237)*('Detailed price list'!$L$5:$L$237=$B78))/SUMIF('Detailed price list'!$L$5:$L$237,$B78,'Detailed price list'!$M$5:$M$237)) -> 23.0166333 | D78: =IF(SUMIF('Detailed price list'!$L$5:$L$237,$B78,'Detailed price list'!$M$5:$M$237)=0,0, SUMPRODUCT(('Detailed price list'!E$5:E$237)*('Detailed price list'!$M$5:$M$237)*('Detailed price list'!$L$5:$L$237=$B78))/SUMIF('Detailed price list'!$L$5:$L$237,$B78,'Detailed price list'!$M$5:$M$237)) -> 23.67828285 | E78: =IF(SUMIF('Detailed price list'!$L$5:$L$237,$B78,'Detailed price list'!$M$5:$M$237)=0,0, SUMPRODUCT(('Detailed price list'!F$5:F$237)*('Detailed price list'!$M$5:$M$237)*('Detailed price list'!$L$5:$L$237=$B78))/SUMIF('Detailed price list'!$L$5:$L$237,$B78,'Detailed price list'!$M$5:$M$237)) -> 24.35895257 | F78: =IF(SUMIF('Detailed price list'!$L$5:$L$237,$B78,'Detailed price list'!$M$5:$M$237)=0,0, SUMPRODUCT(('Detailed price list'!G$5:G$237)*('Detailed price list'!$M$5:$M$237)*('Detailed price list'!$L$5:$L$237=$B78))/SUMIF('Detailed price list'!$L$5:$L$237,$B78,'Detailed price list'!$M$5:$M$237)) -> 25.05918921 | G78: =IF(SUMIF('Detailed price list'!$L$5:$L$237,$B78,'Detailed price list'!$M$5:$M$237)=0,0, SUMPRODUCT(('Detailed price list'!H$5:H$237)*('Detailed price list'!$M$5:$M$237)*('Detailed price list'!$L$5:$L$237=$B78))/SUMIF('Detailed price list'!$L$5:$L$237,$B78,'Detailed price list'!$M$5:$M$237)) -> 25.77955526
B79: Legacy Bracket - Minor (Cat P) road - Long | C79: =IF(SUMIF('Detailed price list'!$L$5:$L$237,$B79,'Detailed price list'!$M$5:$M$237)=0,0, SUMPRODUCT(('Detailed price list'!D$5:D$237)*('Detailed price list'!$M$5:$M$237)*('Detailed price list'!$L$5:$L$237=$B79))/SUMIF('Detailed price list'!$L$5:$L$237,$B79,'Detailed price list'!$M$5:$M$237)) -> 23.0166333 | D79: =IF(SUMIF('Detailed price list'!$L$5:$L$237,$B79,'Detailed price list'!$M$5:$M$237)=0,0, SUMPRODUCT(('Detailed price list'!E$5:E$237)*('Detailed price list'!$M$5:$M$237)*('Detailed price list'!$L$5:$L$237=$B79))/SUMIF('Detailed price list'!$L$5:$L$237,$B79,'Detailed price list'!$M$5:$M$237)) -> 23.67828285 | E79: =IF(SUMIF('Detailed price list'!$L$5:$L$237,$B79,'Detailed price list'!$M$5:$M$237)=0,0, SUMPRODUCT(('Detailed price list'!F$5:F$237)*('Detailed price list'!$M$5:$M$237)*('Detailed price list'!$L$5:$L$237=$B79))/SUMIF('Detailed price list'!$L$5:$L$237,$B79,'Detailed price list'!$M$5:$M$237)) -> 24.35895257 | F79: =IF(SUMIF('Detailed price list'!$L$5:$L$237,$B79,'Detailed price list'!$M$5:$M$237)=0,0, SUMPRODUCT(('Detailed price list'!G$5:G$237)*('Detailed price list'!$M$5:$M$237)*('Detailed price list'!$L$5:$L$237=$B79))/SUMIF('Detailed price list'!$L$5:$L$237,$B79,'Detailed price list'!$M$5:$M$237)) -> 25.05918921 | G79: =IF(SUMIF('Detailed price list'!$L$5:$L$237,$B79,'Detailed price list'!$M$5:$M$237)=0,0, SUMPRODUCT(('Detailed price list'!H$5:H$237)*('Detailed price list'!$M$5:$M$237)*('Detailed price list'!$L$5:$L$237=$B79))/SUMIF('Detailed price list'!$L$5:$L$237,$B79,'Detailed price list'!$M$5:$M$237)) -> 25.77955526
